Workbook

Sheet START
A1: =muni -> Choose name from list

Sheet Instructions
D2: 2020
X4: Yes
X5: No
W7: Type of Entities Range: | X7: Parent Municipality
X8: Consolidated Information
W10: Date of Adjustment | X10: 28.02.2025
W19: MTREF Range: | X19: 2013
X20: 2014
X21: 2015
X22: 2016
X23: 2017
X24: 2018
X25: 2019
X26: 2020
X27: 2021
X28: 2022
X29: 2023
X30: 2024
X31: 2025
X32: 2026
W33: MTREF Linked:
W34: MTREF:
X35: 12
W36: Fin Year: | X36: =INDEX(X19:X33,X35,1) -> 2024
X38: =MTREF&"/"&RIGHT(MTREF,2)+1 -> 2024/25

Sheet Template names (hidden)
A1: Common sheet headings
A2: Head1 | B2: =HLOOKUP(MTREF,Headings,2) -> 2023/24 | C2: Prior year -1
A3: Head1A | B3: =HLOOKUP(MTREF,Headings,3) -> 2022/23 | C3: Prior year -2
A4: Head1B | B4: =HLOOKUP(MTREF,Headings,4) -> 2021/22 | C4: Prior year -3
A5: Head2 | B5: =HLOOKUP(MTREF,Headings,7) -> Budget Year 2024/25 | C5: Year of approved budget
A6: Head2A | B6: =HLOOKUP(MTREF,Headings,6) -> 2024/25 | C6: Approved budget year
A7: Head3 | B7: =HLOOKUP(MTREF,Headings,5) -> 2024/25 Medium Term Revenue & Expenditure Framework | C7: MTREF header name
A8: Head3A | B8: Medium Term Revenue and Expenditure Framework
A9: Head4 | B9: Current year
A10: Head5 | B10: Audited Outcome
A11: Head5A | B11: Outcome
A12: Head5B | B12: Pre-audit outcome
A13: Head6 | B13: Original Budget
A14: Head7 | B14: Adjusted Budget
A15: Head8 | B15: Full Year Forecast
A16: Head9 | B16: =HLOOKUP(MTREF,Headings,7) -> Budget Year 2024/25 | C16: 1st year of MTREF | D16: Year1
A17: Head10 | B17: =HLOOKUP(MTREF,Headings,8) -> Budget Year +1 2025/26 | C17: 2nd year of MTREF | D17: Year2
A18: Head11 | B18: =HLOOKUP(MTREF,Headings,9) -> Budget Year +2 2026/27 | C18: 3rd year of MTREF | D18: Year3
A19: Head24 | B19: Description | D19: Desc
A20: Head26 | B20: Vote Description | D20: VDesc
A21: Head27 | B21: Ref
A22: Head27a | B22: References
A23: Head28 | B23: Surplus/ (Deficit) for the year | D23: Result
A24: Head29 | B24: Annual target 2007/08
A25: Head30 | B25: Revised target 2007/08
A26: Head31 | B26: Quarter ended 30 September
A27: Head32 | B27: Quarter ended 31 December
A28: Head33 | B28: Quarter ended 31 March
A29: Head34 | B29: Quarter ended 30 June
A30: Head35 | B30: Variance explanation
A31: Head36 | B31: YTD Actual 31 Dec
A32: Head37 | B32: YTD Budget 31 Dec
A33: Head38 | B33: Monthly actual
A34: Head39 | B34: YearTD actual
A35: Head40 | B35: YearTD budget
A36: Head41 | B36: YTD variance
A37: Head42 | B37: Surplus/ (Deficit) for the yr/period
A38: Head43 | B38: =Head3&" Summary" -> 2024/25 Medium Term Revenue & Expenditure Framework Summary
A39: Head44 | B39: 2001 Census
A40: Head45 | B40: 2011 Census
A41: Head46 | B41: - Adjustments Budget - January 2007
A42: Head47 | B42: Previous target year to complete
A43: Head48 | B43: Present value
A44: Head49
A45: Head50 | B45: Other Adjusts.
A46: Head51 | B46: Accum. Funds
A47: Head52 | B47: Multi-year capital
A48: Head53 | B48: Unfore. Unavoid.
A49: Head54 | B49: Prior Adjusted
A50: Head55 | B50: Nat. or Prov. Govt
A51: Head56 | B51: Total Adjusts.
A52: Head57 | B52: Month DD, YYYY -
A53: Head58 | B53: Parent muni.
A54: Head59 | B54: Downward adjusts
A55: SFPerf1 | B55: Budgeted Financial Performance
A56: SFPerf2 | B56: Forecast Financial Performance
A57: SFPos1 | B57: Budgeted Financial Position
A58: SFPos2 | B58: Forecast Financial Position
A59: Cash1 | B59: Budget Cash Flow
A60: Cash2 | B60: Forecast Cash Flow
A61: RandM | B61: Expenditure includes repairs & maintenance of R'000
A62: Standard nomenclature
A63: Muni | B63: ='Lookup and lists'!B28 -> Choose name from list
A64: Municipal Entities | B64: 1 | C64: Type of report: | D64: 3
A65: =IF((MuniEntities=1)*(MuniType=2),"YES","NO") -> NO | B65: Does this municipality have entities (consolidated budget and entity budgets required)? YES/NO
A66: Mid Year Review/Adjustment Budget schedules & tables | E66: Consolidated header | F66: Parent municipality header
A67: ADJSum | B67: =D67&IF(Consolques="YES",E67,F67) -> Table B1 Adjustments Budget Summary | D67: Table B1 | E67: ="Consolidated "&F67 -> Consolidated Adjustments Budget Summary | F67: ="Adjustments Budget Summary" -> Adjustments Budget Summary
A68: ADJ2 | B68: Table B3 Adjustments Budget Financial Performance (revenue and expenditure by municipal vote) | D68: Table B3 | E68: ="Consolidated "&F68 -> Consolidated Adjustments Budget Financial Performance (revenue and expenditure by municipal vote) | F68: ="Adjustments Budget Financial Performance (revenue and expenditure by municipal vote)" -> Adjustments Budget Financial Performance (revenue and expenditure by municipal vote)
A69: ADJ3 | B69: Table B2 Adjustments Budget Financial Performance (functional classification) | D69: Table B2 | E69: Consolidated Adjustments Budget Financial Performance (functional classification) | F69: ="Adjustments Budget Financial Performance (functional classification)" -> Adjustments Budget Financial Performance (functional classification)
A70: ADJ4 | B70: Table B4 Adjustments Budget Financial Performance (revenue and expenditure) | D70: Table B4 | E70: Consolidated Adjustments Budget Financial Performance (revenue and expenditure) | F70: ="Adjustments Budget Financial Performance (revenue and expenditure)" -> Adjustments Budget Financial Performance (revenue and expenditure)
A71: ADJ5 | B71: Table B5 Adjustments Capital Expenditure Budget by vote and funding | D71: Table B5 | E71: Consolidated Adjustments Capital Expenditure Budget by vote and funding | F71: ="Adjustments Capital Expenditure Budget by vote and funding" -> Adjustments Capital Expenditure Budget by vote and funding
A72: ADJ6 | B72: Table B6 Adjustments Budget Financial Position | D72: Table B6 | E72: Consolidated Adjustments Budget Financial Position | F72: ="Adjustments Budget Financial Position" -> Adjustments Budget Financial Position
A73: ADJ7 | B73: Table B7 Adjustments Budget Cash Flows | D73: Table B7 | E73: Consolidated Adjustments Budget Cash Flows | F73: ="Adjustments Budget Cash Flows" -> Adjustments Budget Cash Flows
A74: ADJ8 | B74: Table B8 Cash backed reserves/accumulated surplus reconciliation | D74: Table B8 | E74: Consolidated Cash backed reserves/accumulated surplus reconciliation | F74: ="Cash backed reserves/accumulated surplus reconciliation" -> Cash backed reserves/accumulated surplus reconciliation
A75: ADJ9 | B75: Table B9 Asset Management | D75: Table B9 | E75: Consolidated Asset Management | F75: ="Asset Management" -> Asset Management
A76: ADJ10 | B76: Table B10 Basic service delivery measurement | D76: Table B10 | E76: Consolidated Basic service delivery measurement | F76: ="Basic service delivery measurement" -> Basic service delivery measurement
A77: ADJB1 | B77: Supporting Table SB1 Supporting detail to 'Budgeted Financial Performance' | D77: =D101&"Table SB1 " -> Supporting Table SB1 | E77: Consolidated Supporting detail to 'Budgeted Financial Performance' | F77: ="Supporting detail to 'Budgeted Financial Performance'" -> Supporting detail to 'Budgeted Financial Performance'
A78: ADJB2 | B78: Supporting Table SB2 Supporting detail to 'Financial Position Budget' | D78: =D101&"Table SB2 " -> Supporting Table SB2 | E78: Consolidated Supporting detail to 'Financial Position Budget' | F78: ="Supporting detail to 'Financial Position Budget'" -> Supporting detail to 'Financial Position Budget'
A79: ADJB3 | B79: Supporting Table SB3 Adjustments to the SDBIP - performance objectives | D79: =D101&"Table SB3 " -> Supporting Table SB3 | E79: Consolidated Adjustments to the SDBIP - performance objectives | F79: ="Adjustments to the SDBIP - performance objectives" -> Adjustments to the SDBIP - performance objectives
A80: ADJB4 | B80: Supporting Table SB4 Adjustments to budgeted performance indicators and benchmarks | D80: =D101&"Table SB4 " -> Supporting Table SB4 | E80: Consolidated Adjustments to budgeted performance indicators and benchmarks | F80: ="Adjustments to budgeted performance indicators and benchmarks" -> Adjustments to budgeted performance indicators and benchmarks
A81: ADJB5 | B81: Supporting Table SB5 Adjustments Budget - social, economic and demographic statistics and assumptions | D81: =D101&"Table SB5 " -> Supporting Table SB5 | E81: Consolidated Adjustments Budget - social, economic and demographic statistics and assumptions | F81: ="Adjustments Budget - social, economic and demographic statistics and assumptions" -> Adjustments Budget - social, economic and demographic statistics and assumptions
A82: ADJB6 | B82: Supporting Table SB6 Adjustments Budget - funding measurement | D82: =D101&"Table SB6 " -> Supporting Table SB6 | E82: Consolidated Adjustments Budget - funding measurement | F82: ="Adjustments Budget - funding measurement" -> Adjustments Budget - funding measurement
A83: ADJB7 | B83: Supporting Table SB7 Adjustments Budget - transfers and grant receipts | D83: =D101&"Table SB7 " -> Supporting Table SB7 | E83: Consolidated Adjustments Budget - transfers and grant receipts | F83: ="Adjustments Budget - transfers and grant receipts" -> Adjustments Budget - transfers and grant receipts
A84: ADJB8 | B84: Supporting Table SB8 Adjustments Budget - expenditure on transfers and grant programme | D84: =D101&"Table SB8 " -> Supporting Table SB8 | E84: Consolidated Adjustments Budget - expenditure on transfers and grant programme | F84: ="Adjustments Budget - expenditure on transfers and grant programme" -> Adjustments Budget - expenditure on transfers and grant programme
A85: ADJB9 | B85: Supporting Table SB9 Adjustments Budget - reconciliation of transfers, grant receipts, and unspent funds | D85: =D101&"Table SB9 " -> Supporting Table SB9 | E85: Consolidated Adjustments Budget - reconciliation of transfers, grant receipts, and unspent funds | F85: ="Adjustments Budget - reconciliation of transfers, grant receipts, and unspent funds" -> Adjustments Budget - reconciliation of transfers, grant receipts, and unspent funds
A86: ADJB10 | B86: Supporting Table SB10 Adjustments Budget - transfers and grants made by the municipality | D86: =D101&"Table SB10 " -> Supporting Table SB10 | E86: Consolidated Adjustments Budget - transfers and grants made by the municipality | F86: ="Adjustments Budget - transfers and grants made by the municipality" -> Adjustments Budget - transfers and grants made by the municipality
A87: ADJB11 | B87: Supporting Table SB11 Adjustments Budget - councillor and staff benefits | D87: =D101&"Table SB11 " -> Supporting Table SB11 | E87: Consolidated Adjustments Budget - councillor and staff benefits | F87: ="Adjustments Budget - councillor and staff benefits" -> Adjustments Budget - councillor and staff benefits
A88: ADJB12 | B88: Supporting Table SB12 Adjustments Budget - monthly revenue and expenditure (municipal vote) | D88: =D101&"Table SB12 " -> Supporting Table SB12 | E88: Consolidated Adjustments Budget - monthly revenue and expenditure (municipal vote) | F88: ="Adjustments Budget - monthly revenue and expenditure (municipal vote)" -> Adjustments Budget - monthly revenue and expenditure (municipal vote)
A89: ADJB13 | B89: Supporting Table SB13 Adjustments Budget - monthly revenue and expenditure (functional classification) | D89: =D101&"Table SB13 " -> Supporting Table SB13 | E89: Consolidated Adjustments Budget - monthly revenue and expenditure (functional classification) | F89: ="Adjustments Budget - monthly revenue and expenditure (functional classification)" -> Adjustments Budget - monthly revenue and expenditure (functional classification)
A90: ADJB14 | B90: Supporting Table SB14 Adjustments Budget - monthly revenue and expenditure | D90: =D101&"Table SB14 " -> Supporting Table SB14 | E90: Consolidated Adjustments Budget - monthly revenue and expenditure | F90: ="Adjustments Budget - monthly revenue and expenditure" -> Adjustments Budget - monthly revenue and expenditure
A91: ADJB15 | B91: Supporting Table SB15 Adjustments Budget - monthly cash flow | D91: =D101&"Table SB15 " -> Supporting Table SB15 | E91: Consolidated Adjustments Budget - monthly cash flow | F91: ="Adjustments Budget - monthly cash flow" -> Adjustments Budget - monthly cash flow
A92: ADJB16 | B92: Supporting Table SB16 Adjustments Budget - monthly capital expenditure (municipal vote) | D92: =D101&"Table SB16 " -> Supporting Table SB16 | E92: Consolidated Adjustments Budget - monthly capital expenditure (municipal vote) | F92: ="Adjustments Budget - monthly capital expenditure (municipal vote)" -> Adjustments Budget - monthly capital expenditure (municipal vote)
A93: ADJB17 | B93: Supporting Table SB17 Adjustments Budget - monthly capital expenditure (functional classification) | D93: =D101&"Table SB17 " -> Supporting Table SB17 | E93: Consolidated Adjustments Budget - monthly capital expenditure (functional classification) | F93: ="Adjustments Budget - monthly capital expenditure (functional classification)" -> Adjustments Budget - monthly capital expenditure (functional classification)
A94: ADJB18a | B94: Supporting Table SB18a Adjustments Budget - capital expenditure on new assets by asset class | D94: =D101&"Table SB18a " -> Supporting Table SB18a | E94: Consolidated Adjustments Budget - capital expenditure on new assets by asset class | F94: ="Adjustments Budget - capital expenditure on new assets by asset class" -> Adjustments Budget - capital expenditure on new assets by asset class
A95: ADJB18b | B95: Supporting Table SB18b Adjustments Budget - capital expenditure on renewal of existing assets by asset class | D95: =D101&"Table SB18b " -> Supporting Table SB18b | E95: ="Consolidated "&F95 -> Consolidated Adjustments Budget - capital expenditure on renewal of existing assets by asset class | F95: ="Adjustments Budget - capital expenditure on renewal of existing assets by asset class" -> Adjustments Budget - capital expenditure on renewal of existing assets by asset class
A96: ADJB18c | B96: Supporting Table SB18c Adjustments Budget - expenditure on repairs and maintenance by asset class | D96: =D101&"Table SB18c " -> Supporting Table SB18c | E96: ="Consolidated "&F96 -> Consolidated Adjustments Budget - expenditure on repairs and maintenance by asset class | F96: ="Adjustments Budget - expenditure on repairs and maintenance by asset class" -> Adjustments Budget - expenditure on repairs and maintenance by asset class
A97: ADJB18d | B97: Supporting Table SB18d Adjustments Budget - depreciation by asset class | D97: =D101&"Table SB18d " -> Supporting Table SB18d | E97: ="Consolidated "&F97 -> Consolidated Adjustments Budget - depreciation by asset class | F97: ="Adjustments Budget - depreciation by asset class" -> Adjustments Budget - depreciation by asset class
A98: ADJB18e | B98: Supporting Table SB18e Adjustments Budget - capital expenditure on upgrading of existing assets by asset class | D98: =D101&"Table SB18e " -> Supporting Table SB18e | E98: ="Consolidated "&F98 -> Consolidated Adjustments Budget - capital expenditure on upgrading of existing assets by asset class | F98: ="Adjustments Budget - capital expenditure on upgrading of existing assets by asset class" -> Adjustments Budget - capital expenditure on upgrading of existing assets by asset class
A99: ADJB19 | B99: Supporting Table SB19 List of capital programmes and projects affected by Adjustments Budget | D99: =D101&"Table SB19 " -> Supporting Table SB19 | E99: Consolidated List of capital programmes and projects affected by Adjustments Budget | F99: ="List of capital programmes and projects affected by Adjustments Budget" -> List of capital programmes and projects affected by Adjustments Budget
A100: ADJB20 | B100: Supporting Table SB20 Not required | D100: =D101&"Table SB20 " -> Supporting Table SB20 | E100: ="Adjusted Budget Municipal Entity Performance Summary" -> Adjusted Budget Municipal Entity Performance Summary | F100: Not required
D101: Supporting

Sheet Lookup and lists (hidden)
A1: Description | B1: 2013 | C1: 2014 | D1: 2015 | E1: 2016 | F1: 2017 | G1: 2018 | H1: 2019 | I1: 2020 | J1: 2021 | K1: 2022 | L1: 2023 | M1: 2024 | N1: 2025 | O1: 2026 | Q1: Grants: | R1: National - opex | S1: Provincial - opex | T1: National - capex | U1: Provincial - capex | V1: YESNO
A2: ='Template names'!C2 -> Prior year -1 | B2: =B1-1&"/"&RIGHT(B1,2)-0 -> 2012/13 | C2: =C1-1&"/"&RIGHT(C1,2)-0 -> 2013/14 | D2: =D1-1&"/"&RIGHT(D1,2)-0 -> 2014/15 | E2: =E1-1&"/"&RIGHT(E1,2)-0 -> 2015/16 | F2: 2016/17 | G2: 2017/18 | H2: 2018/19 | I2: 2019/20 | J2: 2020/21 | K2: 2021/22 | L2: 2022/23 | M2: 2023/24 | N2: 2024/25 | O2: 2025/26 | R2: Local Government Equitable Share | S2: Health subsidy | T2: Municipal Infrastructure Grant (MIG) | U2: Agriculture | V2: Yes
A3: ='Template names'!C3 -> Prior year -2 | B3: =B1-2&"/"&RIGHT(B1,2)-1 -> 2011/12 | C3: =C1-2&"/"&RIGHT(C1,2)-1 -> 2012/13 | D3: =D1-2&"/"&RIGHT(D1,2)-1 -> 2013/14 | E3: =E1-2&"/"&RIGHT(E1,2)-1 -> 2014/15 | F3: 2015/16 | G3: 2016/17 | H3: 2017/18 | I3: 2018/19 | J3: 2019/20 | K3: 2020/21 | L3: 2021/22 | M3: 2022/23 | N3: 2023/24 | O3: 2024/25 | R3: RSC Levy Replacement | S3: Ambulance subsidy | T3: Public Transport and Systems | U3: Education | V3: No
A4: ='Template names'!C4 -> Prior year -3 | B4: =B1-3&"/"&RIGHT(B1,2)-2 -> 2010/11 | C4: =C1-3&"/"&RIGHT(C1,2)-2 -> 2011/12 | D4: =D1-3&"/"&RIGHT(D1,2)-2 -> 2012/13 | E4: =E1-3&"/"&RIGHT(E1,2)-2 -> 2013/14 | F4: 2014/15 | G4: 2015/16 | H4: 2016/17 | I4: 2017/18 | J4: 2018/19 | K4: 2019/20 | L4: 2020/21 | M4: 2021/22 | N4: 2022/23 | O4: 2023/24 | R4: Finance Management | S4: Housing | T4: Rural Transport Services and Infrastructure | U4: Health
A5: ='Template names'!C7 -> MTREF header name | B5: =B1&"/"&RIGHT(B1,2)+1&" Medium Term Revenue & Expenditure Framework" -> 2013/14 Medium Term Revenue & Expenditure Framework | C5: =C1&"/"&RIGHT(C1,2)+1&" Medium Term Revenue & Expenditure Framework" -> 2014/15 Medium Term Revenue & Expenditure Framework | D5: =D1&"/"&RIGHT(D1,2)+1&" Medium Term Revenue & Expenditure Framework" -> 2015/16 Medium Term Revenue & Expenditure Framework | E5: =E1&"/"&RIGHT(E1,2)+1&" Medium Term Revenue & Expenditure Framework" -> 2016/17 Medium Term Revenue & Expenditure Framework | F5: 2017/18 Medium Term Revenue & Expenditure Framework | G5: 2018/19 Medium Term Revenue & Expenditure Framework | H5: 2019/20 Medium Term Revenue & Expenditure Framework | I5: 2020/21 Medium Term Revenue & Expenditure Framework | J5: 2021/22 Medium Term Revenue & Expenditure Framework | K5: 2022/23 Medium Term Revenue & Expenditure Framework | L5: 2023/24 Medium Term Revenue & Expenditure Framework | M5: 2024/25 Medium Term Revenue & Expenditure Framework | N5: 2025/26 Medium Term Revenue & Expenditure Framework | O5: 2026/27 Medium Term Revenue & Expenditure Framework | R5: Municipal Systems Improvement | S5: Sport and Recreation | T5: Regional Bulk Infrastructure | U5: Housing and Local Government
A6: ='Template names'!C6 -> Approved budget year | B6: =B1&"/"&RIGHT(B1,2)+1 -> 2013/14 | C6: =C1&"/"&RIGHT(C1,2)+1 -> 2014/15 | D6: =D1&"/"&RIGHT(D1,2)+1 -> 2015/16 | E6: =E1&"/"&RIGHT(E1,2)+1 -> 2016/17 | F6: 2017/18 | G6: 2018/19 | H6: 2019/20 | I6: 2020/21 | J6: 2021/22 | K6: 2022/23 | L6: 2023/24 | M6: 2024/25 | N6: 2025/26 | O6: 2026/27 | R6: Water Services Operating Subsidy | T6: Rural Households Infrastructure | U6: Other Departments
A7: ='Template names'!C16 -> 1st year of MTREF | B7: ="Budget Year "&B1&"/"&RIGHT(B1,2)+1 -> Budget Year 2013/14 | C7: ="Budget Year "&C1&"/"&RIGHT(C1,2)+1 -> Budget Year 2014/15 | D7: ="Budget Year "&D1&"/"&RIGHT(D1,2)+1 -> Budget Year 2015/16 | E7: ="Budget Year "&E1&"/"&RIGHT(E1,2)+1 -> Budget Year 2016/17 | F7: Budget Year 2017/18 | G7: Budget Year 2018/19 | H7: Budget Year 2019/20 | I7: Budget Year 2020/21 | J7: Budget Year 2021/22 | K7: Budget Year 2022/23 | L7: Budget Year 2023/24 | M7: Budget Year 2024/25 | N7: Budget Year 2025/26 | O7: Budget Year 2026/27 | R7: Energy Efficiency and Demand Management | T7: Neighbourhood Development Partnership | U7: Public Works, Roads, Transport
A8: ='Template names'!C17 -> 2nd year of MTREF | B8: ="Budget Year +1 "&B1+1&"/"&RIGHT(B1,2)+2 -> Budget Year +1 2014/15 | C8: ="Budget Year +1 "&C1+1&"/"&RIGHT(C1,2)+2 -> Budget Year +1 2015/16 | D8: ="Budget Year +1 "&D1+1&"/"&RIGHT(D1,2)+2 -> Budget Year +1 2016/17 | E8: ="Budget Year +1 "&E1+1&"/"&RIGHT(E1,2)+2 -> Budget Year +1 2017/18 | F8: Budget Year +1 2018/19 | G8: Budget Year +1 2019/20 | H8: Budget Year +1 2020/21 | I8: Budget Year +1 2021/22 | J8: Budget Year +1 2022/23 | K8: Budget Year +1 2023/24 | L8: Budget Year +1 2024/25 | M8: Budget Year +1 2025/26 | N8: Budget Year +1 2026/27 | O8: Budget Year +1 2027/28 | R8: Integrated National Electrification Programme | T8: 2010 FIFA World Cup Stadiums Development | U8: Sport and Recreation
A9: ='Template names'!C18 -> 3rd year of MTREF | B9: ="Budget Year +2 "&B1+2&"/"&RIGHT(B1,2)+3 -> Budget Year +2 2015/16 | C9: ="Budget Year +2 "&C1+2&"/"&RIGHT(C1,2)+3 -> Budget Year +2 2016/17 | D9: ="Budget Year +2 "&D1+2&"/"&RIGHT(D1,2)+3 -> Budget Year +2 2017/18 | E9: ="Budget Year +2 "&E1+2&"/"&RIGHT(E1,2)+3 -> Budget Year +2 2018/19 | F9: Budget Year +2 2019/20 | G9: Budget Year +2 2020/21 | H9: Budget Year +2 2021/22 | I9: Budget Year +2 2022/23 | J9: Budget Year +2 2023/24 | K9: Budget Year +2 2024/25 | L9: Budget Year +2 2025/26 | M9: Budget Year +2 2026/27 | N9: Budget Year +2 2027/28 | O9: Budget Year +2 2028/29 | R9: Municipal Drought Relief
A10: Adjustments Budget | B10: ="Annual target " & B1&"/"&RIGHT(B1,2)+1 -> Annual target 2013/14 | C10: ="Annual target " & C1&"/"&RIGHT(C1,2)+1 -> Annual target 2014/15 | D10: ="Annual target " & D1&"/"&RIGHT(D1,2)+1 -> Annual target 2015/16 | E10: ="Annual target " & E1&"/"&RIGHT(E1,2)+1 -> Annual target 2016/17 | F10: Annual target 2017/18 | G10: Annual target 2018/19 | H10: Annual target 2019/20 | I10: Annual target 2020/21 | J10: Annual target 2021/22 | K10: Annual target 2022/23 | L10: Annual target 2023/24 | M10: Annual target 2024/25 | N10: Annual target 2025/26 | O10: Annual target 2026/27 | R10: 2010 FIFA World Cup Operating
A11: NOTE: This sheet should not be directly amended - select headings from sheet 'S' | R11: Electricity Demand Side Management
R12: EPWP Incentive
R15: Asset Class | S15: Asset sub-class Old | T15: Asset sub-class | U15: IUDF | V15: MTSF
R17: Roads Infrastructure | S17: Roads, Pavements & Bridges | T17: Roads | U17: Spatial integration | V17: Quality basic education
R18: Storm water Infrastructure | S18: Storm water | T18: Road Structures | U18: Inclusion and access | V18: A long and healthy life for all South Africans
R19: Electrical Infrastructure | S19: Generation | T19: Road Furniture | U19: Growth | V19: All people in South Africa are and feel safe
R20: Water Supply Infrastructure | S20: Transmission & Reticulation | T20: Capital Spares | U20: Governance | V20: Decent employment through inclusive growth
R21: Sanitation Infrastructure | S21: Street Lighting | T21: Drainage Collection | V21: A skilled and capable workforce to support an inclusive growth path
R22: Solid Waste Infrastructure | S22: Dams & Reservoirs | T22: Storm water Conveyance | V22: An efficient, competitive and responsive economic infrastructure network
R23: Rail Infrastructure | S23: Water purification | T23: Attenuation | V23: Vibrant, equitable, sustainable rural communities contributing towards food security for all
R24: Coastal Infrastructure | S24: Reticulation | T24: Power Plants | V24: Sustainable human settlements and improved quality of household life
R25: Information and Communication Infrastructure | S25: Sewerage purification | T25: HV Substations | V25: Responsive, accountable, effective and efficient local government
R26: Community Facilities | S26: Waste Management | T26: HV Switching Station | V26: Protect and enhance our environmental assets and natural resources
A27: Name link | B27: 1 | R27: Sport and Recreation Facilities | S27: Transportation | T27: HV Transmission Conductors | V27: Create a better South Africa and contribute to a better Africa and a better world
A28: Name of Muni | B28: =INDEX(B29:B312,B27,1) -> Choose name from list | R28: Heritage assets | S28: Gas | T28: MV Substations | V28: An efficient, effective and development-oriented public service
B29: Choose name from list | C29: Set name on 'Instructions' sheet | R29: Revenue Generating | S29: Parks & gardens | T29: MV Switching Stations | V29: A comprehensive, responsive and sustainable social protection system
B30: BUF Buffalo City | C30: EC EASTERN CAPE | R30: Non-revenue Generating | S30: Sportsfields & stadia | T30: MV Networks | V30: A diverse, socially cohesive society with a common national identity
B31: NMA Nelson Mandela Bay | C31: EC EASTERN CAPE | R31: Operational Buildings | S31: Swimming pools | T31: LV Networks
B32: EC101 Dr Beyers Naude | C32: EC EASTERN CAPE | R32: Housing | S32: Community halls | T32: Capital Spares
B33: EC102 Blue Crane Route | C33: EC EASTERN CAPE | R33: Biological or Cultivated Assets | S33: Libraries | T33: Dams and Weirs
B34: EC104 Makana | C34: EC EASTERN CAPE | R34: Servitudes | S34: Recreational facilities | T34: Boreholes
B35: EC105 Ndlambe | C35: EC EASTERN CAPE | R35: Licences and Rights | S35: Fire, safety & emergency | T35: Reservoirs
B36: EC106 Sundays River Valley | C36: EC EASTERN CAPE | R36: Computer Equipment | S36: Security and policing | T36: Pump Stations
B37: EC108 Kouga | C37: EC EASTERN CAPE | R37: Furniture and Office Equipment | S37: Buses | T37: Water Treatment Works
B38: EC109 Kou-Kamma | C38: EC EASTERN CAPE | R38: Machinery and Equipment | S38: Clinics | T38: Bulk Mains
B39: DC10 Sarah Baartman | C39: EC EASTERN CAPE | R39: Transport Assets | S39: Museums & Art Galleries | T39: Distribution
B40: EC121 Mbhashe | C40: EC EASTERN CAPE | R40: Land | S40: Cemeteries | T40: Distribution Points
B41: EC122 Mnquma | C41: EC EASTERN CAPE | R41: Zoo's, Marine and Non-biological Animals | S41: Social rental housing | T41: PRV Stations
B42: EC123 Great Kei | C42: EC EASTERN CAPE | S42: Buildings | T42: Capital Spares
B43: EC124 Amahlathi | C43: EC EASTERN CAPE | S43: Housing development | T43: Pump Station
B44: EC126 Ngqushwa | C44: EC EASTERN CAPE | S44: General vehicles | T44: Reticulation
B45: EC129 Raymond Mhlaba | C45: EC EASTERN CAPE | S45: Specialised vehicles - Refuse | T45: Waste Water Treatment Works
B46: DC12 Amathole | C46: EC EASTERN CAPE | S46: Specialised vehicles - Fire | T46: Outfall Sewers
B47: EC131 Inxuba Yethemba | C47: EC EASTERN CAPE | S47: Specialised vehicles - Conservancy | T47: Toilet Facilities
B48: EC135 Intsika Yethu | C48: EC EASTERN CAPE | S48: Specialised vehicles - Ambulances | T48: Capital Spares
B49: EC136 Emalahleni (Ec) | C49: EC EASTERN CAPE | S49: Plant & equipment | T49: Landfill Sites
B50: EC137 Engcobo | C50: EC EASTERN CAPE | S50: Computers - hardware/equipment | T50: Waste Transfer Stations
B51: EC138 Sakhisizwe | C51: EC EASTERN CAPE | S51: Furniture and other office equipment | T51: Waste Processing Facilities
B52: EC139 Enoch Mgijima | C52: EC EASTERN CAPE | S52: Abattoirs | T52: Waste Drop-off Points
B53: DC13 Chris Hani | C53: EC EASTERN CAPE | S53: Markets | T53: Waste Separation Facilities
B54: EC141 Elundini | C54: EC EASTERN CAPE | S54: Civic Land and Buildings | T54: Electricity Generation Facilities
B55: EC142 Senqu | C55: EC EASTERN CAPE | S55: Other Buildings | T55: Capital Spares
B56: EC145 Walter Sisulu | C56: EC EASTERN CAPE | S56: Other Land | T56: Rail Lines
B57: DC14 Joe Gqabi | C57: EC EASTERN CAPE | S57: Surplus Assets - (Investment or Inventory) | T57: Rail Structures
B58: EC153 Ngquza Hills | C58: EC EASTERN CAPE | S58: Computers - software & programming | T58: Rail Furniture
B59: EC154 Port St Johns | C59: EC EASTERN CAPE | S59: Other | T59: Drainage Collection
B60: EC155 Nyandeni | C60: EC EASTERN CAPE | T60: Storm water Conveyance
B61: EC156 Mhlontlo | C61: EC EASTERN CAPE | R61: SB 19 | T61: Attenuation
B62: EC157 King Sabata Dalindyebo | C62: EC EASTERN CAPE | R62: Yes | T62: MV Substations
B63: DC15 O .R. Tambo | C63: EC EASTERN CAPE | R63: No | T63: LV Networks
B64: EC441 Matatiele | C64: EC EASTERN CAPE | T64: Capital Spares
B65: EC442 Umzimvubu | C65: EC EASTERN CAPE | T65: Sand Pumps
B66: EC443 Winnie Madikizela Mandela | C66: EC EASTERN CAPE | T66: Piers
B67: EC444 Ntabankulu | C67: EC EASTERN CAPE | T67: Revetments
B68: DC44 Alfred Nzo | C68: EC EASTERN CAPE | T68: Promenades
B69: MAN Mangaung | C69: FS FREE STATE | T69: Capital Spares
B70: FS161 Letsemeng | C70: FS FREE STATE | T70: Data Centres
B71: FS162 Kopanong | C71: FS FREE STATE | T71: Core Layers
B72: FS163 Mohokare | C72: FS FREE STATE | T72: Distribution Layers
B73: DC16 Xhariep | C73: FS FREE STATE | T73: Capital Spares
B74: FS181 Masilonyana | C74: FS FREE STATE | T74: Halls
B75: FS182 Tokologo | C75: FS FREE STATE | T75: Centres
B76: FS183 Tswelopele | C76: FS FREE STATE | T76: Crèches
B77: FS184 Matjhabeng | C77: FS FREE STATE | T77: Clinics/Care Centres
B78: FS185 Nala | C78: FS FREE STATE | T78: Fire/Ambulance Stations
B79: DC18 Lejweleputswa | C79: FS FREE STATE | T79: Testing Stations
B80: FS191 Setsoto | C80: FS FREE STATE | T80: Museums
B81: FS192 Dihlabeng | C81: FS FREE STATE | T81: Galleries
B82: FS193 Nketoana | C82: FS FREE STATE | T82: Theatres
B83: FS194 Maluti-a-Phofung | C83: FS FREE STATE | T83: Libraries
B84: FS195 Phumelela | C84: FS FREE STATE | T84: Cemeteries/Crematoria
B85: FS196 Mantsopa | C85: FS FREE STATE | T85: Police
B86: DC19 Thabo Mofutsanyana | C86: FS FREE STATE | T86: Purls
B87: FS201 Moqhaka | C87: FS FREE STATE | T87: Public Open Space
B88: FS203 Ngwathe | C88: FS FREE STATE | T88: Nature Reserves
B89: FS204 Metsimaholo | C89: FS FREE STATE | T89: Public Ablution Facilities
B90: FS205 Mafube | C90: FS FREE STATE | T90: Markets
B91: DC20 Fezile Dabi | C91: FS FREE STATE | T91: Stalls
B92: EKU City of Ekurhuleni | C92: GT GAUTENG | T92: Abattoirs
B93: JHB City Of Johannesburg | C93: GT GAUTENG | T93: Airports
B94: TSH City Of Tshwane | C94: GT GAUTENG | T94: Taxi Ranks/Bus Terminals
B95: GT421 Emfuleni | C95: GT GAUTENG | T95: Capital Spares
B96: GT422 Midvaal | C96: GT GAUTENG | T96: Indoor Facilities
B97: GT423 Lesedi | C97: GT GAUTENG | T97: Outdoor Facilities
B98: DC42 Sedibeng | C98: GT GAUTENG | T98: Capital Spares
B99: GT481 Mogale City | C99: GT GAUTENG | T99: Monuments
B100: GT484 Merafong City | C100: GT GAUTENG | T100: Historic Buildings
B101: GT485 Rand West City | C101: GT GAUTENG | T101: Works of Art
B102: DC48 West Rand | C102: GT GAUTENG | T102: Conservation Areas
B103: ETH eThekwini | C103: KZN KWAZULU-NATAL | T103: Other Heritage
B104: KZN212 Umdoni | C104: KZN KWAZULU-NATAL | T104: Improved Property
B105: KZN213 Umzumbe | C105: KZN KWAZULU-NATAL | T105: Unimproved Property
B106: KZN214 uMuziwabantu | C106: KZN KWAZULU-NATAL | T106: Municipal Offices
B107: KZN216 Ray Nkonyeni | C107: KZN KWAZULU-NATAL | T107: Pay/Enquiry Points
B108: DC21 Ugu | C108: KZN KWAZULU-NATAL | T108: Building Plan Offices
B109: KZN221 uMshwathi | C109: KZN KWAZULU-NATAL | T109: Workshops
B110: KZN222 uMngeni | C110: KZN KWAZULU-NATAL | T110: Yards
B111: KZN223 Mpofana | C111: KZN KWAZULU-NATAL | T111: Stores
B112: KZN224 Impendle | C112: KZN KWAZULU-NATAL | T112: Laboratories
B113: KZN225 Msunduzi | C113: KZN KWAZULU-NATAL | T113: Training Centres
B114: KZN226 Mkhambathini | C114: KZN KWAZULU-NATAL | T114: Manufacturing Plant
B115: KZN227 Richmond | C115: KZN KWAZULU-NATAL | T115: Depots
B116: DC22 uMgungundlovu | C116: KZN KWAZULU-NATAL | T116: Capital Spares
B117: KZN235 Okhahlamba | C117: KZN KWAZULU-NATAL | T117: Staff Housing
B118: KZN237 Inkosi Langalibalele | C118: KZN KWAZULU-NATAL | T118: Social Housing
B119: KZN238 Alfred Duma | C119: KZN KWAZULU-NATAL | T119: Capital Spares
B120: DC23 Uthukela | C120: KZN KWAZULU-NATAL | T120: Water Rights
B121: KZN241 Endumeni | C121: KZN KWAZULU-NATAL | T121: Effluent Licenses
B122: KZN242 Nquthu | C122: KZN KWAZULU-NATAL | T122: Solid Waste Licenses
B123: KZN244 Msinga | C123: KZN KWAZULU-NATAL | T123: Computer Software and Applications
B124: KZN245 Umvoti | C124: KZN KWAZULU-NATAL | T124: Load Settlement Software Applications
B125: DC24 Umzinyathi | C125: KZN KWAZULU-NATAL | T125: Unspecified
B126: KZN252 Newcastle | C126: KZN KWAZULU-NATAL
B127: KZN253 Emadlangeni | C127: KZN KWAZULU-NATAL
B128: KZN254 Dannhauser | C128: KZN KWAZULU-NATAL
B129: DC25 Amajuba | C129: KZN KWAZULU-NATAL
B130: KZN261 eDumbe | C130: KZN KWAZULU-NATAL
B131: KZN262 uPhongolo | C131: KZN KWAZULU-NATAL
B132: KZN263 Abaqulusi | C132: KZN KWAZULU-NATAL
B133: KZN265 Nongoma | C133: KZN KWAZULU-NATAL
B134: KZN266 Ulundi | C134: KZN KWAZULU-NATAL
B135: DC26 Zululand | C135: KZN KWAZULU-NATAL
B136: KZN271 Umhlabuyalingana | C136: KZN KWAZULU-NATAL
B137: KZN272 Jozini | C137: KZN KWAZULU-NATAL
B138: KZN275 Mtubatuba | C138: KZN KWAZULU-NATAL
B139: KZN276 Hlabisa Big Five | C139: KZN KWAZULU-NATAL
B140: DC27 Umkhanyakude | C140: KZN KWAZULU-NATAL
B141: KZN281 Mfolozi | C141: KZN KWAZULU-NATAL
B142: KZN282 uMhlathuze | C142: KZN KWAZULU-NATAL
B143: KZN284 uMlalazi | C143: KZN KWAZULU-NATAL
B144: KZN285 Mthonjaneni | C144: KZN KWAZULU-NATAL
B145: KZN286 Nkandla | C145: KZN KWAZULU-NATAL
B146: DC28 King Cetshwayo | C146: KZN KWAZULU-NATAL
B147: KZN291 Mandeni | C147: KZN KWAZULU-NATAL
B148: KZN292 KwaDukuza | C148: KZN KWAZULU-NATAL
B149: KZN293 Ndwedwe | C149: KZN KWAZULU-NATAL
B150: KZN294 Maphumulo | C150: KZN KWAZULU-NATAL
B151: DC29 iLembe | C151: KZN KWAZULU-NATAL
B152: KZN433 Greater Kokstad | C152: KZN KWAZULU-NATAL
B153: KZN434 Ubuhlebezwe | C153: KZN KWAZULU-NATAL
B154: KZN435 Umzimkhulu | C154: KZN KWAZULU-NATAL
B155: KZN436 Dr Nkosazana Dlamini Zuma | C155: KZN KWAZULU-NATAL
B156: DC43 Harry Gwala | C156: KZN KWAZULU-NATAL
B157: LIM331 Greater Giyani | C157: LIM LIMPOPO
B158: LIM332 Greater Letaba | C158: LIM LIMPOPO
B159: LIM333 Greater Tzaneen | C159: LIM LIMPOPO
B160: LIM334 Ba-Phalaborwa | C160: LIM LIMPOPO
B161: LIM335 Maruleng | C161: LIM LIMPOPO
B162: DC33 Mopani | C162: LIM LIMPOPO
B163: LIM341 Musina | C163: LIM LIMPOPO
B164: LIM343 Thulamela | C164: LIM LIMPOPO
B165: LIM344 Makhado | C165: LIM LIMPOPO
B166: LIM345 Collins Chabane | C166: LIM LIMPOPO
B167: DC34 Vhembe | C167: LIM LIMPOPO
B168: LIM351 Blouberg | C168: LIM LIMPOPO
B169: LIM353 Molemole | C169: LIM LIMPOPO
B170: LIM354 Polokwane | C170: LIM LIMPOPO
B171: LIM355 Lepelle-Nkumpi | C171: LIM LIMPOPO
B172: DC35 Capricorn | C172: LIM LIMPOPO
B173: LIM361 Thabazimbi | C173: LIM LIMPOPO
B174: LIM362 Lephalale | C174: LIM LIMPOPO
B175: LIM366 Bela Bela | C175: LIM LIMPOPO
B176: LIM367 Mogalakwena | C176: LIM LIMPOPO
B177: LIM368 Modimolle-Mookgopong | C177: LIM LIMPOPO
B178: DC36 Waterberg | C178: LIM LIMPOPO
B179: LIM471 Ephraim Mogale | C179: LIM LIMPOPO
B180: LIM472 Elias Motsoaledi | C180: LIM LIMPOPO
B181: LIM473 Makhuduthamaga | C181: LIM LIMPOPO
B182: LIM476 Tubatse Fetakgomo | C182: LIM LIMPOPO
B183: DC47 Sekhukhune | C183: LIM LIMPOPO
B184: MP301 Albert Luthuli | C184: MP MPUMALANGA
B185: MP302 Msukaligwa | C185: MP MPUMALANGA
B186: MP303 Mkhondo | C186: MP MPUMALANGA
B187: MP304 Pixley Ka Seme (MP) | C187: MP MPUMALANGA
B188: MP305 Lekwa | C188: MP MPUMALANGA
B189: MP306 Dipaleseng | C189: MP MPUMALANGA
B190: MP307 Govan Mbeki | C190: MP MPUMALANGA
B191: DC30 Gert Sibande | C191: MP MPUMALANGA
B192: MP311 Victor Khanye | C192: MP MPUMALANGA
B193: MP312 Emalahleni (Mp) | C193: MP MPUMALANGA
B194: MP313 Steve Tshwete | C194: MP MPUMALANGA
B195: MP314 Emakhazeni | C195: MP MPUMALANGA
B196: MP315 Thembisile Hani | C196: MP MPUMALANGA
B197: MP316 Dr J.S. Moroka | C197: MP MPUMALANGA
B198: DC31 Nkangala | C198: MP MPUMALANGA
B199: MP321 Thaba Chweu | C199: MP MPUMALANGA
B200: MP324 Nkomazi | C200: MP MPUMALANGA
B201: MP325 Bushbuckridge | C201: MP MPUMALANGA
B202: MP326 City of Mbombela | C202: MP MPUMALANGA
B203: DC32 Ehlanzeni | C203: MP MPUMALANGA
... 84 more rows

Sheet Org structure
A1: Organisational Structure Votes | C1: Organisational Structure Sub-Votes | E1: Display Sub-Votes
A2: =B2&" - "&C2 -> Vote 1 - City Manager | B2: Vote 1 | C2: City Manager
A3: =B13&" - "& C13 -> Vote 2 - City Finance | B3: 1.1 | C3: Internal Audit and Compliance | D3: 1,1 - Internal Audit and Compliance | E3: 1.1 - Internal Audit and Compliance
A4: =B24&" - "&C24 -> Vote 3 - Corporate Services | B4: 1.2 | C4: Office of the City Manager | D4: 1,2 - Office of the City Manager | E4: 1.2 - Office of the City Manager
A5: =B35&" - "&C35 -> Vote 4 - Community Services and Social Equity | B5: 1.3 | C5: Political Support | D5: 1,3 - Political Support | E5: 1.3 - Political Support
A6: =B46&" - "&C46 -> Vote 5 - Infrastructure Services | B6: 1.4 | C6: Strategic Planning | D6: 1,4 - Strategic Planning | E6: 1.4 - Strategic Planning
A7: =B57&" - "&C57 -> Vote 6 - Sustainable Development and City Enterprises | B7: 1.5 | C7: [Name of sub-vote] | D7: =CONCATENATE(B7, " - ", C7) -> 1,5 - [Name of sub-vote]
A8: =B68&" - "&C68 -> Vote 7 - Electricity | B8: 1.6 | C8: [Name of sub-vote] | D8: 1,6 - [Name of sub-vote]
A9: =B79&" - "&C79 -> Vote 8 - [NAME OF VOTE 8] | B9: 1.7 | C9: [Name of sub-vote] | D9: 1,7 - [Name of sub-vote]
A10: =B90&" - "&C90 -> Vote 9 - [NAME OF VOTE 9] | B10: 1.8 | C10: [Name of sub-vote] | D10: 1,8 - [Name of sub-vote]
A11: =B101&" - "&C101 -> Vote 10 - [NAME OF VOTE 10] | B11: 1.9 | C11: [Name of sub-vote] | D11: 1,9 - [Name of sub-vote]
A12: =B112&" - "&C112 -> Vote 11 - [NAME OF VOTE 11] | B12: 1.10 | C12: [Name of sub-vote] | D12: 1.10 - [Name of sub-vote]
A13: =B123&" - "&C123 -> Vote 12 - [NAME OF VOTE 12] | B13: Vote 2 | C13: City Finance
A14: =B134&" - "&C134 -> Vote 13 - [NAME OF VOTE 13] | B14: 2.1 | C14: Asset Management | D14: 2,1 - Asset Management | E14: 2.1 - Asset Management
A15: =B145&" - "&C145 -> Vote 14 - [NAME OF VOTE 14] | B15: 2.2 | C15: Budget and Treasury Management | D15: 2,2 - Budget and Treasury Management | E15: 2.2 - Budget and Treasury Management
A16: =B156&" - "&C156 -> Vote 15 - [NAME OF VOTE 15] | B16: 2.3 | C16: Expenditure Management | D16: 2,3 - Expenditure Management | E16: 2.3 - Expenditure Management
B17: 2.4 | C17: Revenue Management | D17: 2,4 - Revenue Management | E17: 2.4 - Revenue Management
B18: 2.5 | C18: Supply Chain Management | D18: 2,5 - Supply Chain Management | E18: 2.5 - Supply Chain Management
B19: 2.6 | C19: [Name of sub-vote] | D19: =CONCATENATE(B19, " - ", C19) -> 2,6 - [Name of sub-vote]
B20: 2.7 | C20: [Name of sub-vote] | D20: 2,7 - [Name of sub-vote]
B21: 2.8 | C21: [Name of sub-vote] | D21: 2,8 - [Name of sub-vote]
B22: 2.9 | C22: [Name of sub-vote] | D22: 2,9 - [Name of sub-vote]
B23: 2.10 | C23: [Name of sub-vote] | D23: 2.10 - [Name of sub-vote]
B24: Vote 3 | C24: Corporate Services
B25: 3.1 | C25: Human Resources Management | D25: 3,1 - Human Resources Management | E25: 3.1 - Human Resources Management
B26: 3.2 | C26: Information Technology | D26: 3,2 - Information Technology | E26: 3.2 - Information Technology
B27: 3.3 | C27: Legal Services | D27: 3,3 - Legal Services | E27: 3.3 - Legal Services
B28: 3.4 | C28: Secretariat and Auxiliary Services | D28: 3,4 - Secretariat and Auxiliary Services | E28: 3.4 - Secretariat and Auxiliary Services
B29: 3.5 | C29: General Manager: Corporate Service | D29: 3,5 - General Manager: Corporate Service | E29: 3.5 - General Manager: Corporate Service
B30: 3.6 | C30: [Name of sub-vote] | D30: =CONCATENATE(B30, " - ", C30) -> 3,6 - [Name of sub-vote]
B31: 3.7 | C31: [Name of sub-vote] | D31: 3,7 - [Name of sub-vote]
B32: 3.8 | C32: [Name of sub-vote] | D32: 3,8 - [Name of sub-vote]
B33: 3.9 | C33: [Name of sub-vote] | D33: 3,9 - [Name of sub-vote]
B34: 3.10 | C34: [Name of sub-vote] | D34: 3.10 - [Name of sub-vote]
B35: Vote 4 | C35: Community Services and Social Equity
B36: 4.1 | C36: Area Based Management | D36: 4,1 - Area Based Management | E36: 4.1 - Area Based Management
B37: 4.2 | C37: Public Safety, Emergency Services and Enforcement | D37: 4,2 - Public Safety, Emergency Services and Enforcement | E37: 4.2 - Public Safety, Emergency Services and Enforcement
B38: 4.3 | C38: Recreation and Facilities | D38: 4,3 - Recreation and Facilities | E38: 4.3 - Recreation and Facilities
B39: 4.4 | C39: Waste Management | D39: 4,4 - Waste Management | E39: 4.4 - Waste Management
B40: 4.5 | C40: General Manager: Community Services | D40: 4,5 - General Manager: Community Services | E40: 4.5 - General Manager: Community Services
B41: 4.6 | C41: [Name of sub-vote] | D41: =CONCATENATE(B41, " - ", C41) -> 4,6 - [Name of sub-vote]
B42: 4.7 | C42: [Name of sub-vote] | D42: 4,7 - [Name of sub-vote]
B43: 4.8 | C43: [Name of sub-vote] | D43: 4,8 - [Name of sub-vote]
B44: 4.9 | C44: [Name of sub-vote] | D44: 4,9 - [Name of sub-vote]
B45: 4.10 | C45: [Name of sub-vote] | D45: 4.10 - [Name of sub-vote]
B46: Vote 5 | C46: Infrastructure Services
B47: 5.1 | C47: Project Management Office | D47: 5,1 - Project Management Office | E47: 5.1 - Project Management Office
B48: 5.2 | C48: Roads and Transportation | D48: 5,2 - Roads and Transportation | E48: 5.2 - Roads and Transportation
B49: 5.3 | C49: Water and Sanitation | D49: 5,3 - Water and Sanitation | E49: 5.3 - Water and Sanitation
B50: 5.4 | C50: General Manager: Infrastructure | D50: 5,4 - General Manager: Infrastructure | E50: 5.4 - General Manager: Infrastructure
B51: 5.5 | C51: [Name of sub-vote] | D51: =CONCATENATE(B51, " - ", C51) -> 5,5 - [Name of sub-vote]
B52: 5.6 | C52: [Name of sub-vote] | D52: 5,6 - [Name of sub-vote]
B53: 5.7 | C53: [Name of sub-vote] | D53: 5,7 - [Name of sub-vote]
B54: 5.8 | C54: [Name of sub-vote] | D54: 5,8 - [Name of sub-vote]
B55: 5.9 | C55: [Name of sub-vote] | D55: 5,9 - [Name of sub-vote]
B56: 5.10 | C56: [Name of sub-vote] | D56: 5.10 - [Name of sub-vote]
B57: Vote 6 | C57: Sustainable Development and City Enterprises
B58: 6.1 | C58: City Entities | D58: 6,1 - City Entities | E58: 6.1 - City Entities
B59: 6.2 | C59: Development Services | D59: 6,2 - Development Services | E59: 6.2 - Development Services
B60: 6.3 | C60: Human Settlement Development | D60: 6,3 - Human Settlement Development | E60: 6.3 - Human Settlement Development
B61: 6.4 | C61: Town Planning | D61: 6,4 - Town Planning | E61: 6.4 - Town Planning
B62: 6.5 | C62: General Manager: Sustainable Development and City Enterprises | D62: 6,5 - General Manager: Sustainable Development and City Enterprises | E62: 6.5 - General Manager: Sustainable Development and City Enterprises
B63: 6.6 | C63: [Name of sub-vote] | D63: =CONCATENATE(B63, " - ", C63) -> 6,6 - [Name of sub-vote]
B64: 6.7 | C64: [Name of sub-vote] | D64: 6,7 - [Name of sub-vote]
B65: 6.8 | C65: [Name of sub-vote] | D65: 6,8 - [Name of sub-vote]
B66: 6.9 | C66: [Name of sub-vote] | D66: 6,9 - [Name of sub-vote]
B67: 6.10 | C67: [Name of sub-vote] | D67: 6.10 - [Name of sub-vote]
B68: Vote 7 | C68: Electricity
B69: 7.1 | C69: Electricity planning | D69: 7,1 - Electricity planning | E69: 7.1 Electricity planning
B70: 7.2 | C70: Methods and Standards | D70: 7,2 - Methods and Standards | E70: 7.2 Methods and Standards
B71: 7.3 | C71: Operations and Maintenance | D71: 7,3 - Operations and Maintenance | E71: 7.3 Operations and Maintenance
B72: 7.4 | C72: Revenue Management | D72: 7,4 - Revenue Management | E72: 7.4 Revenue Management
B73: 7.5 | C73: General Manager Electricity | D73: 7,5 - General Manager Electricity | E73: 7.5 General Manager Electricity
B74: 7.6 | C74: [Name of sub-vote] | D74: =CONCATENATE(B74, " - ", C74) -> 7,6 - [Name of sub-vote]
B75: 7.7 | C75: [Name of sub-vote] | D75: 7,7 - [Name of sub-vote]
B76: 7.8 | C76: [Name of sub-vote] | D76: 7,8 - [Name of sub-vote]
B77: 7.9 | C77: [Name of sub-vote] | D77: 7,9 - [Name of sub-vote]
B78: 7.10 | C78: [Name of sub-vote] | D78: 7.10 - [Name of sub-vote]
B79: Vote 8 | C79: [NAME OF VOTE 8]
B80: 8.1 | C80: [Name of sub-vote] | D80: =CONCATENATE(B80, " - ", C80) -> 8,1 - [Name of sub-vote] | E80: 8.1 - [Name of sub-vote]
B81: 8.2 | C81: [Name of sub-vote] | D81: 8,2 - [Name of sub-vote]
B82: 8.3 | C82: [Name of sub-vote] | D82: 8,3 - [Name of sub-vote]
B83: 8.4 | C83: [Name of sub-vote] | D83: 8,4 - [Name of sub-vote]
B84: 8.5 | C84: [Name of sub-vote] | D84: 8,5 - [Name of sub-vote]
B85: 8.6 | C85: [Name of sub-vote] | D85: 8,6 - [Name of sub-vote]
B86: 8.7 | C86: [Name of sub-vote] | D86: 8,7 - [Name of sub-vote]
B87: 8.8 | C87: [Name of sub-vote] | D87: 8,8 - [Name of sub-vote]
B88: 8.9 | C88: [Name of sub-vote] | D88: 8,9 - [Name of sub-vote]
B89: 8.10 | C89: [Name of sub-vote] | D89: 8.10 - [Name of sub-vote]
B90: Vote 9 | C90: [NAME OF VOTE 9]
B91: 9.1 | C91: [Name of sub-vote] | D91: =CONCATENATE(B91, " - ", C91) -> 9,1 - [Name of sub-vote] | E91: 9.1 - [Name of sub-vote]
B92: 9.2 | C92: [Name of sub-vote] | D92: 9,2 - [Name of sub-vote]
B93: 9.3 | C93: [Name of sub-vote] | D93: 9,3 - [Name of sub-vote]
B94: 9.4 | C94: [Name of sub-vote] | D94: 9,4 - [Name of sub-vote]
B95: 9.5 | C95: [Name of sub-vote] | D95: 9,5 - [Name of sub-vote]
B96: 9.6 | C96: [Name of sub-vote] | D96: 9,6 - [Name of sub-vote]
B97: 9.7 | C97: [Name of sub-vote] | D97: 9,7 - [Name of sub-vote]
B98: 9.8 | C98: [Name of sub-vote] | D98: 9,8 - [Name of sub-vote]
B99: 9.9 | C99: [Name of sub-vote] | D99: 9,9 - [Name of sub-vote]
B100: 9.10 | C100: [Name of sub-vote] | D100: 9.10 - [Name of sub-vote]
B101: Vote 10 | C101: [NAME OF VOTE 10]
B102: 10.1 | C102: [Name of sub-vote] | D102: =CONCATENATE(B102, " - ", C102) -> 10,1 - [Name of sub-vote] | E102: 10.1 - [Name of sub-vote]
B103: 10.2 | C103: [Name of sub-vote] | D103: 10,2 - [Name of sub-vote]
B104: 10.3 | C104: [Name of sub-vote] | D104: 10,3 - [Name of sub-vote]
B105: 10.4 | C105: [Name of sub-vote] | D105: 10,4 - [Name of sub-vote]
B106: 10.5 | C106: [Name of sub-vote] | D106: 10,5 - [Name of sub-vote]
B107: 10.6 | C107: [Name of sub-vote] | D107: 10,6 - [Name of sub-vote]
B108: 10.7 | C108: [Name of sub-vote] | D108: 10,7 - [Name of sub-vote]
B109: 10.8 | C109: [Name of sub-vote] | D109: 10,8 - [Name of sub-vote]
B110: 10.9 | C110: [Name of sub-vote] | D110: 10,9 - [Name of sub-vote]
B111: 10.10 | C111: [Name of sub-vote] | D111: 10.10 - [Name of sub-vote]
B112: Vote 11 | C112: [NAME OF VOTE 11]
B113: 11.1 | C113: [Name of sub-vote] | D113: =CONCATENATE(B113, " - ", C113) -> 11,1 - [Name of sub-vote] | E113: 11.1 - [Name of sub-vote]
B114: 11.2 | C114: [Name of sub-vote] | D114: 11,2 - [Name of sub-vote]
B115: 11.3 | C115: [Name of sub-vote] | D115: 11,3 - [Name of sub-vote]
B116: 11.4 | C116: [Name of sub-vote] | D116: 11,4 - [Name of sub-vote]
B117: 11.5 | C117: [Name of sub-vote] | D117: 11,5 - [Name of sub-vote]
B118: 11.6 | C118: [Name of sub-vote] | D118: 11,6 - [Name of sub-vote]
B119: 11.7 | C119: [Name of sub-vote] | D119: 11,7 - [Name of sub-vote]
B120: 11.8 | C120: [Name of sub-vote] | D120: 11,8 - [Name of sub-vote]
B121: 11.9 | C121: [Name of sub-vote] | D121: 11,9 - [Name of sub-vote]
B122: 11.10 | C122: [Name of sub-vote] | D122: 11.10 - [Name of sub-vote]
B123: Vote 12 | C123: [NAME OF VOTE 12]
B124: 12.1 | C124: [Name of sub-vote] | D124: =CONCATENATE(B124, " - ", C124) -> 12,1 - [Name of sub-vote] | E124: 12.1 - [Name of sub-vote]
B125: 12.2 | C125: [Name of sub-vote] | D125: 12,2 - [Name of sub-vote]
B126: 12.3 | C126: [Name of sub-vote] | D126: 12,3 - [Name of sub-vote]
B127: 12.4 | C127: [Name of sub-vote] | D127: 12,4 - [Name of sub-vote]
B128: 12.5 | C128: [Name of sub-vote] | D128: 12,5 - [Name of sub-vote]
B129: 12.6 | C129: [Name of sub-vote] | D129: 12,6 - [Name of sub-vote]
B130: 12.7 | C130: [Name of sub-vote] | D130: 12,7 - [Name of sub-vote]
B131: 12.8 | C131: [Name of sub-vote] | D131: 12,8 - [Name of sub-vote]
B132: 12.9 | C132: [Name of sub-vote] | D132: 12,9 - [Name of sub-vote]
B133: 12.10 | C133: [Name of sub-vote] | D133: 12.10 - [Name of sub-vote]
B134: Vote 13 | C134: [NAME OF VOTE 13]
B135: 13.1 | C135: [Name of sub-vote] | D135: =CONCATENATE(B135, " - ", C135) -> 13,1 - [Name of sub-vote] | E135: 13.1 - [Name of sub-vote]
B136: 13.2 | C136: [Name of sub-vote] | D136: 13,2 - [Name of sub-vote]
B137: 13.3 | C137: [Name of sub-vote] | D137: 13,3 - [Name of sub-vote]
B138: 13.4 | C138: [Name of sub-vote] | D138: 13,4 - [Name of sub-vote]
B139: 13.5 | C139: [Name of sub-vote] | D139: 13,5 - [Name of sub-vote]
B140: 13.6 | C140: [Name of sub-vote] | D140: 13,6 - [Name of sub-vote]
B141: 13.7 | C141: [Name of sub-vote] | D141: 13,7 - [Name of sub-vote]
B142: 13.8 | C142: [Name of sub-vote] | D142: 13,8 - [Name of sub-vote]
B143: 13.9 | C143: [Name of sub-vote] | D143: 13,9 - [Name of sub-vote]
B144: 13.10 | C144: [Name of sub-vote] | D144: 13.10 - [Name of sub-vote]
B145: Vote 14 | C145: [NAME OF VOTE 14]
B146: 14.1 | C146: [Name of sub-vote] | D146: =CONCATENATE(B146, " - ", C146) -> 14,1 - [Name of sub-vote] | E146: 14.1 - [Name of sub-vote]
B147: 14.2 | C147: [Name of sub-vote] | D147: 14,2 - [Name of sub-vote]
B148: 14.3 | C148: [Name of sub-vote] | D148: 14,3 - [Name of sub-vote]
B149: 14.4 | C149: [Name of sub-vote] | D149: 14,4 - [Name of sub-vote]
B150: 14.5 | C150: [Name of sub-vote] | D150: 14,5 - [Name of sub-vote]
B151: 14.6 | C151: [Name of sub-vote] | D151: 14,6 - [Name of sub-vote]
B152: 14.7 | C152: [Name of sub-vote] | D152: 14,7 - [Name of sub-vote]
B153: 14.8 | C153: [Name of sub-vote] | D153: 14,8 - [Name of sub-vote]
B154: 14.9 | C154: [Name of sub-vote] | D154: 14,9 - [Name of sub-vote]
B155: 14.10 | C155: [Name of sub-vote] | D155: 14.10 - [Name of sub-vote]
B156: Vote 15 | C156: [NAME OF VOTE 15]
B157: 15.1 | C157: [Name of sub-vote] | D157: =CONCATENATE(B157, " - ", C157) -> 15,1 - [Name of sub-vote] | E157: 15.1 - [Name of sub-vote]
B158: 15.2 | C158: [Name of sub-vote] | D158: 15,2 - [Name of sub-vote]
B159: 15.3 | C159: [Name of sub-vote] | D159: 15,3 - [Name of sub-vote]
B160: 15.4 | C160: [Name of sub-vote] | D160: 15,4 - [Name of sub-vote]
B161: 15.5 | C161: [Name of sub-vote] | D161: 15,5 - [Name of sub-vote]
B162: 15.6 | C162: [Name of sub-vote] | D162: 15,6 - [Name of sub-vote]
B163: 15.7 | C163: [Name of sub-vote] | D163: 15,7 - [Name of sub-vote]
B164: 15.8 | C164: [Name of sub-vote] | D164: 15,8 - [Name of sub-vote]
B165: 15.9 | C165: [Name of sub-vote] | D165: 15,9 - [Name of sub-vote]
B166: 15.10 | C166: [Name of sub-vote] | D166: 15.10 - [Name of sub-vote]

Sheet Contacts
A1: ='Template names'!$B$63&" - "&" Contact Information" -> Choose name from list - Contact Information
A3: A. GENERAL INFORMATION
A4: Municipality | B4: KZN225 Msunduzi | C4: Set name on 'Instructions' sheet
A6: Grade | C6: 1 Grade in terms of the Remuneration of Public Office Bearers Act.
A8: Province | B8: =IF(B4>" ",VLOOKUP(B4,'Lookup and lists'!B29:C312,2, FALSE)," ") -> KZN KWAZULU-NATAL
A10: Web Address
A12: e-mail Address
A14: B. CONTACT INFORMATION
A15: Postal address:
A16: P.O. Box
A17: City / Town
A18: Postal Code
A20: Street address
A21: Building
A22: Street No. & Name
A23: City / Town
A24: Postal Code
A26: General Contacts
A27: Telephone number
A28: Fax number
A30: C. POLITICAL LEADERSHIP
A31: Speaker: | C31: Secretary/PA to the Speaker:
A32: ID Number | C32: ID Number
A33: Title | C33: Title
A34: Name | C34: Name
A35: Telephone number | C35: Telephone number
A36: Cell number | C36: Cell number
A37: Fax number | C37: Fax number
A38: E-mail address | C38: E-mail address
A40: Mayor/Executive Mayor: | C40: Secretary/PA to the Mayor/Executive Mayor:
A41: ID Number | C41: ID Number
A42: Title | C42: Title
A43: Name | C43: Name
A44: Telephone number | C44: Telephone number
A45: Cell number | C45: Cell number
A46: Fax number | C46: Fax number
A47: E-mail address | C47: E-mail address
A49: Deputy Mayor/Executive Mayor: | C49: Secretary/PA to the Deputy Mayor/Executive Mayor:
A50: ID Number | C50: ID Number
A51: Title | C51: Title
A52: Name | C52: Name
A53: Telephone number | C53: Telephone number
A54: Cell number | C54: Cell number
A55: Fax number | C55: Fax number
A56: E-mail address | C56: E-mail address
A58: D. MANAGEMENT LEADERSHIP
A59: Municipal Manager: | C59: Secretary/PA to the Municipal Manager:
A60: ID Number | C60: ID Number
A61: Title | C61: Title
A62: Name | C62: Name
A63: Telephone number | C63: Telephone number
A64: Cell number | C64: Cell number
A65: Fax number | C65: Fax number
A66: E-mail address | C66: E-mail address
A68: Chief Financial Officer | C68: Secretary/PA to the Chief Financial Officer
A69: ID Number | C69: ID Number
A70: Title | C70: Title
A71: Name | C71: Name
A72: Telephone number | C72: Telephone number
A73: Cell number | C73: Cell number
A74: Fax number | C74: Fax number
A75: E-mail address | C75: E-mail address
A77: Official responsible for submitting financial information | C77: Official responsible for submitting financial information
A78: ID Number | C78: ID Number
A79: Title | C79: Title
A80: Name | C80: Name
A81: Telephone number | C81: Telephone number
A82: Cell number | C82: Cell number
A83: Fax number | C83: Fax number
A84: E-mail address | C84: E-mail address
A85: Official responsible for submitting financial information | C85: Official responsible for submitting financial information
A86: ID Number | C86: ID Number
A87: Title | C87: Title
A88: Name | C88: Name
A89: Telephone number | C89: Telephone number
A90: Cell number | C90: Cell number
A91: Fax number | C91: Fax number
A92: E-mail address | C92: E-mail address
A93: Official responsible for submitting financial information | C93: Official responsible for submitting financial information
A94: ID Number | C94: ID Number
A95: Title | C95: Title
A96: Name | C96: Name
A97: Telephone number | C97: Telephone number
A98: Cell number | C98: Cell number
A99: Fax number | C99: Fax number
A100: E-mail address | C100: E-mail address
A101: Official responsible for submitting financial information | C101: Official responsible for submitting financial information
A102: ID Number | C102: ID Number
A103: Title | C103: Title
A104: Name | C104: Name
A105: Telephone number | C105: Telephone number
A106: Cell number | C106: Cell number
A107: Fax number | C107: Fax number
A108: E-mail address | C108: E-mail address
A109: Official responsible for submitting financial information | C109: Official responsible for submitting financial information
A110: ID Number | C110: ID Number
A111: Title | C111: Title
A112: Name | C112: Name
A113: Telephone number | C113: Telephone number
A114: Cell number | C114: Cell number
A115: Fax number | C115: Fax number
A116: E-mail address | C116: E-mail address
A117: Official responsible for submitting financial information | C117: Official responsible for submitting financial information
A118: ID Number | C118: ID Number
A119: Title | C119: Title
A120: Name | C120: Name
A121: Telephone number | C121: Telephone number
A122: Cell number | C122: Cell number
A123: Fax number | C123: Fax number
A124: E-mail address | C124: E-mail address
A125: Official responsible for submitting financial information | C125: Official responsible for submitting financial information
A126: ID Number | C126: ID Number
A127: Title | C127: Title
A128: Name | C128: Name
A129: Telephone number | C129: Telephone number
A130: Cell number | C130: Cell number
A131: Fax number | C131: Fax number
A132: E-mail address | C132: E-mail address
A133: Official responsible for submitting financial information
A134: ID Number
A135: Title
A136: Name
A137: Telephone number
A138: Cell number
A139: Fax number
A140: E-mail address

Sheet B1-Sum
A1: =muni&" - "&adjsum&" - "&Date -> Choose name from list - Table B1 Adjustments Budget Summary - 28.02.2025
A2: =desc -> Description | B2: =Head2 -> Budget Year 2024/25 | K2: =Head10 -> Budget Year +1 2025/26 | L2: =Head11 -> Budget Year +2 2026/27
B3: =Head6 -> Original Budget | C3: =Head54 -> Prior Adjusted | D3: =Head51 -> Accum. Funds | E3: =Head52 -> Multi-year capital | F3: =Head53 -> Unfore. Unavoid. | G3: =Head55 -> Nat. or Prov. Govt | H3: =Head50 -> Other Adjusts. | I3: =Head56 -> Total Adjusts. | J3: =Head7 -> Adjusted Budget | K3: =Head7 -> Adjusted Budget | L3: =Head7 -> Adjusted Budget
C4: 1 | D4: 2 | E4: 3 | F4: 4 | G4: 5 | H4: 6 | I4: 7 | J4: 8
A5: R thousands | B5: A | C5: A1 | D5: B | E5: C | F5: D | G5: E | H5: F | I5: G | J5: H
A6: Financial Performance
A7: Property rates | B7: =SUM('B4-FinPerf RE'!C23) -> 1649352521 | C7: =SUM('B4-FinPerf RE'!D23) -> 0 | D7: =SUM('B4-FinPerf RE'!E23) -> 0 | E7: =SUM('B4-FinPerf RE'!F23) -> 0 | F7: =SUM('B4-FinPerf RE'!G23) -> 0 | G7: =SUM('B4-FinPerf RE'!H23) -> 0 | H7: =SUM('B4-FinPerf RE'!I23) -> -58.6400001 | I7: =SUM('B4-FinPerf RE'!J23) -> -58.6400001 | J7: =SUM('B4-FinPerf RE'!K23) -> 1649352462 | K7: =SUM('B4-FinPerf RE'!L23) -> 1725222737 | L7: =SUM('B4-FinPerf RE'!M23) -> 1802857760
A8: Service charges | B8: =SUM('B4-FinPerf RE'!C8:C11) -> 5683700785 | C8: =SUM('B4-FinPerf RE'!D8:D11) -> 0 | D8: =SUM('B4-FinPerf RE'!E8:E11) -> 0 | E8: =SUM('B4-FinPerf RE'!F8:F11) -> 0 | F8: =SUM('B4-FinPerf RE'!G8:G11) -> 0 | G8: =SUM('B4-FinPerf RE'!H8:H11) -> 0 | H8: =SUM('B4-FinPerf RE'!I8:I11) -> -73467095.13 | I8: =SUM('B4-FinPerf RE'!J8:J11) -> -73467095.13 | J8: =SUM('B4-FinPerf RE'!K8:K11) -> 5610233689 | K8: =SUM('B4-FinPerf RE'!L8:L11) -> 6564824803 | L8: =SUM('B4-FinPerf RE'!M8:M11) -> 7601945745
A9: Investment revenue | B9: ='B4-FinPerf RE'!C16 -> 59562303 | C9: ='B4-FinPerf RE'!D16 -> 0 | D9: ='B4-FinPerf RE'!E16 -> 0 | E9: ='B4-FinPerf RE'!F16 -> 0 | F9: ='B4-FinPerf RE'!G16 -> 0 | G9: ='B4-FinPerf RE'!H16 -> 0 | H9: ='B4-FinPerf RE'!I16 -> 0 | I9: ='B4-FinPerf RE'!J16 -> 0 | J9: ='B4-FinPerf RE'!K16 -> 59562303 | K9: ='B4-FinPerf RE'!L16 -> 62302169 | L9: ='B4-FinPerf RE'!M16 -> 65105767
A10: Transfers recognised - operational | B10: ='B4-FinPerf RE'!C27 -> 946343150 | C10: ='B4-FinPerf RE'!D27 -> 0 | D10: ='B4-FinPerf RE'!E27 -> 0 | E10: ='B4-FinPerf RE'!F27 -> 0 | F10: ='B4-FinPerf RE'!G27 -> 0 | G10: ='B4-FinPerf RE'!H27 -> 650000 | H10: ='B4-FinPerf RE'!I27 -> 61758585.55 | I10: ='B4-FinPerf RE'!J27 -> 62408585.55 | J10: ='B4-FinPerf RE'!K27 -> 1008751736 | K10: ='B4-FinPerf RE'!L27 -> 950217863 | L10: ='B4-FinPerf RE'!M27 -> 1017329110
A11: Other own revenue | B11: =+B12-SUM(B7:B10) -> 624944465 | C11: =+C12-SUM(C7:C10) -> 0 | D11: 0 | E11: 0 | F11: 0 | G11: 0 | H11: 0.700000003 | I11: 0.700000003 | J11: 624944465.7 | K11: 653691913.7 | L11: 682973573.4
A12: Total Revenue (excluding capital transfers and contributions) | B12: =+'B4-FinPerf RE'!C34 -> 8963903223 | C12: =+'B4-FinPerf RE'!D34 -> 0 | D12: =+'B4-FinPerf RE'!E34 -> 0 | E12: =+'B4-FinPerf RE'!F34 -> 0 | F12: =+'B4-FinPerf RE'!G34 -> 0 | G12: =+'B4-FinPerf RE'!H34 -> 650000 | H12: =+'B4-FinPerf RE'!I34 -> -11708567.52 | I12: =+'B4-FinPerf RE'!J34 -> -11058567.52 | J12: =+'B4-FinPerf RE'!K34 -> 8952844656 | K12: =+'B4-FinPerf RE'!L34 -> 9956259485 | L12: =+'B4-FinPerf RE'!M34 -> 1.117021196e+10
A13: Employee costs | B13: ='B4-FinPerf RE'!C37 -> 1860538235 | C13: ='B4-FinPerf RE'!D37 -> 0 | D13: ='B4-FinPerf RE'!E37 -> 0 | E13: ='B4-FinPerf RE'!F37 -> 0 | F13: ='B4-FinPerf RE'!G37 -> 0 | G13: ='B4-FinPerf RE'!H37 -> 0 | H13: ='B4-FinPerf RE'!I37 -> -45175187.63 | I13: =SUM(D13:H13) -> -45175187.63 | J13: =IF(C13=0,B13+I13,C13+I13) -> 1815363047 | K13: ='B4-FinPerf RE'!L37 -> 1932272500 | L13: ='B4-FinPerf RE'!M37 -> 2020335650
A14: Remuneration of councillors | B14: ='B4-FinPerf RE'!C38 -> 66461931.11 | C14: ='B4-FinPerf RE'!D38 -> 0 | D14: ='B4-FinPerf RE'!E38 -> 0 | E14: ='B4-FinPerf RE'!F38 -> 0 | F14: ='B4-FinPerf RE'!G38 -> 0 | G14: ='B4-FinPerf RE'!H38 -> 0 | H14: ='B4-FinPerf RE'!I38 -> 0 | I14: 0 | J14: 66461931.11 | K14: ='B4-FinPerf RE'!L38 -> 69519179.94 | L14: ='B4-FinPerf RE'!M38 -> 72647543.04
A15: Depreciation & asset impairment | B15: ='B4-FinPerf RE'!C41+'B4-FinPerf RE'!C42 -> 999040744.5 | C15: ='B4-FinPerf RE'!D41+'B4-FinPerf RE'!D42 -> 0 | D15: ='B4-FinPerf RE'!E41+'B4-FinPerf RE'!E42 -> 0 | E15: ='B4-FinPerf RE'!F41+'B4-FinPerf RE'!F42 -> 0 | F15: ='B4-FinPerf RE'!G41+'B4-FinPerf RE'!G42 -> 0 | G15: ='B4-FinPerf RE'!H41+'B4-FinPerf RE'!H42 -> 0 | H15: ='B4-FinPerf RE'!I41+'B4-FinPerf RE'!I42 -> 26500000.01 | I15: ='B4-FinPerf RE'!J41+'B4-FinPerf RE'!J42 -> 26500000.01 | J15: ='B4-FinPerf RE'!K41+'B4-FinPerf RE'!K42 -> 1025540744 | K15: ='B4-FinPerf RE'!L41+'B4-FinPerf RE'!L42 -> 1015919305 | L15: ='B4-FinPerf RE'!M41+'B4-FinPerf RE'!M42 -> 1041797081
A16: Finance charges | B16: ='B4-FinPerf RE'!C43 -> 42824930.71 | C16: ='B4-FinPerf RE'!D43 -> 0 | D16: ='B4-FinPerf RE'!E43 -> 0 | E16: ='B4-FinPerf RE'!F43 -> 0 | F16: ='B4-FinPerf RE'!G43 -> 0 | G16: ='B4-FinPerf RE'!H43 -> 0 | H16: ='B4-FinPerf RE'!I43 -> 0 | I16: ='B4-FinPerf RE'!J43 -> 0 | J16: ='B4-FinPerf RE'!K43 -> 42824930.71 | K16: ='B4-FinPerf RE'!L43 -> 44794877.52 | L16: ='B4-FinPerf RE'!M43 -> 46810647.01
A17: Inventory consumed and bulk purchases | B17: =SUM('B4-FinPerf RE'!C39:C40) -> 4138528114 | C17: =SUM('B4-FinPerf RE'!D39:D40) -> 0 | D17: =SUM('B4-FinPerf RE'!E39:E40) -> 0 | E17: =SUM('B4-FinPerf RE'!F39:F40) -> 0 | F17: =SUM('B4-FinPerf RE'!G39:G40) -> 0 | G17: =SUM('B4-FinPerf RE'!H39:H40) -> 0 | H17: =SUM('B4-FinPerf RE'!I39:I40) -> -30287035.99 | I17: =SUM('B4-FinPerf RE'!J39:J40) -> -30287035.99 | J17: =SUM('B4-FinPerf RE'!K39:K40) -> 4108241078 | K17: =SUM('B4-FinPerf RE'!L39:L40) -> 4672422283 | L17: =SUM('B4-FinPerf RE'!M39:M40) -> 5307235362
A18: Transfers and subsidies | B18: ='B4-FinPerf RE'!C45 -> 52375752.46 | C18: ='B4-FinPerf RE'!D45 -> 0 | D18: ='B4-FinPerf RE'!E45 -> 0 | E18: ='B4-FinPerf RE'!F45 -> 0 | F18: ='B4-FinPerf RE'!G45 -> 0 | G18: ='B4-FinPerf RE'!H45 -> 0 | H18: ='B4-FinPerf RE'!I45 -> 0 | I18: 0 | J18: 52375752.46 | K18: ='B4-FinPerf RE'!L45 -> 54771352.54 | L18: ='B4-FinPerf RE'!M45 -> 57097535.64
A19: Other expenditure | B19: =+B20-SUM(B13:B18) -> 1220500195 | C19: =+C20-SUM(C13:C18) -> 0 | D19: 0 | E19: 0 | F19: 0 | G19: 0 | H19: -32644825.55 | I19: -32644825.55 | J19: 1187855369 | K19: 1335321481 | L19: 1425883313
A20: Total Expenditure | B20: =+'B4-FinPerf RE'!C50 -> 8380269902 | C20: =+'B4-FinPerf RE'!D50 -> 0 | D20: =+'B4-FinPerf RE'!E50 -> 0 | E20: =+'B4-FinPerf RE'!F50 -> 0 | F20: =+'B4-FinPerf RE'!G50 -> 0 | G20: =+'B4-FinPerf RE'!H50 -> 0 | H20: =+'B4-FinPerf RE'!I50 -> -81607049.17 | I20: =+'B4-FinPerf RE'!J50 -> -81607049.17 | J20: =+'B4-FinPerf RE'!K50 -> 8298662853 | K20: =+'B4-FinPerf RE'!L50 -> 9125020978 | L20: =+'B4-FinPerf RE'!M50 -> 9971807132
A21: Surplus/(Deficit) | B21: =B12-B20 -> 583633320.9 | C21: 0 | D21: 0 | E21: 0 | F21: 0 | G21: 650000 | H21: 69898481.65 | I21: 70548481.65 | J21: 654181802.5 | K21: 831238507 | L21: 1198404823
A22: ='B4-FinPerf RE'!A53 -> Transfers and subsidies - capital (monetary allocations) | B22: ='B4-FinPerf RE'!C53 -> 456974891 | C22: ='B4-FinPerf RE'!D53 -> 0 | D22: ='B4-FinPerf RE'!E53 -> 0 | E22: ='B4-FinPerf RE'!F53 -> 0 | F22: ='B4-FinPerf RE'!G53 -> 0 | G22: ='B4-FinPerf RE'!H53 -> 0 | H22: ='B4-FinPerf RE'!I53 -> 20951082.48 | I22: ='B4-FinPerf RE'!J53 -> 20951082.48 | J22: ='B4-FinPerf RE'!K53 -> 477925973.5 | K22: ='B4-FinPerf RE'!L53 -> 389974938 | L22: ='B4-FinPerf RE'!M53 -> 473992600
A23: Transfers and subsidies - capital (in-kind - all) | B23: ='B4-FinPerf RE'!C54 -> 0 | C23: ='B4-FinPerf RE'!D54 -> 0 | D23: ='B4-FinPerf RE'!E54 -> 0 | E23: ='B4-FinPerf RE'!F54 -> 0 | F23: ='B4-FinPerf RE'!G54 -> 0 | G23: ='B4-FinPerf RE'!H54 -> 0 | H23: ='B4-FinPerf RE'!I54 -> 0 | I23: ='B4-FinPerf RE'!J54 -> 0 | J23: ='B4-FinPerf RE'!K54 -> 0 | K23: ='B4-FinPerf RE'!L54 -> 0 | L23: ='B4-FinPerf RE'!M54 -> 0
A24: Surplus/(Deficit) after capital transfers & contributions | B24: =B21+SUM(B22:B23) -> 1040608212 | C24: 0 | D24: 0 | E24: 0 | F24: 0 | G24: 650000 | H24: 90849564.13 | I24: =SUM(D24:H24) -> 91499564.13 | J24: =IF(C24=0,B24+I24,C24+I24) -> 1132107776 | K24: 1221213445 | L24: 1672397423
A25: Share of surplus/ (deficit) of associate | B25: ='B4-FinPerf RE'!C61 -> 0 | C25: ='B4-FinPerf RE'!D61 -> 0 | D25: ='B4-FinPerf RE'!E61 -> 0 | E25: ='B4-FinPerf RE'!F61 -> 0 | F25: ='B4-FinPerf RE'!G61 -> 0 | G25: ='B4-FinPerf RE'!H61 -> 0 | H25: ='B4-FinPerf RE'!I61 -> 0 | I25: ='B4-FinPerf RE'!J61 -> 0 | J25: ='B4-FinPerf RE'!K61 -> 0 | K25: ='B4-FinPerf RE'!L61 -> 0 | L25: ='B4-FinPerf RE'!M61 -> 0
A26: Surplus/ (Deficit) for the year | B26: =B24+B25 -> 1040608212 | C26: 0 | D26: 0 | E26: 0 | F26: 0 | G26: 650000 | H26: 90849564.13 | I26: 91499564.13 | J26: 1132107776 | K26: 1221213445 | L26: 1672397423
A28: Capital expenditure & funds sources
A29: Capital expenditure | B29: ='B5-Capex'!C42 -> 826763940.4 | C29: ='B5-Capex'!D42 -> 0 | D29: ='B5-Capex'!E42 -> 0 | E29: ='B5-Capex'!F42 -> 0 | F29: ='B5-Capex'!G42 -> 0 | G29: ='B5-Capex'!H42 -> 0 | H29: ='B5-Capex'!I42 -> 67484854.97 | I29: =SUM(D29:H29) -> 67484854.97 | J29: =IF(C29=0,B29+I29,C29+I29) -> 894248795.4 | K29: ='B5-Capex'!L42 -> 510806937.8 | L29: ='B5-Capex'!M42 -> 594857880
A30: Transfers recognised - capital | B30: ='B5-Capex'!C72 -> 456974890.5 | C30: ='B5-Capex'!D72 -> 0 | D30: ='B5-Capex'!E72 -> 0 | E30: ='B5-Capex'!F72 -> 0 | F30: ='B5-Capex'!G72 -> 0 | G30: ='B5-Capex'!H72 -> 0 | H30: ='B5-Capex'!I72 -> 20951082.97 | I30: =SUM(D30:H30) -> 20951082.97 | J30: =IF(C30=0,B30+I30,C30+I30) -> 477925973.5 | K30: ='B5-Capex'!L72 -> 390806937.8 | L30: ='B5-Capex'!M72 -> 474857880
A32: Borrowing | B32: ='B5-Capex'!C74 -> 234315856 | C32: ='B5-Capex'!D74 -> 0 | D32: ='B5-Capex'!E74 -> 0 | E32: ='B5-Capex'!F74 -> 0 | F32: ='B5-Capex'!G74 -> 0 | G32: ='B5-Capex'!H74 -> 0 | H32: ='B5-Capex'!I74 -> 0 | I32: =SUM(D32:H32) -> 0 | J32: =IF(C32=0,B32+I32,C32+I32) -> 234315856 | K32: ='B5-Capex'!L74 -> 0 | L32: ='B5-Capex'!M74 -> 0
A33: Internally generated funds | B33: ='B5-Capex'!C75 -> 135473193.9 | C33: ='B5-Capex'!D75 -> 0 | D33: ='B5-Capex'!E75 -> 0 | E33: ='B5-Capex'!F75 -> 0 | F33: ='B5-Capex'!G75 -> 0 | G33: ='B5-Capex'!H75 -> 0 | H33: ='B5-Capex'!I75 -> 46533772 | I33: =SUM(D33:H33) -> 46533772 | J33: =IF(C33=0,B33+I33,C33+I33) -> 182006965.9 | K33: ='B5-Capex'!L75 -> 120000000 | L33: ='B5-Capex'!M75 -> 120000000
A34: Total sources of capital funds | B34: =+B30+B32+B33 -> 826763940.4 | C34: =+C30+C32+C33 -> 0 | D34: 0 | E34: 0 | F34: 0 | G34: 0 | H34: 67484854.97 | I34: =SUM(D34:H34) -> 67484854.97 | J34: =IF(C34=0,B34+I34,C34+I34) -> 894248795.4 | K34: 510806937.8 | L34: 594857880
A36: Financial position
A37: Total current assets | B37: ='B6-FinPos'!C15 -> 4115867937 | C37: ='B6-FinPos'!D15 -> 0 | D37: ='B6-FinPos'!E15 -> 0 | E37: ='B6-FinPos'!F15 -> 0 | F37: ='B6-FinPos'!G15 -> 0 | G37: ='B6-FinPos'!H15 -> 0 | H37: ='B6-FinPos'!I15 -> 151327336.9 | I37: =SUM(D37:H37) -> 151327336.9 | J37: =IF(C37=0,B37+I37,C37+I37) -> 4267195274 | K37: ='B6-FinPos'!L15 -> 123751176.3 | L37: ='B6-FinPos'!M15 -> -535476820.6
A38: Total non current assets | B38: ='B6-FinPos'!C27 -> 1.013418535e+10 | C38: ='B6-FinPos'!D27 -> 0 | D38: ='B6-FinPos'!E27 -> 0 | E38: ='B6-FinPos'!F27 -> 0 | F38: ='B6-FinPos'!G27 -> 0 | G38: ='B6-FinPos'!H27 -> 0 | H38: ='B6-FinPos'!I27 -> 0 | I38: =SUM(D38:H38) -> 0 | J38: =IF(C38=0,B38+I38,C38+I38) -> 1.013418535e+10 | K38: ='B6-FinPos'!L27 -> 9774633461 | L38: ='B6-FinPos'!M27 -> 9877362090
A39: Total current liabilities | B39: ='B6-FinPos'!C40 -> 2374399683 | C39: ='B6-FinPos'!D40 -> 0 | D39: ='B6-FinPos'!E40 -> 0 | E39: ='B6-FinPos'!F40 -> 0 | F39: ='B6-FinPos'!G40 -> 0 | G39: ='B6-FinPos'!H40 -> 0 | H39: ='B6-FinPos'!I40 -> 0 | I39: =SUM(D39:H39) -> 0 | J39: =IF(C39=0,B39+I39,C39+I39) -> 2374399683 | K39: ='B6-FinPos'!L40 -> 3083491795 | L39: ='B6-FinPos'!M40 -> 3283399986
A40: Total non current liabilities | B40: ='B6-FinPos'!C47 -> 1223486025 | C40: ='B6-FinPos'!D47 -> 0 | D40: ='B6-FinPos'!E47 -> 0 | E40: ='B6-FinPos'!F47 -> 0 | F40: ='B6-FinPos'!G47 -> 0 | G40: ='B6-FinPos'!H47 -> 0 | H40: ='B6-FinPos'!I47 -> 0 | I40: =SUM(D40:H40) -> 0 | J40: =IF(C40=0,B40+I40,C40+I40) -> 1223486025 | K40: ='B6-FinPos'!L47 -> 1423719945 | L40: ='B6-FinPos'!M47 -> 1367846718
A41: Community wealth/Equity | B41: ='B6-FinPos'!C56 -> 1.065216758e+10 | C41: ='B6-FinPos'!D56 -> 0 | D41: ='B6-FinPos'!E56 -> 0 | E41: ='B6-FinPos'!F56 -> 0 | F41: ='B6-FinPos'!G56 -> 0 | G41: ='B6-FinPos'!H56 -> 0 | H41: ='B6-FinPos'!I56 -> 151327336.9 | I41: =SUM(D41:H41) -> 151327336.9 | J41: =IF(C41=0,B41+I41,C41+I41) -> 1.080349492e+10 | K41: ='B6-FinPos'!L56 -> 5405371415 | L41: ='B6-FinPos'!M56 -> 4705547008
A43: Cash flows
A44: Net cash from (used) operating | B44: ='B7-CFlow'!C19 -> 596371918.2 | C44: ='B7-CFlow'!D19 -> 0 | D44: ='B7-CFlow'!E19 -> 0 | E44: ='B7-CFlow'!F19 -> 0 | F44: ='B7-CFlow'!G19 -> 0 | G44: ='B7-CFlow'!H19 -> 0 | H44: ='B7-CFlow'!I19 -> -8746060.911 | I44: =SUM(D44:H44) -> -8746060.911 | J44: =IF(C44=0,B44+I44,C44+I44) -> 587625857.2 | K44: ='B7-CFlow'!L19 -> 1169419598 | L44: ='B7-CFlow'!M19 -> 764655981
A45: Net cash from (used) investing | B45: ='B7-CFlow'!C29 -> -826763940.4 | C45: ='B7-CFlow'!D29 -> 0 | D45: ='B7-CFlow'!E29 -> 0 | E45: ='B7-CFlow'!F29 -> 0 | F45: ='B7-CFlow'!G29 -> 0 | G45: ='B7-CFlow'!H29 -> 0 | H45: ='B7-CFlow'!I29 -> -67484854.97 | I45: =SUM(D45:H45) -> -67484854.97 | J45: =IF(C45=0,B45+I45,C45+I45) -> -894248795.4 | K45: ='B7-CFlow'!L29 -> -507974938 | L45: ='B7-CFlow'!M29 -> -503992600
A46: Net cash from (used) financing | B46: ='B7-CFlow'!C38 -> 144315856 | C46: ='B7-CFlow'!D38 -> 0 | D46: ='B7-CFlow'!E38 -> 0 | E46: ='B7-CFlow'!F38 -> 0 | F46: ='B7-CFlow'!G38 -> 0 | G46: ='B7-CFlow'!H38 -> 0 | H46: ='B7-CFlow'!I38 -> 0 | I46: =SUM(D46:H46) -> 0 | J46: =IF(C46=0,B46+I46,C46+I46) -> 144315856 | K46: ='B7-CFlow'!L38 -> 0 | L46: ='B7-CFlow'!M38 -> 0
A47: Cash/cash equivalents at the year end | B47: ='B7-CFlow'!C42 -> 457451833.7 | C47: ='B7-CFlow'!D42 -> 0 | D47: ='B7-CFlow'!E42 -> 0 | E47: ='B7-CFlow'!F42 -> 0 | F47: ='B7-CFlow'!G42 -> 0 | G47: ='B7-CFlow'!H42 -> 0 | H47: ='B7-CFlow'!I42 -> -123766180.9 | I47: =SUM(D47:H47) -> -123766180.9 | J47: =IF(C47=0,B47+I47,C47+I47) -> 333685652.9 | K47: ='B7-CFlow'!L42 -> 994268315.9 | L47: ='B7-CFlow'!M42 -> 1254931697
A49: Cash backing/surplus reconciliation
A50: Cash and investments available | B50: ='B8-ResRecon'!C10 -> 1024150450 | C50: ='B8-ResRecon'!D10 -> 0 | D50: ='B8-ResRecon'!E10 -> 0 | E50: ='B8-ResRecon'!F10 -> 0 | F50: ='B8-ResRecon'!G10 -> 0 | G50: ='B8-ResRecon'!H10 -> 0 | H50: ='B8-ResRecon'!I10 -> 121040300.9 | I50: =SUM(D50:H50) -> 121040300.9 | J50: =IF(C50=0,B50+I50,C50+I50) -> 1145190751 | K50: ='B8-ResRecon'!L10 -> 2816029865 | L50: ='B8-ResRecon'!M10 -> 3114830996
A51: Application of cash and investments | B51: ='B8-ResRecon'!C20 -> -718848787.9 | C51: ='B8-ResRecon'!D20 -> 0 | D51: ='B8-ResRecon'!E20 -> 0 | E51: ='B8-ResRecon'!F20 -> 0 | F51: ='B8-ResRecon'!G20 -> 0 | G51: ='B8-ResRecon'!H20 -> 0 | H51: ='B8-ResRecon'!I20 -> 70006348 | I51: =SUM(D51:H51) -> 70006348 | J51: =IF(C51=0,B51+I51,C51+I51) -> -648842439.9 | K51: ='B8-ResRecon'!L20 -> -3018257311 | L51: ='B8-ResRecon'!M20 -> -2901302399
A52: Balance - surplus (shortfall) | B52: =B50-B51 -> 1742999238 | C52: 0 | D52: 0 | E52: 0 | F52: 0 | G52: 0 | H52: 51033952.86 | I52: 51033952.86 | J52: 1794033191 | K52: 5834287176 | L52: 6016133395
A54: Asset Management
A55: Asset register summary (WDV) | B55: ='B9-Asset'!C180 -> 7632814749 | C55: ='B9-Asset'!D180 -> 0 | D55: ='B9-Asset'!E180 -> 0 | E55: ='B9-Asset'!F180 -> 0 | F55: ='B9-Asset'!G180 -> 0 | G55: ='B9-Asset'!H180 -> 0 | H55: ='B9-Asset'!I180 -> 0 | I55: =SUM(D55:H55) -> 0 | J55: =IF(C55=0,B55+I55,C55+I55) -> 7632814749 | K55: ='B9-Asset'!L180 -> 7983924227 | L55: ='B9-Asset'!M180 -> 8343200817
A56: Depreciation | B56: ='B9-Asset'!C183 -> 363040744.5 | C56: ='B9-Asset'!D183 -> 0 | D56: ='B9-Asset'!E183 -> 0 | E56: ='B9-Asset'!F183 -> 0 | F56: ='B9-Asset'!G183 -> 0 | G56: ='B9-Asset'!H183 -> 0 | H56: ='B9-Asset'!I183 -> 0 | I56: =SUM(D56:H56) -> 0 | J56: =IF(C56=0,B56+I56,C56+I56) -> 363040744.5 | K56: ='B9-Asset'!L183 -> 915364649 | L56: ='B9-Asset'!M183 -> 956977289.8
A57: Renewal and Upgrading of Existing Assets | B57: ='B9-Asset'!C42+'B9-Asset'!C77 -> 251669253.4 | C57: ='B9-Asset'!D42+'B9-Asset'!D77 -> 0 | D57: ='B9-Asset'!E42+'B9-Asset'!E77 -> 0 | E57: ='B9-Asset'!F42+'B9-Asset'!F77 -> 0 | F57: ='B9-Asset'!G42+'B9-Asset'!G77 -> 0 | G57: ='B9-Asset'!H42+'B9-Asset'!H77 -> 0 | H57: ='B9-Asset'!I42+'B9-Asset'!I77 -> 30775538.78 | I57: =SUM(D57:H57) -> 30775538.78 | J57: =IF(C57=0,B57+I57,C57+I57) -> 282444792.2 | K57: ='B9-Asset'!L42+'B9-Asset'!L77 -> 255177180.6 | L57: ='B9-Asset'!M42+'B9-Asset'!M77 -> 269052948.6
A58: Repairs and Maintenance | B58: ='B9-Asset'!C184 -> 521496383.6 | C58: ='B9-Asset'!D184 -> 0 | D58: ='B9-Asset'!E184 -> 0 | E58: ='B9-Asset'!F184 -> 0 | F58: ='B9-Asset'!G184 -> 0 | G58: ='B9-Asset'!H184 -> 0 | H58: ='B9-Asset'!I184 -> -116229645 | I58: =SUM(D58:H58) -> -116229645 | J58: =IF(C58=0,B58+I58,C58+I58) -> 405266738.6 | K58: ='B9-Asset'!L184 -> 349782306.6 | L58: ='B9-Asset'!M184 -> 345694135.9
A60: Free services
A61: Cost of Free Basic Services provided | B61: ='B10-SerDel'!C62 -> 0 | C61: ='B10-SerDel'!D62 -> 0 | D61: ='B10-SerDel'!E62 -> 0 | E61: ='B10-SerDel'!F62 -> 0 | F61: ='B10-SerDel'!G62 -> 0 | G61: ='B10-SerDel'!H62 -> 0 | H61: ='B10-SerDel'!I62 -> 0 | I61: ='B10-SerDel'!J62 -> 0 | J61: ='B10-SerDel'!K62 -> 0 | K61: ='B10-SerDel'!L62 -> 0 | L61: ='B10-SerDel'!M62 -> 0
A62: Revenue cost of free services provided | B62: ='B10-SerDel'!C81 -> 375611787.7 | C62: ='B10-SerDel'!D81 -> 0 | D62: ='B10-SerDel'!E81 -> 0 | E62: ='B10-SerDel'!F81 -> 0 | F62: ='B10-SerDel'!G81 -> 0 | G62: ='B10-SerDel'!H81 -> 0 | H62: ='B10-SerDel'!I81 -> 0 | I62: ='B10-SerDel'!J81 -> 0 | J62: ='B10-SerDel'!K81 -> 375611787.7 | K62: ='B10-SerDel'!L81 -> 392889929.9 | L62: ='B10-SerDel'!M81 -> 411398866.7
A63: Households below minimum service level
A64: Water: | B64: ='B10-SerDel'!C16 -> 8505.0944 | C64: ='B10-SerDel'!D16 -> 0 | D64: ='B10-SerDel'!E16 -> 0 | E64: ='B10-SerDel'!F16 -> 0 | F64: ='B10-SerDel'!G16 -> 0 | G64: ='B10-SerDel'!H16 -> 0 | H64: ='B10-SerDel'!I16 -> 0 | I64: =SUM(D64:H64) -> 0 | J64: =IF(C64=0,B64+I64,C64+I64) -> 8505.0944 | K64: ='B10-SerDel'!L16 -> 8505.0944 | L64: ='B10-SerDel'!M16 -> 8505.0944
A65: Sanitation/sewerage: | B65: ='B10-SerDel'!C28 -> 1184.4888 | C65: ='B10-SerDel'!D28 -> 0 | D65: ='B10-SerDel'!E28 -> 0 | E65: ='B10-SerDel'!F28 -> 0 | F65: ='B10-SerDel'!G28 -> 0 | G65: ='B10-SerDel'!H28 -> 0 | H65: ='B10-SerDel'!I28 -> 0 | I65: =SUM(D65:H65) -> 0 | J65: =IF(C65=0,B65+I65,C65+I65) -> 1184.4888 | K65: ='B10-SerDel'!L28 -> 1184.4888 | L65: ='B10-SerDel'!M28 -> 1184.4888
A66: Energy: | B66: ='B10-SerDel'!C37 -> 8000 | C66: ='B10-SerDel'!D37 -> 0 | D66: ='B10-SerDel'!E37 -> 0 | E66: ='B10-SerDel'!F37 -> 0 | F66: ='B10-SerDel'!G37 -> 0 | G66: ='B10-SerDel'!H37 -> 0 | H66: ='B10-SerDel'!I37 -> 0 | I66: =SUM(D66:H66) -> 0 | J66: =IF(C66=0,B66+I66,C66+I66) -> 8000 | K66: ='B10-SerDel'!L37 -> 8000 | L66: ='B10-SerDel'!M37 -> 8000
A67: Refuse: | B67: ='B10-SerDel'!C47 -> 40770.3172 | C67: ='B10-SerDel'!D47 -> 0 | D67: ='B10-SerDel'!E47 -> 0 | E67: ='B10-SerDel'!F47 -> 0 | F67: ='B10-SerDel'!G47 -> 0 | G67: ='B10-SerDel'!H47 -> 0 | H67: ='B10-SerDel'!I47 -> 0 | I67: =SUM(D67:H67) -> 0 | J67: =IF(C67=0,B67+I67,C67+I67) -> 40770.3172 | K67: ='B10-SerDel'!L47 -> 40770.3172 | L67: ='B10-SerDel'!M47 -> 40770.3172
A69: References
A70: 1. Only complete if a previous adjusted budget has been approved in the same financial year. Reflect most recent adjusted budget.
A71: 2. Additional cash-backed accumulated funds/unspent funds (MFMA section 18(1)(b) and section 28(2)(e)) identified after the Original Budget approved and after annual financial statements audited (note: only where underspending could not reasonably have been foreseen)
A72: 3. Increases of funds approved under MFMA section 31
A73: 4. Adjustments approved in accordance with MFMA section 29
A74: 5. Adjustments to transfers from National or Provincial Government
A75: 6. Adjusts. = 'Other' Adjustments proposed to be approved; including revenue under-collection (MFMA section 28(2)(a)); additional revenue appropriation on existing programmes (section 28(2))(b); projected savings (section 28(2)(d)); error correction (section 28(2)(f))
A76: 7. G = B + C + D + E + F
A77: 8. Adjusted Budget H = (A or A1/2 etc) + G

Sheet B2-FinPerf SC
A1: =muni&" - "&_ADJ3&" - "&Date -> Choose name from list - Table B2 Adjustments Budget Financial Performance (functional classification) - 28.02.2025
A2: ="Standard "&desc -> Standard Description | B2: =head27 -> Ref | C2: =Head2 -> Budget Year 2024/25 | L2: =Head10 -> Budget Year +1 2025/26 | M2: =Head11 -> Budget Year +2 2026/27
C3: =Head6 -> Original Budget | D3: =Head54 -> Prior Adjusted | E3: =Head51 -> Accum. Funds | F3: =Head52 -> Multi-year capital | G3: =Head53 -> Unfore. Unavoid. | H3: =Head55 -> Nat. or Prov. Govt | I3: =Head50 -> Other Adjusts. | J3: =Head56 -> Total Adjusts. | K3: =Head7 -> Adjusted Budget | L3: =Head7 -> Adjusted Budget | M3: =Head7 -> Adjusted Budget
D4: 5 | E4: =D4+1 -> 6 | F4: 7 | G4: 8 | H4: 9 | I4: 10 | J4: 11 | K4: 12
A5: R thousands | B5: 1, 4 | C5: A | D5: A1 | E5: B | F5: C | G5: D | H5: E | I5: F | J5: G | K5: H
A6: Revenue - Functional
A7: Governance and administration | C7: =SUM(C8:C10) -> 2688150807 | D7: =SUM(D8:D10) -> 0 | E7: 0 | F7: 0 | G7: 0 | H7: 0 | I7: 37781670.07 | J7: =SUM(J8:J10) -> 37781670.07 | K7: =SUM(K8:K10) -> 2725932477 | L7: =SUM(L8:L10) -> 2831628909 | M7: =SUM(M8:M10) -> 2980662225
A8: Executive and council | C8: =B2B!C8 -> 0 | D8: =B2B!D8 -> 0 | E8: =B2B!E8 -> 0 | F8: =B2B!F8 -> 0 | G8: =B2B!G8 -> 0 | H8: =B2B!H8 -> 0 | I8: =B2B!I8 -> 2092000 | J8: =SUM(E8:I8) -> 2092000 | K8: =IF(D8=0,C8+J8,D8+J8) -> 2092000 | L8: =B2B!L8 -> 0 | M8: =B2B!M8 -> 0
A9: Finance and administration | C9: =B2B!C11 -> 2688150807 | D9: =B2B!D11 -> 0 | E9: =B2B!E11 -> 0 | F9: =B2B!F11 -> 0 | G9: =B2B!G11 -> 0 | H9: =B2B!H11 -> 0 | I9: =B2B!I11 -> 35689670.07 | J9: =SUM(E9:I9) -> 35689670.07 | K9: =IF(D9=0,C9+J9,D9+J9) -> 2723840477 | L9: =B2B!L11 -> 2831628909 | M9: =B2B!M11 -> 2980662225
A10: Internal audit | C10: =B2B!C25 -> 0 | D10: =B2B!D25 -> 0 | E10: =B2B!E25 -> 0 | F10: =B2B!F25 -> 0 | G10: =B2B!G25 -> 0 | H10: =B2B!H25 -> 0 | I10: =B2B!I25 -> 0 | J10: =SUM(E10:I10) -> 0 | K10: =IF(D10=0,C10+J10,D10+J10) -> 0 | L10: =B2B!L25 -> 0 | M10: =B2B!M25 -> 0
A11: Community and public safety | C11: =SUM(C12:C16) -> 525429105.1 | D11: =SUM(D12:D16) -> 0 | E11: 0 | F11: 0 | G11: 0 | H11: 0 | I11: -235787656.7 | J11: =SUM(J12:J16) -> -235787656.7 | K11: =SUM(K12:K16) -> 289641448.4 | L11: =SUM(L12:L16) -> 398050019.2 | M11: =SUM(M12:M16) -> 428193464.1
A12: Community and social services | C12: =B2B!C28 -> 307323184 | D12: =B2B!D28 -> 0 | E12: =B2B!E28 -> 0 | F12: =B2B!F28 -> 0 | G12: =B2B!G28 -> 0 | H12: =B2B!H28 -> 0 | I12: =B2B!I28 -> -238592434.7 | J12: =SUM(E12:I12) -> -238592434.7 | K12: =IF(D12=0,C12+J12,D12+J12) -> 68730749.3 | L12: =B2B!L28 -> 333060802 | M12: =B2B!M28 -> 360745101
A13: Sport and recreation | C13: =B2B!C50 -> 23526793.18 | D13: =B2B!D50 -> 0 | E13: =B2B!E50 -> 0 | F13: =B2B!F50 -> 0 | G13: =B2B!G50 -> 0 | H13: =B2B!H50 -> 0 | I13: =B2B!I50 -> 6952560 | J13: =SUM(E13:I13) -> 6952560 | K13: =IF(D13=0,C13+J13,D13+J13) -> 30479353.18 | L13: =B2B!L50 -> 24609025.67 | M13: =B2B!M50 -> 25716431.83
A14: Public safety | C14: =B2B!C56 -> 9172795.913 | D14: =B2B!D56 -> 0 | E14: =B2B!E56 -> 0 | F14: =B2B!F56 -> 0 | G14: =B2B!G56 -> 0 | H14: =B2B!H56 -> 0 | I14: =B2B!I56 -> 0 | J14: =SUM(E14:I14) -> 0 | K14: =IF(D14=0,C14+J14,D14+J14) -> 9172795.913 | L14: =B2B!L56 -> 9594744.525 | M14: =B2B!M56 -> 9952636.281
A15: Housing | C15: =B2B!C65 -> 185406332 | D15: =B2B!D65 -> 0 | E15: =B2B!E65 -> 0 | F15: =B2B!F65 -> 0 | G15: =B2B!G65 -> 0 | H15: =B2B!H65 -> 0 | I15: =B2B!I65 -> -4147782.04 | J15: =SUM(E15:I15) -> -4147782.04 | K15: =IF(D15=0,C15+J15,D15+J15) -> 181258550 | L15: =B2B!L65 -> 30785447 | M15: =B2B!M65 -> 31779295
A16: Health | C16: =B2B!C68 -> 0 | D16: =B2B!D68 -> 0 | E16: =B2B!E68 -> 0 | F16: =B2B!F68 -> 0 | G16: =B2B!G68 -> 0 | H16: =B2B!H68 -> 0 | I16: =B2B!I68 -> 0 | J16: =SUM(E16:I16) -> 0 | K16: =IF(D16=0,C16+J16,D16+J16) -> 0 | L16: =B2B!L68 -> 0 | M16: =B2B!M68 -> 0
A17: Economic and environmental services | C17: =SUM(C18:C20) -> 86691641.99 | D17: =SUM(D18:D20) -> 0 | E17: 0 | F17: 0 | G17: 0 | H17: 0 | I17: 62631020.83 | J17: =SUM(J18:J20) -> 62631020.83 | K17: =SUM(K18:K20) -> 149322662.8 | L17: =SUM(L18:L20) -> 146932457.5 | M17: =SUM(M18:M20) -> 217639738.7
A18: Planning and development | C18: =B2B!C77 -> 31697207.13 | D18: =B2B!D77 -> 0 | E18: =B2B!E77 -> 0 | F18: =B2B!F77 -> 0 | G18: =B2B!G77 -> 0 | H18: =B2B!H77 -> 0 | I18: =B2B!I77 -> 11738267.62 | J18: =SUM(E18:I18) -> 11738267.62 | K18: =IF(D18=0,C18+J18,D18+J18) -> 43435474.75 | L18: =B2B!L77 -> 41708278.66 | M18: =B2B!M77 -> 62237937.73
A19: Road transport | C19: =B2B!C88 -> 50000000 | D19: =B2B!D88 -> 0 | E19: =B2B!E88 -> 0 | F19: =B2B!F88 -> 0 | G19: =B2B!G88 -> 0 | H19: =B2B!H88 -> 0 | I19: =B2B!I88 -> 50892753.21 | J19: =SUM(E19:I19) -> 50892753.21 | K19: =IF(D19=0,C19+J19,D19+J19) -> 100892753.2 | L19: =B2B!L88 -> 100000000 | M19: =B2B!M88 -> 150000000
A20: Environmental protection | C20: =B2B!C93 -> 4994434.861 | D20: =B2B!D93 -> 0 | E20: =B2B!E93 -> 0 | F20: =B2B!F93 -> 0 | G20: =B2B!G93 -> 0 | H20: =B2B!H93 -> 0 | I20: =B2B!I93 -> 0 | J20: =SUM(E20:I20) -> 0 | K20: =IF(D20=0,C20+J20,D20+J20) -> 4994434.861 | L20: =B2B!L93 -> 5224178.865 | M20: =B2B!M93 -> 5401800.947
A21: Trading services | C21: =SUM(C22:C25) -> 5997733918 | D21: =SUM(D22:D25) -> 0 | E21: 0 | F21: 0 | G21: 0 | H21: 0 | I21: 144348199.3 | J21: 144348199.3 | K21: 6142082117 | L21: 6891098251 | M21: 7933402868
A22: Energy sources | C22: =B2B!C101 -> 4347604455 | D22: =B2B!D101 -> 0 | E22: =B2B!E101 -> 0 | F22: =B2B!F101 -> 0 | G22: =B2B!G101 -> 0 | H22: =B2B!H101 -> 0 | I22: =B2B!I101 -> -76730912.25 | J22: =SUM(E22:I22) -> -76730912.25 | K22: =IF(D22=0,C22+J22,D22+J22) -> 4270873543 | L22: =B2B!L101 -> 5163889519 | M22: =B2B!M101 -> 6140651985
A23: Water management | C23: =B2B!C105 -> 1219122118 | D23: =B2B!D105 -> 0 | E23: =B2B!E105 -> 0 | F23: =B2B!F105 -> 0 | G23: =B2B!G105 -> 0 | H23: =B2B!H105 -> 0 | I23: =B2B!I105 -> 63737162.12 | J23: =SUM(E23:I23) -> 63737162.12 | K23: =IF(D23=0,C23+J23,D23+J23) -> 1282859280 | L23: =B2B!L105 -> 1276982515 | M23: =B2B!M105 -> 1336072661
A24: Waste water management | C24: =B2B!C109 -> 262027256.3 | D24: =B2B!D109 -> 0 | E24: =B2B!E109 -> 0 | F24: =B2B!F109 -> 0 | G24: =B2B!G109 -> 0 | H24: =B2B!H109 -> 0 | I24: =B2B!I109 -> 148494930.1 | J24: =SUM(E24:I24) -> 148494930.1 | K24: =IF(D24=0,C24+J24,D24+J24) -> 410522186.4 | L24: =B2B!L109 -> 273472666.1 | M24: =B2B!M109 -> 271970306.1
A25: Waste management | C25: =B2B!C114 -> 168980088.6 | D25: =B2B!D114 -> 0 | E25: =B2B!E114 -> 0 | F25: =B2B!F114 -> 0 | G25: =B2B!G114 -> 0 | H25: =B2B!H114 -> 0 | I25: =B2B!I114 -> 8847019.342 | J25: =SUM(E25:I25) -> 8847019.342 | K25: =IF(D25=0,C25+J25,D25+J25) -> 177827107.9 | L25: =B2B!L114 -> 176753551.4 | M25: =B2B!M114 -> 184707915.1
A26: Other | C26: =B2B!C119 -> 122872643.2 | D26: =B2B!D119 -> 0 | E26: =B2B!E119 -> 0 | F26: =B2B!F119 -> 0 | G26: =B2B!G119 -> 0 | H26: =B2B!H119 -> 0 | I26: =B2B!I119 -> 919280.7865 | J26: =SUM(E26:I26) -> 919280.7865 | K26: =IF(D26=0,C26+J26,D26+J26) -> 123791924 | L26: =B2B!L119 -> 128524784.8 | M26: =B2B!M119 -> 134306261
A27: ="Total "&A6 -> Total Revenue - Functional | B27: 2 | C27: =C7+C11+C17+C21+C26 -> 9420878115 | D27: =D7+D11+D17+D21+D26 -> 0 | E27: 0 | F27: 0 | G27: 0 | H27: 0 | I27: 9892514.213 | J27: 9892514.213 | K27: 9430770629 | L27: 1.039623442e+10 | M27: 1.169420456e+10
A29: Expenditure - Functional
A30: Governance and administration | C30: =SUM(C31:C33) -> 1659708472 | D30: =SUM(D31:D33) -> 0 | E30: 0 | F30: 0 | G30: 0 | H30: 0 | I30: 106745762.2 | J30: =SUM(J31:J33) -> 106745762.2 | K30: =SUM(K31:K33) -> 1766454234 | L30: =SUM(L31:L33) -> 358487568 | M30: =SUM(M31:M33) -> 375213114
A31: Executive and council | C31: =B2B!C130 -> 165980670 | D31: =B2B!D130 -> 0 | E31: =B2B!E130 -> 0 | F31: =B2B!F130 -> 0 | G31: =B2B!G130 -> 0 | H31: =B2B!H130 -> 0 | I31: =B2B!I130 -> 63086995.07 | J31: =SUM(E31:I31) -> 63086995.07 | K31: =IF(D31=0,C31+J31,D31+J31) -> 229067665.1 | L31: =B2B!L130 -> 307790625.4 | M31: =B2B!M130 -> 322399103.8
A32: Finance and administration | C32: =B2B!C133 -> 1465568308 | D32: =B2B!D133 -> 0 | E32: =B2B!E133 -> 0 | F32: =B2B!F133 -> 0 | G32: =B2B!G133 -> 0 | H32: =B2B!H133 -> 0 | I32: =B2B!I133 -> 57792181.02 | J32: =SUM(E32:I32) -> 57792181.02 | K32: =IF(D32=0,C32+J32,D32+J32) -> 1523360489 | L32: =B2B!L133 -> 50696942.57 | M32: =B2B!M133 -> 52814010.18
A33: Internal audit | C33: =B2B!C147 -> 28159494 | D33: =B2B!D147 -> 0 | E33: =B2B!E147 -> 0 | F33: =B2B!F147 -> 0 | G33: =B2B!G147 -> 0 | H33: =B2B!H147 -> 0 | I33: =B2B!I147 -> -14133413.87 | J33: =SUM(E33:I33) -> -14133413.87 | K33: =IF(D33=0,C33+J33,D33+J33) -> 14026080.13 | L33: =B2B!L147 -> 0 | M33: =B2B!M147 -> 0
A34: Community and public safety | C34: =SUM(C35:C39) -> 706899390.8 | D34: =SUM(D35:D39) -> 0 | E34: 0 | F34: 0 | G34: 0 | H34: 0 | I34: -159758866.2 | J34: =SUM(J35:J39) -> -159758866.2 | K34: =SUM(K35:K39) -> 547140524.6 | L34: =SUM(L35:L39) -> 709075802.8 | M34: =SUM(M35:M39) -> 737463940.4
A35: Community and social services | C35: =B2B!C150 -> 250699021 | D35: =B2B!D150 -> 0 | E35: =B2B!E150 -> 0 | F35: =B2B!F150 -> 0 | G35: =B2B!G150 -> 0 | H35: =B2B!H150 -> 0 | I35: =B2B!I150 -> -106642818 | J35: =SUM(E35:I35) -> -106642818 | K35: =IF(D35=0,C35+J35,D35+J35) -> 144056203 | L35: =B2B!L150 -> 708425802.8 | M35: =B2B!M150 -> 736781440.4
A36: Sport and recreation | C36: =B2B!C172 -> 121147022.5 | D36: =B2B!D172 -> 0 | E36: =B2B!E172 -> 0 | F36: =B2B!F172 -> 0 | G36: =B2B!G172 -> 0 | H36: =B2B!H172 -> 0 | I36: =B2B!I172 -> -9325535.693 | J36: =SUM(E36:I36) -> -9325535.693 | K36: =IF(D36=0,C36+J36,D36+J36) -> 111821486.8 | L36: =B2B!L172 -> 0 | M36: =B2B!M172 -> 0
A37: Public safety | C37: =B2B!C178 -> 244183097.4 | D37: =B2B!D178 -> 0 | E37: =B2B!E178 -> 0 | F37: =B2B!F178 -> 0 | G37: =B2B!G178 -> 0 | H37: =B2B!H178 -> 0 | I37: =B2B!I178 -> -64933046.05 | J37: =SUM(E37:I37) -> -64933046.05 | K37: =IF(D37=0,C37+J37,D37+J37) -> 179250051.3 | L37: =B2B!L178 -> 650000 | M37: =B2B!M178 -> 682500
A38: Housing | C38: =B2B!C187 -> 81136670.54 | D38: =B2B!D187 -> 0 | E38: =B2B!E187 -> 0 | F38: =B2B!F187 -> 0 | G38: =B2B!G187 -> 0 | H38: =B2B!H187 -> 0 | I38: =B2B!I187 -> 22193427.93 | J38: =SUM(E38:I38) -> 22193427.93 | K38: =IF(D38=0,C38+J38,D38+J38) -> 103330098.5 | L38: =B2B!L187 -> 0 | M38: =B2B!M187 -> 0
A39: Health | C39: =B2B!C190 -> 9733579.461 | D39: =B2B!D190 -> 0 | E39: =B2B!E190 -> 0 | F39: =B2B!F190 -> 0 | G39: =B2B!G190 -> 0 | H39: =B2B!H190 -> 0 | I39: =B2B!I190 -> -1050894.401 | J39: =SUM(E39:I39) -> -1050894.401 | K39: =IF(D39=0,C39+J39,D39+J39) -> 8682685.06 | L39: =B2B!L190 -> 0 | M39: =B2B!M190 -> 0
A40: Economic and environmental services | C40: =SUM(C41:C43) -> 640338797 | D40: =SUM(D41:D43) -> 0 | E40: 0 | F40: 0 | G40: 0 | H40: 0 | I40: -92896793.21 | J40: =SUM(J41:J43) -> -92896793.21 | K40: =SUM(K41:K43) -> 547442003.8 | L40: =SUM(L41:L43) -> 686145411 | M40: =SUM(M41:M43) -> 718008092.4
A41: Planning and development | C41: =B2B!C199 -> 161555852 | D41: =B2B!D199 -> 0 | E41: =B2B!E199 -> 0 | F41: =B2B!F199 -> 0 | G41: =B2B!G199 -> 0 | H41: =B2B!H199 -> 0 | I41: =B2B!I199 -> -22888782.11 | J41: =SUM(E41:I41) -> -22888782.11 | K41: =IF(D41=0,C41+J41,D41+J41) -> 138667069.9 | L41: =B2B!L199 -> 684666891 | M41: =B2B!M199 -> 716448887
A42: Road transport | C42: =B2B!C210 -> 449621964 | D42: =B2B!D210 -> 0 | E42: =B2B!E210 -> 0 | F42: =B2B!F210 -> 0 | G42: =B2B!G210 -> 0 | H42: =B2B!H210 -> 0 | I42: =B2B!I210 -> -72687143.68 | J42: =SUM(E42:I42) -> -72687143.68 | K42: =IF(D42=0,C42+J42,D42+J42) -> 376934820.3 | L42: =B2B!L210 -> 0 | M42: =B2B!M210 -> 0
A43: Environmental protection | C43: =B2B!C215 -> 29160981 | D43: =B2B!D215 -> 0 | E43: =B2B!E215 -> 0 | F43: =B2B!F215 -> 0 | G43: =B2B!G215 -> 0 | H43: =B2B!H215 -> 0 | I43: =B2B!I215 -> 2679132.58 | J43: =SUM(E43:I43) -> 2679132.58 | K43: =IF(D43=0,C43+J43,D43+J43) -> 31840113.58 | L43: =B2B!L215 -> 1478519.96 | M43: =B2B!M215 -> 1559205.391
A44: Trading services | C44: =SUM(C45:C48) -> 5278293781 | D44: =SUM(D45:D48) -> 0 | E44: 0 | F44: 0 | G44: 0 | H44: 0 | I44: 96558006.03 | J44: 96558006.03 | K44: 5374851787 | L44: 5883883376 | M44: 6578048302
A45: Energy sources | C45: =B2B!C223 -> 3749118944 | D45: =B2B!D223 -> 0 | E45: =B2B!E223 -> 0 | F45: =B2B!F223 -> 0 | G45: =B2B!G223 -> 0 | H45: =B2B!H223 -> 0 | I45: =B2B!I223 -> 30611847.95 | J45: =SUM(E45:I45) -> 30611847.95 | K45: =IF(D45=0,C45+J45,D45+J45) -> 3779730792 | L45: =B2B!L223 -> 5883883376 | M45: =B2B!M223 -> 6578048302
A46: Water management | C46: =B2B!C227 -> 1010944858 | D46: =B2B!D227 -> 0 | E46: =B2B!E227 -> 0 | F46: =B2B!F227 -> 0 | G46: =B2B!G227 -> 0 | H46: =B2B!H227 -> 0 | I46: =B2B!I227 -> 70101597.18 | J46: =SUM(E46:I46) -> 70101597.18 | K46: =IF(D46=0,C46+J46,D46+J46) -> 1081046455 | L46: =B2B!L227 -> 0 | M46: =B2B!M227 -> 0
A47: Waste water management | C47: =B2B!C231 -> 369521337 | D47: =B2B!D231 -> 0 | E47: =B2B!E231 -> 0 | F47: =B2B!F231 -> 0 | G47: =B2B!G231 -> 0 | H47: =B2B!H231 -> 0 | I47: =B2B!I231 -> 21823669.76 | J47: =SUM(E47:I47) -> 21823669.76 | K47: =IF(D47=0,C47+J47,D47+J47) -> 391345006.8 | L47: =B2B!L231 -> 0 | M47: =B2B!M231 -> 0
A48: Waste management | C48: =B2B!C236 -> 148708642 | D48: =B2B!D236 -> 0 | E48: =B2B!E236 -> 0 | F48: =B2B!F236 -> 0 | G48: =B2B!G236 -> 0 | H48: =B2B!H236 -> 0 | I48: =B2B!I236 -> -25979108.86 | J48: =SUM(E48:I48) -> -25979108.86 | K48: =IF(D48=0,C48+J48,D48+J48) -> 122729533.1 | L48: =B2B!L236 -> 0 | M48: =B2B!M236 -> 0
A49: Other | C49: =B2B!C241 -> 95029438 | D49: =B2B!D241 -> 0 | E49: =B2B!E241 -> 0 | F49: =B2B!F241 -> 0 | G49: =B2B!G241 -> 0 | H49: =B2B!H241 -> 0 | I49: =B2B!I241 -> -32255134.43 | J49: =SUM(E49:I49) -> -32255134.43 | K49: =IF(D49=0,C49+J49,D49+J49) -> 62774303.57 | L49: =B2B!L241 -> 0 | M49: =B2B!M241 -> 0
A50: ="Total "&A29 -> Total Expenditure - Functional | B50: 3 | C50: =C30+C34+C40+C44+C49 -> 8380269879 | D50: =D30+D34+D40+D44+D49 -> 0 | E50: 0 | F50: 0 | G50: 0 | H50: 0 | I50: -81607025.63 | J50: -81607025.63 | K50: 8298662853 | L50: 7637592158 | M50: 8408733449
A51: Surplus/ (Deficit) for the year | C51: =C27-C50 -> 1040608236 | D51: 0 | E51: 0 | F51: 0 | G51: 0 | H51: 0 | I51: 91499539.84 | J51: 91499539.84 | K51: 1132107776 | L51: 2758642264 | M51: 3285471108
A52: =head27a -> References
A53: 1. Government Finance Statistics Functions and Sub-functions are standardised to assist the compilation of national and international accounts for comparison purposes
A54: 2. Total Revenue by standard classification must reconcile to Total Operating Revenue shown in the Adjustments Budget Financial Performance (revenue and expenditure)
A55: 3. Total Operating Expenditure by standard classification must reconcile to Total Operating Expenditure shown in the Adjustments Budget Financial Performance (revenue and expenditure)
A56: 4. All amounts must be classified under a standard classification (modified GFS). The GFS function 'Other' is only for Abbatoirs, Air Transport, Markets and Tourism - and if used must be supported by footnotes. Nothing else may be placed under 'Other'. Assign associate share to relevant classification
A57: 5. Only complete if a previous adjusted budget has been approved in the same financial year. Reflect most recent adjusted budget.
A58: 6. Additional cash-backed accumulated funds/unspent funds (MFMA section 18(1)(b) and section 28(2)(e)) identified after the Original Budget approved and after annual financial statements audited (note: only where underspending could not reasonably have been foreseen)
A59: 7. Increases of funds approved under MFMA section 31
A60: 8. Adjustments approved in accordance with MFMA section 29
A61: 9. Adjustments to transfers from National or Provincial Government
A62: 10. Adjusts. = 'Other' Adjustments proposed to be approved; including revenue under-collection (MFMA section 28(2)(a)); additional revenue appropriation on existing programmes (section 28(2))(b); projected savings (section 28(2)(d)); error correction (section 28(2)(f))
A63: 11. G = B + C + D + E + F
A64: 12. Adjusted Budget H = (A or A1/2 etc) + G

Sheet B2B
A1: =muni&" - "&_ADJ3&" - B"&" - "&Date -> Choose name from list - Table B2 Adjustments Budget Financial Performance (functional classification) - B - 28.02.2025
A2: ="Standard Classification "&desc -> Standard Classification Description | B2: =head27 -> Ref | C2: =Head2 -> Budget Year 2024/25 | L2: =Head10 -> Budget Year +1 2025/26 | M2: =Head11 -> Budget Year +2 2026/27
C3: =Head6 -> Original Budget | D3: =Head54 -> Prior Adjusted | E3: =Head51 -> Accum. Funds | F3: =Head52 -> Multi-year capital | G3: =Head53 -> Unfore. Unavoid. | H3: =Head55 -> Nat. or Prov. Govt | I3: =Head50 -> Other Adjusts. | J3: =Head56 -> Total Adjusts. | K3: =Head7 -> Adjusted Budget | L3: =Head7 -> Adjusted Budget | M3: =Head7 -> Adjusted Budget
D4: 5 | E4: =D4+1 -> 6 | F4: 7 | G4: 8 | H4: 9 | I4: 10 | J4: 11 | K4: 12
A5: R thousand | B5: 1 | C5: A | D5: A1 | E5: B | F5: C | G5: D | H5: E | I5: F | J5: G | K5: H
A6: Revenue - Functional
A7: Municipal governance and administration | C7: =C8+C11+C25 -> 2688150807 | D7: 0 | E7: 0 | F7: 0 | G7: 0 | H7: 0 | I7: 37781670.07 | J7: =SUM(E7:I7) -> 37781670.07 | K7: =IF(D7=0,C7+J7,D7+J7) -> 2725932477 | L7: =L8+L11+L25 -> 2831628909 | M7: =M8+M11+M25 -> 2980662225
A8: Executive and council | C8: =SUM(C9:C10) -> 0 | D8: =SUM(D9:D10) -> 0 | E8: 0 | F8: 0 | G8: 0 | H8: 0 | I8: 2092000 | J8: =SUM(E8:I8) -> 2092000 | K8: =IF(D8=0,C8+J8,D8+J8) -> 2092000 | L8: =SUM(L9:L10) -> 0 | M8: =SUM(M9:M10) -> 0
A9: Mayor and Council | J9: =SUM(E9:I9) -> 0 | K9: =IF(D9=0,C9+J9,D9+J9) -> 0
A10: Municipal Manager, Town Secretary and Chief Executive | I10: 2092000 | J10: =SUM(E10:I10) -> 2092000 | K10: =IF(D10=0,C10+J10,D10+J10) -> 2092000
A11: Finance and administration | C11: =SUM(C12:C24) -> 2688150807 | D11: 0 | E11: 0 | F11: 0 | G11: 0 | H11: 0 | I11: 35689670.07 | J11: 35689670.07 | K11: 2723840477 | L11: =SUM(L12:L24) -> 2831628909 | M11: =SUM(M12:M24) -> 2980662225
A12: Administrative and Corporate Support | C12: 0 | J12: 0 | K12: 0 | L12: 0 | M12: 0
A13: Asset Management | I13: 14153773.66 | J13: 14153773.66 | K13: 14153773.66
A14: Finance | C14: 2633346699 | I14: 21788721.49 | J14: 21788721.49 | K14: 2655135421 | L14: 2831628909 | M14: 2980662225
A15: Fleet Management | C15: 0 | J15: 0 | K15: 0
A16: Human Resources | C16: 12101098.95 | I16: -588090.04 | J16: -588090.04 | K16: 11513008.91
A17: Information Technology | I17: 2608.41 | J17: 2608.41 | K17: 2608.41
A18: Legal Services | I18: 332656.55 | J18: 332656.55 | K18: 332656.55
A19: Marketing, Customer Relations, Publicity and Media Co-ordination | C19: 0 | J19: 0 | K19: 0
A20: Property Services | C20: 42351757.85 | J20: 0 | K20: 42351757.85
A21: Risk Management | C21: 0 | J21: 0 | K21: 0
A22: Security Services | C22: 0 | J22: 0 | K22: 0
A23: Supply Chain Management | C23: 351250.83 | J23: 0 | K23: 351250.83
A24: Valuation Service | C24: 0 | J24: 0 | K24: 0 | L24: 0 | M24: 0
A25: Internal audit | C25: =SUM(C26:C26) -> 0 | D25: 0 | E25: 0 | F25: 0 | G25: 0 | H25: 0 | I25: 0 | J25: 0 | K25: 0 | L25: 0 | M25: 0
A26: Governance Function | J26: 0 | K26: 0
A27: Community and public safety | C27: =C28+C50+C56+C65+C68 -> 525429105.1 | D27: 0 | E27: 0 | F27: 0 | G27: 0 | H27: 0 | I27: -235787656.7 | J27: -235787656.7 | K27: 289641448.4 | L27: =L28+L50+L56+L65+L68 -> 398050019.2 | M27: =M28+M50+M56+M65+M68 -> 428193464.1
A28: Community and social services | C28: =SUM(C29:C49) -> 307323184 | D28: 0 | E28: 0 | F28: 0 | G28: 0 | H28: 0 | I28: -238592434.7 | J28: -238592434.7 | K28: 68730749.3 | L28: 333060802 | M28: 360745101
A29: Aged Care | I29: 0 | J29: 0 | K29: 0 | L29: 0 | M29: 0
A30: Agricultural | I30: 0 | J30: 0 | K30: 0 | L30: 0 | M30: 0
A31: Animal Care and Diseases | I31: 0 | J31: 0 | K31: 0 | L31: 0 | M31: 0
A32: Cemeteries, Funeral Parlours and Crematoriums | I32: 26986486.32 | J32: 26986486.32 | K32: 26986486.32 | L32: 0 | M32: 0
A33: Child Care Facilities | I33: 0 | J33: 0 | K33: 0 | L33: 0 | M33: 0
A34: Community Halls and Facilities | C34: 307323184 | I34: -282132921 | J34: -282132921 | K34: 25190262.98 | L34: 333060802 | M34: 360745101
A35: Consumer Protection | I35: 0 | J35: 0 | K35: 0 | L35: 0 | M35: 0
A36: Cultural Matters | I36: 0 | J36: 0 | K36: 0 | L36: 0 | M36: 0
A37: Disaster Management | I37: 0 | J37: 0 | K37: 0 | L37: 0 | M37: 0
A38: Education | I38: 0 | J38: 0 | K38: 0 | L38: 0 | M38: 0
A39: Indigenous and Customary Law | I39: 0 | J39: 0 | K39: 0 | L39: 0 | M39: 0
A40: Industrial Promotion | I40: 0 | J40: 0 | K40: 0 | L40: 0 | M40: 0
A41: Language Policy | I41: 0 | J41: 0 | K41: 0 | L41: 0 | M41: 0
A42: Libraries and Archives | I42: 15958000 | J42: 15958000 | K42: 15958000 | L42: 0 | M42: 0
A43: Literacy Programmes | I43: 0 | J43: 0 | K43: 0 | L43: 0 | M43: 0
A44: Media Services | I44: 0 | J44: 0 | K44: 0 | L44: 0 | M44: 0
A45: Museums and Art Galleries | I45: 596000 | J45: 596000 | K45: 596000 | L45: 0 | M45: 0
A46: Population Development | I46: 0 | J46: 0 | K46: 0 | L46: 0 | M46: 0
A47: Provincial Cultural Matters | I47: 0 | J47: 0 | K47: 0 | L47: 0 | M47: 0
A48: Theatres | I48: 0 | J48: 0 | K48: 0 | L48: 0 | M48: 0
A49: Zoo's | I49: 0 | J49: 0 | K49: 0 | L49: 0 | M49: 0
A50: Sport and recreation | C50: =SUM(C51:C55) -> 23526793.18 | D50: 0 | E50: 0 | F50: 0 | G50: 0 | H50: 0 | I50: 6952560 | J50: 6952560 | K50: 30479353.18 | L50: 24609025.67 | M50: 25716431.83
A51: Beaches and Jetties | J51: 0 | K51: 0 | L51: 0 | M51: 0
A52: Casinos, Racing, Gambling, Wagering | J52: 0 | K52: 0 | L52: 0 | M52: 0
A53: Community Parks (including Nurseries) | J53: 0 | K53: 0 | L53: 0 | M53: 0
A54: Recreational Facilities | C54: 23526793.18 | J54: 0 | K54: 23526793.18 | L54: 24609025.67 | M54: 25716431.83
A55: Sports Grounds and Stadiums | I55: 6952560 | J55: 6952560 | K55: 6952560 | L55: 0 | M55: 0
A56: Public safety | C56: =SUM(C57:C64) -> 9172795.913 | D56: 0 | E56: 0 | F56: 0 | G56: 0 | H56: 0 | I56: 0 | J56: 0 | K56: 9172795.913 | L56: 9594744.525 | M56: 9952636.281
A57: Civil Defence | J57: 0 | K57: 0 | L57: 0 | M57: 0
A58: Cleansing | J58: 0 | K58: 0 | L58: 0 | M58: 0
A59: Control of Public Nuisances | J59: 0 | K59: 0 | L59: 0 | M59: 0
A60: Fencing and Fences | J60: 0 | K60: 0 | L60: 0 | M60: 0
A61: Fire Fighting and Protection | C61: 424885.1016 | J61: 0 | K61: 424885.1016 | L61: 444429.8163 | M61: 464429.158
A62: Licensing and Control of Animals | C62: 0 | J62: 0 | K62: 0 | L62: 0 | M62: 0
A63: Police Forces, Traffic and Street Parking Control | C63: 8747910.811 | J63: =SUM(E63:I63) -> 0 | K63: =IF(D63=0,C63+J63,D63+J63) -> 8747910.811 | L63: 9150314.709 | M63: 9488207.123
A64: Pounds | C64: 0 | J64: 0 | K64: 0 | L64: 0 | M64: 0
A65: Housing | C65: =SUM(C66:C67) -> 185406332 | D65: =SUM(D66:D67) -> 0 | E65: 0 | F65: 0 | G65: 0 | H65: 0 | I65: -4147782.04 | J65: -4147782.04 | K65: 181258550 | L65: =SUM(L66:L67) -> 30785447 | M65: =SUM(M66:M67) -> 31779295
A66: Housing | C66: 185406332 | I66: -4147782.04 | J66: -4147782.04 | K66: 181258550 | L66: 30785447 | M66: 31779295
A67: Informal Settlements | J67: 0 | K67: 0
A68: Health | C68: =SUM(C69:C75) -> 0 | D68: =SUM(D69:D75) -> 0 | E68: 0 | F68: 0 | G68: 0 | H68: 0 | I68: 0 | J68: 0 | K68: 0 | L68: =SUM(L69:L75) -> 0 | M68: =SUM(M69:M75) -> 0
A69: Ambulance | J69: 0 | K69: 0
A70: Health Services | J70: 0 | K70: 0
A71: Laboratory Services | J71: 0 | K71: 0
A72: Food Control | J72: 0 | K72: 0
A73: Health Surveillance and Prevention of Communicable Diseases including immunizations | J73: 0 | K73: 0
A74: Vector Control | J74: 0 | K74: 0
A75: Chemical Safety | J75: =SUM(E75:I75) -> 0 | K75: =IF(D75=0,C75+J75,D75+J75) -> 0
A76: Economic and environmental services | C76: =C77+C88+C93 -> 86691641.99 | D76: 0 | E76: 0 | F76: 0 | G76: 0 | H76: 0 | I76: 62631020.83 | J76: 62631020.83 | K76: 149322662.8 | L76: =L77+L88+L93 -> 146932457.5 | M76: =M77+M88+M93 -> 217639738.7
A77: Planning and development | C77: =SUM(C78:C87) -> 31697207.13 | D77: =SUM(D78:D87) -> 0 | E77: 0 | F77: 0 | G77: 0 | H77: 0 | I77: 11738267.62 | J77: 11738267.62 | K77: 43435474.75 | L77: =SUM(L78:L87) -> 41708278.66 | M77: =SUM(M78:M87) -> 62237937.73
A78: Billboards | J78: 0 | K78: 0 | L78: 0 | M78: 0
A79: Corporate Wide Strategic Planning (IDPs, LEDs) | J79: 0 | K79: 0 | L79: 0 | M79: 0
A80: Central City Improvement District | J80: 0 | K80: 0 | L80: 0 | M80: 0
A81: Development Facilitation | J81: 0 | K81: 0 | L81: 0 | M81: 0
A82: Economic Development/Planning | C82: 1000000 | I82: 20062396.22 | J82: 20062396.22 | K82: 21062396.22 | L82: 0 | M82: 0
A83: Regional Planning and Development | C83: 0 | J83: 0 | K83: 0 | L83: 0 | M83: 0
A84: Town Planning, Building Regulations and Enforcement, and City Engineer | C84: 30697207.13 | I84: -8324128.601 | J84: -8324128.601 | K84: 22373078.53 | L84: 41708278.66 | M84: 62237937.73
A85: Project Management Unit | J85: 0 | K85: 0 | L85: 0 | M85: 0
A86: Provincial Planning | J86: 0 | K86: 0 | L86: 0 | M86: 0
A87: Support to Local Municipalities | J87: 0 | K87: 0 | L87: 0 | M87: 0
A88: Road transport | C88: =SUM(C89:C92) -> 50000000 | D88: 0 | E88: 0 | F88: 0 | G88: 0 | H88: 0 | I88: 50892753.21 | J88: 50892753.21 | K88: 100892753.2 | L88: =SUM(L89:L92) -> 100000000 | M88: =SUM(M89:M92) -> 150000000
A89: Public Transport | C89: 50000000 | I89: 50892753.21 | J89: 50892753.21 | K89: 100892753.2 | L89: 100000000 | M89: 150000000
A90: Road and Traffic Regulation | J90: 0 | K90: 0 | L90: 0 | M90: 0
A91: Roads | J91: 0 | K91: 0 | L91: 0 | M91: 0
A92: Taxi Ranks | J92: 0 | K92: 0 | L92: 0 | M92: 0
A93: Environmental protection | C93: =SUM(C94:C99) -> 4994434.861 | D93: =SUM(D94:D99) -> 0 | E93: 0 | F93: 0 | G93: 0 | H93: 0 | I93: 0 | J93: 0 | K93: 4994434.861 | L93: =SUM(L94:L99) -> 5224178.865 | M93: =SUM(M94:M99) -> 5401800.947
A94: Biodiversity and Landscape | J94: 0 | K94: 0
A95: Coastal Protection | J95: 0 | K95: 0
A96: Indigenous Forests | J96: 0 | K96: 0
A97: Nature Conservation | J97: 0 | K97: 0
A98: Pollution Control | C98: 4994434.861 | J98: 0 | K98: 4994434.861 | L98: 5224178.865 | M98: 5401800.947
A99: Soil Conservation | J99: 0 | K99: 0
A100: Trading services | C100: =C101+C105+C109+C114 -> 5997733918 | D100: =D101+D105+D109+D114 -> 0 | E100: 0 | F100: 0 | G100: 0 | H100: 0 | I100: 144348199.3 | J100: 144348199.3 | K100: 6142082117 | L100: 6891098251 | M100: 7933402868
A101: Energy sources | C101: =SUM(C102:C104) -> 4347604455 | D101: =SUM(D102:D104) -> 0 | E101: 0 | F101: 0 | G101: 0 | H101: 0 | I101: -76730912.25 | J101: -76730912.25 | K101: 4270873543 | L101: =SUM(L102:L104) -> 5163889519 | M101: =SUM(M102:M104) -> 6140651985
A102: Electricity | C102: 4347604455 | I102: -76730912.25 | J102: -76730912.25 | K102: 4270873543 | L102: 5163889519 | M102: 6140651985
A103: Street Lighting and Signal Systems | J103: 0 | K103: 0
A104: Nonelectric Energy | J104: 0 | K104: 0
A105: Water management | C105: =SUM(C106:C108) -> 1219122118 | D105: =SUM(D106:D108) -> 0 | E105: 0 | F105: 0 | G105: 0 | H105: 0 | I105: 63737162.12 | J105: 63737162.12 | K105: 1282859280 | L105: =SUM(L106:L108) -> 1276982515 | M105: =SUM(M106:M108) -> 1336072661
A106: Water Treatment | J106: 0 | K106: 0
A107: Water Distribution | C107: 1219122118 | I107: 63737162.12 | J107: 63737162.12 | K107: 1282859280 | L107: 1276982515 | M107: 1336072661
A108: Water Storage | J108: 0 | K108: 0
A109: Waste water management | C109: =SUM(C110:C113) -> 262027256.3 | D109: =SUM(D110:D113) -> 0 | E109: 0 | F109: 0 | G109: 0 | H109: 0 | I109: 148494930.1 | J109: 148494930.1 | K109: 410522186.4 | L109: =SUM(L110:L113) -> 273472666.1 | M109: =SUM(M110:M113) -> 271970306.1
A110: Public Toilets | J110: 0 | K110: 0
A111: Sewerage | C111: 262027256.3 | I111: 148494930.1 | J111: 148494930.1 | K111: 410522186.4 | L111: 273472666.1 | M111: 271970306.1
A112: Storm Water Management | J112: 0 | K112: 0
A113: Waste Water Treatment | J113: 0 | K113: 0
A114: Waste management | C114: =SUM(C115:C118) -> 168980088.6 | D114: =SUM(D115:D118) -> 0 | E114: 0 | F114: 0 | G114: 0 | H114: 0 | I114: 8847019.342 | J114: 8847019.342 | K114: 177827107.9 | L114: 176753551.4 | M114: 184707915.1
A115: Recycling | J115: 0 | K115: 0
A116: Solid Waste Disposal (Landfill Sites) | J116: 0 | K116: 0
A117: Solid Waste Removal | C117: 168980088.6 | I117: 8847019.342 | J117: 8847019.342 | K117: 177827107.9 | L117: 176753551.4 | M117: 184707915.1
A118: Street Cleaning | J118: 0 | K118: 0
A119: Other | C119: =SUM(C120:C125) -> 122872643.2 | D119: 0 | E119: 0 | F119: 0 | G119: 0 | H119: 0 | I119: 919280.7865 | J119: 919280.7865 | K119: 123791924 | L119: 128524784.8 | M119: 134306261
A120: Abattoirs | J120: 0 | K120: 0
A121: Air Transport | C121: 46806432.43 | I121: 919280.7865 | J121: 919280.7865 | K121: 47725713.22 | L121: 48959528.33 | M121: 51162707.1
A122: Forestry | C122: 10143141.02 | J122: 0 | K122: 10143141.02 | L122: 10609725.51 | M122: 11087163.15
A123: Licensing and Regulation | C123: 2280701.495 | J123: 0 | K123: 2280701.495 | L123: 2385613.764 | M123: 2490827.259
A124: Markets | C124: 63642368.29 | J124: 0 | K124: 63642368.29 | L124: 66569917.24 | M124: 69565563.51
A125: Tourism | C125: 0 | J125: 0 | K125: 0 | L125: 0 | M125: 0
A126: ="Total "&A6 -> Total Revenue - Functional | B126: 2 | C126: =C7+C27+C76+C100+C119 -> 9420878115 | D126: 0 | E126: 0 | F126: 0 | G126: 0 | H126: 0 | I126: 9892514.213 | J126: 9892514.213 | K126: 9430770629 | L126: =L7+L27+L76+L100+L119 -> 1.039623442e+10 | M126: =M7+M27+M76+M100+M119 -> 1.169420456e+10
J127: 0 | K127: 0
A128: Expenditure - Functional | J128: 0 | K128: 0
A129: =A7 -> Municipal governance and administration | C129: =C130+C133+C147 -> 1659708472 | D129: 0 | E129: 0 | F129: 0 | G129: 0 | H129: 0 | I129: 106745762.2 | J129: 106745762.2 | K129: 1766454234 | L129: =L130+L133+L147 -> 358487568 | M129: =M130+M133+M147 -> 375213114
A130: Executive and council | C130: =SUM(C131:C132) -> 165980670 | D130: 0 | E130: 0 | F130: 0 | G130: 0 | H130: 0 | I130: 63086995.07 | J130: 63086995.07 | K130: 229067665.1 | L130: =SUM(L131:L132) -> 307790625.4 | M130: =SUM(M131:M132) -> 322399103.8
A131: Mayor and Council | C131: 116197489.4 | I131: -24720376.57 | J131: -24720376.57 | K131: 91477112.85 | L131: 179243784 | M131: 187606557
A132: Municipal Manager, Town Secretary and Chief Executive | C132: 49783180.58 | I132: 87807371.64 | J132: 87807371.64 | K132: 137590552.2 | L132: 128546841.4 | M132: 134792546.8
A133: Finance and administration | C133: =SUM(C134:C146) -> 1465568308 | D133: 0 | E133: 0 | F133: 0 | G133: 0 | H133: 0 | I133: 57792181.02 | J133: 57792181.02 | K133: 1523360489 | L133: 50696942.57 | M133: 52814010.18
A134: Administrative and Corporate Support | C134: 72746147.21 | I134: 1227749.876 | J134: 1227749.876 | K134: 73973897.09 | L134: 1545734579 | M134: 1625359793
A135: Asset Management | C135: 87624872.56 | I135: -11786721.12 | J135: -11786721.12 | K135: 75838151.44 | L135: 75395407.02 | M135: 88705476.73
A136: Finance | C136: 824792219.1 | I136: 133254523.1 | J136: 133254523.1 | K136: 958046742.3 | L136: 93417601.19 | M136: 98810048.63
A137: Fleet Management | C137: 0 | I137: 0 | J137: 0 | K137: 0 | L137: 868446277 | M137: 904148155.7
A138: Human Resources | C138: 108309536.8 | I138: -15708915.17 | J138: -15708915.17 | K138: 92600621.66 | L138: 0 | M138: 0
A139: Information Technology | C139: 52316392.7 | I139: 6391342.381 | J139: =SUM(E139:I139) -> 6391342.381 | K139: =IF(D139=0,C139+J139,D139+J139) -> 58707735.08 | L139: 108383589.6 | M139: 115529682.3
A140: Legal Services | C140: 19907466.71 | I140: -3096243.06 | J140: -3096243.06 | K140: 16811223.65 | L140: 63032166.68 | M140: 66251996.28
A141: Marketing, Customer Relations, Publicity and Media Co-ordination | C141: 24326241.85 | I141: -23178557.31 | J141: -23178557.31 | K141: 1147684.54 | L141: 23129513.4 | M141: 24228662.76
A142: Property Services | C142: 57624600.3 | I142: -14832353.39 | J142: -14832353.39 | K142: 42792246.91 | L142: 25445129 | M142: 26589907.23
A143: Risk Management | C143: 0 | I143: 0 | J143: 0 | K143: 0 | L143: 60675620.38 | M143: 62946203.6
A144: Security Services | C144: 119509375.2 | I144: -7309702.997 | J144: -7309702.997 | K144: 112199672.2 | L144: 0 | M144: 0
A145: Supply Chain Management | C145: 98411455.53 | I145: -7168941.337 | J145: -7168941.337 | K145: 91242514.19 | L145: 124932480.4 | M145: 130766875.9
A146: Valuation Service | C146: 0 | J146: 0 | K146: 0 | L146: 102876794.3 | M146: 107382783.8
A147: Internal audit | C147: =SUM(C148:C148) -> 28159494 | D147: 0 | E147: 0 | F147: 0 | G147: 0 | H147: 0 | I147: -14133413.87 | J147: -14133413.87 | K147: 14026080.13 | L147: 0 | M147: 0
A148: Governance Function | C148: 28159494 | I148: -14133413.87 | J148: -14133413.87 | K148: 14026080.13 | L148: 37805423 | M148: 38975323
A149: Community and public safety | C149: =C150+C172+C178+C187+C190 -> 706899390.8 | D149: 0 | E149: 0 | F149: 0 | G149: 0 | H149: 0 | I149: -159758866.2 | J149: -159758866.2 | K149: 547140524.6 | L149: 37805423 | M149: 38975323
A150: Community and social services | C150: =SUM(C151:C171) -> 250699021 | D150: 0 | E150: 0 | F150: 0 | G150: 0 | H150: 0 | I150: -106642818 | J150: -106642818 | K150: 144056203 | L150: 708425802.8 | M150: 736781440.4
A151: Aged Care | C151: 369799.8832 | I151: -369319.0732 | J151: -369319.0732 | K151: 480.81 | L151: 259926404 | M151: 269366439
A152: Agricultural | C152: 0 | I152: 0 | J152: 0 | K152: 0 | L152: 386788.2806 | M152: 404171.9093
A153: Animal Care and Diseases | C153: 1105000 | I153: -210000 | J153: -210000 | K153: 895000 | L153: 0 | M153: 0
A154: Cemeteries, Funeral Parlours and Crematoriums | C154: 116355684.8 | I154: -78946397.28 | J154: -78946397.28 | K154: 37409287.56 | L154: 1352000 | M154: 1419600
A155: Child Care Facilities | C155: 0 | I155: 0 | J155: 0 | K155: 0 | L155: 120554452.8 | M155: 125591710.1
A156: Community Halls and Facilities | C156: 30571400.49 | I156: -3507700.888 | J156: -3507700.888 | K156: 27063699.6 | L156: 0 | M156: 0
A157: Consumer Protection | C157: 0 | I157: 0 | J157: 0 | K157: 0 | L157: 31157941.75 | M157: 31242429.72
A158: Cultural Matters | C158: 0 | I158: 0 | J158: 0 | K158: 0 | L158: 0 | M158: 0
A159: Disaster Management | C159: 0 | I159: 0 | J159: 0 | K159: 0 | L159: 0 | M159: 0
A160: Education | C160: 0 | I160: 0 | J160: 0 | K160: 0 | L160: 0 | M160: 0
A161: Indigenous and Customary Law | C161: 0 | I161: 0 | J161: 0 | K161: 0 | L161: 0 | M161: 0
A162: Industrial Promotion | C162: 0 | I162: 0 | J162: 0 | K162: 0 | L162: 0 | M162: 0
A163: Language Policy | C163: 0 | I163: 0 | J163: 0 | K163: 0 | L163: 0 | M163: 0
A164: Libraries and Archives | C164: 86969348.33 | I164: -20597734.67 | J164: -20597734.67 | K164: 66371613.66 | L164: 0 | M164: 0
A165: Literacy Programmes | C165: 0 | I165: 0 | J165: 0 | K165: 0 | L165: 90437345.24 | M165: 94049212.43
A166: Media Services | C166: 0 | I166: 0 | J166: 0 | K166: 0 | L166: 0 | M166: 0
A167: Museums and Art Galleries | C167: 7329991.936 | I167: -956132.8162 | J167: -956132.8162 | K167: 6373859.12 | L167: 0 | M167: 0
A168: Population Development | C168: 7997795.53 | I168: -2055533.3 | J168: -2055533.3 | K168: 5942262.23 | L168: 7659853.074 | M168: 7995477.242
A169: Provincial Cultural Matters | I169: 0 | J169: 0 | K169: 0 | L169: 8378022.818 | M169: 8663837.63
A170: Theatres | I170: 0 | J170: 0 | K170: 0 | L170: 0 | M170: 0
A171: Zoo's | I171: 0 | J171: 0 | K171: 0 | L171: 0 | M171: 0
A172: Sport and recreation | C172: =SUM(C173:C177) -> 121147022.5 | D172: 0 | E172: 0 | F172: 0 | G172: 0 | H172: 0 | I172: -9325535.693 | J172: -9325535.693 | K172: 111821486.8 | L172: 0 | M172: 0
A173: Beaches and Jetties | C173: 0 | I173: 0 | J173: 0 | K173: 0 | L173: 128589963 | M173: 133766187.1
A174: Casinos, Racing, Gambling, Wagering | C174: 0 | I174: 0 | J174: 0 | K174: 0 | L174: 0 | M174: 0
A175: Community Parks (including Nurseries) | C175: 48065311.45 | I175: -2999112.364 | J175: -2999112.364 | K175: 45066199.09 | L175: 0 | M175: 0
A176: Recreational Facilities | C176: 72550461.03 | I176: -6326423.329 | J176: -6326423.329 | K176: 66224037.7 | L176: 50689783.46 | M176: 52808490.25
A177: Sports Grounds and Stadiums | C177: 531250 | I177: 0 | J177: 0 | K177: 531250 | L177: 77250179.51 | M177: 80275196.82
A178: Public safety | C178: =SUM(C179:C186) -> 244183097.4 | D178: 0 | E178: 0 | F178: 0 | G178: 0 | H178: 0 | I178: -64933046.05 | J178: -64933046.05 | K178: 179250051.3 | L178: 650000 | M178: 682500
A179: Civil Defence | C179: 19656120.22 | I179: 2028666.083 | J179: 2028666.083 | K179: 21684786.3 | L179: 256707802.9 | M179: 268069289.3
A180: Cleansing | C180: 0 | I180: 0 | J180: 0 | K180: 0 | L180: 20732327.96 | M180: 21667762.65
A181: Control of Public Nuisances | C181: 0 | I181: 0 | J181: 0 | K181: 0 | L181: 0 | M181: 0
A182: Fencing and Fences | C182: 0 | I182: 0 | J182: 0 | K182: 0 | L182: 0 | M182: 0
A183: Fire Fighting and Protection | C183: 149561867.6 | I183: -74914053.98 | J183: -74914053.98 | K183: 74647813.66 | L183: 0 | M183: 0
A184: Licensing and Control of Animals | C184: 0 | I184: 0 | J184: =SUM(E184:I184) -> 0 | K184: =IF(D184=0,C184+J184,D184+J184) -> 0 | L184: 156924893.5 | M184: 163893650
A185: Police Forces, Traffic and Street Parking Control | C185: 74965109.51 | I185: 7952341.843 | J185: =SUM(E185:I185) -> 7952341.843 | K185: =IF(D185=0,C185+J185,D185+J185) -> 82917451.35 | L185: 0 | M185: 0
A186: Pounds | C186: 0 | I186: 0 | J186: 0 | K186: 0 | L186: 79050581.44 | M186: 82507876.74
A187: Housing | C187: =SUM(C188:C189) -> 81136670.54 | D187: =SUM(D188:D189) -> 0 | E187: 0 | F187: 0 | G187: 0 | H187: 0 | I187: 22193427.93 | J187: 22193427.93 | K187: 103330098.5 | L187: 0 | M187: 0
A188: Housing | C188: 81136670.54 | I188: 22193427.93 | J188: 22193427.93 | K188: 103330098.5 | L188: 52964475.88 | M188: 54879771.81
A189: Informal Settlements | J189: 0 | K189: 0 | L189: 52964475.88 | M189: 54879771.81
A190: Health | C190: =SUM(C191:C197) -> 9733579.461 | D190: 0 | E190: 0 | F190: 0 | G190: 0 | H190: 0 | I190: -1050894.401 | J190: -1050894.401 | K190: 8682685.06
A191: Ambulance | J191: 0 | K191: 0 | L191: 10237157.12 | M191: 10699753.19
A192: Health Services | C192: 9733579.461 | I192: -1050894.401 | J192: -1050894.401 | K192: 8682685.06
A193: =A71 -> Laboratory Services | J193: 0 | K193: 0 | L193: 10237157.12 | M193: 10699753.19
A194: Food Control | J194: 0 | K194: 0
A195: Health Surveillance and Prevention of Communicable Diseases including immunizations | J195: 0 | K195: 0
A196: Vector Control | J196: 0 | K196: 0
A197: Chemical Safety | J197: 0 | K197: 0
A198: Economic and environmental services | C198: =C199+C210+C215 -> 640338797 | D198: 0 | E198: 0 | F198: 0 | G198: 0 | H198: 0 | I198: -92896793.21 | J198: -92896793.21 | K198: 547442003.8
A199: Planning and development | C199: =SUM(C200:C209) -> 161555852 | D199: 0 | E199: 0 | F199: 0 | G199: 0 | H199: 0 | I199: -22888782.11 | J199: -22888782.11 | K199: 138667069.9 | L199: 684666891 | M199: 716448887
A200: Billboards | C200: 0 | G200: 0 | J200: 0 | K200: 0 | L200: 174851368 | M200: 186069899
... 54 more rows

Sheet B3-FinPerf V
A1: =muni&" - "&_ADJ2&" - "&Date -> Choose name from list - Table B3 Adjustments Budget Financial Performance (revenue and expenditure by municipal vote) - 28.02.2025
A2: =Vdesc -> Vote Description | B2: =head27 -> Ref | C2: =Head2 -> Budget Year 2024/25 | L2: =Head10 -> Budget Year +1 2025/26 | M2: =Head11 -> Budget Year +2 2026/27
C3: =Head6 -> Original Budget | D3: =Head54 -> Prior Adjusted | E3: =Head51 -> Accum. Funds | F3: =Head52 -> Multi-year capital | G3: =Head53 -> Unfore. Unavoid. | H3: =Head55 -> Nat. or Prov. Govt | I3: =Head50 -> Other Adjusts. | J3: =Head56 -> Total Adjusts. | K3: =Head7 -> Adjusted Budget | L3: =Head7 -> Adjusted Budget | M3: =Head7 -> Adjusted Budget
A4: [Insert departmental structure etc] | D4: 3 | E4: 4 | F4: 5 | G4: 6 | H4: 7 | I4: 8 | J4: 9 | K4: 10
A5: R thousands | C5: A | D5: A1 | E5: B | F5: C | G5: D | H5: E | I5: F | J5: G | K5: H
A6: Revenue by Vote | B6: 1
A7: =B3B!A7 -> Vote 1 - City Manager | C7: =B3B!C7 -> 0 | D7: =B3B!D7 -> 0 | E7: =B3B!E7 -> 0 | F7: =B3B!F7 -> 0 | G7: =B3B!G7 -> 0 | H7: =B3B!H7 -> 0 | I7: =B3B!I7 -> 0 | J7: =SUM(E7:I7) -> 0 | K7: =IF(D7=0,C7+J7,D7+J7) -> 0 | L7: =B3B!L7 -> 0 | M7: =B3B!M7 -> 0
A8: =B3B!A18 -> Vote 2 - City Finance | C8: =B3B!C18 -> 2675602753 | D8: =B3B!D18 -> 0 | E8: =B3B!E18 -> 0 | F8: =B3B!F18 -> 0 | G8: =B3B!G18 -> 0 | H8: =B3B!H18 -> 0 | I8: =B3B!I18 -> 0 | J8: 0 | K8: 2675602753 | L8: =B3B!L18 -> 2818298768 | M8: =B3B!M18 -> 2966287810
A9: =B3B!A29 -> Vote 3 - Corporate Services | C9: =B3B!C29 -> 5258283.914 | D9: =B3B!D29 -> 0 | E9: =B3B!E29 -> 0 | F9: =B3B!F29 -> 0 | G9: =B3B!G29 -> 0 | H9: =B3B!H29 -> 0 | I9: =B3B!I29 -> -2680090.035 | J9: -2680090.035 | K9: 2578193.879 | L9: =B3B!L29 -> 3311932.974 | M9: =B3B!M29 -> 3460969.958
A10: =B3B!A40 -> Vote 4 - Community Services and Social Equity | C10: =B3B!C40 -> 490385956.1 | D10: =B3B!D40 -> 0 | E10: =B3B!E40 -> 0 | F10: =B3B!F40 -> 0 | G10: =B3B!G40 -> 0 | H10: =B3B!H40 -> 0 | I10: =B3B!I40 -> -166552189.4 | J10: -166552189.4 | K10: 323833766.8 | L10: =B3B!L40 -> 513886320.7 | M10: =B3B!M40 -> 547603373.5
A11: =B3B!A51 -> Vote 5 - Infrastructure Services | C11: =B3B!C51 -> 1540531143 | D11: =B3B!D51 -> 0 | E11: =B3B!E51 -> 0 | F11: =B3B!F51 -> 0 | G11: =B3B!G51 -> 0 | H11: =B3B!H51 -> 0 | I11: =B3B!I51 -> 263274845.4 | J11: 263274845.4 | K11: 1803805989 | L11: =B3B!L51 -> 1660473387 | M11: =B3B!M51 -> 1768956412
A12: =B3B!A62 -> Vote 6 - Sustainable Development and City Enterprises | C12: =B3B!C62 -> 366567368.2 | D12: =B3B!D62 -> 0 | E12: =B3B!E62 -> 0 | F12: =B3B!F62 -> 0 | G12: =B3B!G62 -> 0 | H12: =B3B!H62 -> 0 | I12: =B3B!I62 -> -12490984.54 | J12: -12490984.54 | K12: 354076383.6 | L12: =B3B!L62 -> 241680000.1 | M12: =B3B!M62 -> 272788688.2
A13: =B3B!A73 -> Vote 7 - Electricity | C13: =B3B!C73 -> 4342532610 | D13: =B3B!D73 -> 0 | E13: =B3B!E73 -> 0 | F13: =B3B!F73 -> 0 | G13: =B3B!G73 -> 0 | H13: =B3B!H73 -> 0 | I13: =B3B!I73 -> -71659067.22 | J13: -71659067.22 | K13: 4270873543 | L13: =B3B!L73 -> 5158584011 | M13: =B3B!M73 -> 6135107301
A14: =B3B!A84 -> Vote 8 - [NAME OF VOTE 8] | C14: =B3B!C84 -> 0 | D14: =B3B!D84 -> 0 | E14: =B3B!E84 -> 0 | F14: =B3B!F84 -> 0 | G14: =B3B!G84 -> 0 | H14: =B3B!H84 -> 0 | I14: =B3B!I84 -> 0 | J14: 0 | K14: 0 | L14: =B3B!L84 -> 0 | M14: =B3B!M84 -> 0
A15: =B3B!A95 -> Vote 9 - [NAME OF VOTE 9] | C15: =B3B!C95 -> 0 | D15: =B3B!D95 -> 0 | E15: =B3B!E95 -> 0 | F15: =B3B!F95 -> 0 | G15: =B3B!G95 -> 0 | H15: =B3B!H95 -> 0 | I15: =B3B!I95 -> 0 | J15: 0 | K15: 0 | L15: =B3B!L95 -> 0 | M15: =B3B!M95 -> 0
A16: =B3B!A106 -> Vote 10 - [NAME OF VOTE 10] | C16: =B3B!C106 -> 0 | D16: =B3B!D106 -> 0 | E16: =B3B!E106 -> 0 | F16: =B3B!F106 -> 0 | G16: =B3B!G106 -> 0 | H16: =B3B!H106 -> 0 | I16: =B3B!I106 -> 0 | J16: 0 | K16: 0 | L16: =B3B!L106 -> 0 | M16: =B3B!M106 -> 0
A17: =B3B!A117 -> Vote 11 - [NAME OF VOTE 11] | C17: =B3B!C117 -> 0 | D17: =B3B!D117 -> 0 | E17: =B3B!E117 -> 0 | F17: =B3B!F117 -> 0 | G17: =B3B!G117 -> 0 | H17: =B3B!H117 -> 0 | I17: =B3B!I117 -> 0 | J17: 0 | K17: 0 | L17: =B3B!L117 -> 0 | M17: =B3B!M117 -> 0
A18: =B3B!A128 -> Vote 12 - [NAME OF VOTE 12] | C18: =B3B!C128 -> 0 | D18: =B3B!D128 -> 0 | E18: =B3B!E128 -> 0 | F18: =B3B!F128 -> 0 | G18: =B3B!G128 -> 0 | H18: =B3B!H128 -> 0 | I18: =B3B!I128 -> 0 | J18: 0 | K18: 0 | L18: =B3B!L128 -> 0 | M18: =B3B!M128 -> 0
A19: =B3B!A139 -> Vote 13 - [NAME OF VOTE 13] | C19: =B3B!C139 -> 0 | D19: =B3B!D139 -> 0 | E19: =B3B!E139 -> 0 | F19: =B3B!F139 -> 0 | G19: =B3B!G139 -> 0 | H19: =B3B!H139 -> 0 | I19: =B3B!I139 -> 0 | J19: 0 | K19: 0 | L19: =B3B!L139 -> 0 | M19: =B3B!M139 -> 0
A20: =B3B!A150 -> Vote 14 - [NAME OF VOTE 14] | C20: =B3B!C150 -> 0 | D20: =B3B!D150 -> 0 | E20: =B3B!E150 -> 0 | F20: =B3B!F150 -> 0 | G20: =B3B!G150 -> 0 | H20: =B3B!H150 -> 0 | I20: =B3B!I150 -> 0 | J20: 0 | K20: 0 | L20: =B3B!L150 -> 0 | M20: =B3B!M150 -> 0
A21: =B3B!A161 -> Vote 15 - [NAME OF VOTE 15] | C21: =B3B!C161 -> 0 | D21: =B3B!D161 -> 0 | E21: =B3B!E161 -> 0 | F21: =B3B!F161 -> 0 | G21: =B3B!G161 -> 0 | H21: =B3B!H161 -> 0 | I21: =B3B!I161 -> 0 | J21: 0 | K21: 0 | L21: =B3B!L161 -> 0 | M21: =B3B!M161 -> 0
A22: Total Revenue by Vote | B22: 2 | C22: =SUM(C7:C21) -> 9420878115 | D22: =SUM(D7:D21) -> 0 | E22: 0 | F22: 0 | G22: 0 | H22: 0 | I22: 9892514.23 | J22: =SUM(J7:J21) -> 9892514.23 | K22: 9430770629 | L22: =SUM(L7:L21) -> 1.039623442e+10 | M22: =SUM(M7:M21) -> 1.169420456e+10
A24: Expenditure by Vote | B24: 1
A25: =B3B!A175 -> Vote 1 - City Manager | C25: =B3B!C175 -> 191819668.5 | D25: =B3B!D175 -> 0 | E25: =B3B!E175 -> 0 | F25: =B3B!F175 -> 0 | G25: =B3B!G175 -> 0 | H25: =B3B!H175 -> 0 | I25: =B3B!I175 -> -34594036.08 | J25: =SUM(E25:I25) -> -34594036.08 | K25: =IF(D25=0,C25+J25,D25+J25) -> 157225632.4 | L25: =B3B!L175 -> 218838271.1 | M25: =B3B!M175 -> 229425708.9
A26: =B3B!A186 -> Vote 2 - City Finance | C26: =B3B!C186 -> 1166932156 | D26: =B3B!D186 -> 0 | E26: =B3B!E186 -> 0 | F26: =B3B!F186 -> 0 | G26: =B3B!G186 -> 0 | H26: =B3B!H186 -> 0 | I26: =B3B!I186 -> -56482432.27 | J26: -56482432.27 | K26: 1110449723 | L26: =B3B!L186 -> 1228986541 | M26: =B3B!M186 -> 1282055868
A27: =B3B!A197 -> Vote 3 - Corporate Services | C27: =B3B!C197 -> 212747027.2 | D27: =B3B!D197 -> 0 | E27: =B3B!E197 -> 0 | F27: =B3B!F197 -> 0 | G27: =B3B!G197 -> 0 | H27: =B3B!H197 -> 0 | I27: =B3B!I197 -> -27321294.26 | J27: -27321294.26 | K27: 185425732.9 | L27: =B3B!L197 -> 224973364.1 | M27: =B3B!M197 -> 247301581.7
A28: =B3B!A208 -> Vote 4 - Community Services and Social Equity | C28: =B3B!C208 -> 844627157 | D28: =B3B!D208 -> 0 | E28: =B3B!E208 -> 0 | F28: =B3B!F208 -> 0 | G28: =B3B!G208 -> 0 | H28: =B3B!H208 -> 0 | I28: =B3B!I208 -> -48030495.92 | J28: -48030495.92 | K28: 796596661.1 | L28: =B3B!L208 -> 889737257.9 | M28: =B3B!M208 -> 926862789.7
A29: =B3B!A219 -> Vote 5 - Infrastructure Services | C29: =B3B!C219 -> 1881446739 | D29: =B3B!D219 -> 0 | E29: =B3B!E219 -> 0 | F29: =B3B!F219 -> 0 | G29: =B3B!G219 -> 0 | H29: =B3B!H219 -> 0 | I29: =B3B!I219 -> 44992816.78 | J29: 44992816.78 | K29: 1926439556 | L29: =B3B!L219 -> 1959194070 | M29: =B3B!M219 -> 2045622071
A30: =B3B!A230 -> Vote 6 - Sustainable Development and City Enterprises | C30: =B3B!C230 -> 331868753.4 | D30: =B3B!D230 -> 0 | E30: =B3B!E230 -> 0 | F30: =B3B!F230 -> 0 | G30: =B3B!G230 -> 0 | H30: =B3B!H230 -> 0 | I30: =B3B!I230 -> 10933015.34 | J30: 10933015.34 | K30: 342801768.8 | L30: =B3B!L230 -> 314739385.1 | M30: =B3B!M230 -> 328202411.2
A31: =B3B!A241 -> Vote 7 - Electricity | C31: =B3B!C241 -> 3750828402 | D31: =B3B!D241 -> 0 | E31: =B3B!E241 -> 0 | F31: =B3B!F241 -> 0 | G31: =B3B!G241 -> 0 | H31: =B3B!H241 -> 0 | I31: =B3B!I241 -> 28895376.47 | J31: 28895376.47 | K31: 3779723779 | L31: =B3B!L241 -> 4218480093 | M31: =B3B!M241 -> 4834519900
A32: =B3B!A252 -> Vote 8 - [NAME OF VOTE 8] | C32: =B3B!C252 -> 0 | D32: =B3B!D252 -> 0 | E32: =B3B!E252 -> 0 | F32: =B3B!F252 -> 0 | G32: =B3B!G252 -> 0 | H32: =B3B!H252 -> 0 | I32: =B3B!I252 -> 0 | J32: 0 | K32: 0 | L32: =B3B!L252 -> 0 | M32: =B3B!M252 -> 0
A33: =B3B!A263 -> Vote 9 - [NAME OF VOTE 9] | C33: =B3B!C263 -> 0 | D33: =B3B!D263 -> 0 | E33: =B3B!E263 -> 0 | F33: =B3B!F263 -> 0 | G33: =B3B!G263 -> 0 | H33: =B3B!H263 -> 0 | I33: =B3B!I263 -> 0 | J33: 0 | K33: 0 | L33: =B3B!L263 -> 0 | M33: =B3B!M263 -> 0
A34: =B3B!A274 -> Vote 10 - [NAME OF VOTE 10] | C34: =B3B!C274 -> 0 | D34: =B3B!D274 -> 0 | E34: =B3B!E274 -> 0 | F34: =B3B!F274 -> 0 | G34: =B3B!G274 -> 0 | H34: =B3B!H274 -> 0 | I34: =B3B!I274 -> 0 | J34: 0 | K34: 0 | L34: =B3B!L274 -> 0 | M34: =B3B!M274 -> 0
A35: =B3B!A285 -> Vote 11 - [NAME OF VOTE 11] | C35: =B3B!C285 -> 0 | D35: =B3B!D285 -> 0 | E35: =B3B!E285 -> 0 | F35: =B3B!F285 -> 0 | G35: =B3B!G285 -> 0 | H35: =B3B!H285 -> 0 | I35: =B3B!I285 -> 0 | J35: 0 | K35: 0 | L35: =B3B!L285 -> 0 | M35: =B3B!M285 -> 0
A36: =B3B!A296 -> Vote 12 - [NAME OF VOTE 12] | C36: =B3B!C296 -> 0 | D36: =B3B!D296 -> 0 | E36: =B3B!E296 -> 0 | F36: =B3B!F296 -> 0 | G36: =B3B!G296 -> 0 | H36: =B3B!H296 -> 0 | I36: =B3B!I296 -> 0 | J36: 0 | K36: 0 | L36: =B3B!L296 -> 0 | M36: =B3B!M296 -> 0
A37: =B3B!A307 -> Vote 13 - [NAME OF VOTE 13] | C37: =B3B!C307 -> 0 | D37: =B3B!D307 -> 0 | E37: =B3B!E307 -> 0 | F37: =B3B!F307 -> 0 | G37: =B3B!G307 -> 0 | H37: =B3B!H307 -> 0 | I37: =B3B!I307 -> 0 | J37: 0 | K37: 0 | L37: =B3B!L307 -> 0 | M37: =B3B!M307 -> 0
A38: =B3B!A318 -> Vote 14 - [NAME OF VOTE 14] | C38: =B3B!C318 -> 0 | D38: =B3B!D318 -> 0 | E38: =B3B!E318 -> 0 | F38: =B3B!F318 -> 0 | G38: =B3B!G318 -> 0 | H38: =B3B!H318 -> 0 | I38: =B3B!I318 -> 0 | J38: 0 | K38: 0 | L38: =B3B!L318 -> 0 | M38: =B3B!M318 -> 0
A39: =B3B!A329 -> Vote 15 - [NAME OF VOTE 15] | C39: =B3B!C329 -> 0 | D39: =B3B!D329 -> 0 | E39: =B3B!E329 -> 0 | F39: =B3B!F329 -> 0 | G39: =B3B!G329 -> 0 | H39: =B3B!H329 -> 0 | I39: =B3B!I329 -> 0 | J39: 0 | K39: 0 | L39: =B3B!L329 -> 0 | M39: =B3B!M329 -> 0
A40: Total Expenditure by Vote | B40: 2 | C40: =SUM(C25:C39) -> 8380269903 | D40: =SUM(D25:D39) -> 0 | E40: 0 | F40: 0 | G40: 0 | H40: 0 | I40: -81607049.93 | J40: =SUM(J25:J39) -> -81607049.93 | K40: =SUM(K25:K39) -> 8298662853 | L40: =SUM(L25:L39) -> 9054948982 | M40: =SUM(M25:M39) -> 9893990330
A41: =result -> Surplus/ (Deficit) for the year | B41: 2 | C41: =C22-C40 -> 1040608212 | D41: =D22-D40 -> 0 | E41: 0 | F41: 0 | G41: 0 | H41: 0 | I41: 91499564.16 | J41: 91499564.16 | K41: 1132107776 | L41: 1341285438 | M41: 1800214226
A42: =head27a -> References
A43: 1. Insert 'Vote'; e.g. Department, if different to standard classification structure
A44: 2. Must reconcile to Budgeted Financial Performance (revenue and expenditure)
A45: 3. Only complete if a previous adjusted budget has been approved in the same financial year. Reflect most recent adjusted budget.
A46: 4. Additional cash-backed accumulated funds/unspent funds (MFMA section 18(1)(b) and section 28(2)(e)) identified after the Original Budget approved and after annual financial statements audited (note: only where underspending could not reasonably have been foreseen)
A47: 5. Increases of funds approved under MFMA section 31
A48: 6. Adjustments approved in accordance with MFMA section 29
A49: 7. Adjustments to transfers from National or Provincial Government
A50: 8. Adjusts. = 'Other' Adjustments proposed to be approved; including revenue under-collection (MFMA section 28(2)(a)); additional revenue appropriation on existing programmes (section 28(2))(b); projected savings (section 28(2)(d)); error correction (section 28(2)(f))
A51: 9. G = B + C + D + E + F
A52: 10. Adjusted Budget H = (A or A1/2 etc) + G
A54: check revenue | C54: =C22-'B4-FinPerf RE'!C76 -> 9420878115 | D54: =D22-'B4-FinPerf RE'!D76 -> 0 | E54: =E22-'B4-FinPerf RE'!E76 -> 0 | F54: =F22-'B4-FinPerf RE'!F76 -> 0 | G54: =G22-'B4-FinPerf RE'!G76 -> 0 | H54: =H22-'B4-FinPerf RE'!H76 -> 0 | I54: =I22-'B4-FinPerf RE'!I76 -> 9892514.23 | J54: =J22-'B4-FinPerf RE'!J76 -> 9892514.23 | K54: =K22-'B4-FinPerf RE'!K76 -> 9430770629 | L54: =L22-'B4-FinPerf RE'!L76 -> 1.039623442e+10 | M54: =M22-'B4-FinPerf RE'!M76 -> 1.169420456e+10
A55: check expenditure | C55: =C40-'B4-FinPerf RE'!C50 -> 0.7325801849 | D55: =D40-'B4-FinPerf RE'!D50 -> 0 | E55: =E40-'B4-FinPerf RE'!E50 -> 0 | F55: =F40-'B4-FinPerf RE'!F50 -> 0 | G55: =G40-'B4-FinPerf RE'!G50 -> 0 | H55: =H40-'B4-FinPerf RE'!H50 -> 0 | I55: =I40-'B4-FinPerf RE'!I50 -> -0.7611840069 | J55: =J40-'B4-FinPerf RE'!J50 -> -0.7611840069 | K55: =K40-'B4-FinPerf RE'!K50 -> -0.02860641479 | L55: =L40-'B4-FinPerf RE'!L50 -> -70071995.85 | M55: =M40-'B4-FinPerf RE'!M50 -> -77816802.53

Sheet B3B
A1: =muni&" - "&_ADJ2&" - B"&" - "&Date -> Choose name from list - Table B3 Adjustments Budget Financial Performance (revenue and expenditure by municipal vote) - B - 28.02.2025
A2: =Vdesc -> Vote Description | B2: =head27 -> Ref | C2: =Head2 -> Budget Year 2024/25 | L2: =Head10 -> Budget Year +1 2025/26 | M2: =Head11 -> Budget Year +2 2026/27
C3: =Head6 -> Original Budget | D3: =Head54 -> Prior Adjusted | E3: =Head51 -> Accum. Funds | F3: =Head52 -> Multi-year capital | G3: =Head53 -> Unfore. Unavoid. | H3: =Head55 -> Nat. or Prov. Govt | I3: =Head50 -> Other Adjusts. | J3: =Head56 -> Total Adjusts. | K3: =Head7 -> Adjusted Budget | L3: =Head7 -> Adjusted Budget | M3: =Head7 -> Adjusted Budget
A4: [Insert departmental structure etc] | D4: 3 | E4: 4 | F4: 5 | G4: 6 | H4: 7 | I4: 8 | J4: 9 | K4: 10
A5: R thousands | C5: A | D5: A1 | E5: B | F5: C | G5: D | H5: E | I5: F | J5: G | K5: H
A6: Revenue by Vote | B6: 1
A7: ='Org structure'!A2 -> Vote 1 - City Manager | C7: =SUM(C8:C17) -> 0 | D7: =SUM(D8:D17) -> 0 | E7: 0 | F7: 0 | G7: 0 | H7: 0 | I7: 0 | J7: =SUM(E7:I7) -> 0 | K7: =IF(D7=0,C7+J7,D7+J7) -> 0 | L7: =SUM(L8:L17) -> 0 | M7: =SUM(M8:M17) -> 0
A8: ='Org structure'!E3 -> 1.1 - Internal Audit and Compliance | J8: =SUM(E8:I8) -> 0 | K8: =IF(D8=0,C8+J8,D8+J8) -> 0
A9: ='Org structure'!E4 -> 1.2 - Office of the City Manager | J9: 0 | K9: 0
A10: ='Org structure'!E5 -> 1.3 - Political Support | J10: 0 | K10: 0
A11: ='Org structure'!E6 -> 1.4 - Strategic Planning | J11: 0 | K11: 0
A12: ='Org structure'!E7 -> 0 | J12: 0 | K12: 0
A13: ='Org structure'!E8 -> 0 | J13: 0 | K13: 0
A14: ='Org structure'!E9 -> 0 | J14: 0 | K14: 0
A15: ='Org structure'!E10 -> 0 | J15: 0 | K15: 0
A16: ='Org structure'!E11 -> 0 | J16: 0 | K16: 0
A17: ='Org structure'!E12 -> 0 | J17: 0 | K17: 0
A18: ='Org structure'!A3 -> Vote 2 - City Finance | C18: =SUM(C19:C28) -> 2675602753 | D18: =SUM(D19:D28) -> 0 | E18: 0 | F18: 0 | G18: 0 | H18: 0 | I18: 0 | J18: 0 | K18: 2675602753 | L18: =SUM(L19:L28) -> 2818298768 | M18: =SUM(M19:M28) -> 2966287810
A19: ='Org structure'!E14 -> 2.1 - Asset Management | C19: 20116081.74 | J19: 0 | K19: 20116081.74 | L19: 21041421.5 | M19: 21988285.47
A20: ='Org structure'!E15 -> 2.2 - Budget and Treasury Management | C20: 843107146.8 | J20: 0 | K20: 843107146.8 | L20: 901508363.5 | M20: 963242054.9
A21: ='Org structure'!E16 -> 2.3 - Expenditure Management | C21: 433874.6686 | J21: 0 | K21: 433874.6686 | L21: 453832.9033 | M21: 474255.384
A22: ='Org structure'!E17 -> 2.4 - Revenue Management | C22: 1811594399 | J22: 0 | K22: 1811594399 | L22: 1894927742 | M22: 1980199490
A23: ='Org structure'!E18 -> 2.5 - Supply Chain Management | C23: 351250.8349 | J23: 0 | K23: 351250.8349 | L23: 367408.3733 | M23: 383724.3378
A24: ='Org structure'!E19 -> 0 | J24: 0 | K24: 0
A25: ='Org structure'!E20 -> 0 | J25: 0 | K25: 0
A26: ='Org structure'!E21 -> 0 | J26: 0 | K26: 0
A27: ='Org structure'!E22 -> 0 | J27: 0 | K27: 0
A28: ='Org structure'!E23 -> 0 | J28: 0 | K28: 0
A29: ='Org structure'!A4 -> Vote 3 - Corporate Services | C29: =SUM(C30:C39) -> 5258283.914 | D29: 0 | E29: 0 | F29: 0 | G29: 0 | H29: 0 | I29: -2680090.035 | J29: -2680090.035 | K29: 2578193.879 | L29: =SUM(L30:L39) -> 3311932.974 | M29: =SUM(M30:M39) -> 3460969.958
A30: ='Org structure'!E25 -> 3.1 - Human Resources Management | C30: 2831018.945 | I30: -588090.0354 | J30: -588090.0354 | K30: 2242928.91 | L30: 2961245.817 | M30: 3094501.879
A31: ='Org structure'!E26 -> 3.2 - Information Technology | C31: 2608.41365 | J31: 0 | K31: 2608.41365 | L31: 2728.400678 | M31: 2851.178708
A32: ='Org structure'!E27 -> 3.3 - Legal Services | C32: 332656.5549 | J32: 0 | K32: 332656.5549 | L32: 347958.7564 | M32: 363616.9004
A33: ='Org structure'!E28 -> 3.4 - Secretariat and Auxiliary Services | C33: 0 | J33: 0 | K33: 0 | L33: 0 | M33: 0
A34: ='Org structure'!E29 -> 3.5 - General Manager: Corporate Service | C34: 2092000 | I34: -2092000 | J34: -2092000 | K34: 0 | L34: 0 | M34: 0
A35: ='Org structure'!E30 -> 0 | J35: 0 | K35: 0
A36: ='Org structure'!E31 -> 0 | J36: 0 | K36: 0
A37: ='Org structure'!E32 -> 0 | J37: 0 | K37: 0
A38: ='Org structure'!E33 -> 0 | J38: 0 | K38: 0
A39: ='Org structure'!E34 -> 0 | J39: 0 | K39: 0
A40: ='Org structure'!A5 -> Vote 4 - Community Services and Social Equity | C40: =SUM(C41:C50) -> 490385956.1 | D40: 0 | E40: 0 | F40: 0 | G40: 0 | H40: 0 | I40: -166552189.4 | J40: -166552189.4 | K40: 323833766.8 | L40: =SUM(L41:L50) -> 513886320.7 | M40: =SUM(M41:M50) -> 547603373.5
A41: ='Org structure'!E36 -> 4.1 - Area Based Management | C41: 10962668.29 | I41: -0.02279999666 | J41: -0.02279999666 | K41: 10962668.27 | L41: 11466951.03 | M41: 11982508.43
A42: ='Org structure'!E37 -> 4.2 - Public Safety, Emergency Services and Enforcement | C42: 9172795.913 | I42: -0.003100000322 | J42: -0.003100000322 | K42: 9172795.91 | L42: 9594744.525 | M42: 9952636.281
A43: ='Org structure'!E38 -> 4.3 - Recreation and Facilities | C43: 301270403.3 | I43: -177491208.7 | J43: -177491208.7 | K43: 123779194.7 | L43: 316071073.7 | M43: 340960313.6
A44: ='Org structure'!E39 -> 4.4 - Waste Management | C44: 168980088.6 | I44: 8847019.342 | J44: 8847019.342 | K44: 177827107.9 | L44: 176753551.4 | M44: 184707915.1
A45: ='Org structure'!E40 -> 4.5 - General Manager: Community Services | I45: 2092000 | J45: 2092000 | K45: 2092000
A46: ='Org structure'!E41 -> 0 | J46: 0 | K46: 0
A47: ='Org structure'!E42 -> 0 | J47: 0 | K47: 0
A48: ='Org structure'!E43 -> 0 | J48: 0 | K48: 0
A49: ='Org structure'!E44 -> 0 | J49: 0 | K49: 0
A50: ='Org structure'!E45 -> 0 | J50: 0 | K50: 0
A51: ='Org structure'!A6 -> Vote 5 - Infrastructure Services | C51: =SUM(C52:C61) -> 1540531143 | D51: =SUM(D52:D61) -> 0 | E51: 0 | F51: 0 | G51: 0 | H51: 0 | I51: 263274845.4 | J51: 263274845.4 | K51: 1803805989 | L51: =SUM(L52:L61) -> 1660473387 | M51: =SUM(M52:M61) -> 1768956412
A52: ='Org structure'!E47 -> 5.1 - Project Management Office | C52: 9120080 | I52: 150000 | J52: 150000 | K52: 9270080 | L52: 9744479.64 | M52: 10627400
A53: ='Org structure'!E48 -> 5.2 - Roads and Transportation | C53: 50261689.3 | I53: 50892753.21 | J53: 50892753.21 | K53: 101154442.5 | L53: 100273727 | M53: 150286044.7
A54: ='Org structure'!E49 -> 5.3 - Water and Sanitation | C54: 1481149374 | I54: 212232092.2 | J54: 212232092.2 | K54: 1693381466 | L54: 1550455181 | M54: 1608042968
A55: ='Org structure'!E50 -> 5.4 - General Manager: Infrastructure | J55: 0 | K55: 0
A56: ='Org structure'!E51 -> 0 | J56: 0 | K56: 0
A57: ='Org structure'!E52 -> 0 | J57: 0 | K57: 0
A58: ='Org structure'!E53 -> 0 | J58: 0 | K58: 0
A59: ='Org structure'!E54 -> 0 | J59: 0 | K59: 0
A60: ='Org structure'!E55 -> 0 | J60: 0 | K60: 0
A61: ='Org structure'!E56 -> 0 | J61: 0 | K61: 0
A62: ='Org structure'!A7 -> Vote 6 - Sustainable Development and City Enterprises | C62: =SUM(C63:C72) -> 366567368.2 | D62: =SUM(D63:D72) -> 0 | E62: 0 | F62: 0 | G62: 0 | H62: 0 | I62: -12490984.54 | J62: -12490984.54 | K62: 354076383.6 | L62: =SUM(L63:L72) -> 241680000.1 | M62: =SUM(M63:M72) -> 272788688.2
A63: ='Org structure'!E58 -> 6.1 - City Entities | C63: 137116847.2 | I63: -15009624.68 | J63: -15009624.68 | K63: 122107222.5 | L63: 156270972 | M63: 165334144.1
A64: ='Org structure'!E59 -> 6.2 - Development Services | C64: 3280701.495 | I64: 20062396.22 | J64: 20062396.22 | K64: 23343097.72 | L64: 2385613.764 | M64: 2490827.259
A65: ='Org structure'!E60 -> 6.3 - Human Settlement Development | C65: 190478177.4 | I65: -9219627.486 | J65: -9219627.486 | K65: 181258550 | L65: 36090956.84 | M65: 37323978.11
A66: ='Org structure'!E61 -> 6.4 - Town Planning | C66: 35691641.99 | I66: -8324128.602 | J66: -8324128.602 | K66: 27367513.39 | L66: 46932457.52 | M66: 67639738.68
A67: ='Org structure'!E62 -> 6.5 - General Manager: Sustainable Development and City Enterprises | J67: 0 | K67: 0 | L67: 0 | M67: 0
A68: ='Org structure'!E63 -> 0 | J68: 0 | K68: 0
A69: ='Org structure'!E64 -> 0 | J69: 0 | K69: 0
A70: ='Org structure'!E65 -> 0 | J70: 0 | K70: 0
A71: ='Org structure'!E66 -> 0 | J71: 0 | K71: 0
A72: ='Org structure'!E67 -> 0 | J72: =SUM(E72:I72) -> 0 | K72: =IF(D72=0,C72+J72,D72+J72) -> 0
A73: ='Org structure'!A8 -> Vote 7 - Electricity | C73: =SUM(C74:C83) -> 4342532610 | D73: 0 | E73: 0 | F73: 0 | G73: 0 | H73: 0 | I73: -71659067.22 | J73: -71659067.22 | K73: 4270873543 | L73: =SUM(L74:L83) -> 5158584011 | M73: =SUM(M74:M83) -> 6135107301
A74: ='Org structure'!E69 -> 7.1 Electricity planning | C74: 20892768.47 | I74: -2455072.761 | J74: -2455072.761 | K74: 18437695.71 | L74: 20056404.48 | M74: 25537121.33
A75: ='Org structure'!E70 -> 7.2 Methods and Standards | I75: 0 | J75: 0 | K75: 0
A76: ='Org structure'!E71 -> 7.3 Operations and Maintenance | I76: 0 | J76: 0 | K76: 0
A77: ='Org structure'!E72 -> 7.4 Revenue Management | C77: 4295540347 | I77: -69203994.46 | J77: -69203994.46 | K77: 4226336353 | L77: 5111227535 | M77: 6081041606
A78: ='Org structure'!E73 -> 7.5 General Manager Electricity | C78: 26099494.06 | I78: 0.008850004524 | J78: 0.008850004524 | K78: 26099494.07 | L78: 27300070.79 | M78: 28528573.97
A79: ='Org structure'!E74 -> 0 | J79: 0 | K79: 0
A80: ='Org structure'!E75 -> 0 | J80: 0 | K80: 0
A81: ='Org structure'!E76 -> 0 | J81: 0 | K81: 0
A82: ='Org structure'!E77 -> 0 | J82: 0 | K82: 0
A83: ='Org structure'!E78 -> 0 | J83: 0 | K83: 0
A84: ='Org structure'!A9 -> Vote 8 - [NAME OF VOTE 8] | C84: =SUM(C85:C94) -> 0 | D84: =SUM(D85:D94) -> 0 | E84: 0 | F84: 0 | G84: 0 | H84: 0 | I84: 0 | J84: 0 | K84: 0 | L84: =SUM(L85:L94) -> 0 | M84: =SUM(M85:M94) -> 0
A85: ='Org structure'!E80 -> 8.1 - [Name of sub-vote] | J85: 0 | K85: 0
A86: ='Org structure'!E81 -> 0 | J86: 0 | K86: 0
A87: ='Org structure'!E82 -> 0 | J87: 0 | K87: 0
A88: ='Org structure'!E83 -> 0 | J88: 0 | K88: 0
A89: ='Org structure'!E84 -> 0 | J89: 0 | K89: 0
A90: ='Org structure'!E85 -> 0 | J90: 0 | K90: 0
A91: ='Org structure'!E86 -> 0 | J91: 0 | K91: 0
A92: ='Org structure'!E87 -> 0 | J92: 0 | K92: 0
A93: ='Org structure'!E88 -> 0 | J93: 0 | K93: 0
A94: ='Org structure'!E89 -> 0 | J94: 0 | K94: 0
A95: ='Org structure'!A10 -> Vote 9 - [NAME OF VOTE 9] | C95: =SUM(C96:C105) -> 0 | D95: =SUM(D96:D105) -> 0 | E95: 0 | F95: 0 | G95: 0 | H95: 0 | I95: 0 | J95: 0 | K95: 0 | L95: =SUM(L96:L105) -> 0 | M95: =SUM(M96:M105) -> 0
A96: ='Org structure'!E91 -> 9.1 - [Name of sub-vote] | J96: 0 | K96: 0
A97: ='Org structure'!E92 -> 0 | J97: 0 | K97: 0
A98: ='Org structure'!E93 -> 0 | J98: 0 | K98: 0
A99: ='Org structure'!E94 -> 0 | J99: 0 | K99: 0
A100: ='Org structure'!E95 -> 0 | J100: 0 | K100: 0
A101: ='Org structure'!E96 -> 0 | J101: 0 | K101: 0
A102: ='Org structure'!E97 -> 0 | J102: 0 | K102: 0
A103: ='Org structure'!E98 -> 0 | J103: 0 | K103: 0
A104: ='Org structure'!E99 -> 0 | J104: 0 | K104: 0
A105: ='Org structure'!E100 -> 0 | J105: 0 | K105: 0
A106: ='Org structure'!A11 -> Vote 10 - [NAME OF VOTE 10] | C106: =SUM(C107:C116) -> 0 | D106: =SUM(D107:D116) -> 0 | E106: 0 | F106: 0 | G106: 0 | H106: 0 | I106: 0 | J106: 0 | K106: 0 | L106: =SUM(L107:L116) -> 0 | M106: =SUM(M107:M116) -> 0
A107: ='Org structure'!E102 -> 10.1 - [Name of sub-vote] | J107: 0 | K107: 0
A108: ='Org structure'!E103 -> 0 | J108: 0 | K108: 0
A109: ='Org structure'!E104 -> 0 | J109: 0 | K109: 0
A110: ='Org structure'!E105 -> 0 | J110: 0 | K110: 0
A111: ='Org structure'!E106 -> 0 | J111: 0 | K111: 0
A112: ='Org structure'!E107 -> 0 | J112: 0 | K112: 0
A113: ='Org structure'!E108 -> 0 | J113: 0 | K113: 0
A114: ='Org structure'!E109 -> 0 | J114: 0 | K114: 0
A115: ='Org structure'!E110 -> 0 | J115: 0 | K115: 0
A116: ='Org structure'!E111 -> 0 | J116: 0 | K116: 0
A117: ='Org structure'!A12 -> Vote 11 - [NAME OF VOTE 11] | C117: =SUM(C118:C127) -> 0 | D117: =SUM(D118:D127) -> 0 | E117: 0 | F117: 0 | G117: 0 | H117: 0 | I117: 0 | J117: 0 | K117: 0 | L117: =SUM(L118:L127) -> 0 | M117: =SUM(M118:M127) -> 0
A118: ='Org structure'!E113 -> 11.1 - [Name of sub-vote] | J118: 0 | K118: 0
A119: ='Org structure'!E114 -> 0 | J119: 0 | K119: 0
A120: ='Org structure'!E115 -> 0 | J120: 0 | K120: 0
A121: ='Org structure'!E116 -> 0 | J121: 0 | K121: 0
A122: ='Org structure'!E117 -> 0 | J122: 0 | K122: 0
A123: ='Org structure'!E118 -> 0 | J123: 0 | K123: 0
A124: ='Org structure'!E119 -> 0 | J124: 0 | K124: 0
A125: ='Org structure'!E120 -> 0 | J125: 0 | K125: 0
A126: ='Org structure'!E121 -> 0 | J126: 0 | K126: 0
A127: ='Org structure'!E122 -> 0 | J127: 0 | K127: 0
A128: ='Org structure'!A13 -> Vote 12 - [NAME OF VOTE 12] | C128: =SUM(C129:C138) -> 0 | D128: =SUM(D129:D138) -> 0 | E128: 0 | F128: 0 | G128: 0 | H128: 0 | I128: 0 | J128: 0 | K128: 0 | L128: =SUM(L129:L138) -> 0 | M128: =SUM(M129:M138) -> 0
A129: ='Org structure'!E124 -> 12.1 - [Name of sub-vote] | J129: 0 | K129: 0
A130: ='Org structure'!E125 -> 0 | J130: 0 | K130: 0
A131: ='Org structure'!E126 -> 0 | J131: 0 | K131: 0
A132: ='Org structure'!E127 -> 0 | J132: 0 | K132: 0
A133: ='Org structure'!E128 -> 0 | J133: 0 | K133: 0
A134: ='Org structure'!E129 -> 0 | J134: 0 | K134: 0
A135: ='Org structure'!E130 -> 0 | J135: 0 | K135: 0
A136: ='Org structure'!E131 -> 0 | J136: =SUM(E136:I136) -> 0 | K136: =IF(D136=0,C136+J136,D136+J136) -> 0
A137: ='Org structure'!E132 -> 0 | J137: 0 | K137: 0
A138: ='Org structure'!E133 -> 0 | J138: 0 | K138: 0
A139: ='Org structure'!A14 -> Vote 13 - [NAME OF VOTE 13] | C139: =SUM(C140:C149) -> 0 | D139: =SUM(D140:D149) -> 0 | E139: 0 | F139: 0 | G139: 0 | H139: 0 | I139: 0 | J139: 0 | K139: 0 | L139: =SUM(L140:L149) -> 0 | M139: =SUM(M140:M149) -> 0
A140: ='Org structure'!E135 -> 13.1 - [Name of sub-vote] | J140: 0 | K140: 0
A141: ='Org structure'!E136 -> 0 | J141: 0 | K141: 0
A142: ='Org structure'!E137 -> 0 | J142: 0 | K142: 0
A143: ='Org structure'!E138 -> 0 | J143: 0 | K143: 0
A144: ='Org structure'!E139 -> 0 | J144: 0 | K144: 0
A145: ='Org structure'!E140 -> 0 | J145: 0 | K145: 0
A146: ='Org structure'!E141 -> 0 | J146: 0 | K146: 0
A147: ='Org structure'!E142 -> 0 | J147: 0 | K147: 0
A148: ='Org structure'!E143 -> 0 | J148: 0 | K148: 0
A149: ='Org structure'!E144 -> 0 | J149: 0 | K149: 0
A150: ='Org structure'!A15 -> Vote 14 - [NAME OF VOTE 14] | C150: =SUM(C151:C160) -> 0 | D150: =SUM(D151:D160) -> 0 | E150: 0 | F150: 0 | G150: 0 | H150: 0 | I150: 0 | J150: 0 | K150: 0 | L150: =SUM(L151:L160) -> 0 | M150: =SUM(M151:M160) -> 0
A151: ='Org structure'!E146 -> 14.1 - [Name of sub-vote] | J151: 0 | K151: 0
A152: ='Org structure'!E147 -> 0 | J152: 0 | K152: 0
A153: ='Org structure'!E148 -> 0 | J153: 0 | K153: 0
A154: ='Org structure'!E149 -> 0 | J154: 0 | K154: 0
A155: ='Org structure'!E150 -> 0 | J155: 0 | K155: 0
A156: ='Org structure'!E151 -> 0 | J156: 0 | K156: 0
A157: ='Org structure'!E152 -> 0 | J157: 0 | K157: 0
A158: ='Org structure'!E153 -> 0 | J158: 0 | K158: 0
A159: ='Org structure'!E154 -> 0 | J159: 0 | K159: 0
A160: ='Org structure'!E155 -> 0 | J160: 0 | K160: 0
A161: ='Org structure'!A16 -> Vote 15 - [NAME OF VOTE 15] | C161: =SUM(C162:C171) -> 0 | D161: =SUM(D162:D171) -> 0 | E161: 0 | F161: 0 | G161: 0 | H161: 0 | I161: 0 | J161: 0 | K161: 0 | L161: =SUM(L162:L171) -> 0 | M161: =SUM(M162:M171) -> 0
A162: ='Org structure'!E157 -> 15.1 - [Name of sub-vote] | J162: 0 | K162: 0
A163: ='Org structure'!E158 -> 0 | J163: 0 | K163: 0
A164: ='Org structure'!E159 -> 0 | J164: 0 | K164: 0
A165: ='Org structure'!E160 -> 0 | J165: 0 | K165: 0
A166: ='Org structure'!E161 -> 0 | J166: 0 | K166: 0
A167: ='Org structure'!E162 -> 0 | J167: 0 | K167: 0
A168: ='Org structure'!E163 -> 0 | J168: 0 | K168: 0
A169: ='Org structure'!E164 -> 0 | J169: 0 | K169: 0
A170: ='Org structure'!E165 -> 0 | J170: 0 | K170: 0
A171: ='Org structure'!E166 -> 0 | J171: 0 | K171: 0
A172: Total Revenue by Vote | B172: 2 | C172: =C7+C18+C29+C40+C51+C62+C73+C84+C95+C106+C117+C128+C139+C150+C161 -> 9420878115 | D172: =D7+D18+D29+D40+D51+D62+D73+D84+D95+D106+D117+D128+D139+D150+D161 -> 0 | E172: 0 | F172: 0 | G172: 0 | H172: 0 | I172: 9892514.23 | J172: =SUM(E172:I172) -> 9892514.23 | K172: =IF(D172=0,C172+J172,D172+J172) -> 9430770629 | L172: =L7+L18+L29+L40+L51+L62+L73+L84+L95+L106+L117+L128+L139+L150+L161 -> 1.039623442e+10 | M172: =M7+M18+M29+M40+M51+M62+M73+M84+M95+M106+M117+M128+M139+M150+M161 -> 1.169420456e+10
A174: Expenditure by Vote | B174: 1
A175: =A7 -> Vote 1 - City Manager | C175: =SUM(C176:C185) -> 191819668.5 | D175: 0 | E175: 0 | F175: 0 | G175: 0 | H175: 0 | I175: -34594036.08 | J175: =SUM(E175:I175) -> -34594036.08 | K175: =IF(D175=0,C175+J175,D175+J175) -> 157225632.4 | L175: =SUM(L176:L185) -> 218838271.1 | M175: =SUM(M176:M185) -> 229425708.9
A176: =A8 -> 1.1 - Internal Audit and Compliance | C176: 28259494.71 | I176: -14233414.58 | J176: =SUM(E176:I176) -> -14233414.58 | K176: =IF(D176=0,C176+J176,D176+J176) -> 14026080.13 | L176: 37925424.87 | M176: 39095322.2
A177: 1.2 - Office of the City Manager | C177: 45827363.93 | I177: -8460932.377 | J177: -8460932.377 | K177: 37366431.55 | L177: 50116138.57 | M177: 52164506.35
A178: 1.3 - Political Support | C178: 108207922.9 | I178: -9216920.064 | J178: -9216920.064 | K178: 98991002.8 | L178: 117356588.9 | M178: 123757954.8
A179: 1.4 - Strategic Planning | C179: 9524886.968 | I179: -2682769.058 | J179: -2682769.058 | K179: 6842117.91 | L179: 13440118.85 | M179: 14407925.53
A180: 0 | J180: 0 | K180: 0
A181: 0 | J181: 0 | K181: 0
A182: 0 | J182: 0 | K182: 0
A183: 0 | J183: 0 | K183: 0
A184: 0 | J184: 0 | K184: 0
A185: 0 | J185: 0 | K185: 0
A186: =A18 -> Vote 2 - City Finance | C186: =SUM(C187:C196) -> 1166932156 | D186: 0 | E186: 0 | F186: 0 | G186: 0 | H186: 0 | I186: -56482432.27 | J186: -56482432.27 | K186: 1110449723 | L186: =SUM(L187:L196) -> 1228986541 | M186: =SUM(M187:M196) -> 1282055868
A187: =A19 -> 2.1 - Asset Management | C187: 95532173.96 | I187: -22628341.76 | J187: -22628341.76 | K187: 72903832.2 | L187: 100103757 | M187: 102777518.9
A188: 2.2 - Budget and Treasury Management | C188: 134603926.3 | I188: 226082.3652 | J188: 226082.3652 | K188: 134830008.7 | L188: 143878525.2 | M188: 150192281.9
A189: 2.3 - Expenditure Management | C189: 42985050.17 | I189: -1305427.663 | J189: -1305427.663 | K189: 41679622.51 | L189: 47050407.63 | M189: 49151497.18
A190: 2.4 - Revenue Management | C190: 795399549.5 | I190: -25605803.88 | J190: -25605803.88 | K190: 769793745.7 | L190: 835077057 | M190: 872551785.8
A191: 2.5 - Supply Chain Management | C191: 98411455.53 | I191: -7168941.337 | J191: -7168941.337 | K191: 91242514.19 | L191: 102876794.3 | M191: 107382783.8
A192: 0 | J192: 0 | K192: 0
A193: 0 | J193: 0 | K193: 0
A194: 0 | J194: 0 | K194: 0
A195: 0 | J195: 0 | K195: 0
A196: 0 | J196: 0 | K196: 0
A197: Vote 3 - Corporate Services | C197: =SUM(C198:C207) -> 212747027.2 | D197: 0 | E197: 0 | F197: 0 | G197: 0 | H197: 0 | I197: -27321294.26 | J197: -27321294.26 | K197: 185425732.9 | L197: =SUM(L198:L207) -> 224973364.1 | M197: =SUM(M198:M207) -> 247301581.7
A198: 3.1 - Human Resources Management | C198: 93075683.15 | I198: -4180472.637 | J198: -4180472.637 | K198: 88895210.51 | L198: 92281645.41 | M198: 98276559.08
A199: 3.2 - Information Technology | C199: 50169008.88 | I199: -2941058.416 | J199: -2941058.416 | K199: 47227950.46 | L199: 60792996.1 | M199: 63924567.51
A200: 3.3 - Legal Services | C200: 19907466.71 | I200: -3096243.06 | J200: -3096243.06 | K200: 16811223.65 | L200: 23129513.4 | M200: 24228662.76
A201: 3.4 - Secretariat and Auxiliary Services | C201: 35151661.89 | I201: -2660313.569 | J201: -2660313.569 | K201: 32491348.32 | L201: 35872073.83 | M201: 47398265.48
... 144 more rows

Sheet B4-FinPerf RE
A1: =muni&" - "&_ADJ4&" - "&Date -> Choose name from list - Table B4 Adjustments Budget Financial Performance (revenue and expenditure) - 28.02.2025
A2: =desc -> Description | B2: =head27 -> Ref | C2: =Head2 -> Budget Year 2024/25 | L2: =Head10 -> Budget Year +1 2025/26 | M2: =Head11 -> Budget Year +2 2026/27
C3: =Head6 -> Original Budget | D3: =Head54 -> Prior Adjusted | E3: =Head51 -> Accum. Funds | F3: =Head52 -> Multi-year capital | G3: =Head53 -> Unfore. Unavoid. | H3: =Head55 -> Nat. or Prov. Govt | I3: =Head50 -> Other Adjusts. | J3: =Head56 -> Total Adjusts. | K3: =Head7 -> Adjusted Budget | L3: =Head7 -> Adjusted Budget | M3: =Head7 -> Adjusted Budget
D4: 3 | E4: 4 | F4: 5 | G4: 6 | H4: 7 | I4: 8 | J4: 9 | K4: 10
A5: R thousands | B5: 1 | C5: A | D5: A1 | E5: B | F5: C | G5: D | H5: E | I5: F | J5: G | K5: H
A6: Revenue By Source
A7: Exchange Revenue
A8: Service charges - Electricity | B8: 2 | C8: ='SB1'!C18 -> 4297825065 | D8: ='SB1'!D18 -> 0 | E8: ='SB1'!E18 -> 0 | F8: ='SB1'!F18 -> 0 | G8: ='SB1'!G18 -> 0 | H8: ='SB1'!H18 -> 0 | I8: ='SB1'!I18 -> -73467095.13 | J8: =SUM(E8:I8) -> -73467095.13 | K8: =IF(D8=0,C8+J8,D8+J8) -> 4224357970 | L8: ='SB1'!L18 -> 5115198800 | M8: ='SB1'!M18 -> 6087086572
A9: Service charges - Water | B9: 2 | C9: ='SB1'!C24 -> 1009760082 | D9: ='SB1'!D24 -> 0 | E9: ='SB1'!E24 -> 0 | F9: ='SB1'!F24 -> 0 | G9: ='SB1'!G24 -> 0 | H9: ='SB1'!H24 -> 0 | I9: ='SB1'!I24 -> 0 | J9: 0 | K9: 1009760082 | L9: ='SB1'!L24 -> 1056209046 | M9: ='SB1'!M24 -> 1103738453
A10: Service charges - Waste Water Management | B10: 2 | C10: ='SB1'!C30 -> 220724860.4 | D10: ='SB1'!D30 -> 0 | E10: ='SB1'!E30 -> 0 | F10: ='SB1'!F30 -> 0 | G10: ='SB1'!G30 -> 0 | H10: ='SB1'!H30 -> 0 | I10: ='SB1'!I30 -> 0 | J10: 0 | K10: 220724860.4 | L10: ='SB1'!L30 -> 230878204 | M10: ='SB1'!M30 -> 241267723.2
A11: Service charges - Waste Management | B11: 2 | C11: ='SB1'!C37 -> 155390776.9 | D11: ='SB1'!D37 -> 0 | E11: ='SB1'!E37 -> 0 | F11: ='SB1'!F37 -> 0 | G11: ='SB1'!G37 -> 0 | H11: ='SB1'!H37 -> 0 | I11: ='SB1'!I37 -> 0 | J11: 0 | K11: 155390776.9 | L11: ='SB1'!L37 -> 162538752.7 | M11: ='SB1'!M37 -> 169852996.5
A12: Sale of Goods and Rendering of Services | C12: 42042838 | J12: 0 | K12: 42042838 | L12: 43976810 | M12: 45955765
A13: Agency services | C13: 764825.6424 | J13: 0 | K13: 764825.6424 | L13: 800007.622 | M13: 836007.9649
A14: Interest | C14: 19135146.8 | J14: 0 | K14: 19135146.8 | L14: 20015363.55 | M14: 20916054.91
A15: Interest earned from Receivables | C15: 230681790 | J15: 0 | K15: 230681790 | L15: 241293152 | M15: 252151344
A16: Interest earned from Current and Non Current Assets | C16: 59562303 | J16: 0 | K16: 59562303 | L16: 62302169 | M16: 65105767
A17: Dividends | J17: 0 | K17: 0
A18: Rent on Land | J18: 0 | K18: 0
A19: Rental from Fixed Assets | C19: 113961628.7 | J19: 0 | K19: 113961628.7 | L19: 119203863.6 | M19: 124568037.5
A20: Licence and permits | J20: 0 | K20: 0
A21: Operational Revenue | C21: 204124220 | J21: 0 | K21: 204124220 | L21: 213513935 | M21: 223122061
A22: Non-Exchange Revenue
A23: Property rates | B23: 2 | C23: ='SB1'!C11 -> 1649352521 | D23: ='SB1'!D11 -> 0 | E23: ='SB1'!E11 -> 0 | F23: ='SB1'!F11 -> 0 | G23: ='SB1'!G11 -> 0 | H23: ='SB1'!H11 -> 0 | I23: ='SB1'!I11 -> -58.6400001 | J23: ='SB1'!J11 -> -58.6400001 | K23: ='SB1'!K11 -> 1649352462 | L23: ='SB1'!L11 -> 1725222737 | M23: ='SB1'!M11 -> 1802857760
A24: Surcharges and Taxes | J24: =SUM(E24:I24) -> 0 | K24: =IF(D24=0,C24+J24,D24+J24) -> 0
A25: Fines, penalties and forfeits | C25: 11687216.86 | J25: =SUM(E25:I25) -> 0 | K25: =IF(D25=0,C25+J25,D25+J25) -> 11687216.86 | L25: 12224828.84 | M25: 12640473.02
A26: Licences or permits | C26: 2546799 | I26: 0.7000000002 | J26: 0.7000000002 | K26: 2546799.7 | L26: 2663953 | M26: 2783830
A27: Transfer and subsidies - Operational | C27: 946343150 | H27: 650000 | I27: 61758585.55 | J27: 62408585.55 | K27: 1008751736 | L27: 950217863 | M27: 1017329110
A28: Interest | J28: 0 | K28: 0
A29: Fuel Levy | J29: 0 | K29: 0
A30: Operational Revenue | J30: 0 | K30: 0
A31: Gains on disposal of Assets | J31: 0 | K31: 0
A32: Other Gains | J32: 0 | K32: 0
A33: Discontinued Operations | J33: =SUM(E33:I33) -> 0 | K33: =IF(D33=0,C33+J33,D33+J33) -> 0
A34: Total Revenue (excluding capital transfers and contributions) | C34: =SUM(C8:C33) -> 8963903223 | D34: =SUM(D8:D33) -> 0 | E34: 0 | F34: 0 | G34: 0 | H34: 650000 | I34: -11708567.52 | J34: -11058567.52 | K34: 8952844656 | L34: 9956259485 | M34: 1.117021196e+10
A36: Expenditure By Type
A37: Employee related costs | C37: ='SB1'!C62 -> 1860538235 | D37: ='SB1'!D62 -> 0 | E37: ='SB1'!E62 -> 0 | F37: ='SB1'!F62 -> 0 | G37: ='SB1'!G62 -> 0 | H37: ='SB1'!H62 -> 0 | I37: ='SB1'!I62 -> -45175187.63 | J37: =SUM(E37:I37) -> -45175187.63 | K37: =IF(D37=0,C37+J37,D37+J37) -> 1815363047 | L37: 1932272500 | M37: 2020335650
A38: Remuneration of councillors | C38: 66461931.11 | J38: 0 | K38: 66461931.11 | L38: 69519179.94 | M38: 72647543.04
A39: Bulk purchases - electricity | C39: =+'SB1'!C83 -> 3145118900 | D39: =+'SB1'!D83 -> 0 | E39: =+'SB1'!E83 -> 0 | F39: =+'SB1'!F83 -> 0 | G39: =+'SB1'!G83 -> 0 | H39: =+'SB1'!H83 -> 0 | I39: =+'SB1'!I83 -> 0 | J39: 0 | K39: 3145118900 | L39: 3638902567 | M39: 4210210270
A40: Inventory consumed | C40: ='SB1'!C136 -> 993409214.4 | D40: ='SB1'!D136 -> 0 | E40: ='SB1'!E136 -> 0 | F40: ='SB1'!F136 -> 0 | G40: ='SB1'!G136 -> 0 | H40: ='SB1'!H136 -> 0 | I40: ='SB1'!I136 -> -30287035.99 | J40: -30287035.99 | K40: 963122178.4 | L40: 1033519715 | M40: 1097025092
A41: Debt impairment | C41: 636000000 | J41: 0 | K41: 636000000 | L41: 665256000 | M41: 695192520
A42: Depreciation and amortisation | C42: 363040744.5 | I42: 26500000.01 | J42: =SUM(E42:I42) -> 26500000.01 | K42: =IF(D42=0,C42+J42,D42+J42) -> 389540744.5 | L42: 350663304.6 | M42: 346604560.9
A43: Interest | C43: 42824930.71 | J43: =SUM(E43:I43) -> 0 | K43: =IF(D43=0,C43+J43,D43+J43) -> 42824930.71 | L43: 44794877.52 | M43: 46810647.01
A44: Contracted services | C44: ='SB1'!C94 -> 1024663415 | D44: ='SB1'!D94 -> 0 | E44: ='SB1'!E94 -> 0 | F44: ='SB1'!F94 -> 0 | G44: ='SB1'!G94 -> 0 | H44: ='SB1'!H94 -> 0 | I44: ='SB1'!I94 -> -48692351.68 | J44: -48692351.68 | K44: 975971063.1 | L44: 1105397115 | M44: 1179649748
A45: Transfers and subsidies | C45: 52375752.46 | J45: 0 | K45: 52375752.46 | L45: 54771352.54 | M45: 57097535.64
A46: Irrecoverable debts written off | J46: =SUM(E46:I46) -> 0 | K46: =IF(D46=0,C46+J46,D46+J46) -> 0
A47: Operational costs | C47: 195836780 | I47: 16047526.13 | J47: =SUM(E47:I47) -> 16047526.13 | K47: =IF(D47=0,C47+J47,D47+J47) -> 211884306.1 | L47: 229924366 | M47: 246233565
A48: Losses on disposal of Assets | J48: =SUM(E48:I48) -> 0 | K48: =IF(D48=0,C48+J48,D48+J48) -> 0
A49: Other Losses | J49: =SUM(E49:I49) -> 0 | K49: =IF(D49=0,C49+J49,D49+J49) -> 0
A50: Total Expenditure | C50: =SUM(C37:C49) -> 8380269902 | D50: 0 | E50: 0 | F50: 0 | G50: 0 | H50: 0 | I50: -81607049.17 | J50: -81607049.17 | K50: 8298662853 | L50: 9125020978 | M50: 9971807132
A52: Surplus/(Deficit) | C52: =C34-C50 -> 583633320.9 | D52: 0 | E52: 0 | F52: 0 | G52: 0 | H52: 650000 | I52: 69898481.65 | J52: 70548481.65 | K52: 654181802.5 | L52: 831238507 | M52: 1198404823
A53: Transfers and subsidies - capital (monetary allocations) | C53: 456974891 | I53: 20951082.48 | J53: =SUM(E53:I53) -> 20951082.48 | K53: =IF(D53=0,C53+J53,D53+J53) -> 477925973.5 | L53: 389974938 | M53: 473992600
A54: Transfers and subsidies - capital (in-kind - all) | J54: =SUM(E54:I54) -> 0 | K54: =IF(D54=0,C54+J54,D54+J54) -> 0
A55: Surplus/(Deficit) before taxation | C55: =SUM(C52:C54) -> 1040608212 | D55: 0 | E55: 0 | F55: 0 | G55: 0 | H55: 650000 | I55: 90849564.13 | J55: 91499564.13 | K55: 1132107776 | L55: 1221213445 | M55: 1672397423
A56: Income Tax | J56: =SUM(E56:I56) -> 0 | K56: =IF(D56=0,C56+J56,D56+J56) -> 0
A57: Surplus/(Deficit) after taxation | C57: =C55-C56 -> 1040608212 | D57: 0 | E57: 0 | F57: 0 | G57: 0 | H57: 650000 | I57: 90849564.13 | J57: 91499564.13 | K57: 1132107776 | L57: 1221213445 | M57: 1672397423
A58: Share of Surplus/Deficit attributable to Joint Venture
A59: Share of Surplus/Deficit attributable to Minorities | J59: =SUM(E59:I59) -> 0 | K59: =IF(D59=0,C59+J59,D59+J59) -> 0
A60: Surplus/(Deficit) attributable to municipality | C60: =SUM(C57:C59) -> 1040608212 | D60: 0 | E60: 0 | F60: 0 | G60: 0 | H60: 650000 | I60: 90849564.13 | J60: 91499564.13 | K60: 1132107776 | L60: 1221213445 | M60: 1672397423
A61: Share of Surplus/Deficit attributable to Associate | J61: =SUM(E61:I61) -> 0 | K61: =IF(D61=0,C61+J61,D61+J61) -> 0
A62: Intercompany/Parent subsidiary transactions | J62: =SUM(E62:I62) -> 0 | K62: =IF(D62=0,C62+J62,D62+J62) -> 0
A63: Surplus/ (Deficit) for the year | B63: 1 | C63: =SUM(C60:C62) -> 1040608212 | D63: =D60+D62 -> 0 | E63: 0 | F63: =SUM(F60:F62) -> 0 | G63: =SUM(G60:G62) -> 0 | H63: 650000 | I63: 90849564.13 | J63: 91499564.13 | K63: 1132107776 | L63: 1221213445 | M63: 1672397423
A64: =head27a -> References
A65: 1. Classifications are revenue sources and expenditure type
A66: 2. Detail to be provided in Table SB1
A67: 3. Only complete if a previous adjusted budget has been approved in the same financial year. Reflect most recent adjusted budget.
A68: 4. Additional cash-backed accumulated funds/unspent funds (MFMA section 18(1)(b) and section 28(2)(e)) identified after the Original Budget approved and after annual financial statements audited (note: only where underspending could not reasonably have been foreseen)
A69: 5. Increases of funds approved under MFMA section 31
A70: 6. Adjustments approved in accordance with MFMA section 29
A71: 7. Adjustments to transfers from National or Provincial Government
A72: 8. Adjusts. = 'Other' Adjustments proposed to be approved; including revenue under-collection (MFMA section 28(2)(a)); additional revenue appropriation on existing programmes (section 28(2))(b); projected savings (section 28(2)(d)); error correction (section 28(2)(f))
A73: 9. G = B + C + D + E + F
A74: 10. Adjusted Budget H = (A or A1/2 etc) + G

Sheet B5-Capex
A1: =muni&" - "&_ADJ5&" - "&Date -> Choose name from list - Table B5 Adjustments Capital Expenditure Budget by vote and funding - 28.02.2025
A2: =desc -> Description | B2: =head27 -> Ref | C2: =Head2 -> Budget Year 2024/25 | L2: =Head10 -> Budget Year +1 2025/26 | M2: =Head11 -> Budget Year +2 2026/27
C3: =Head6 -> Original Budget | D3: =Head54 -> Prior Adjusted | E3: =Head51 -> Accum. Funds | F3: =Head52 -> Multi-year capital | G3: =Head53 -> Unfore. Unavoid. | H3: =Head55 -> Nat. or Prov. Govt | I3: =Head50 -> Other Adjusts. | J3: =Head56 -> Total Adjusts. | K3: =Head7 -> Adjusted Budget | L3: =Head7 -> Adjusted Budget | M3: =Head7 -> Adjusted Budget
D4: 5 | E4: 6 | F4: 7 | G4: 8 | H4: 9 | I4: 10 | J4: 11 | K4: 12
A5: R thousands | C5: A | D5: A1 | E5: B | F5: C | G5: D | H5: E | I5: F | J5: G | K5: H
A6: Capital expenditure - Vote
A7: Multi-year expenditure to be adjusted | B7: 2
A8: =B5B!A8 -> Vote 1 - City Manager | C8: =B5B!C8 -> 37445000.58 | D8: =B5B!D8 -> 0 | E8: =B5B!E8 -> 0 | F8: =B5B!F8 -> 0 | G8: =B5B!G8 -> 0 | H8: =B5B!H8 -> 0 | I8: =B5B!I8 -> -36595000.58 | J8: =SUM(E8:I8) -> -36595000.58 | K8: =IF(D8=0,C8+J8,D8+J8) -> 850000 | L8: =B5B!L8 -> 40761418 | M8: =B5B!M8 -> 41154126
A9: =B5B!A19 -> Vote 2 - City Finance | C9: =B5B!C19 -> 25000000 | D9: =B5B!D19 -> 0 | E9: =B5B!E19 -> 0 | F9: =B5B!F19 -> 0 | G9: =B5B!G19 -> 0 | H9: =B5B!H19 -> 0 | I9: =B5B!I19 -> 0 | J9: =SUM(E9:I9) -> 0 | K9: 25000000 | L9: =B5B!L19 -> 26125000 | M9: =B5B!M19 -> 26677875
A10: =B5B!A30 -> Vote 3 - Corporate Services | C10: =B5B!C30 -> 6585000 | D10: =B5B!D30 -> 0 | E10: =B5B!E30 -> 0 | F10: =B5B!F30 -> 0 | G10: =B5B!G30 -> 0 | H10: =B5B!H30 -> 0 | I10: =B5B!I30 -> 250000 | J10: 250000 | K10: 6835000 | L10: =B5B!L30 -> 8714000 | M10: =B5B!M30 -> 8000000
A11: =B5B!A41 -> Vote 4 - Community Services and Social Equity | C11: =B5B!C41 -> 42142711.2 | D11: =B5B!D41 -> 0 | E11: =B5B!E41 -> 0 | F11: =B5B!F41 -> 0 | G11: =B5B!G41 -> 0 | H11: =B5B!H41 -> 0 | I11: =B5B!I41 -> -7542031.12 | J11: -7542031.12 | K11: 34600680.08 | L11: =B5B!L41 -> 45728706.64 | M11: =B5B!M41 -> 48042448.56
A12: =B5B!A52 -> Vote 5 - Infrastructure Services | C12: =B5B!C52 -> 284463597.6 | D12: =B5B!D52 -> 0 | E12: =B5B!E52 -> 0 | F12: =B5B!F52 -> 0 | G12: =B5B!G52 -> 0 | H12: =B5B!H52 -> 0 | I12: =B5B!I52 -> 64624189.37 | J12: 64624189.37 | K12: 349087786.9 | L12: =B5B!L52 -> 331647914.4 | M12: =B5B!M52 -> 388918928.5
A13: =B5B!A63 -> Vote 6 - Sustainable Development and City Enterprises | C13: =B5B!C63 -> 153598529.7 | D13: =B5B!D63 -> 0 | E13: =B5B!E63 -> 0 | F13: =B5B!F63 -> 0 | G13: =B5B!G63 -> 0 | H13: =B5B!H63 -> 0 | I13: =B5B!I63 -> 1563311.5 | J13: 1563311.5 | K13: 155161841.2 | L13: =B5B!L63 -> 33421180.73 | M13: =B5B!M63 -> 53501810.95
A14: =B5B!A74 -> Vote 7 - Electricity | C14: =B5B!C74 -> 237331051.4 | D14: =B5B!D74 -> 0 | E14: =B5B!E74 -> 0 | F14: =B5B!F74 -> 0 | G14: =B5B!G74 -> 0 | H14: =B5B!H74 -> 0 | I14: =B5B!I74 -> 38526804.58 | J14: 38526804.58 | K14: 275857856 | L14: =B5B!L74 -> 23576718.2 | M14: =B5B!M74 -> 27697411.98
A15: =B5B!A85 -> Vote 8 - [NAME OF VOTE 8] | C15: =B5B!C85 -> 0 | D15: =B5B!D85 -> 0 | E15: =B5B!E85 -> 0 | F15: =B5B!F85 -> 0 | G15: =B5B!G85 -> 0 | H15: =B5B!H85 -> 0 | I15: =B5B!I85 -> 0 | J15: 0 | K15: 0 | L15: =B5B!L85 -> 0 | M15: =B5B!M85 -> 0
A16: =B5B!A96 -> Vote 9 - [NAME OF VOTE 9] | C16: =B5B!C96 -> 0 | D16: =B5B!D96 -> 0 | E16: =B5B!E96 -> 0 | F16: =B5B!F96 -> 0 | G16: =B5B!G96 -> 0 | H16: =B5B!H96 -> 0 | I16: =B5B!I96 -> 0 | J16: 0 | K16: 0 | L16: =B5B!L96 -> 0 | M16: =B5B!M96 -> 0
A17: =B5B!A107 -> Vote 10 - [NAME OF VOTE 10] | C17: =B5B!C107 -> 0 | D17: =B5B!D107 -> 0 | E17: =B5B!E107 -> 0 | F17: =B5B!F107 -> 0 | G17: =B5B!G107 -> 0 | H17: =B5B!H107 -> 0 | I17: =B5B!I107 -> 0 | J17: 0 | K17: 0 | L17: =B5B!L107 -> 0 | M17: =B5B!M107 -> 0
A18: =B5B!A118 -> Vote 11 - [NAME OF VOTE 11] | C18: =B5B!C118 -> 0 | D18: =B5B!D118 -> 0 | E18: =B5B!E118 -> 0 | F18: =B5B!F118 -> 0 | G18: =B5B!G118 -> 0 | H18: =B5B!H118 -> 0 | I18: =B5B!I118 -> 0 | J18: 0 | K18: 0 | L18: =B5B!L118 -> 0 | M18: =B5B!M118 -> 0
A19: =B5B!A129 -> Vote 12 - [NAME OF VOTE 12] | C19: =B5B!C129 -> 0 | D19: =B5B!D129 -> 0 | E19: =B5B!E129 -> 0 | F19: =B5B!F129 -> 0 | G19: =B5B!G129 -> 0 | H19: =B5B!H129 -> 0 | I19: =B5B!I129 -> 0 | J19: 0 | K19: 0 | L19: =B5B!L129 -> 0 | M19: =B5B!M129 -> 0
A20: =B5B!A140 -> Vote 13 - [NAME OF VOTE 13] | C20: =B5B!C140 -> 0 | D20: =B5B!D140 -> 0 | E20: =B5B!E140 -> 0 | F20: =B5B!F140 -> 0 | G20: =B5B!G140 -> 0 | H20: =B5B!H140 -> 0 | I20: =B5B!I140 -> 0 | J20: 0 | K20: 0 | L20: =B5B!L140 -> 0 | M20: =B5B!M140 -> 0
A21: =B5B!A151 -> Vote 14 - [NAME OF VOTE 14] | C21: =B5B!C151 -> 0 | D21: =B5B!D151 -> 0 | E21: =B5B!E151 -> 0 | F21: =B5B!F151 -> 0 | G21: =B5B!G151 -> 0 | H21: =B5B!H151 -> 0 | I21: =B5B!I151 -> 0 | J21: 0 | K21: 0 | L21: =B5B!L151 -> 0 | M21: =B5B!M151 -> 0
A22: =B5B!A162 -> Vote 15 - [NAME OF VOTE 15] | C22: =B5B!C162 -> 0 | D22: =B5B!D162 -> 0 | E22: =B5B!E162 -> 0 | F22: =B5B!F162 -> 0 | G22: =B5B!G162 -> 0 | H22: =B5B!H162 -> 0 | I22: =B5B!I162 -> 0 | J22: 0 | K22: 0 | L22: =B5B!L162 -> 0 | M22: =B5B!M162 -> 0
A23: Capital multi-year expenditure sub-total | B23: 3 | C23: =SUM(C8:C22) -> 786565890.4 | D23: =SUM(D8:D22) -> 0 | E23: 0 | F23: 0 | G23: 0 | H23: 0 | I23: 60827273.75 | J23: =SUM(J8:J22) -> 60827273.75 | K23: =SUM(K8:K22) -> 847393164.2 | L23: =SUM(L8:L22) -> 509974938 | M23: =SUM(M8:M22) -> 593992601
A25: Single-year expenditure to be adjusted | B25: 2
A26: =B5B!A177 -> Vote 1 - City Manager | C26: =B5B!C177 -> 5000000 | D26: =B5B!D177 -> 0 | E26: =B5B!E177 -> 0 | F26: =B5B!F177 -> 0 | G26: =B5B!G177 -> 0 | H26: =B5B!H177 -> 0 | I26: =B5B!I177 -> 1400000 | J26: =SUM(E26:I26) -> 1400000 | K26: =IF(D26=0,C26+J26,D26+J26) -> 6400000 | L26: =B5B!L177 -> 0 | M26: =B5B!M177 -> 0
A27: =B5B!A188 -> Vote 2 - City Finance | C27: =B5B!C188 -> 0 | D27: =B5B!D188 -> 0 | E27: =B5B!E188 -> 0 | F27: =B5B!F188 -> 0 | G27: =B5B!G188 -> 0 | H27: =B5B!H188 -> 0 | I27: =B5B!I188 -> 1300000 | J27: 1300000 | K27: 1300000 | L27: =B5B!L188 -> 0 | M27: =B5B!M188 -> 0
A28: =B5B!A199 -> Vote 3 - Corporate Services | C28: =B5B!C199 -> 7615000 | D28: =B5B!D199 -> 0 | E28: =B5B!E199 -> 0 | F28: =B5B!F199 -> 0 | G28: =B5B!G199 -> 0 | H28: =B5B!H199 -> 0 | I28: =B5B!I199 -> 4255822 | J28: 4255822 | K28: 11870822 | L28: =B5B!L199 -> 0 | M28: =B5B!M199 -> 0
A29: =B5B!A210 -> Vote 4 - Community Services and Social Equity | C29: =B5B!C210 -> 8690000 | D29: =B5B!D210 -> 0 | E29: =B5B!E210 -> 0 | F29: =B5B!F210 -> 0 | G29: =B5B!G210 -> 0 | H29: =B5B!H210 -> 0 | I29: =B5B!I210 -> 400000 | J29: 400000 | K29: 9090000 | L29: =B5B!L210 -> 0 | M29: =B5B!M210 -> 0
A30: =B5B!A221 -> Vote 5 - Infrastructure Services | C30: =B5B!C221 -> 10000000 | D30: =B5B!D221 -> 0 | E30: =B5B!E221 -> 0 | F30: =B5B!F221 -> 0 | G30: =B5B!G221 -> 0 | H30: =B5B!H221 -> 0 | I30: =B5B!I221 -> 92413 | J30: 92413 | K30: 10092413 | L30: =B5B!L221 -> 831999.795 | M30: =B5B!M221 -> 865279
A31: =B5B!A232 -> Vote 6 - Sustainable Development and City Enterprises | C31: =B5B!C232 -> 4893050 | D31: =B5B!D232 -> 0 | E31: =B5B!E232 -> 0 | F31: =B5B!F232 -> 0 | G31: =B5B!G232 -> 0 | H31: =B5B!H232 -> 0 | I31: =B5B!I232 -> -2390653.78 | J31: -2390653.78 | K31: 2502396.22 | L31: =B5B!L232 -> 0 | M31: =B5B!M232 -> 0
A32: =B5B!A243 -> Vote 7 - Electricity | C32: =B5B!C243 -> 4000000 | D32: =B5B!D243 -> 0 | E32: =B5B!E243 -> 0 | F32: =B5B!F243 -> 0 | G32: =B5B!G243 -> 0 | H32: =B5B!H243 -> 0 | I32: =B5B!I243 -> 1600000 | J32: 1600000 | K32: 5600000 | L32: =B5B!L243 -> 0 | M32: =B5B!M243 -> 0
A33: =B5B!A254 -> Vote 8 - [NAME OF VOTE 8] | C33: =B5B!C254 -> 0 | D33: =B5B!D254 -> 0 | E33: =B5B!E254 -> 0 | F33: =B5B!F254 -> 0 | G33: =B5B!G254 -> 0 | H33: =B5B!H254 -> 0 | I33: =B5B!I254 -> 0 | J33: 0 | K33: 0 | L33: =B5B!L254 -> 0 | M33: =B5B!M254 -> 0
A34: =B5B!A265 -> Vote 9 - [NAME OF VOTE 9] | C34: =B5B!C265 -> 0 | D34: =B5B!D265 -> 0 | E34: =B5B!E265 -> 0 | F34: =B5B!F265 -> 0 | G34: =B5B!G265 -> 0 | H34: =B5B!H265 -> 0 | I34: =B5B!I265 -> 0 | J34: 0 | K34: 0 | L34: =B5B!L265 -> 0 | M34: =B5B!M265 -> 0
A35: =B5B!A276 -> Vote 10 - [NAME OF VOTE 10] | C35: =B5B!C276 -> 0 | D35: =B5B!D276 -> 0 | E35: =B5B!E276 -> 0 | F35: =B5B!F276 -> 0 | G35: =B5B!G276 -> 0 | H35: =B5B!H276 -> 0 | I35: =B5B!I276 -> 0 | J35: 0 | K35: 0 | L35: =B5B!L276 -> 0 | M35: =B5B!M276 -> 0
A36: =B5B!A287 -> Vote 11 - [NAME OF VOTE 11] | C36: =B5B!C287 -> 0 | D36: =B5B!D287 -> 0 | E36: =B5B!E287 -> 0 | F36: =B5B!F287 -> 0 | G36: =B5B!G287 -> 0 | H36: =B5B!H287 -> 0 | I36: =B5B!I287 -> 0 | J36: 0 | K36: 0 | L36: =B5B!L287 -> 0 | M36: =B5B!M287 -> 0
A37: =B5B!A298 -> Vote 12 - [NAME OF VOTE 12] | C37: =B5B!C298 -> 0 | D37: =B5B!D298 -> 0 | E37: =B5B!E298 -> 0 | F37: =B5B!F298 -> 0 | G37: =B5B!G298 -> 0 | H37: =B5B!H298 -> 0 | I37: =B5B!I298 -> 0 | J37: 0 | K37: =IF(D37=0,C37+J37,D37+J37) -> 0 | L37: =B5B!L298 -> 0 | M37: =B5B!M298 -> 0
A38: =B5B!A309 -> Vote 13 - [NAME OF VOTE 13] | C38: =B5B!C309 -> 0 | D38: =B5B!D309 -> 0 | E38: =B5B!E309 -> 0 | F38: =B5B!F309 -> 0 | G38: =B5B!G309 -> 0 | H38: =B5B!H309 -> 0 | I38: =B5B!I309 -> 0 | J38: 0 | K38: 0 | L38: =B5B!L309 -> 0 | M38: =B5B!M309 -> 0
A39: =B5B!A320 -> Vote 14 - [NAME OF VOTE 14] | C39: =B5B!C320 -> 0 | D39: =B5B!D320 -> 0 | E39: =B5B!E320 -> 0 | F39: =B5B!F320 -> 0 | G39: =B5B!G320 -> 0 | H39: =B5B!H320 -> 0 | I39: =B5B!I320 -> 0 | J39: 0 | K39: 0 | L39: =B5B!L320 -> 0 | M39: =B5B!M320 -> 0
A40: =B5B!A331 -> Vote 15 - [NAME OF VOTE 15] | C40: =B5B!C331 -> 0 | D40: =B5B!D331 -> 0 | E40: =B5B!E331 -> 0 | F40: =B5B!F331 -> 0 | G40: =B5B!G331 -> 0 | H40: =B5B!H331 -> 0 | I40: =B5B!I331 -> 0 | J40: 0 | K40: 0 | L40: =B5B!L331 -> 0 | M40: =B5B!M331 -> 0
A41: Capital single-year expenditure sub-total | C41: =SUM(C26:C40) -> 40198050 | D41: =SUM(D26:D40) -> 0 | E41: 0 | F41: 0 | G41: 0 | H41: 0 | I41: 6657581.22 | J41: =SUM(J26:J40) -> 6657581.22 | K41: =SUM(K26:K40) -> 46855631.22 | L41: =SUM(L26:L40) -> 831999.795 | M41: =SUM(M26:M40) -> 865279
A42: Total Capital Expenditure - Vote | C42: =C41+C23 -> 826763940.4 | D42: =D41+D23 -> 0 | E42: 0 | F42: 0 | G42: 0 | H42: 0 | I42: 67484854.97 | J42: =J23+J41 -> 67484854.97 | K42: =K23+K41 -> 894248795.4 | L42: =L41+L23 -> 510806937.8 | M42: =M41+M23 -> 594857880
A44: Capital Expenditure - Functional
A45: Governance and administration | C45: =SUM(C46:C48) -> 45300000 | D45: 0 | E45: 0 | F45: 0 | G45: 0 | H45: 0 | I45: 12648235 | J45: =SUM(J46:J48) -> 12648235 | K45: 57948235 | L45: 45742000 | M45: 42514030
A46: Executive and council | C46: 5100000 | I46: 2550000 | J46: =SUM(E46:I46) -> 2550000 | K46: =IF(D46=0,C46+J46,D46+J46) -> 7650000 | L46: 3110000 | M46: 1590500
A47: Finance and administration | C47: 40200000 | I47: 10098235 | J47: =SUM(E47:I47) -> 10098235 | K47: =IF(D47=0,C47+J47,D47+J47) -> 50298235 | L47: 42632000 | M47: 40923530
A48: Internal audit | C48: 0 | J48: =SUM(E48:I48) -> 0 | K48: =IF(D48=0,C48+J48,D48+J48) -> 0 | L48: 0 | M48: 0
A49: Community and public safety | C49: =SUM(C50:C54) -> 168351240.9 | D49: 0 | E49: 0 | F49: 0 | G49: 0 | H49: 0 | I49: -19057337.62 | J49: =SUM(J50:J54) -> -19057337.62 | K49: 149293903.2 | L49: 52030305.16 | M49: 58022259.51
A50: Community and social services | C50: 24745151.2 | I50: -7775031.12 | J50: =SUM(E50:I50) -> -7775031.12 | K50: =IF(D50=0,C50+J50,D50+J50) -> 16970120.08 | L50: 38913764.44 | M50: 44139898.56
A51: Sport and recreation | C51: 11932560 | I51: 233000 | J51: =SUM(E51:I51) -> 233000 | K51: =IF(D51=0,C51+J51,D51+J51) -> 12165560 | L51: 9168360 | M51: 10375550
A52: Public safety | C52: 2100000 | J52: =SUM(E52:I52) -> 0 | K52: =IF(D52=0,C52+J52,D52+J52) -> 2100000 | L52: 2270000 | M52: 1740000
A53: Housing | C53: 129573529.7 | I53: -11515306.5 | J53: =SUM(E53:I53) -> -11515306.5 | K53: =IF(D53=0,C53+J53,D53+J53) -> 118058223.2 | L53: 1678180.73 | M53: 1766810.95
A54: Health | C54: 0 | J54: =SUM(E54:I54) -> 0 | K54: =IF(D54=0,C54+J54,D54+J54) -> 0
A55: Economic and environmental services | C55: =SUM(C56:C58) -> 139974463.2 | D55: 0 | E55: 0 | F55: 0 | G55: 0 | H55: 0 | I55: 67708008.19 | J55: 67708008.19 | K55: 207682471.4 | L55: 167631920 | M55: 221337800
A56: Planning and development | C56: 23150000 | I56: 13441014.22 | J56: =SUM(E56:I56) -> 13441014.22 | K56: =IF(D56=0,C56+J56,D56+J56) -> 36591014.22 | L56: 30000000 | M56: 50000000
A57: Road transport | C57: 116824463.2 | I57: 54266993.97 | J57: =SUM(E57:I57) -> 54266993.97 | K57: =IF(D57=0,C57+J57,D57+J57) -> 171091457.1 | L57: 137631920 | M57: 171337800
A58: Environmental protection | C58: 0 | J58: =SUM(E58:I58) -> 0 | K58: =IF(D58=0,C58+J58,D58+J58) -> 0 | L58: 0 | M58: 0
A59: Trading services | C59: =SUM(C60:C63) -> 467535186.4 | D59: =SUM(D60:D63) -> 0 | E59: 0 | F59: 0 | G59: 0 | H59: 0 | I59: =SUM(I60:I63) -> 8938999.4 | J59: =SUM(J60:J63) -> 8938999.4 | K59: 476474185.8 | L59: 243402712.6 | M59: 270983790.5
A60: Energy sources | C60: 260053551.7 | I60: 21404304.29 | J60: =SUM(E60:I60) -> 21404304.29 | K60: =IF(D60=0,C60+J60,D60+J60) -> 281457856 | L60: 23576718.2 | M60: 27697411.98
A61: Water management | C61: 100375000 | I61: -18117003 | J61: =SUM(E61:I61) -> -18117003 | K61: =IF(D61=0,C61+J61,D61+J61) -> 82257997 | L61: 83360896.25 | M61: 113956850
A62: Waste water management | C62: 97046634.7 | I62: 5651698.11 | J62: =SUM(E62:I62) -> 5651698.11 | K62: =IF(D62=0,C62+J62,D62+J62) -> 102698332.8 | L62: 121815098.2 | M62: 114007028.5
A63: Waste management | C63: 10060000 | J63: =SUM(E63:I63) -> 0 | K63: =IF(D63=0,C63+J63,D63+J63) -> 10060000 | L63: 14650000 | M63: 15322500
A64: Other | C64: 2850000 | J64: =SUM(E64:I64) -> 0 | K64: =IF(D64=0,C64+J64,D64+J64) -> 2850000 | L64: 2000000 | M64: 2000000
A65: Total Capital Expenditure - Functional | B65: 3 | C65: =C45+C49+C55+C59+C64 -> 824010890.4 | D65: =D45+D49+D55+D59+D64 -> 0 | E65: 0 | F65: 0 | G65: 0 | H65: 0 | I65: =I45+I49+I55+I59+I64 -> 70237904.97 | J65: 70237904.97 | K65: 894248795.4 | L65: 510806937.8 | M65: 594857880
A67: Funded by:
A68: National Government | C68: 325816919.9 | I68: 16760866.38 | J68: =SUM(E68:I68) -> 16760866.38 | K68: =IF(D68=0,C68+J68,D68+J68) -> 342577786.2 | L68: 372081520 | M68: 455922880
A69: Provincial Government | C69: 131157970.6 | I69: 4190216.594 | J69: =SUM(E69:I69) -> 4190216.594 | K69: =IF(D69=0,C69+J69,D69+J69) -> 135348187.2 | L69: 18725417.79 | M69: 18935000
A70: District Municipality | J70: =SUM(E70:I70) -> 0 | K70: =IF(D70=0,C70+J70,D70+J70) -> 0
A71: Transfers and subsidies - capital (monetary allocations) (Nat / Prov Departm Agencies, Households, Non-profit Institutions, Private Enterprises, Public Corporatons, Higher Educ Institutions) | J71: =SUM(E71:I71) -> 0 | K71: =IF(D71=0,C71+J71,D71+J71) -> 0
A72: Transfers recognised - capital | B72: 4 | C72: =SUM(C68:C71) -> 456974890.5 | D72: 0 | E72: 0 | F72: 0 | G72: 0 | H72: 0 | I72: 20951082.97 | J72: 20951082.97 | K72: 477925973.5 | L72: 390806937.8 | M72: 474857880
A74: Borrowing | C74: 234315856 | J74: =SUM(E74:I74) -> 0 | K74: =IF(D74=0,C74+J74,D74+J74) -> 234315856
A75: Internally generated funds | C75: 135473193.9 | I75: 46533772 | J75: =SUM(E75:I75) -> 46533772 | K75: =IF(D75=0,C75+J75,D75+J75) -> 182006965.9 | L75: 120000000 | M75: 120000000
A76: Total Capital Funding | C76: =+C72+C74+C75 -> 826763940.4 | D76: =+D72+D74+D75 -> 0 | E76: 0 | F76: 0 | G76: 0 | H76: 0 | I76: 67484854.97 | J76: 67484854.97 | K76: 894248795.4 | L76: 510806937.8 | M76: 594857880
A77: =head27a -> References
A78: 1. Municipalities may choose to appropriate for capital expenditure for three years or for one year (if one year appropriation projected expenditure required for yr2 and yr3).
A79: 2. Include capital component of PPP unitary payment. Note that capital transfers are only appropriated to municipalities for the budget year
A80: 3. Capital expenditure by standard classification must reconcile to the appropriations by vote
A81: 4. Must reconcile to supporting table SB7 and to Adjustments Budget Financial Performance (revenue and expenditure)
A82: 5. Only complete if a previous adjusted budget has been approved in the same financial year. Reflect most recent adjusted budget.
A83: 6. Additional cash-backed accumulated funds/unspent funds (MFMA section 18(1)(b) and section 28(2)(e)) identified after the Original Budget approved and after annual financial statements audited (note: only where underspending could not reasonably have been foreseen)
A84: 7. Increases of funds approved under MFMA section 31
A85: 8. Adjustments approved in accordance with MFMA section 29
A86: 9. Adjustments to transfers from National or Provincial Government
A87: 10. Adjusts. = 'Other' Adjustments proposed to be approved; including revenue under-collection (MFMA section 28(2)(a)); additional revenue appropriation on existing programmes (section 28(2))(b); projected savings (section 28(2)(d)); error correction (section 28(2)(f))
A88: 11. G = B + C + D + E + F
A89: 12. Adjusted Budget H = (A or A1/2 etc) + G
A91: check balance | C91: =C65-C76 -> -2753050 | D91: =D65-D76 -> 0 | E91: =E65-E76 -> 0 | H91: =H65-H76 -> 0 | I91: =I65-I76 -> 2753050 | J91: =J65-J76 -> 2753050 | K91: =K65-K76 -> 0 | L91: =L65-L76 -> 0 | M91: =K23-K76 -> -46855631.22

Sheet B5B
A1: =muni&" - "&_ADJ5&" - B"&" - "&Date -> Choose name from list - Table B5 Adjustments Capital Expenditure Budget by vote and funding - B - 28.02.2025
A2: =Vdesc -> Vote Description | B2: =head27 -> Ref | C2: =Head2 -> Budget Year 2024/25 | L2: =Head10 -> Budget Year +1 2025/26 | M2: =Head11 -> Budget Year +2 2026/27
C3: =Head6 -> Original Budget | D3: =Head54 -> Prior Adjusted | E3: =Head51 -> Accum. Funds | F3: =Head52 -> Multi-year capital | G3: =Head53 -> Unfore. Unavoid. | H3: =Head55 -> Nat. or Prov. Govt | I3: =Head50 -> Other Adjusts. | J3: =Head56 -> Total Adjusts. | K3: =Head7 -> Adjusted Budget | L3: =Head7 -> Adjusted Budget | M3: =Head7 -> Adjusted Budget
A4: [Insert departmental structure etc] | D4: 3 | E4: 4 | F4: 5 | G4: 6 | H4: 7 | I4: 8 | J4: 9 | K4: 10
A5: R thousands | C5: A | D5: A1 | E5: B | F5: C | G5: D | H5: E | I5: F | J5: G | K5: H
A6: Capital expenditure - Municipal Vote
A7: Multi-year expenditure appropriation | B7: 2
A8: ='Org structure'!A2 -> Vote 1 - City Manager | C8: =SUM(C9:C18) -> 37445000.58 | D8: =SUM(D9:D18) -> 0 | E8: 0 | F8: 0 | G8: 0 | H8: 0 | I8: -36595000.58 | J8: =SUM(E8:I8) -> -36595000.58 | K8: =IF(D8=0,C8+J8,D8+J8) -> 850000 | L8: =SUM(L9:L18) -> 40761418 | M8: =SUM(M9:M18) -> 41154126
A9: ='Org structure'!E3 -> 1.1 - Internal Audit and Compliance | C9: 37445000.58 | I9: -36595000.58 | J9: -36595000.58 | K9: 850000 | L9: 40761418 | M9: 41154126
A10: ='Org structure'!E4 -> 1.2 - Office of the City Manager | C10: 0 | J10: 0 | K10: 0
A11: ='Org structure'!E5 -> 1.3 - Political Support | C11: 0 | J11: 0 | K11: 0
A12: ='Org structure'!E6 -> 1.4 - Strategic Planning | C12: 0 | J12: 0 | K12: 0
A13: ='Org structure'!E7 -> 0 | J13: 0 | K13: 0
A14: ='Org structure'!E8 -> 0 | J14: 0 | K14: 0
A15: ='Org structure'!E9 -> 0 | J15: 0 | K15: 0
A16: ='Org structure'!E10 -> 0 | J16: 0 | K16: 0
A17: ='Org structure'!E11 -> 0 | J17: 0 | K17: 0
A18: ='Org structure'!E12 -> 0 | J18: 0 | K18: 0
A19: ='Org structure'!A3 -> Vote 2 - City Finance | C19: =SUM(C20:C29) -> 25000000 | D19: =SUM(D20:D29) -> 0 | E19: 0 | F19: 0 | G19: 0 | H19: 0 | I19: 0 | J19: 0 | K19: 25000000 | L19: =SUM(L20:L29) -> 26125000 | M19: =SUM(M20:M29) -> 26677875
A20: ='Org structure'!E14 -> 2.1 - Asset Management | J20: 0 | K20: 0 | L20: 0 | M20: 0
A21: ='Org structure'!E15 -> 2.2 - Budget and Treasury Management | C21: 25000000 | J21: 0 | K21: 25000000 | L21: 26125000 | M21: 26677875
A22: ='Org structure'!E16 -> 2.3 - Expenditure Management | J22: 0 | K22: 0 | L22: 0 | M22: 0
A23: ='Org structure'!E17 -> 2.4 - Revenue Management | J23: 0 | K23: 0 | L23: 0 | M23: 0
A24: ='Org structure'!E18 -> 2.5 - Supply Chain Management | J24: 0 | K24: 0 | L24: 0 | M24: 0
A25: ='Org structure'!E19 -> 0 | J25: 0 | K25: 0
A26: ='Org structure'!E20 -> 0 | J26: 0 | K26: 0
A27: ='Org structure'!E21 -> 0 | J27: 0 | K27: 0
A28: ='Org structure'!E22 -> 0 | J28: 0 | K28: 0
A29: ='Org structure'!E23 -> 0 | J29: 0 | K29: 0
A30: ='Org structure'!A4 -> Vote 3 - Corporate Services | C30: =SUM(C31:C40) -> 6585000 | D30: =SUM(D31:D40) -> 0 | E30: 0 | F30: 0 | G30: 0 | H30: 0 | I30: 250000 | J30: 250000 | K30: 6835000 | L30: =SUM(L31:L40) -> 8714000 | M30: =SUM(M31:M40) -> 8000000
A31: ='Org structure'!E25 -> 3.1 - Human Resources Management | C31: 50000 | I31: 410000 | J31: 410000 | K31: 460000 | L31: 0 | M31: 0
A32: ='Org structure'!E26 -> 3.2 - Information Technology | C32: 6125000 | J32: 0 | K32: 6125000 | L32: 8714000 | M32: 8000000
A33: ='Org structure'!E27 -> 3.3 - Legal Services | C33: 0 | J33: 0 | K33: 0 | L33: 0 | M33: 0
A34: ='Org structure'!E28 -> 3.4 - Secretariat and Auxiliary Services | C34: 400000 | I34: -150000 | J34: -150000 | K34: 250000 | L34: 0 | M34: 0
A35: ='Org structure'!E29 -> 3.5 - General Manager: Corporate Service | C35: 10000 | I35: -10000 | J35: -10000 | K35: 0 | L35: 0 | M35: 0
A36: ='Org structure'!E30 -> 0 | J36: 0 | K36: 0
A37: ='Org structure'!E31 -> 0 | J37: 0 | K37: 0
A38: ='Org structure'!E32 -> 0 | J38: 0 | K38: 0
A39: ='Org structure'!E33 -> 0 | J39: 0 | K39: 0
A40: ='Org structure'!E34 -> 0 | J40: 0 | K40: 0
A41: ='Org structure'!A5 -> Vote 4 - Community Services and Social Equity | C41: =SUM(C42:C51) -> 42142711.2 | D41: =SUM(D42:D51) -> 0 | E41: 0 | F41: 0 | G41: 0 | H41: 0 | I41: -7542031.12 | J41: -7542031.12 | K41: 34600680.08 | L41: =SUM(L42:L51) -> 45728706.64 | M41: =SUM(M42:M51) -> 48042448.56
A42: ='Org structure'!E36 -> 4.1 - Area Based Management | C42: 100000 | I42: 900000 | J42: 900000 | K42: 1000000 | L42: 50000 | M42: 100000
A43: ='Org structure'!E37 -> 4.2 - Public Safety, Emergency Services and Enforcement | C43: 1810000 | J43: 0 | K43: 1810000 | L43: 1860000 | M43: 660000
A44: ='Org structure'!E38 -> 4.3 - Recreation and Facilities | C44: 30232711.2 | I44: -8442031.12 | J44: -8442031.12 | K44: 21790680.08 | L44: 31428706.64 | M44: 34272948.56
A45: ='Org structure'!E39 -> 4.4 - Waste Management | C45: 10000000 | J45: 0 | K45: 10000000 | L45: 12390000 | M45: 13009500
A46: ='Org structure'!E40 -> 4.5 - General Manager: Community Services | J46: 0 | K46: 0
A47: ='Org structure'!E41 -> 0 | J47: 0 | K47: 0
A48: ='Org structure'!E42 -> 0 | J48: 0 | K48: 0
A49: ='Org structure'!E43 -> 0 | J49: 0 | K49: 0
A50: ='Org structure'!E44 -> 0 | J50: 0 | K50: 0
A51: ='Org structure'!E45 -> 0 | J51: 0 | K51: 0
A52: ='Org structure'!A6 -> Vote 5 - Infrastructure Services | C52: =SUM(C53:C62) -> 284463597.6 | D52: =SUM(D53:D62) -> 0 | E52: 0 | F52: 0 | G52: 0 | H52: 0 | I52: 64624189.37 | J52: 64624189.37 | K52: 349087786.9 | L52: =SUM(L53:L62) -> 331647914.4 | M52: =SUM(M53:M62) -> 388918928.5
A53: ='Org structure'!E47 -> 5.1 - Project Management Office | C53: 100000 | J53: 0 | K53: 100000 | L53: 0 | M53: 0
A54: ='Org structure'!E48 -> 5.2 - Roads and Transportation | C54: 110664463.2 | I54: 58366993.97 | J54: 58366993.97 | K54: 169031457.1 | L54: 131471920 | M54: 164955050
A55: ='Org structure'!E49 -> 5.3 - Water and Sanitation | C55: 173699134.4 | I55: 6257195.4 | J55: 6257195.4 | K55: 179956329.8 | L55: 200175994.4 | M55: 223963878.5
A56: ='Org structure'!E50 -> 5.4 - General Manager: Infrastructure | C56: 0 | J56: 0 | K56: 0 | L56: 0 | M56: 0
A57: ='Org structure'!E51 -> 0 | J57: 0 | K57: 0
A58: ='Org structure'!E52 -> 0 | J58: 0 | K58: 0
A59: ='Org structure'!E53 -> 0 | J59: 0 | K59: 0
A60: ='Org structure'!E54 -> 0 | J60: 0 | K60: 0
A61: ='Org structure'!E55 -> 0 | J61: 0 | K61: 0
A62: ='Org structure'!E56 -> 0 | J62: 0 | K62: 0
A63: ='Org structure'!A7 -> Vote 6 - Sustainable Development and City Enterprises | C63: =SUM(C64:C73) -> 153598529.7 | D63: =SUM(D64:D73) -> 0 | E63: 0 | F63: 0 | G63: 0 | H63: 0 | I63: 1563311.5 | J63: 1563311.5 | K63: 155161841.2 | L63: =SUM(L64:L73) -> 33421180.73 | M63: =SUM(M64:M73) -> 53501810.95
A64: ='Org structure'!E58 -> 6.1 - City Entities | C64: 2685000 | J64: 0 | K64: 2685000 | L64: 2143000 | M64: 2135000
A65: ='Org structure'!E59 -> 6.2 - Development Services | C65: 22090000 | J65: 0 | K65: 22090000 | L65: 30000000 | M65: 50000000
A66: ='Org structure'!E60 -> 6.3 - Human Settlement Development | C66: 128823529.7 | I66: -11515306.5 | J66: -11515306.5 | K66: 117308223.2 | L66: 1278180.73 | M66: 1366810.95
A67: ='Org structure'!E61 -> 6.4 - Town Planning | C67: 0 | I67: 13078618 | J67: 13078618 | K67: 13078618 | L67: 0 | M67: 0
A68: ='Org structure'!E62 -> 6.5 - General Manager: Sustainable Development and City Enterprises | J68: 0 | K68: 0 | L68: 0 | M68: 0
A69: ='Org structure'!E63 -> 0 | J69: 0 | K69: 0
A70: ='Org structure'!E64 -> 0 | J70: 0 | K70: 0
A71: ='Org structure'!E65 -> 0 | J71: 0 | K71: 0
A72: ='Org structure'!E66 -> 0 | J72: =SUM(E72:I72) -> 0 | K72: =IF(D72=0,C72+J72,D72+J72) -> 0
A73: ='Org structure'!E67 -> 0 | J73: 0 | K73: 0
A74: ='Org structure'!A8 -> Vote 7 - Electricity | C74: =SUM(C75:C84) -> 237331051.4 | D74: =SUM(D75:D84) -> 0 | E74: 0 | F74: 0 | G74: 0 | H74: 0 | I74: 38526804.58 | J74: 38526804.58 | K74: 275857856 | L74: =SUM(L75:L84) -> 23576718.2 | M74: =SUM(M75:M84) -> 27697411.98
A75: ='Org structure'!E69 -> 7.1 Electricity planning | C75: 229331051.4 | I75: 46526804.58 | J75: 46526804.58 | K75: 275857856 | L75: 15216718.2 | M75: 18961211.98
A76: ='Org structure'!E70 -> 7.2 Methods and Standards | C76: 0 | J76: 0 | K76: 0 | L76: 0 | M76: 0
A77: ='Org structure'!E71 -> 7.3 Operations and Maintenance | C77: 0 | J77: 0 | K77: 0 | L77: 0 | M77: 0
A78: ='Org structure'!E72 -> 7.4 Revenue Management | C78: 8000000 | I78: -8000000 | J78: -8000000 | K78: 0 | L78: 8360000 | M78: 8736200
A79: ='Org structure'!E73 -> 7.5 General Manager Electricity | C79: 0 | J79: 0 | K79: 0 | L79: 0 | M79: 0
A80: ='Org structure'!E74 -> 0 | J80: 0 | K80: 0
A81: ='Org structure'!E75 -> 0 | J81: 0 | K81: 0
A82: ='Org structure'!E76 -> 0 | J82: 0 | K82: 0
A83: ='Org structure'!E77 -> 0 | J83: 0 | K83: 0
A84: ='Org structure'!E78 -> 0 | J84: 0 | K84: 0
A85: ='Org structure'!A9 -> Vote 8 - [NAME OF VOTE 8] | C85: =SUM(C86:C95) -> 0 | D85: =SUM(D86:D95) -> 0 | E85: 0 | F85: 0 | G85: 0 | H85: 0 | I85: 0 | J85: 0 | K85: 0 | L85: =SUM(L86:L95) -> 0 | M85: =SUM(M86:M95) -> 0
A86: ='Org structure'!E80 -> 8.1 - [Name of sub-vote] | J86: 0 | K86: 0
A87: ='Org structure'!E81 -> 0 | J87: 0 | K87: 0
A88: ='Org structure'!E82 -> 0 | J88: 0 | K88: 0
A89: ='Org structure'!E83 -> 0 | J89: 0 | K89: 0
A90: ='Org structure'!E84 -> 0 | J90: 0 | K90: 0
A91: ='Org structure'!E85 -> 0 | J91: 0 | K91: 0
A92: ='Org structure'!E86 -> 0 | J92: 0 | K92: 0
A93: ='Org structure'!E87 -> 0 | J93: 0 | K93: 0
A94: ='Org structure'!E88 -> 0 | J94: 0 | K94: 0
A95: ='Org structure'!E89 -> 0 | J95: 0 | K95: 0
A96: ='Org structure'!A10 -> Vote 9 - [NAME OF VOTE 9] | C96: =SUM(C97:C106) -> 0 | D96: =SUM(D97:D106) -> 0 | E96: 0 | F96: 0 | G96: 0 | H96: 0 | I96: 0 | J96: 0 | K96: 0 | L96: =SUM(L97:L106) -> 0 | M96: =SUM(M97:M106) -> 0
A97: ='Org structure'!E91 -> 9.1 - [Name of sub-vote] | J97: 0 | K97: 0
A98: ='Org structure'!E92 -> 0 | J98: 0 | K98: 0
A99: ='Org structure'!E93 -> 0 | J99: 0 | K99: 0
A100: ='Org structure'!E94 -> 0 | J100: 0 | K100: 0
A101: ='Org structure'!E95 -> 0 | J101: 0 | K101: 0
A102: ='Org structure'!E96 -> 0 | J102: 0 | K102: 0
A103: ='Org structure'!E97 -> 0 | J103: 0 | K103: 0
A104: ='Org structure'!E98 -> 0 | J104: 0 | K104: 0
A105: ='Org structure'!E99 -> 0 | J105: 0 | K105: 0
A106: ='Org structure'!E100 -> 0 | J106: 0 | K106: 0
A107: ='Org structure'!A11 -> Vote 10 - [NAME OF VOTE 10] | C107: =SUM(C108:C117) -> 0 | D107: =SUM(D108:D117) -> 0 | E107: 0 | F107: 0 | G107: 0 | H107: 0 | I107: 0 | J107: 0 | K107: 0 | L107: =SUM(L108:L117) -> 0 | M107: =SUM(M108:M117) -> 0
A108: ='Org structure'!E102 -> 10.1 - [Name of sub-vote] | J108: 0 | K108: 0
A109: ='Org structure'!E103 -> 0 | J109: 0 | K109: 0
A110: ='Org structure'!E104 -> 0 | J110: 0 | K110: 0
A111: ='Org structure'!E105 -> 0 | J111: 0 | K111: 0
A112: ='Org structure'!E106 -> 0 | J112: 0 | K112: 0
A113: ='Org structure'!E107 -> 0 | J113: 0 | K113: 0
A114: ='Org structure'!E108 -> 0 | J114: 0 | K114: 0
A115: ='Org structure'!E109 -> 0 | J115: 0 | K115: 0
A116: ='Org structure'!E110 -> 0 | J116: 0 | K116: 0
A117: ='Org structure'!E111 -> 0 | J117: 0 | K117: 0
A118: ='Org structure'!A12 -> Vote 11 - [NAME OF VOTE 11] | C118: =SUM(C119:C128) -> 0 | D118: =SUM(D119:D128) -> 0 | E118: 0 | F118: 0 | G118: 0 | H118: 0 | I118: 0 | J118: 0 | K118: 0 | L118: =SUM(L119:L128) -> 0 | M118: =SUM(M119:M128) -> 0
A119: ='Org structure'!E113 -> 11.1 - [Name of sub-vote] | J119: 0 | K119: 0
A120: ='Org structure'!E114 -> 0 | J120: 0 | K120: 0
A121: ='Org structure'!E115 -> 0 | J121: 0 | K121: 0
A122: ='Org structure'!E116 -> 0 | J122: 0 | K122: 0
A123: ='Org structure'!E117 -> 0 | J123: 0 | K123: 0
A124: ='Org structure'!E118 -> 0 | J124: 0 | K124: 0
A125: ='Org structure'!E119 -> 0 | J125: 0 | K125: 0
A126: ='Org structure'!E120 -> 0 | J126: 0 | K126: 0
A127: ='Org structure'!E121 -> 0 | J127: 0 | K127: 0
A128: ='Org structure'!E122 -> 0 | J128: 0 | K128: 0
A129: ='Org structure'!A13 -> Vote 12 - [NAME OF VOTE 12] | C129: =SUM(C130:C139) -> 0 | D129: =SUM(D130:D139) -> 0 | E129: 0 | F129: 0 | G129: 0 | H129: 0 | I129: 0 | J129: 0 | K129: 0 | L129: =SUM(L130:L139) -> 0 | M129: =SUM(M130:M139) -> 0
A130: ='Org structure'!E124 -> 12.1 - [Name of sub-vote] | J130: 0 | K130: 0
A131: ='Org structure'!E125 -> 0 | J131: 0 | K131: 0
A132: ='Org structure'!E126 -> 0 | J132: 0 | K132: 0
A133: ='Org structure'!E127 -> 0 | J133: 0 | K133: 0
A134: ='Org structure'!E128 -> 0 | J134: 0 | K134: 0
A135: ='Org structure'!E129 -> 0 | J135: 0 | K135: 0
A136: ='Org structure'!E130 -> 0 | J136: =SUM(E136:I136) -> 0 | K136: =IF(D136=0,C136+J136,D136+J136) -> 0
A137: ='Org structure'!E131 -> 0 | J137: 0 | K137: 0
A138: ='Org structure'!E132 -> 0 | J138: 0 | K138: 0
A139: ='Org structure'!E133 -> 0 | J139: 0 | K139: 0
A140: ='Org structure'!A14 -> Vote 13 - [NAME OF VOTE 13] | C140: =SUM(C141:C150) -> 0 | D140: =SUM(D141:D150) -> 0 | E140: 0 | F140: 0 | G140: 0 | H140: 0 | I140: 0 | J140: 0 | K140: 0 | L140: =SUM(L141:L150) -> 0 | M140: =SUM(M141:M150) -> 0
A141: ='Org structure'!E135 -> 13.1 - [Name of sub-vote] | J141: 0 | K141: 0
A142: ='Org structure'!E136 -> 0 | J142: 0 | K142: 0
A143: ='Org structure'!E137 -> 0 | J143: 0 | K143: 0
A144: ='Org structure'!E138 -> 0 | J144: 0 | K144: 0
A145: ='Org structure'!E139 -> 0 | J145: 0 | K145: 0
A146: ='Org structure'!E140 -> 0 | J146: 0 | K146: 0
A147: ='Org structure'!E141 -> 0 | J147: 0 | K147: 0
A148: ='Org structure'!E142 -> 0 | J148: 0 | K148: 0
A149: ='Org structure'!E143 -> 0 | J149: 0 | K149: 0
A150: ='Org structure'!E144 -> 0 | J150: 0 | K150: 0
A151: ='Org structure'!A15 -> Vote 14 - [NAME OF VOTE 14] | C151: =SUM(C152:C161) -> 0 | D151: =SUM(D152:D161) -> 0 | E151: 0 | F151: 0 | G151: 0 | H151: 0 | I151: 0 | J151: 0 | K151: 0 | L151: =SUM(L152:L161) -> 0 | M151: =SUM(M152:M161) -> 0
A152: ='Org structure'!E146 -> 14.1 - [Name of sub-vote] | J152: 0 | K152: 0
A153: ='Org structure'!E147 -> 0 | J153: 0 | K153: 0
A154: ='Org structure'!E148 -> 0 | J154: 0 | K154: 0
A155: ='Org structure'!E149 -> 0 | J155: 0 | K155: 0
A156: ='Org structure'!E150 -> 0 | J156: 0 | K156: 0
A157: ='Org structure'!E151 -> 0 | J157: 0 | K157: 0
A158: ='Org structure'!E152 -> 0 | J158: 0 | K158: 0
A159: ='Org structure'!E153 -> 0 | J159: 0 | K159: 0
A160: ='Org structure'!E154 -> 0 | J160: 0 | K160: 0
A161: ='Org structure'!E155 -> 0 | J161: 0 | K161: 0
A162: ='Org structure'!A16 -> Vote 15 - [NAME OF VOTE 15] | C162: =SUM(C163:C172) -> 0 | D162: =SUM(D163:D172) -> 0 | E162: 0 | F162: 0 | G162: 0 | H162: 0 | I162: 0 | J162: 0 | K162: 0 | L162: =SUM(L163:L172) -> 0 | M162: =SUM(M163:M172) -> 0
A163: ='Org structure'!E157 -> 15.1 - [Name of sub-vote] | J163: 0 | K163: 0
A164: ='Org structure'!E158 -> 0 | J164: 0 | K164: 0
A165: ='Org structure'!E159 -> 0 | J165: 0 | K165: 0
A166: ='Org structure'!E160 -> 0 | J166: 0 | K166: 0
A167: ='Org structure'!E161 -> 0 | J167: 0 | K167: 0
A168: ='Org structure'!E162 -> 0 | J168: 0 | K168: 0
A169: ='Org structure'!E163 -> 0 | J169: 0 | K169: 0
A170: ='Org structure'!E164 -> 0 | J170: 0 | K170: 0
A171: ='Org structure'!E165 -> 0 | J171: 0 | K171: 0
A172: ='Org structure'!E166 -> 0 | J172: 0 | K172: 0
A173: Capital multi-year expenditure sub-total | C173: =C8+C19+C30+C41+C52+C63+C74+C85+C96+C107+C118+C129+C140+C151+C162 -> 786565890.4 | D173: =D8+D19+D30+D41+D52+D63+D74+D85+D96+D107+D118+D129+D140+D151+D162 -> 0 | E173: 0 | F173: 0 | G173: 0 | H173: 0 | I173: 60827273.75 | J173: 60827273.75 | K173: 847393164.2 | L173: =L8+L19+L30+L41+L52+L63+L74+L85+L96+L107+L118+L129+L140+L151+L162 -> 509974938 | M173: =M8+M19+M30+M41+M52+M63+M74+M85+M96+M107+M118+M129+M140+M151+M162 -> 593992601
A175: Capital expenditure - Municipal Vote | B175: 2
A176: Single-year expenditure appropriation
A177: =B5B!A8 -> Vote 1 - City Manager | C177: =SUM(C178:C187) -> 5000000 | D177: =SUM(D178:D187) -> 0 | E177: 0 | F177: 0 | G177: 0 | H177: 0 | I177: 1400000 | J177: =SUM(E177:I177) -> 1400000 | K177: =IF(D177=0,C177+J177,D177+J177) -> 6400000
A178: =B5B!A9 -> 1.1 - Internal Audit and Compliance | J178: 0 | K178: 0
A179: =B5B!A10 -> 1.2 - Office of the City Manager | C179: 5000000 | I179: 1400000 | J179: 1400000 | K179: 6400000
A180: =B5B!A11 -> 1.3 - Political Support | J180: 0 | K180: 0
A181: =B5B!A12 -> 1.4 - Strategic Planning | J181: 0 | K181: 0
A182: =B5B!A13 -> 0 | J182: 0 | K182: 0
A183: =B5B!A14 -> 0 | J183: 0 | K183: 0
A184: =B5B!A15 -> 0 | J184: 0 | K184: 0
A185: =B5B!A16 -> 0 | J185: 0 | K185: 0
A186: =B5B!A17 -> 0 | J186: 0 | K186: 0
A187: =B5B!A18 -> 0 | J187: 0 | K187: 0
A188: =B5B!A19 -> Vote 2 - City Finance | C188: =SUM(C189:C198) -> 0 | D188: =SUM(D189:D198) -> 0 | E188: 0 | F188: 0 | G188: 0 | H188: 0 | I188: 1300000 | J188: 1300000 | K188: 1300000
A189: =B5B!A20 -> 2.1 - Asset Management | J189: 0 | K189: 0
A190: =B5B!A21 -> 2.2 - Budget and Treasury Management | I190: 1300000 | J190: 1300000 | K190: 1300000
A191: =B5B!A22 -> 2.3 - Expenditure Management | J191: 0 | K191: 0
A192: =B5B!A23 -> 2.4 - Revenue Management | J192: 0 | K192: 0
A193: =B5B!A24 -> 2.5 - Supply Chain Management | J193: 0 | K193: 0
A194: =B5B!A25 -> 0 | J194: 0 | K194: 0
A195: =B5B!A26 -> 0 | J195: 0 | K195: 0
A196: =B5B!A27 -> 0 | J196: 0 | K196: 0
A197: =B5B!A28 -> 0 | J197: 0 | K197: 0
A198: =B5B!A29 -> 0 | J198: 0 | K198: 0
A199: =B5B!A30 -> Vote 3 - Corporate Services | C199: =SUM(C200:C209) -> 7615000 | D199: =SUM(D200:D209) -> 0 | E199: 0 | F199: 0 | G199: 0 | H199: 0 | I199: 4255822 | J199: 4255822 | K199: 11870822
A200: =B5B!A31 -> 3.1 - Human Resources Management | C200: 60000 | J200: 0 | K200: 60000
A201: =B5B!A32 -> 3.2 - Information Technology | C201: 7425000 | I201: 4345822 | J201: 4345822 | K201: 11770822
... 146 more rows

Sheet B6-FinPos
A1: Msunduzi Municipality
A2: =desc -> Description | B2: =head27 -> Ref | C2: =Head2 -> Budget Year 2024/25 | L2: =Head10 -> Budget Year +1 2025/26 | M2: =Head11 -> Budget Year +2 2026/27
C3: =Head6 -> Original Budget | D3: =Head54 -> Prior Adjusted | E3: =Head51 -> Accum. Funds | F3: =Head52 -> Multi-year capital | G3: =Head53 -> Unfore. Unavoid. | H3: =Head55 -> Nat. or Prov. Govt | I3: =Head50 -> Other Adjusts. | J3: =Head56 -> Total Adjusts. | K3: =Head7 -> Adjusted Budget | L3: =Head7 -> Adjusted Budget | M3: =Head7 -> Adjusted Budget
D4: 3 | E4: 4 | F4: 5 | G4: 6 | H4: 7 | I4: 8 | J4: 9 | K4: 10
A5: R thousands | C5: A | D5: A1 | E5: B | F5: C | G5: D | H5: E | I5: F | J5: G | K5: H
A6: ASSETS
A7: Current assets
A8: Cash and cash equivalents | C8: 213140337 | I8: 121040300.9 | J8: =SUM(E8:I8) -> 121040300.9 | K8: =IF(D8=0,C8+J8,D8+J8) -> 334180637.9 | L8: 994268315.9 | M8: 1254931697
A9: Trade and other receivables from exchange transactions | B9: 1 | C9: ='SB2'!C20 -> 2649261959 | D9: ='SB2'!D20 -> 0 | E9: ='SB2'!E20 -> 0 | F9: ='SB2'!F20 -> 0 | G9: ='SB2'!G20 -> 0 | H9: ='SB2'!H20 -> 0 | I9: ='SB2'!I20 -> 0 | J9: 0 | K9: 2649261959 | L9: 2768478747 | M9: 2893060291
A10: Receivables from non-exchange transactions | B10: 1 | C10: ='SB2'!C29 -> 811010112.8 | D10: ='SB2'!D29 -> 0 | E10: ='SB2'!E29 -> 0 | F10: ='SB2'!F29 -> 0 | G10: ='SB2'!G29 -> 0 | H10: ='SB2'!H29 -> 0 | I10: ='SB2'!I29 -> 0 | J10: 0 | K10: 811010112.8 | L10: 847505568 | M10: 885643318
A11: Current portion of non-current receivables | B11: 2 | J11: 0 | K11: 0
A12: Inventory | C12: 442453028 | D12: ='SB2'!D125 -> 0 | E12: ='SB2'!E125 -> 0 | F12: ='SB2'!F125 -> 0 | G12: ='SB2'!G125 -> 0 | H12: ='SB2'!H125 -> 0 | I12: ='SB2'!I125 -> 30287035.99 | J12: 30287035.99 | K12: 472740064 | L12: ='SB2'!L125 -> -4486501455 | M12: ='SB2'!M125 -> -5569112126
A13: VAT | J13: 0 | K13: 0
A14: Other current assets | C14: 2500 | J14: 0 | K14: 2500
A15: Total current assets | C15: =SUM(C8:C14) -> 4115867937 | D15: 0 | E15: 0 | F15: 0 | G15: 0 | H15: 0 | I15: 151327336.9 | J15: 151327336.9 | K15: 4267195274 | L15: 123751176.3 | M15: -535476820.6
A16: Non current assets
A17: Investments | J17: =SUM(E17:I17) -> 0 | K17: =IF(D17=0,C17+J17,D17+J17) -> 0 | L17: 974255981 | M17: 974255981
A18: Investment property | C18: 974255980.8 | J18: =SUM(E18:I18) -> 0 | K18: =IF(D18=0,C18+J18,D18+J18) -> 974255980.8 | L18: 8384578230 | M18: 8468595893
A19: Property, plant and equipment | B19: 3 | C19: 8761935354 | D19: =+'SB2'!D131 -> 0 | E19: =+'SB2'!E131 -> 0 | F19: =+'SB2'!F131 -> 0 | G19: =+'SB2'!G131 -> 0 | H19: =+'SB2'!H131 -> 0 | I19: =+'SB2'!I131 -> 0 | J19: 0 | K19: 8761935354 | L19: 84601573 | M19: 88408644
A20: Biological assets | C20: 80958443.4 | J20: 0 | K20: 80958443.4 | L20: 0 | M20: 0
A21: Living and non-living resources | C21: 0 | J21: 0 | K21: 0 | L21: 304376652 | M21: 318073601
A22: Heritage assets | C22: 291269523.1 | J22: =SUM(E22:I22) -> 0 | K22: =IF(D22=0,C22+J22,D22+J22) -> 291269523.1 | L22: 26821025 | M22: 28027971
A23: Intangible assets | C23: 25766052 | J23: =SUM(E23:I23) -> 0 | K23: =IF(D23=0,C23+J23,D23+J23) -> 25766052 | L23: 0 | M23: 0
A24: Trade and other receivables from exchange transactions | J24: 0 | K24: 0 | L24: 0 | M24: 0
A25: Non-current receivables from non-exchange transactions | J25: 0 | K25: 0 | L25: 0 | M25: 0
A26: Other non-current assets | J26: 0 | K26: 0
A27: Total non current assets | C27: =SUM(C17:C26) -> 1.013418535e+10 | D27: =SUM(D17:D26) -> 0 | E27: 0 | F27: 0 | G27: 0 | H27: 0 | I27: 0 | J27: 0 | K27: 1.013418535e+10 | L27: =SUM(L17:L26) -> 9774633461 | M27: 9877362090
A28: TOTAL ASSETS | C28: =C15+C27 -> 1.425005329e+10 | D28: 0 | E28: 0 | F28: 0 | G28: 0 | H28: 0 | I28: 151327336.9 | J28: 151327336.9 | K28: 1.440138063e+10 | L28: 9898384637 | M28: 9341885269
A30: LIABILITIES
A31: Current liabilities
A32: Bank overdraft | J32: =SUM(E32:I32) -> 0 | K32: =IF(D32=0,C32+J32,D32+J32) -> 0
A33: Financial liabilities | C33: -11272788 | D33: ='SB2'!D137 -> 0 | E33: ='SB2'!E137 -> 0 | F33: ='SB2'!F137 -> 0 | G33: ='SB2'!G137 -> 0 | H33: ='SB2'!H137 -> 0 | I33: ='SB2'!I137 -> 0 | J33: =SUM(E33:I33) -> 0 | K33: =IF(D33=0,C33+J33,D33+J33) -> -11272788 | L33: 82269937 | M33: 86054354
A34: Consumer deposits | C34: 150719178.2 | J34: =SUM(E34:I34) -> 0 | K34: =IF(D34=0,C34+J34,D34+J34) -> 150719178.2 | L34: 157501541 | M34: 164589111
A35: Trade and other payables from exchange transactions | C35: 1714269734 | D35: =+'SB2'!D140+'SB2'!D141 -> 0 | E35: =+'SB2'!E140+'SB2'!E141 -> 0 | F35: =+'SB2'!F140+'SB2'!F141 -> 0 | G35: =+'SB2'!G140+'SB2'!G141 -> 0 | H35: =+'SB2'!H140+'SB2'!H141 -> 0 | I35: =+'SB2'!I140+'SB2'!I141 -> 0 | J35: =SUM(E35:I35) -> 0 | K35: =IF(D35=0,C35+J35,D35+J35) -> 1714269734 | L35: 2300857164 | M35: 2465464527
A36: Trade and other payables from non-exchange transactions | C36: =+'SB2'!C142+'SB2'!C143 -> 0 | D36: =+'SB2'!D142+'SB2'!D143 -> 0 | E36: =+'SB2'!E142+'SB2'!E143 -> 0 | F36: =+'SB2'!F142+'SB2'!F143 -> 0 | G36: =+'SB2'!G142+'SB2'!G143 -> 0 | H36: =+'SB2'!H142+'SB2'!H143 -> 0 | I36: =+'SB2'!I142+'SB2'!I143 -> 0 | J36: 0 | K36: 0 | L36: 0 | M36: 0
A37: Provisions | C37: 62936725.49 | J37: 0 | K37: 62936725.49 | L37: 64517712 | M37: 67421009
A38: VAT | C38: 457746833.1 | J38: 0 | K38: 457746833.1 | L38: 478345441 | M38: 499870985
A39: Other current liabilities | J39: 0 | K39: 0 | L39: 0 | M39: 0
A40: Total current liabilities | C40: =SUM(C32:C39) -> 2374399683 | D40: =SUM(D32:D39) -> 0 | E40: 0 | F40: 0 | G40: 0 | H40: 0 | I40: 0 | J40: =SUM(J32:J39) -> 0 | K40: =SUM(K32:K39) -> 2374399683 | L40: =SUM(L32:L39) -> 3083491795 | M40: 3283399986
A42: Non current liabilities
A43: Borrowing | B43: 1 | C43: ='SB2'!C147 -> 559919194.3 | D43: ='SB2'!D147 -> 0 | E43: ='SB2'!E147 -> 0 | F43: ='SB2'!F147 -> 0 | G43: ='SB2'!G147 -> 0 | H43: ='SB2'!H147 -> 0 | I43: ='SB2'!I147 -> 0 | J43: =SUM(E43:I43) -> 0 | K43: =IF(D43=0,C43+J43,D43+J43) -> 559919194.3 | L43: 585115558 | M43: 611445758
A44: Provisions | B44: 1 | C44: ='SB2'!C162 -> 80110830.3 | D44: ='SB2'!D162 -> 0 | E44: ='SB2'!E162 -> 0 | F44: ='SB2'!F162 -> 0 | G44: ='SB2'!G162 -> 0 | H44: ='SB2'!H162 -> 0 | I44: ='SB2'!I162 -> 0 | J44: =SUM(E44:I44) -> 0 | K44: =IF(D44=0,C44+J44,D44+J44) -> 80110830.3 | L44: 83715818 | M44: 87566745
A45: Long term portion of trade payables | C45: ='SB2'!C151 -> 0 | D45: ='SB2'!D151 -> 0 | E45: ='SB2'!E151 -> 0 | F45: ='SB2'!F151 -> 0 | G45: ='SB2'!G151 -> 0 | H45: ='SB2'!H151 -> 0 | I45: ='SB2'!I151 -> 0 | J45: =SUM(E45:I45) -> 0 | K45: =IF(D45=0,C45+J45,D45+J45) -> 0 | L45: 253702506 | M45: 253702506
A46: Other non-current liabilities | C46: 583456000 | J46: =SUM(E46:I46) -> 0 | K46: =IF(D46=0,C46+J46,D46+J46) -> 583456000 | L46: 501186063 | M46: 415131709
A47: Total non current liabilities | C47: =SUM(C43:C46) -> 1223486025 | D47: =SUM(D43:D46) -> 0 | E47: 0 | F47: 0 | G47: 0 | H47: 0 | I47: 0 | J47: 0 | K47: 1223486025 | L47: 1423719945 | M47: 1367846718
A48: TOTAL LIABILITIES | C48: =C40+C47 -> 3597885707 | D48: 0 | E48: 0 | F48: 0 | G48: 0 | H48: 0 | I48: 0 | J48: 0 | K48: 3597885707 | L48: 4507211740 | M48: 4651246704
A50: NET ASSETS | B50: 2 | C50: =C28-C48 -> 1.065216758e+10 | D50: 0 | E50: 0 | F50: 0 | G50: 0 | H50: 0 | I50: 151327336.9 | J50: 151327336.9 | K50: 1.080349492e+10 | L50: 5391172897 | M50: 4690638565
A52: COMMUNITY WEALTH/EQUITY
A53: Accumulated Surplus/(Deficit) | C53: 1.065216758e+10 | D53: ='SB2'!D174 -> 0 | E53: ='SB2'!E174 -> 0 | F53: ='SB2'!F174 -> 0 | G53: ='SB2'!G174 -> 0 | H53: ='SB2'!H174 -> 0 | I53: ='SB2'!I174 -> 151327336.9 | J53: =SUM(E53:I53) -> 151327336.9 | K53: =IF(D53=0,C53+J53,D53+J53) -> 1.080349492e+10 | L53: ='SB2'!L174 -> 5405371415 | M53: ='SB2'!M174 -> 4705547008
A54: Funds and Reserves | C54: ='SB2'!C181 -> 0 | D54: ='SB2'!D181 -> 0 | E54: ='SB2'!E181 -> 0 | F54: ='SB2'!F181 -> 0 | G54: ='SB2'!G181 -> 0 | H54: ='SB2'!H181 -> 0 | I54: ='SB2'!I181 -> 0 | J54: =SUM(E54:I54) -> 0 | K54: =IF(D54=0,C54+J54,D54+J54) -> 0 | L54: ='SB2'!L181 -> 0 | M54: ='SB2'!M181 -> 0
A55: Other | J55: =SUM(E55:I55) -> 0 | K55: =IF(D55=0,C55+J55,D55+J55) -> 0
A56: TOTAL COMMUNITY WEALTH/EQUITY | C56: =SUM(C53:C55) -> 1.065216758e+10 | D56: =SUM(D53:D55) -> 0 | E56: 0 | F56: 0 | G56: 0 | H56: 0 | I56: 151327336.9 | J56: 151327336.9 | K56: 1.080349492e+10 | L56: 5405371415 | M56: 4705547008
A57: =head27a -> References
A58: 1. Detail to be provided in Table SA3
A59: 2. Net assets must balance with Total Community Wealth/Equity
A60: 3. Only complete if a previous adjusted budget has been approved in the same financial year. Reflect most recent adjusted budget.
A61: 4. Additional cash-backed accumulated funds/unspent funds (MFMA section 18(1)(b) and section 28(2)(e)) identified after the Original Budget approved and after annual financial statements audited (note: only where underspending could not reasonably have been foreseen)
A62: 5. Increases of funds approved under MFMA section 31
A63: 6. Adjustments approved in accordance with MFMA section 29
A64: 7. Adjustments to transfers from National or Provincial Government
A65: 8. Adjusts. = 'Other' Adjustments proposed to be approved; including revenue under-collection (MFMA section 28(2)(a)); additional revenue appropriation on existing programmes (section 28(2))(b); projected savings (section 28(2)(d)); error correction (section 28(2)(f))
A66: 9. G = B + C + D + E + F
A67: 10. Adjusted Budget H = (A or A1/2 etc) + G
A69: check balance | C69: =C50-C56 -> 0 | D69: 0 | E69: 0 | F69: 0 | G69: 0 | H69: 0 | I69: 0 | J69: 0 | K69: 0 | L69: -14198518 | M69: -14908443

Sheet B7-CFlow
A1: Msunduzi Municipality Budgeted Cash flow
A2: =desc -> Description | B2: =head27 -> Ref | C2: =Head2 -> Budget Year 2024/25 | L2: =Head10 -> Budget Year +1 2025/26 | M2: =Head11 -> Budget Year +2 2026/27
C3: =Head6 -> Original Budget | D3: =Head54 -> Prior Adjusted | E3: =Head51 -> Accum. Funds | F3: =Head52 -> Multi-year capital | G3: =Head53 -> Unfore. Unavoid. | H3: =Head55 -> Nat. or Prov. Govt | I3: =Head50 -> Other Adjusts. | J3: =Head56 -> Total Adjusts. | K3: =Head7 -> Adjusted Budget | L3: =Head7 -> Adjusted Budget | M3: =Head7 -> Adjusted Budget
D4: 3 | E4: 4 | F4: 5 | G4: 6 | H4: 7 | I4: 8 | J4: 9 | K4: 10
A5: R thousands | C5: A | D5: A1 | E5: B | F5: C | G5: D | H5: E | I5: F | J5: G | K5: H
A6: CASH FLOW FROM OPERATING ACTIVITIES
A7: Receipts
A8: Property rates | C8: 1484417269 | I8: -16493577.4 | J8: =SUM(E8:I8) -> -16493577.4 | K8: =IF(D8=0,C8+J8,D8+J8) -> 1467923691 | L8: 1604457145 | M8: 1676657717
A9: Service charges | C9: 4717471651 | I9: -173182362.7 | J9: =SUM(E9:I9) -> -173182362.7 | K9: =IF(D9=0,C9+J9,D9+J9) -> 4544289288 | L9: 5711397578 | M9: 5876739035
A10: Other revenue | C10: 765832296.5 | J10: 0 | K10: 765832296.5 | L10: 992398265 | M10: 1020995253
A11: Transfers and Subsidies - Operational | B11: 1 | C11: 956879939.3 | I11: 51871796.26 | J11: 51871796.26 | K11: 1008751736 | L11: 1000217863 | M11: 1067329110
A12: Transfers and Subsidies - Capital | B12: 1 | C12: 456974890.5 | I12: 20951082.97 | J12: 20951082.97 | K12: 477925973.5 | L12: 389974938 | M12: 473992600
A13: Interest | C13: 19135146.8 | J13: 0 | K13: 19135146.8 | L13: 20015364 | M13: 20916055
A14: Dividends | C14: 0 | J14: 0 | K14: 0
A15: Payments
A16: Suppliers and employees | C16: -7709138592 | I16: 108107000 | J16: =SUM(E16:I16) -> 108107000 | K16: =IF(D16=0,C16+J16,D16+J16) -> -7601031592 | L16: -8431371721 | M16: -9249008814
A17: Finance charges | C17: -42824930.71 | J17: =SUM(E17:I17) -> 0 | K17: =IF(D17=0,C17+J17,D17+J17) -> -42824930.71 | L17: -44794878 | M17: -46810647
A18: Transfers and Subsidies | B18: 1 | C18: -52375752.46 | J18: =SUM(E18:I18) -> 0 | K18: =IF(D18=0,C18+J18,D18+J18) -> -52375752.46 | L18: -72874956 | M18: -76154328
A19: NET CASH FROM/(USED) OPERATING ACTIVITIES | C19: =SUM(C8:C14)+SUM(C16:C18) -> 596371918.2 | D19: =SUM(D8:D14)+SUM(D16:D18) -> 0 | E19: 0 | F19: 0 | G19: 0 | H19: 0 | I19: -8746060.911 | J19: =SUM(J8:J18) -> -8746060.911 | K19: =SUM(K8:K18) -> 587625857.2 | L19: =SUM(L8:L14)+SUM(L16:L18) -> 1169419598 | M19: =SUM(M8:M14)+SUM(M16:M18) -> 764655981
A21: CASH FLOWS FROM INVESTING ACTIVITIES
A22: Receipts
A23: Proceeds on disposal of PPE | J23: =SUM(E23:I23) -> 0 | K23: =IF(D23=0,C23+J23,D23+J23) -> 0
A25: Decrease (increase) in non-current receivables | J25: =SUM(E25:I25) -> 0 | K25: =IF(D25=0,C25+J25,D25+J25) -> 0
A26: Decrease (increase) in non-current investments | J26: =SUM(E26:I26) -> 0 | K26: =IF(D26=0,C26+J26,D26+J26) -> 0
A27: Payments
A28: Capital assets | C28: -826763940.4 | I28: -67484854.97 | J28: =SUM(E28:I28) -> -67484854.97 | K28: =IF(D28=0,C28+J28,D28+J28) -> -894248795.4 | L28: -507974938 | M28: -503992600
A29: NET CASH FROM/(USED) INVESTING ACTIVITIES | C29: =+C23+C25+C26+C28 -> -826763940.4 | D29: =+D23+D25+D26+D28 -> 0 | E29: 0 | F29: 0 | G29: 0 | H29: 0 | I29: -67484854.97 | J29: -67484854.97 | K29: -894248795.4 | L29: -507974938 | M29: -503992600
A31: CASH FLOWS FROM FINANCING ACTIVITIES
A32: Receipts
A33: Short term loans | J33: =SUM(E33:I33) -> 0 | K33: =IF(D33=0,C33+J33,D33+J33) -> 0
A34: Borrowing long term/refinancing | C34: 234315856 | J34: =SUM(E34:I34) -> 0 | K34: =IF(D34=0,C34+J34,D34+J34) -> 234315856
A35: Increase (decrease) in consumer deposits | J35: =SUM(E35:I35) -> 0 | K35: =IF(D35=0,C35+J35,D35+J35) -> 0
A36: Payments
A37: Repayment of borrowing | C37: -90000000 | J37: =SUM(E37:I37) -> 0 | K37: =IF(D37=0,C37+J37,D37+J37) -> -90000000
A38: NET CASH FROM/(USED) FINANCING ACTIVITIES | C38: =SUM(C33:C35)+C37 -> 144315856 | D38: =SUM(D33:D35)+D37 -> 0 | E38: 0 | F38: 0 | G38: 0 | H38: 0 | I38: 0 | J38: =SUM(J33:J37) -> 0 | K38: =SUM(K33:K37) -> 144315856 | L38: =SUM(L33:L35)+L37 -> 0 | M38: =SUM(M33:M35)+M37 -> 0
A40: NET INCREASE/ (DECREASE) IN CASH HELD | C40: =C19+C29+C38 -> -86076166.26 | D40: =D19+D29+D38 -> 0 | E40: 0 | F40: 0 | G40: 0 | H40: 0 | I40: -76230915.88 | J40: -76230915.88 | K40: -162307082.1 | L40: 661444660 | M40: 260663381
A41: Cash/cash equivalents at the year begin: | B41: 2 | C41: 543528000 | I41: -47535265 | J41: =SUM(E41:I41) -> -47535265 | K41: =IF(D41=0,C41+J41,D41+J41) -> 495992735 | L41: 332823655.9 | M41: 994268315.9
A42: Cash/cash equivalents at the year end: | B42: 2 | C42: =C40+C41 -> 457451833.7 | D42: =D40+D41 -> 0 | E42: 0 | F42: 0 | G42: 0 | H42: 0 | I42: -123766180.9 | J42: -123766180.9 | K42: =K40+K41 -> 333685652.9 | L42: =L40+L41 -> 994268315.9 | M42: =M40+M41 -> 1254931697
A43: =head27a -> References
A44: 1. Local/District municipalities to include transfers from/to District/Local Municipalities
A45: 2. Cash equivalents includes investments with maturities of 3 months or less
A46: 3. Only complete if a previous adjusted budget has been approved in the same financial year. Reflect most recent adjusted budget.
A47: 4. Additional cash-backed accumulated funds/unspent funds (MFMA section 18(1)(b) and section 28(2)(e)) identified after the Original Budget approved and after annual financial statements audited (note: only where underspending could not reasonably have been foreseen)
A48: 5. Increases of funds approved under MFMA section 31
A49: 6. Adjustments approved in accordance with MFMA section 29
A50: 7. Adjustments to transfers from National or Provincial Government
A51: 8. Adjusts. = 'Other' Adjustments proposed to be approved; including revenue under-collection (MFMA section 28(2)(a)); additional revenue appropriation on existing programmes (section 28(2))(b); projected savings (section 28(2)(d)); error correction (section 28(2)(f))
A52: 9. G = B + C + D + E + F
A53: 10. Adjusted Budget H = (A or A1) + G

Sheet B8-ResRecon
A1: =muni&" - "&_ADJ8&" - "&Date -> Choose name from list - Table B8 Cash backed reserves/accumulated surplus reconciliation - 28.02.2025
A2: =desc -> Description | B2: =head27 -> Ref | C2: =Head2 -> Budget Year 2024/25 | L2: =Head10 -> Budget Year +1 2025/26 | M2: =Head11 -> Budget Year +2 2026/27
C3: =Head6 -> Original Budget | D3: =Head54 -> Prior Adjusted | E3: =Head51 -> Accum. Funds | F3: =Head52 -> Multi-year capital | G3: =Head53 -> Unfore. Unavoid. | H3: =Head55 -> Nat. or Prov. Govt | I3: =Head50 -> Other Adjusts. | J3: =Head56 -> Total Adjusts. | K3: =Head7 -> Adjusted Budget | L3: =Head7 -> Adjusted Budget | M3: =Head7 -> Adjusted Budget
D4: 3 | E4: 4 | F4: 5 | G4: 6 | H4: 7 | I4: 8 | J4: 9 | K4: 10
A5: R thousands | C5: A | D5: A1 | E5: B | F5: C | G5: D | H5: E | I5: F | J5: G | K5: H
A6: Cash and investments available
A7: Cash/cash equivalents at the year end | B7: 1 | C7: ='B7-CFlow'!C42 -> 457451833.7 | D7: ='B7-CFlow'!D42 -> 0 | E7: ='B7-CFlow'!E42 -> 0 | F7: ='B7-CFlow'!F42 -> 0 | G7: ='B7-CFlow'!G42 -> 0 | H7: ='B7-CFlow'!H42 -> 0 | I7: ='B7-CFlow'!I42 -> -123766180.9 | J7: =SUM(E7:I7) -> -123766180.9 | K7: =IF(D7=0,C7+J7,D7+J7) -> 333685652.9 | L7: ='B7-CFlow'!L42 -> 994268315.9 | M7: ='B7-CFlow'!M42 -> 1254931697
A8: Other current investments > 90 days | C8: ='B6-FinPos'!C8+'B6-FinPos'!C10-'B6-FinPos'!C32-'B8-ResRecon'!C7 -> 566698616.1 | D8: ='B6-FinPos'!D8+'B6-FinPos'!D10-'B6-FinPos'!D32-'B8-ResRecon'!D7 -> 0 | E8: ='B6-FinPos'!E8+'B6-FinPos'!E10-'B6-FinPos'!E32-'B8-ResRecon'!E7 -> 0 | F8: ='B6-FinPos'!F8+'B6-FinPos'!F10-'B6-FinPos'!F32-'B8-ResRecon'!F7 -> 0 | G8: ='B6-FinPos'!G8+'B6-FinPos'!G10-'B6-FinPos'!G32-'B8-ResRecon'!G7 -> 0 | H8: ='B6-FinPos'!H8+'B6-FinPos'!H10-'B6-FinPos'!H32-'B8-ResRecon'!H7 -> 0 | I8: ='B6-FinPos'!I8+'B6-FinPos'!I10-'B6-FinPos'!I32-'B8-ResRecon'!I7 -> 244806481.7 | J8: =SUM(E8:I8) -> 244806481.7 | K8: =IF(D8=0,C8+J8,D8+J8) -> 811505097.8 | L8: ='B6-FinPos'!L8+'B6-FinPos'!L10-'B6-FinPos'!L32-'B8-ResRecon'!L7 -> 847505568 | M8: ='B6-FinPos'!M8+'B6-FinPos'!M10-'B6-FinPos'!M32-'B8-ResRecon'!M7 -> 885643318
A9: Non current assets - Investments | B9: 1 | C9: ='B6-FinPos'!C17 -> 0 | D9: ='B6-FinPos'!D17 -> 0 | E9: ='B6-FinPos'!E17 -> 0 | F9: ='B6-FinPos'!F17 -> 0 | G9: ='B6-FinPos'!G17 -> 0 | H9: ='B6-FinPos'!H17 -> 0 | I9: ='B6-FinPos'!I17 -> 0 | J9: =SUM(E9:I9) -> 0 | K9: =IF(D9=0,C9+J9,D9+J9) -> 0 | L9: ='B6-FinPos'!L17 -> 974255981 | M9: ='B6-FinPos'!M17 -> 974255981
A10: Cash and investments available: | C10: =SUM(C7:C9) -> 1024150450 | D10: 0 | E10: 0 | F10: 0 | G10: 0 | H10: 0 | I10: 121040300.9 | J10: 121040300.9 | K10: 1145190751 | L10: 2816029865 | M10: 3114830996
A12: Applications of cash and investments
A13: Unspent conditional transfers | C13: ='SB2'!C142 -> 0 | D13: ='SB2'!D142 -> 0 | E13: ='SB2'!E142 -> 0 | F13: ='SB2'!F142 -> 0 | G13: ='SB2'!G142 -> 0 | H13: ='SB2'!H142 -> 0 | I13: ='SB2'!I142 -> 0 | J13: =SUM(E13:I13) -> 0 | K13: =IF(D13=0,C13+J13,D13+J13) -> 0 | L13: ='SB2'!L142 -> 0 | M13: ='SB2'!M142 -> 0
A14: Unspent borrowing | J14: 0 | K14: =IF(D14=0,C14+J14,D14+J14) -> 0
A15: Statutory requirements | C15: 196113356 | J15: 0 | K15: =IF(D15=0,C15+J15,D15+J15) -> 196113356
A16: Other working capital requirements | B16: 2 | C16: =-C40 -> -976701581.1 | D16: =-D40 -> 0 | I16: =IF(D16=0,(K16-C16)-SUM(E16:H16),(K16-D16)-SUM(E16:H16)) -> 70006348 | J16: 70006348 | K16: =-K40 -> -906695233.1 | L16: =-L40 -> -3018257311 | M16: =-M40 -> -2901302399
A17: Other provisions | C17: 61739437.12 | J17: 0 | K17: =IF(D17=0,C17+J17,D17+J17) -> 61739437.12
A18: Long term investments committed | C18: =C55 -> 0 | D18: =D55 -> 0 | I18: =IF(D18=0,(K18-C18)-SUM(E18:H18),(K18-D18)-SUM(E18:H18)) -> 0 | J18: 0 | K18: =K55 -> 0 | L18: =L55 -> 0 | M18: =M55 -> 0
A19: Reserves to be backed by cash/investments | C19: =C70 -> 0 | D19: =D70 -> 0 | I19: =IF(D19=0,(K19-C19)-SUM(E19:H19),(K19-D19)-SUM(E19:H19)) -> 0 | J19: 0 | K19: =K70 -> 0 | L19: =L70 -> 0 | M19: =M70 -> 0
A20: Total Application of cash and investments: | C20: =SUM(C13:C19) -> -718848787.9 | D20: 0 | E20: 0 | F20: 0 | G20: 0 | H20: 0 | I20: 70006348 | J20: 70006348 | K20: -648842439.9 | L20: -3018257311 | M20: -2901302399
A21: Surplus(shortfall) | C21: =C10-C20 -> 1742999238 | D21: 0 | E21: 0 | F21: 0 | G21: 0 | H21: 0 | I21: 51033952.86 | J21: 51033952.86 | K21: 1794033191 | L21: 5834287176 | M21: 6016133395
A22: =head27a -> References
A23: 1. Must reconcile with the Adjustments Budget Cash Flow and Adjustements Budget Financial Position
A24: 2. Council approval for policy required - include sufficient working capital (e.g. allowing for a % of current debtors > 90 days as uncollectable)
A25: 3. Only complete if a previous adjusted budget has been approved in the same financial year. Reflect most recent adjusted budget.
A26: 4. Additional cash-backed accumulated funds/unspent funds (MFMA section 18(1)(b) and section 28(2)(e)) identified after the Original Budget approved and after annual financial statements audited (note: only where underspending could not reasonably have been foreseen)
A27: 5. Increases of funds approved under MFMA section 31
A28: 6. Adjustments approved in accordance with MFMA section 29
A29: 7. Adjustments to transfers from National or Provincial Government
A30: 8. Adjusts. = 'Other' Adjustments proposed to be approved; including revenue under-collection (MFMA section 28(2)(a)); additional revenue appropriation on existing programmes (section 28(2))(b); projected savings (section 28(2)(d)); error correction (section 28(2)(f))
A31: 9. G = B + C + D + E + F
A32: 10. Adjusted Budget H = (A or A1) + G
A37: =A16 -> Other working capital requirements
A38: Debtors | C38: =IF(ISERROR(ROUND(C43*C44,0)),0,(ROUND(C43*C44,0))) -> 2690464477 | D38: =IF(ISERROR(ROUND(D43*D44,0)),0,(ROUND(D43*D44,0))) -> 0 | K38: =IF(ISERROR(ROUND(K43*K44,0)),0,(ROUND(K43*K44,0))) -> 2620458129 | L38: =IF(ISERROR(ROUND(L43*L44,0)),0,(ROUND(L43*L44,0))) -> 3018257311 | M38: =IF(ISERROR(ROUND(M43*M44,0)),0,(ROUND(M43*M44,0))) -> 2901302399
A39: Creditors due | C39: ='SB2'!C140 -> 1713762896 | D39: ='SB2'!D140 -> 0 | K39: ='SB2'!K140 -> 1713762896 | L39: ='SB2'!L140 -> 0 | M39: ='SB2'!M140 -> 0
A40: Total | C40: =C38-C39 -> 976701581.1 | D40: =D38-D39 -> 0 | K40: =K38-K39 -> 906695233.1 | L40: =L38-L39 -> 3018257311 | M40: =M38-M39 -> 2901302399
A42: Debtors collection assumptions:
A43: Balance outstanding - debtors | C43: ='B6-FinPos'!C9+'B6-FinPos'!C10+'B6-FinPos'!C11+'B6-FinPos'!C24+'B6-FinPos'!C25 -> 3460272072 | D43: ='B6-FinPos'!D9+'B6-FinPos'!D10+'B6-FinPos'!D11+'B6-FinPos'!D24+'B6-FinPos'!D25 -> 0 | K43: ='B6-FinPos'!K9+'B6-FinPos'!K10+'B6-FinPos'!K11+'B6-FinPos'!K24+'B6-FinPos'!K25 -> 3460272072 | L43: ='B6-FinPos'!L9+'B6-FinPos'!L10+'B6-FinPos'!L11+'B6-FinPos'!L24+'B6-FinPos'!L25 -> 3615984315 | M43: ='B6-FinPos'!M9+'B6-FinPos'!M10+'B6-FinPos'!M11+'B6-FinPos'!M24+'B6-FinPos'!M25 -> 3778703609
A44: Estimate of debtors collection rate | C44: =IF(ISERROR('SB6'!G10),0,('SB6'!G10)) -> 0.7775297496 | D44: =IF(ISERROR('SB6'!H10),0,('SB6'!H10)) -> 0 | K44: =IF(ISERROR('SB6'!I10),0,('SB6'!I10)) -> 0.7572982917 | L44: =IF(ISERROR('SB6'!J10),0,('SB6'!J10)) -> 0.8346986736 | M44: =IF(ISERROR('SB6'!K10),0,('SB6'!K10)) -> 0.7678036437
A46: =A18 -> Long term investments committed
A47: (Insert description; eg sinking fund)
C55: =SUM(C47:C54) -> 0 | D55: =SUM(D47:D54) -> 0 | K55: =SUM(K47:K54) -> 0 | L55: =SUM(L47:L54) -> 0 | M55: =SUM(M47:M54) -> 0
A57: =A19 -> Reserves to be backed by cash/investments
A58: Housing Development Fund | C58: =+'SB2'!C176 -> 0 | D58: =+'SB2'!D176 -> 0 | K58: =+'SB2'!K176 -> 0 | L58: =+'SB2'!L176 -> 0 | M58: =+'SB2'!M176 -> 0
A59: Capital replacement | C59: ='SB2'!C177 -> 0 | D59: ='SB2'!D177 -> 0 | K59: ='SB2'!K177 -> 0 | L59: ='SB2'!L177 -> 0 | M59: ='SB2'!M177 -> 0
A60: Self-insurance
A61: Compensation for Occupational Injuries and Diseases
A62: Employee Benefit
A63: Non-current Provisions
A64: Valuation
A65: Investment in associate account
A66: Capitalisation
C69: ='SB2'!C179 -> 0 | D69: ='SB2'!D179 -> 0 | K69: ='SB2'!K179 -> 0 | L69: ='SB2'!L179 -> 0 | M69: ='SB2'!M179 -> 0
C70: =SUM(C58:C69) -> 0 | D70: =SUM(D58:D69) -> 0 | K70: =SUM(K58:K69) -> 0 | L70: 0 | M70: 0

Sheet B9-Asset
A1: =muni&" - "&_ADJ9&" - "&Date -> Choose name from list - Table B9 Asset Management - 28.02.2025
A2: =desc -> Description | B2: =head27 -> Ref | C2: =Head2 -> Budget Year 2024/25 | L2: =Head10 -> Budget Year +1 2025/26 | M2: =Head11 -> Budget Year +2 2026/27
C3: =Head6 -> Original Budget | D3: =Head54 -> Prior Adjusted | E3: =Head51 -> Accum. Funds | F3: =Head52 -> Multi-year capital | G3: =Head53 -> Unfore. Unavoid. | H3: =Head55 -> Nat. or Prov. Govt | I3: =Head50 -> Other Adjusts. | J3: =Head56 -> Total Adjusts. | K3: =Head7 -> Adjusted Budget | L3: =Head7 -> Adjusted Budget | M3: =Head7 -> Adjusted Budget
D4: 7 | E4: 8 | F4: 9 | G4: 10 | H4: 11 | I4: 12 | J4: 13 | K4: 14
A5: R thousands | C5: A | D5: A1 | E5: B | F5: C | G5: D | H5: E | I5: F | J5: G | K5: H
A6: CAPITAL EXPENDITURE
A7: Total New Assets to be adjusted | B7: 1 | C7: =C17+C20+C21+C24+C27+C28+SUM(C31:C37)+C40 -> 575094687 | D7: =D17+D20+D21+D24+D27+D28+SUM(D31:D37)+D40 -> 0 | E7: 0 | F7: 0 | G7: 0 | H7: 0 | I7: 36709316.19 | J7: 36709316.19 | K7: 611804003.2 | L7: 255629757.2 | M7: 325804931.4
A8: Roads Infrastructure | C8: =SB18a!C9 -> 35420143.91 | D8: =SB18a!D9 -> 0 | E8: =SB18a!E9 -> 0 | F8: =SB18a!F9 -> 0 | G8: =SB18a!G9 -> 0 | H8: =SB18a!H9 -> 0 | I8: =SB18a!I9 -> -1672705 | J8: =SB18a!J9 -> -1672705 | K8: =SB18a!K9 -> 33747438.91 | L8: 53355000 | M8: 103690500
A9: Storm water Infrastructure | C9: =SB18a!C14 -> 0 | D9: =SB18a!D14 -> 0 | E9: =SB18a!E14 -> 0 | F9: =SB18a!F14 -> 0 | G9: =SB18a!G14 -> 0 | H9: =SB18a!H14 -> 0 | I9: =SB18a!I14 -> 0 | J9: =SB18a!J14 -> 0 | K9: =SB18a!K14 -> 0 | L9: 0 | M9: 0
A10: Electrical Infrastructure | C10: =SB18a!C18 -> 203032551.7 | D10: =SB18a!D18 -> 0 | E10: =SB18a!E18 -> 0 | F10: =SB18a!F18 -> 0 | G10: =SB18a!G18 -> 0 | H10: =SB18a!H18 -> 0 | I10: =SB18a!I18 -> -15316695.71 | J10: =SB18a!J18 -> -15316695.71 | K10: =SB18a!K18 -> 187715856 | L10: 16576718.2 | M10: 17697411.98
A11: Water Supply Infrastructure | C11: =SB18a!C28 -> 5320000 | D11: =SB18a!D28 -> 0 | E11: =SB18a!E28 -> 0 | F11: =SB18a!F28 -> 0 | G11: =SB18a!G28 -> 0 | H11: =SB18a!H28 -> 0 | I11: =SB18a!I28 -> 25452009 | J11: =SB18a!J28 -> 25452009 | K11: =SB18a!K28 -> 30772009 | L11: 0 | M11: 0
A12: Sanitation Infrastructure | C12: =SB18a!C39 -> 78223966.7 | D12: =SB18a!D39 -> 0 | E12: =SB18a!E39 -> 0 | F12: =SB18a!F39 -> 0 | G12: =SB18a!G39 -> 0 | H12: =SB18a!H39 -> 0 | I12: =SB18a!I39 -> 4954154.34 | J12: =SB18a!J39 -> 4954154.34 | K12: =SB18a!K39 -> 83178121.04 | L12: 60615098.18 | M12: 49007028.51
A13: Solid Waste Infrastructure | C13: =SB18a!C46 -> 0 | D13: =SB18a!D46 -> 0 | E13: =SB18a!E46 -> 0 | F13: =SB18a!F46 -> 0 | G13: =SB18a!G46 -> 0 | H13: =SB18a!H46 -> 0 | I13: =SB18a!I46 -> 0 | J13: =SB18a!J46 -> 0 | K13: =SB18a!K46 -> 0 | L13: 0 | M13: 0
A14: Rail Infrastructure | C14: =SB18a!C54 -> 0 | D14: =SB18a!D54 -> 0 | E14: =SB18a!E54 -> 0 | F14: =SB18a!F54 -> 0 | G14: =SB18a!G54 -> 0 | H14: =SB18a!H54 -> 0 | I14: =SB18a!I54 -> 0 | J14: =SB18a!J54 -> 0 | K14: =SB18a!K54 -> 0 | L14: 0 | M14: 0
A15: Coastal Infrastructure | C15: =SB18a!C64 -> 0 | D15: =SB18a!D64 -> 0 | E15: =SB18a!E64 -> 0 | F15: =SB18a!F64 -> 0 | G15: =SB18a!G64 -> 0 | H15: =SB18a!H64 -> 0 | I15: =SB18a!I64 -> 0 | J15: =SB18a!J64 -> 0 | K15: =SB18a!K64 -> 0 | L15: 0 | M15: 0
A16: Information and Communication Infrastructure | C16: =SB18a!C70 -> 0 | D16: =SB18a!D70 -> 0 | E16: =SB18a!E70 -> 0 | F16: =SB18a!F70 -> 0 | G16: =SB18a!G70 -> 0 | H16: =SB18a!H70 -> 0 | I16: =SB18a!I70 -> 0 | J16: =SB18a!J70 -> 0 | K16: =SB18a!K70 -> 0 | L16: 0 | M16: 0
A17: Infrastructure | C17: =SUM(C8:C16) -> 321996662.3 | D17: =SUM(D8:D16) -> 0 | E17: 0 | F17: 0 | G17: 0 | H17: 0 | I17: 13416762.63 | J17: 13416762.63 | K17: 335413424.9 | L17: 130546816.4 | M17: 170394940.5
A18: Community Facilities | C18: =SB18a!C77 -> 17641943.08 | D18: =SB18a!D77 -> 0 | E18: =SB18a!E77 -> 0 | F18: =SB18a!F77 -> 0 | G18: =SB18a!G77 -> 0 | H18: =SB18a!H77 -> 0 | I18: =SB18a!I77 -> 81493 | J18: =SB18a!J77 -> 81493 | K18: =SB18a!K77 -> 17723436.08 | L18: 14616720 | M18: 15941100
A19: Sport and Recreation Facilities | C19: =SB18a!C100 -> 0 | D19: =SB18a!D100 -> 0 | E19: =SB18a!E100 -> 0 | F19: =SB18a!F100 -> 0 | G19: =SB18a!G100 -> 0 | H19: =SB18a!H100 -> 0 | I19: =SB18a!I100 -> 0 | J19: =SB18a!J100 -> 0 | K19: =SB18a!K100 -> 0 | L19: 0 | M19: 0
A20: Community Assets | C20: =SUM(C18:C19) -> 17641943.08 | D20: =SUM(D18:D19) -> 0 | E20: 0 | F20: 0 | G20: 0 | H20: 0 | I20: 81493 | J20: 81493 | K20: 17723436.08 | L20: 14616720 | M20: 15941100
A21: Heritage Assets | C21: =SB18a!C105 -> 0 | D21: =SB18a!D105 -> 0 | E21: =SB18a!E105 -> 0 | F21: =SB18a!F105 -> 0 | G21: =SB18a!G105 -> 0 | H21: =SB18a!H105 -> 0 | I21: =SB18a!I105 -> 0 | J21: =SB18a!J105 -> 0 | K21: =SB18a!K105 -> 0 | L21: 0 | M21: 0
A22: Revenue Generating | C22: =SB18a!C113 -> 0 | D22: =SB18a!D113 -> 0 | E22: =SB18a!E113 -> 0 | F22: =SB18a!F113 -> 0 | G22: =SB18a!G113 -> 0 | H22: =SB18a!H113 -> 0 | I22: =SB18a!I113 -> 0 | J22: =SB18a!J113 -> 0 | K22: =SB18a!K113 -> 0 | L22: 0 | M22: 0
A23: Non-revenue Generating | C23: =SB18a!C116 -> 0 | D23: =SB18a!D116 -> 0 | E23: =SB18a!E116 -> 0 | F23: =SB18a!F116 -> 0 | G23: =SB18a!G116 -> 0 | H23: =SB18a!H116 -> 0 | I23: =SB18a!I116 -> 0 | J23: =SB18a!J116 -> 0 | K23: =SB18a!K116 -> 0 | L23: 0 | M23: 0
A24: Investment properties | C24: =SUM(C22:C23) -> 0 | D24: =SUM(D22:D23) -> 0 | E24: 0 | F24: 0 | G24: 0 | H24: 0 | I24: 0 | J24: 0 | K24: 0 | L24: 0 | M24: 0
A25: Operational Buildings | C25: =SB18a!C121 -> 4499000 | D25: =SB18a!D121 -> 0 | E25: =SB18a!E121 -> 0 | F25: =SB18a!F121 -> 0 | G25: =SB18a!G121 -> 0 | H25: =SB18a!H121 -> 0 | I25: =SB18a!I121 -> 29908986.91 | J25: =SB18a!J121 -> 29908986.91 | K25: =SB18a!K121 -> 34407986.91 | L25: 3257000 | M25: 35000
A26: Housing | C26: =SB18a!C133 -> 64518472.58 | D26: =SB18a!D133 -> 0 | E26: =SB18a!E133 -> 0 | F26: =SB18a!F133 -> 0 | G26: =SB18a!G133 -> 0 | H26: =SB18a!H133 -> 0 | I26: =SB18a!I133 -> 13870298.66 | J26: =SB18a!J133 -> 13870298.66 | K26: =SB18a!K133 -> 78388771.24 | L26: 5747742.205 | M26: 18000000
A27: Other Assets | B27: 6 | C27: =SUM(C25:C26) -> 69017472.58 | D27: =SUM(D25:D26) -> 0 | E27: 0 | F27: 0 | G27: 0 | H27: 0 | I27: 43779285.57 | J27: 43779285.57 | K27: 112796758.2 | L27: 9004742.205 | M27: 18035000
A28: Biological or Cultivated Assets | C28: =SB18a!C138 -> 0 | D28: =SB18a!D138 -> 0 | E28: =SB18a!E138 -> 0 | F28: =SB18a!F138 -> 0 | G28: =SB18a!G138 -> 0 | H28: =SB18a!H138 -> 0 | I28: =SB18a!I138 -> 0 | J28: =SB18a!J138 -> 0 | K28: =SB18a!K138 -> 0 | L28: 0 | M28: 0
A29: Servitudes | C29: =SB18a!C142 -> 25000000 | D29: =SB18a!D142 -> 0 | E29: =SB18a!E142 -> 0 | F29: =SB18a!F142 -> 0 | G29: =SB18a!G142 -> 0 | H29: =SB18a!H142 -> 0 | I29: =SB18a!I142 -> 650000 | J29: =SB18a!J142 -> 650000 | K29: =SB18a!K142 -> 25650000 | L29: 26125000 | M29: 26677875
A30: Licences and Rights | C30: =SB18a!C143 -> 900000 | D30: =SB18a!D143 -> 0 | E30: =SB18a!E143 -> 0 | F30: =SB18a!F143 -> 0 | G30: =SB18a!G143 -> 0 | H30: =SB18a!H143 -> 0 | I30: =SB18a!I143 -> -900000 | J30: =SB18a!J143 -> -900000 | K30: =SB18a!K143 -> 0 | L30: 832000 | M30: 865280
A31: Intangible Assets | C31: =SUM(C29:C30) -> 25900000 | D31: =SUM(D29:D30) -> 0 | E31: 0 | F31: 0 | G31: 0 | H31: 0 | I31: -250000 | J31: -250000 | K31: 25650000 | L31: 26957000 | M31: 27543155
A32: Computer Equipment | C32: =SB18a!C151 -> 0 | D32: =SB18a!D151 -> 0 | E32: =SB18a!E151 -> 0 | F32: =SB18a!F151 -> 0 | G32: =SB18a!G151 -> 0 | H32: =SB18a!H151 -> 0 | I32: =SB18a!I151 -> 0 | J32: =SB18a!J151 -> 0 | K32: =SB18a!K151 -> 0 | L32: 0 | M32: 0
A33: Furniture and Office Equipment | C33: =SB18a!C154 -> 77515559.01 | D33: =SB18a!D154 -> 0 | E33: =SB18a!E154 -> 0 | F33: =SB18a!F154 -> 0 | G33: =SB18a!G154 -> 0 | H33: =SB18a!H154 -> 0 | I33: =SB18a!I154 -> -46666606.01 | J33: =SB18a!J154 -> -46666606.01 | K33: =SB18a!K154 -> 30848953 | L33: 52844478.57 | M33: 73832985.95
A34: Machinery and Equipment | C34: =SB18a!C157 -> 44223050 | D34: =SB18a!D157 -> 0 | E34: =SB18a!E157 -> 0 | F34: =SB18a!F157 -> 0 | G34: =SB18a!G157 -> 0 | H34: =SB18a!H157 -> 0 | I34: =SB18a!I157 -> 27548381 | J34: =SB18a!J157 -> 27548381 | K34: =SB18a!K157 -> 71771431 | L34: 7060000 | M34: 5025000
A35: Transport Assets | C35: =SB18a!C160 -> 18800000 | D35: =SB18a!D160 -> 0 | E35: =SB18a!E160 -> 0 | F35: =SB18a!F160 -> 0 | G35: =SB18a!G160 -> 0 | H35: =SB18a!H160 -> 0 | I35: =SB18a!I160 -> -1200000 | J35: =SB18a!J160 -> -1200000 | K35: =SB18a!K160 -> 17600000 | L35: 14600000 | M35: 15032750
A36: Land | C36: =SB18a!C163 -> 0 | D36: =SB18a!D163 -> 0 | E36: =SB18a!E163 -> 0 | F36: =SB18a!F163 -> 0 | G36: =SB18a!G163 -> 0 | H36: =SB18a!H163 -> 0 | I36: =SB18a!I163 -> 0 | J36: =SB18a!J163 -> 0 | K36: =SB18a!K163 -> 0 | L36: 0 | M36: 0
A37: Zoo's, Marine and Non-biological Animals | C37: =SB18a!C166 -> 0 | D37: =SB18a!D166 -> 0 | E37: =SB18a!E166 -> 0 | F37: =SB18a!F166 -> 0 | G37: =SB18a!G166 -> 0 | H37: =SB18a!H166 -> 0 | I37: =SB18a!I166 -> 0 | J37: =SB18a!J166 -> 0 | K37: =SB18a!K166 -> 0 | L37: 0 | M37: 0
A38: Mature | C38: =+SB18a!C170 -> 0 | D38: =+SB18a!D170 -> 0 | E38: =+SB18a!E170 -> 0 | F38: =+SB18a!F170 -> 0 | G38: =+SB18a!G170 -> 0 | H38: =+SB18a!H170 -> 0 | I38: =+SB18a!I170 -> 0 | J38: =+SB18a!J170 -> 0 | K38: =+SB18a!K170 -> 0 | L38: 0 | M38: 0
A39: Immature | C39: =+SB18a!C173 -> 0 | D39: =+SB18a!D173 -> 0 | E39: =+SB18a!E173 -> 0 | F39: =+SB18a!F173 -> 0 | G39: =+SB18a!G173 -> 0 | H39: =+SB18a!H173 -> 0 | I39: =+SB18a!I173 -> 0 | J39: =+SB18a!J173 -> 0 | K39: =+SB18a!K173 -> 0 | L39: 0 | M39: 0
A40: Living Resources | C40: =+C38+C39 -> 0 | D40: =+D38+D39 -> 0 | E40: 0 | F40: 0 | G40: 0 | H40: 0 | I40: 0 | J40: 0 | K40: 0 | L40: 0 | M40: 0
A42: Total Renewal of Existing Assets to be adjusted | B42: 2 | C42: =C52+C55+C56+C59+C62+C63+SUM(C66:C72)+C75 -> 37531493 | D42: =D52+D55+D56+D59+D62+D63+SUM(D66:D72)+D75 -> 0 | E42: 0 | F42: 0 | G42: 0 | H42: 0 | I42: 2424664.37 | J42: 2424664.37 | K42: 39956157.37 | L42: 39155000 | M42: 31718800
A43: Roads Infrastructure | C43: =SB18b!C9 -> 29231493 | D43: =SB18b!D9 -> 0 | E43: =SB18b!E9 -> 0 | F43: =SB18b!F9 -> 0 | G43: =SB18b!G9 -> 0 | H43: =SB18b!H9 -> 0 | I43: =SB18b!I9 -> -2935335.87 | J43: =SB18b!J9 -> -2935335.87 | K43: =SB18b!K9 -> 26296157.13 | L43: 31065000 | M43: 23548750
A44: Storm water Infrastructure | C44: =SB18b!C14 -> 0 | D44: =SB18b!D14 -> 0 | E44: =SB18b!E14 -> 0 | F44: =SB18b!F14 -> 0 | G44: =SB18b!G14 -> 0 | H44: =SB18b!H14 -> 0 | I44: =SB18b!I14 -> 0 | J44: =SB18b!J14 -> 0 | K44: =SB18b!K14 -> 0 | L44: 0 | M44: 0
A45: Electrical Infrastructure | C45: =SB18b!C18 -> 0 | D45: =SB18b!D18 -> 0 | E45: =SB18b!E18 -> 0 | F45: =SB18b!F18 -> 0 | G45: =SB18b!G18 -> 0 | H45: =SB18b!H18 -> 0 | I45: =SB18b!I18 -> 4900000.24 | J45: =SB18b!J18 -> 4900000.24 | K45: =SB18b!K18 -> 4900000.24 | L45: 0 | M45: 0
A46: Water Supply Infrastructure | C46: =SB18b!C28 -> 5000000 | D46: =SB18b!D28 -> 0 | E46: =SB18b!E28 -> 0 | F46: =SB18b!F28 -> 0 | G46: =SB18b!G28 -> 0 | H46: =SB18b!H28 -> 0 | I46: =SB18b!I28 -> 0 | J46: =SB18b!J28 -> 0 | K46: =SB18b!K28 -> 5000000 | L46: 5210000 | M46: 5202050
A47: Sanitation Infrastructure | C47: =SB18b!C39 -> 0 | D47: =SB18b!D39 -> 0 | E47: =SB18b!E39 -> 0 | F47: =SB18b!F39 -> 0 | G47: =SB18b!G39 -> 0 | H47: =SB18b!H39 -> 0 | I47: =SB18b!I39 -> 0 | J47: =SB18b!J39 -> 0 | K47: =SB18b!K39 -> 0 | L47: 0 | M47: 0
A48: Solid Waste Infrastructure | C48: =SB18b!C46 -> 0 | D48: =SB18b!D46 -> 0 | E48: =SB18b!E46 -> 0 | F48: =SB18b!F46 -> 0 | G48: =SB18b!G46 -> 0 | H48: =SB18b!H46 -> 0 | I48: =SB18b!I46 -> 0 | J48: =SB18b!J46 -> 0 | K48: =SB18b!K46 -> 0 | L48: 0 | M48: 0
A49: Rail Infrastructure | C49: =SB18b!C54 -> 0 | D49: =SB18b!D54 -> 0 | E49: =SB18b!E54 -> 0 | F49: =SB18b!F54 -> 0 | G49: =SB18b!G54 -> 0 | H49: =SB18b!H54 -> 0 | I49: =SB18b!I54 -> 0 | J49: =SB18b!J54 -> 0 | K49: =SB18b!K54 -> 0 | L49: 0 | M49: 0
A50: Coastal Infrastructure | C50: =SB18b!C64 -> 0 | D50: =SB18b!D64 -> 0 | E50: =SB18b!E64 -> 0 | F50: =SB18b!F64 -> 0 | G50: =SB18b!G64 -> 0 | H50: =SB18b!H64 -> 0 | I50: =SB18b!I64 -> 0 | J50: =SB18b!J64 -> 0 | K50: =SB18b!K64 -> 0 | L50: 0 | M50: 0
A51: Information and Communication Infrastructure | C51: =SB18b!C70 -> 0 | D51: =SB18b!D70 -> 0 | E51: =SB18b!E70 -> 0 | F51: =SB18b!F70 -> 0 | G51: =SB18b!G70 -> 0 | H51: =SB18b!H70 -> 0 | I51: =SB18b!I70 -> 0 | J51: =SB18b!J70 -> 0 | K51: =SB18b!K70 -> 0 | L51: 0 | M51: 0
A52: Infrastructure | C52: =SUM(C43:C51) -> 34231493 | D52: =SUM(D43:D51) -> 0 | E52: 0 | F52: 0 | G52: 0 | H52: 0 | I52: 1964664.37 | J52: 1964664.37 | K52: 36196157.37 | L52: 36275000 | M52: 28750800
A53: Community Facilities | C53: =SB18b!C77 -> 0 | D53: =SB18b!D77 -> 0 | E53: =SB18b!E77 -> 0 | F53: =SB18b!F77 -> 0 | G53: =SB18b!G77 -> 0 | H53: =SB18b!H77 -> 0 | I53: =SB18b!I77 -> 0 | J53: =SB18b!J77 -> 0 | K53: =SB18b!K77 -> 0 | L53: 0 | M53: 0
A54: Sport and Recreation Facilities | C54: =SB18b!C100 -> 0 | D54: =SB18b!D100 -> 0 | E54: =SB18b!E100 -> 0 | F54: =SB18b!F100 -> 0 | G54: =SB18b!G100 -> 0 | H54: =SB18b!H100 -> 0 | I54: =SB18b!I100 -> 0 | J54: =SB18b!J100 -> 0 | K54: =SB18b!K100 -> 0 | L54: 0 | M54: 0
A55: Community Assets | C55: =SUM(C53:C54) -> 0 | D55: =SUM(D53:D54) -> 0 | E55: 0 | F55: 0 | G55: 0 | H55: 0 | I55: 0 | J55: 0 | K55: 0 | L55: 0 | M55: 0
A56: Heritage Assets | C56: =SB18b!C105 -> 0 | D56: =SB18b!D105 -> 0 | E56: =SB18b!E105 -> 0 | F56: =SB18b!F105 -> 0 | G56: =SB18b!G105 -> 0 | H56: =SB18b!H105 -> 0 | I56: =SB18b!I105 -> 0 | J56: =SB18b!J105 -> 0 | K56: =SB18b!K105 -> 0 | L56: 0 | M56: 0
A57: Revenue Generating | C57: =SB18b!C113 -> 0 | D57: =SB18b!D113 -> 0 | E57: =SB18b!E113 -> 0 | F57: =SB18b!F113 -> 0 | G57: =SB18b!G113 -> 0 | H57: =SB18b!H113 -> 0 | I57: =SB18b!I113 -> 0 | J57: =SB18b!J113 -> 0 | K57: =SB18b!K113 -> 0 | L57: 0 | M57: 0
A58: Non-revenue Generating | C58: =SB18b!C116 -> 0 | D58: =SB18b!D116 -> 0 | E58: =SB18b!E116 -> 0 | F58: =SB18b!F116 -> 0 | G58: =SB18b!G116 -> 0 | H58: =SB18b!H116 -> 0 | I58: =SB18b!I116 -> 0 | J58: =SB18b!J116 -> 0 | K58: =SB18b!K116 -> 0 | L58: 0 | M58: 0
A59: Investment properties | C59: =SUM(C57:C58) -> 0 | D59: =SUM(D57:D58) -> 0 | E59: 0 | F59: 0 | G59: 0 | H59: 0 | I59: 0 | J59: 0 | K59: 0 | L59: 0 | M59: 0
A60: Operational Buildings | C60: =SB18b!C121 -> 3300000 | D60: =SB18b!D121 -> 0 | E60: =SB18b!E121 -> 0 | F60: =SB18b!F121 -> 0 | G60: =SB18b!G121 -> 0 | H60: =SB18b!H121 -> 0 | I60: =SB18b!I121 -> 460000 | J60: =SB18b!J121 -> 460000 | K60: =SB18b!K121 -> 3760000 | L60: 2880000 | M60: 2968000
A61: Housing | C61: =SB18b!C133 -> 0 | D61: =SB18b!D133 -> 0 | E61: =SB18b!E133 -> 0 | F61: =SB18b!F133 -> 0 | G61: =SB18b!G133 -> 0 | H61: =SB18b!H133 -> 0 | I61: =SB18b!I133 -> 0 | J61: =SB18b!J133 -> 0 | K61: =SB18b!K133 -> 0 | L61: 0 | M61: 0
A62: Other Assets | B62: 6 | C62: =SUM(C60:C61) -> 3300000 | D62: =SUM(D60:D61) -> 0 | E62: 0 | F62: 0 | G62: 0 | H62: 0 | I62: 460000 | J62: 460000 | K62: 3760000 | L62: 2880000 | M62: 2968000
A63: Biological or Cultivated Assets | C63: =SB18b!C138 -> 0 | D63: =SB18b!D138 -> 0 | E63: =SB18b!E138 -> 0 | F63: =SB18b!F138 -> 0 | G63: =SB18b!G138 -> 0 | H63: =SB18b!H138 -> 0 | I63: =SB18b!I138 -> 0 | J63: =SB18b!J138 -> 0 | K63: =SB18b!K138 -> 0 | L63: 0 | M63: 0
A64: Servitudes | C64: =SB18b!C142 -> 0 | D64: =SB18b!D142 -> 0 | E64: =SB18b!E142 -> 0 | F64: =SB18b!F142 -> 0 | G64: =SB18b!G142 -> 0 | H64: =SB18b!H142 -> 0 | I64: =SB18b!I142 -> 0 | J64: =SB18b!J142 -> 0 | K64: =SB18b!K142 -> 0 | L64: 0 | M64: 0
A65: Licences and Rights | C65: =SB18b!C143 -> 0 | D65: =SB18b!D143 -> 0 | E65: =SB18b!E143 -> 0 | F65: =SB18b!F143 -> 0 | G65: =SB18b!G143 -> 0 | H65: =SB18b!H143 -> 0 | I65: =SB18b!I143 -> 0 | J65: =SB18b!J143 -> 0 | K65: =SB18b!K143 -> 0 | L65: 0 | M65: 0
A66: Intangible Assets | C66: =SUM(C64:C65) -> 0 | D66: =SUM(D64:D65) -> 0 | E66: 0 | F66: 0 | G66: 0 | H66: 0 | I66: 0 | J66: 0 | K66: 0 | L66: 0 | M66: 0
A67: Computer Equipment | C67: =SB18b!C151 -> 0 | D67: =SB18b!D151 -> 0 | E67: =SB18b!E151 -> 0 | F67: =SB18b!F151 -> 0 | G67: =SB18b!G151 -> 0 | H67: =SB18b!H151 -> 0 | I67: =SB18b!I151 -> 0 | J67: =SB18b!J151 -> 0 | K67: =SB18b!K151 -> 0 | L67: 0 | M67: 0
A68: Furniture and Office Equipment | C68: =SB18b!C154 -> 0 | D68: =SB18b!D154 -> 0 | E68: =SB18b!E154 -> 0 | F68: =SB18b!F154 -> 0 | G68: =SB18b!G154 -> 0 | H68: =SB18b!H154 -> 0 | I68: =SB18b!I154 -> 0 | J68: =SB18b!J154 -> 0 | K68: =SB18b!K154 -> 0 | L68: 0 | M68: 0
A69: Machinery and Equipment | C69: =SB18b!C157 -> 0 | D69: =SB18b!D157 -> 0 | E69: =SB18b!E157 -> 0 | F69: =SB18b!F157 -> 0 | G69: =SB18b!G157 -> 0 | H69: =SB18b!H157 -> 0 | I69: =SB18b!I157 -> 0 | J69: =SB18b!J157 -> 0 | K69: =SB18b!K157 -> 0 | L69: 0 | M69: 0
A70: Transport Assets | C70: =SB18b!C160 -> 0 | D70: =SB18b!D160 -> 0 | E70: =SB18b!E160 -> 0 | F70: =SB18b!F160 -> 0 | G70: =SB18b!G160 -> 0 | H70: =SB18b!H160 -> 0 | I70: =SB18b!I160 -> 0 | J70: =SB18b!J160 -> 0 | K70: =SB18b!K160 -> 0 | L70: 0 | M70: 0
A71: Land | C71: =SB18b!C163 -> 0 | D71: =SB18b!D163 -> 0 | E71: =SB18b!E163 -> 0 | F71: =SB18b!F163 -> 0 | G71: =SB18b!G163 -> 0 | H71: =SB18b!H163 -> 0 | I71: =SB18b!I163 -> 0 | J71: =SB18b!J163 -> 0 | K71: =SB18b!K163 -> 0 | L71: 0 | M71: 0
A72: Zoo's, Marine and Non-biological Animals | C72: =SB18b!C166 -> 0 | D72: =SB18b!D166 -> 0 | E72: =SB18b!E166 -> 0 | F72: =SB18b!F166 -> 0 | G72: =SB18b!G166 -> 0 | H72: =SB18b!H166 -> 0 | I72: =SB18b!I166 -> 0 | J72: =SB18b!J166 -> 0 | K72: =SB18b!K166 -> 0 | L72: 0 | M72: 0
A73: Mature | C73: =+SB18b!C170 -> 0 | D73: =+SB18b!D170 -> 0 | E73: =+SB18b!E170 -> 0 | F73: =+SB18b!F170 -> 0 | G73: =+SB18b!G170 -> 0 | H73: =+SB18b!H170 -> 0 | I73: =+SB18b!I170 -> 0 | J73: =+SB18b!J170 -> 0 | K73: =+SB18b!K170 -> 0 | L73: 0 | M73: 0
A74: Immature | C74: =+SB18b!C173 -> 0 | D74: =+SB18b!D173 -> 0 | E74: =+SB18b!E173 -> 0 | F74: =+SB18b!F173 -> 0 | G74: =+SB18b!G173 -> 0 | H74: =+SB18b!H173 -> 0 | I74: =+SB18b!I173 -> 0 | J74: =+SB18b!J173 -> 0 | K74: =+SB18b!K173 -> 0 | L74: 0 | M74: 0
A75: Living Resources | C75: =+C73+C74 -> 0 | D75: 0 | E75: 0 | F75: 0 | G75: 0 | H75: 0 | I75: 0 | J75: 0 | K75: 0 | L75: 0 | M75: 0
A77: Total Upgrading of Existing Assets to be adjusted | B77: 2a | C77: =C87+C90+C91+C94+C97+C98+SUM(C101:C107)+C110 -> 214137760.4 | D77: =D87+D90+D91+D94+D97+D98+SUM(D101:D107)+D110 -> 0 | E77: 0 | F77: 0 | G77: 0 | H77: 0 | I77: 28350874.41 | J77: 28350874.41 | K77: 242488634.8 | L77: 216022180.6 | M77: 237334148.6
A78: Roads Infrastructure | C78: =SB18e!C9 -> 96853525.31 | D78: =SB18e!D9 -> 0 | E78: =SB18e!E9 -> 0 | F78: =SB18e!F9 -> 0 | G78: =SB18e!G9 -> 0 | H78: =SB18e!H9 -> 0 | I78: =SB18e!I9 -> 12780248.78 | J78: =SB18e!J9 -> 12780248.78 | K78: =SB18e!K9 -> 109633774.1 | L78: 57857920 | M78: 43722800
A79: Storm water Infrastructure | C79: =SB18e!C14 -> 0 | D79: =SB18e!D14 -> 0 | E79: =SB18e!E14 -> 0 | F79: =SB18e!F14 -> 0 | G79: =SB18e!G14 -> 0 | H79: =SB18e!H14 -> 0 | I79: =SB18e!I14 -> 0 | J79: =SB18e!J14 -> 0 | K79: =SB18e!K14 -> 0 | L79: 0 | M79: 0
A80: Electrical Infrastructure | C80: =SB18e!C18 -> 10421000 | D80: =SB18e!D18 -> 0 | E80: =SB18e!E18 -> 0 | F80: =SB18e!F18 -> 0 | G80: =SB18e!G18 -> 0 | H80: =SB18e!H18 -> 0 | I80: =SB18e!I18 -> 8657000 | J80: =SB18e!J18 -> 8657000 | K80: =SB18e!K18 -> 19078000 | L80: 7550000 | M80: 10605000
A81: Water Supply Infrastructure | C81: =SB18e!C28 -> 35805000 | D81: =SB18e!D28 -> 0 | E81: =SB18e!E28 -> 0 | F81: =SB18e!F28 -> 0 | G81: =SB18e!G28 -> 0 | H81: =SB18e!H28 -> 0 | I81: =SB18e!I28 -> 37230988 | J81: =SB18e!J28 -> 37230988 | K81: =SB18e!K28 -> 73035988 | L81: 44098274 | M81: 42420000
A82: Sanitation Infrastructure | C82: =SB18e!C39 -> 18822668 | D82: =SB18e!D39 -> 0 | E82: =SB18e!E39 -> 0 | F82: =SB18e!F39 -> 0 | G82: =SB18e!G39 -> 0 | H82: =SB18e!H39 -> 0 | I82: =SB18e!I39 -> -5029751.47 | J82: =SB18e!J39 -> -5029751.47 | K82: =SB18e!K39 -> 13792916.53 | L82: 61200000 | M82: 65000000
A83: Solid Waste Infrastructure | C83: =SB18e!C46 -> 10000000 | D83: =SB18e!D46 -> 0 | E83: =SB18e!E46 -> 0 | F83: =SB18e!F46 -> 0 | G83: =SB18e!G46 -> 0 | H83: =SB18e!H46 -> 0 | I83: =SB18e!I46 -> 0 | J83: =SB18e!J46 -> 0 | K83: =SB18e!K46 -> 10000000 | L83: 10490000 | M83: 11014500
A84: Rail Infrastructure | C84: =SB18e!C54 -> 0 | D84: =SB18e!D54 -> 0 | E84: =SB18e!E54 -> 0 | F84: =SB18e!F54 -> 0 | G84: =SB18e!G54 -> 0 | H84: =SB18e!H54 -> 0 | I84: =SB18e!I54 -> 0 | J84: =SB18e!J54 -> 0 | K84: =SB18e!K54 -> 0 | L84: 0 | M84: 0
A85: Coastal Infrastructure | C85: =SB18e!C64 -> 0 | D85: =SB18e!D64 -> 0 | E85: =SB18e!E64 -> 0 | F85: =SB18e!F64 -> 0 | G85: =SB18e!G64 -> 0 | H85: =SB18e!H64 -> 0 | I85: =SB18e!I64 -> 0 | J85: =SB18e!J64 -> 0 | K85: =SB18e!K64 -> 0 | L85: 0 | M85: 0
A86: Information and Communication Infrastructure | C86: =SB18e!C70 -> 0 | D86: =SB18e!D70 -> 0 | E86: =SB18e!E70 -> 0 | F86: =SB18e!F70 -> 0 | G86: =SB18e!G70 -> 0 | H86: =SB18e!H70 -> 0 | I86: =SB18e!I70 -> 0 | J86: =SB18e!J70 -> 0 | K86: =SB18e!K70 -> 0 | L86: 0 | M86: 0
A87: Infrastructure | C87: =SUM(C78:C86) -> 171902193.3 | D87: =SUM(D78:D86) -> 0 | E87: 0 | F87: 0 | G87: 0 | H87: 0 | I87: 53638485.31 | J87: 53638485.31 | K87: 225540678.6 | L87: 181196194 | M87: 172762300
A88: Community Facilities | C88: =SB18e!C77 -> 0 | D88: =SB18e!D77 -> 0 | E88: =SB18e!E77 -> 0 | F88: =SB18e!F77 -> 0 | G88: =SB18e!G77 -> 0 | H88: =SB18e!H77 -> 0 | I88: =SB18e!I77 -> 0 | J88: =SB18e!J77 -> 0 | K88: =SB18e!K77 -> 0 | L88: 0 | M88: 0
A89: Sport and Recreation Facilities | C89: =SB18e!C100 -> 6952560 | D89: =SB18e!D100 -> 0 | E89: =SB18e!E100 -> 0 | F89: =SB18e!F100 -> 0 | G89: =SB18e!G100 -> 0 | H89: =SB18e!H100 -> 0 | I89: =SB18e!I100 -> 3133000 | J89: =SB18e!J100 -> 3133000 | K89: =SB18e!K100 -> 10085560 | L89: 7308360 | M89: 7970550
A90: Community Assets | C90: =SUM(C88:C89) -> 6952560 | D90: =SUM(D88:D89) -> 0 | E90: 0 | F90: 0 | G90: 0 | H90: 0 | I90: 3133000 | J90: 3133000 | K90: 10085560 | L90: 7308360 | M90: 7970550
A91: Heritage Assets | C91: =SB18e!C105 -> 0 | D91: =SB18e!D105 -> 0 | E91: =SB18e!E105 -> 0 | F91: =SB18e!F105 -> 0 | G91: =SB18e!G105 -> 0 | H91: =SB18e!H105 -> 0 | I91: =SB18e!I105 -> 0 | J91: =SB18e!J105 -> 0 | K91: =SB18e!K105 -> 0 | L91: 0 | M91: 0
A92: Revenue Generating | C92: =SB18e!C113 -> 0 | D92: =SB18e!D113 -> 0 | E92: =SB18e!E113 -> 0 | F92: =SB18e!F113 -> 0 | G92: =SB18e!G113 -> 0 | H92: =SB18e!H113 -> 0 | I92: =SB18e!I113 -> 0 | J92: =SB18e!J113 -> 0 | K92: =SB18e!K113 -> 0 | L92: 0 | M92: 0
A93: Non-revenue Generating | C93: =SB18e!C116 -> 0 | D93: =SB18e!D116 -> 0 | E93: =SB18e!E116 -> 0 | F93: =SB18e!F116 -> 0 | G93: =SB18e!G116 -> 0 | H93: =SB18e!H116 -> 0 | I93: =SB18e!I116 -> 0 | J93: =SB18e!J116 -> 0 | K93: =SB18e!K116 -> 0 | L93: 0 | M93: 0
A94: Investment properties | C94: =SUM(C92:C93) -> 0 | D94: =SUM(D92:D93) -> 0 | E94: 0 | F94: 0 | G94: 0 | H94: 0 | I94: 0 | J94: 0 | K94: 0 | L94: 0 | M94: 0
A95: Operational Buildings | C95: =SB18e!C121 -> 22000031.12 | D95: =SB18e!D121 -> 0 | E95: =SB18e!E121 -> 0 | F95: =SB18e!F121 -> 0 | G95: =SB18e!G121 -> 0 | H95: =SB18e!H121 -> 0 | I95: =SB18e!I121 -> -19937634.9 | J95: =SB18e!J121 -> -19937634.9 | K95: =SB18e!K121 -> 2062396.22 | L95: 27517626.64 | M95: 56601298.56
A96: Housing | C96: =SB18e!C133 -> 13282976 | D96: =SB18e!D133 -> 0 | E96: =SB18e!E133 -> 0 | F96: =SB18e!F133 -> 0 | G96: =SB18e!G133 -> 0 | H96: =SB18e!H133 -> 0 | I96: =SB18e!I133 -> -8482976 | J96: =SB18e!J133 -> -8482976 | K96: =SB18e!K133 -> 4800000 | L96: 0 | M96: 0
A97: Other Assets | B97: 6 | C97: =SUM(C95:C96) -> 35283007.12 | D97: =SUM(D95:D96) -> 0 | E97: 0 | F97: 0 | G97: 0 | H97: 0 | I97: -28420610.9 | J97: -28420610.9 | K97: 6862396.22 | L97: 27517626.64 | M97: 56601298.56
A98: Biological or Cultivated Assets | C98: =SB18e!C138 -> 0 | D98: =SB18e!D138 -> 0 | E98: =SB18e!E138 -> 0 | F98: =SB18e!F138 -> 0 | G98: =SB18e!G138 -> 0 | H98: =SB18e!H138 -> 0 | I98: =SB18e!I138 -> 0 | J98: =SB18e!J138 -> 0 | K98: =SB18e!K138 -> 0 | L98: 0 | M98: 0
A99: Servitudes | C99: =SB18e!C142 -> 0 | D99: =SB18e!D142 -> 0 | E99: =SB18e!E142 -> 0 | F99: =SB18e!F142 -> 0 | G99: =SB18e!G142 -> 0 | H99: =SB18e!H142 -> 0 | I99: =SB18e!I142 -> 0 | J99: =SB18e!J142 -> 0 | K99: =SB18e!K142 -> 0 | L99: 0 | M99: 0
A100: Licences and Rights | C100: =SB18e!C143 -> 0 | D100: =SB18e!D143 -> 0 | E100: =SB18e!E143 -> 0 | F100: =SB18e!F143 -> 0 | G100: =SB18e!G143 -> 0 | H100: =SB18e!H143 -> 0 | I100: =SB18e!I143 -> 0 | J100: =SB18e!J143 -> 0 | K100: =SB18e!K143 -> 0 | L100: 0 | M100: 0
A101: Intangible Assets | C101: =SUM(C99:C100) -> 0 | D101: =SUM(D99:D100) -> 0 | E101: 0 | F101: 0 | G101: 0 | H101: 0 | I101: 0 | J101: 0 | K101: 0 | L101: 0 | M101: 0
A102: Computer Equipment | C102: =SB18e!C151 -> 0 | D102: =SB18e!D151 -> 0 | E102: =SB18e!E151 -> 0 | F102: =SB18e!F151 -> 0 | G102: =SB18e!G151 -> 0 | H102: =SB18e!H151 -> 0 | I102: =SB18e!I151 -> 0 | J102: =SB18e!J151 -> 0 | K102: =SB18e!K151 -> 0 | L102: 0 | M102: 0
A103: Furniture and Office Equipment | C103: =SB18e!C154 -> 0 | D103: =SB18e!D154 -> 0 | E103: =SB18e!E154 -> 0 | F103: =SB18e!F154 -> 0 | G103: =SB18e!G154 -> 0 | H103: =SB18e!H154 -> 0 | I103: =SB18e!I154 -> 0 | J103: =SB18e!J154 -> 0 | K103: =SB18e!K154 -> 0 | L103: 0 | M103: 0
A104: Machinery and Equipment | C104: =SB18e!C157 -> 0 | D104: =SB18e!D157 -> 0 | E104: =SB18e!E157 -> 0 | F104: =SB18e!F157 -> 0 | G104: =SB18e!G157 -> 0 | H104: =SB18e!H157 -> 0 | I104: =SB18e!I157 -> 0 | J104: =SB18e!J157 -> 0 | K104: =SB18e!K157 -> 0 | L104: 0 | M104: 0
A105: Transport Assets | C105: =SB18e!C160 -> 0 | D105: =SB18e!D160 -> 0 | E105: =SB18e!E160 -> 0 | F105: =SB18e!F160 -> 0 | G105: =SB18e!G160 -> 0 | H105: =SB18e!H160 -> 0 | I105: =SB18e!I160 -> 0 | J105: =SB18e!J160 -> 0 | K105: =SB18e!K160 -> 0 | L105: 0 | M105: 0
A106: Land | C106: =SB18e!C163 -> 0 | D106: =SB18e!D163 -> 0 | E106: =SB18e!E163 -> 0 | F106: =SB18e!F163 -> 0 | G106: =SB18e!G163 -> 0 | H106: =SB18e!H163 -> 0 | I106: =SB18e!I163 -> 0 | J106: =SB18e!J163 -> 0 | K106: =SB18e!K163 -> 0 | L106: 0 | M106: 0
A107: Zoo's, Marine and Non-biological Animals | C107: =SB18e!C166 -> 0 | D107: =SB18e!D166 -> 0 | E107: =SB18e!E166 -> 0 | F107: =SB18e!F166 -> 0 | G107: =SB18e!G166 -> 0 | H107: =SB18e!H166 -> 0 | I107: =SB18e!I166 -> 0 | J107: =SB18e!J166 -> 0 | K107: =SB18e!K166 -> 0 | L107: 0 | M107: 0
A108: Mature | C108: =SB18e!C170 -> 0 | D108: =SB18e!D170 -> 0 | E108: =SB18e!E170 -> 0 | F108: =SB18e!F170 -> 0 | G108: =SB18e!G170 -> 0 | H108: =SB18e!H170 -> 0 | I108: =SB18e!I170 -> 0 | J108: =SB18e!J170 -> 0 | K108: =SB18e!K170 -> 0 | L108: 0 | M108: 0
A109: Immature | C109: =SB18e!C173 -> 0 | D109: =SB18e!D173 -> 0 | E109: =SB18e!E173 -> 0 | F109: =SB18e!F173 -> 0 | G109: =SB18e!G173 -> 0 | H109: =SB18e!H173 -> 0 | I109: =SB18e!I173 -> 0 | J109: =SB18e!J173 -> 0 | K109: =SB18e!K173 -> 0 | L109: 0 | M109: 0
A110: Living Resources | C110: =+C108+C109 -> 0 | D110: 0 | E110: 0 | F110: 0 | G110: 0 | H110: 0 | I110: 0 | J110: 0 | K110: 0 | L110: 0 | M110: 0
A112: Total Capital Expenditure to be adjusted | B112: 4 | C112: =C7+C42+C77 -> 826763940.4 | D112: 0 | E112: 0 | F112: 0 | G112: 0 | H112: 0 | I112: 67484854.97 | J112: 67484854.97 | K112: 894248795.4 | L112: 510806937.8 | M112: 594857880
A113: Roads Infrastructure | C113: =C8+C43+C78 -> 161505162.2 | D113: 0 | E113: 0 | F113: 0 | G113: 0 | H113: 0 | I113: 8172207.91 | J113: 8172207.91 | K113: 169677370.1 | L113: 142277920 | M113: 170962050
A114: Storm water Infrastructure | C114: =C9+C44+C79 -> 0 | D114: 0 | E114: 0 | F114: 0 | G114: 0 | H114: 0 | I114: 0 | J114: 0 | K114: 0 | L114: 0 | M114: 0
A115: Electrical Infrastructure | C115: =C10+C45+C80 -> 213453551.7 | D115: 0 | E115: 0 | F115: 0 | G115: 0 | H115: 0 | I115: -1759695.47 | J115: -1759695.47 | K115: 211693856.2 | L115: 24126718.2 | M115: 28302411.98
A116: Water Supply Infrastructure | C116: =C11+C46+C81 -> 46125000 | D116: 0 | E116: 0 | F116: 0 | G116: 0 | H116: 0 | I116: 62682997 | J116: 62682997 | K116: 108807997 | L116: 49308274 | M116: 47622050
A117: Sanitation Infrastructure | C117: =C12+C47+C82 -> 97046634.7 | D117: 0 | E117: 0 | F117: 0 | G117: 0 | H117: 0 | I117: -75597.13 | J117: -75597.13 | K117: 96971037.57 | L117: 121815098.2 | M117: 114007028.5
A118: Solid Waste Infrastructure | C118: =C13+C48+C83 -> 10000000 | D118: 0 | E118: 0 | F118: 0 | G118: 0 | H118: 0 | I118: 0 | J118: 0 | K118: 10000000 | L118: 10490000 | M118: 11014500
A119: Rail Infrastructure | C119: =C14+C49+C84 -> 0 | D119: 0 | E119: 0 | F119: 0 | G119: 0 | H119: 0 | I119: 0 | J119: 0 | K119: 0 | L119: 0 | M119: 0
A120: Coastal Infrastructure | C120: =C15+C50+C85 -> 0 | D120: 0 | E120: 0 | F120: 0 | G120: 0 | H120: 0 | I120: 0 | J120: 0 | K120: 0 | L120: 0 | M120: 0
A121: Information and Communication Infrastructure | C121: =C16+C51+C86 -> 0 | D121: 0 | E121: 0 | F121: 0 | G121: 0 | H121: 0 | I121: 0 | J121: 0 | K121: 0 | L121: 0 | M121: 0
A122: Infrastructure | C122: =C17+C52+C87 -> 528130348.6 | D122: 0 | E122: 0 | F122: 0 | G122: 0 | H122: 0 | I122: 69019912.31 | J122: 69019912.31 | K122: 597150260.9 | L122: 348018010.4 | M122: 371908040.5
A123: Community Facilities | C123: =C18+C53+C88 -> 17641943.08 | D123: 0 | E123: 0 | F123: 0 | G123: 0 | H123: 0 | I123: 81493 | J123: 81493 | K123: 17723436.08 | L123: 14616720 | M123: 15941100
A124: Sport and Recreation Facilities | C124: =C19+C54+C89 -> 6952560 | D124: 0 | E124: 0 | F124: 0 | G124: 0 | H124: 0 | I124: 3133000 | J124: 3133000 | K124: 10085560 | L124: 7308360 | M124: 7970550
A125: Community Assets | C125: =C20+C55+C90 -> 24594503.08 | D125: 0 | E125: 0 | F125: 0 | G125: 0 | H125: 0 | I125: 3214493 | J125: 3214493 | K125: 27808996.08 | L125: 21925080 | M125: 23911650
A126: Heritage Assets | C126: =C21+C56+C91 -> 0 | D126: 0 | E126: 0 | F126: 0 | G126: 0 | H126: 0 | I126: 0 | J126: 0 | K126: 0 | L126: 0 | M126: 0
A127: Revenue Generating | C127: =C22+C57+C92 -> 0 | D127: 0 | E127: 0 | F127: 0 | G127: 0 | H127: 0 | I127: 0 | J127: 0 | K127: 0 | L127: 0 | M127: 0
A128: Non-revenue Generating | C128: =C23+C58+C93 -> 0 | D128: =D23+D58+D93 -> 0 | E128: 0 | F128: 0 | G128: 0 | H128: 0 | I128: 0 | J128: 0 | K128: 0 | L128: 0 | M128: 0
A129: Investment properties | C129: 0 | D129: =D24+D59+D94 -> 0 | E129: 0 | F129: 0 | G129: 0 | H129: 0 | I129: 0 | J129: 0 | K129: 0 | L129: 0 | M129: 0
A130: Operational Buildings | C130: 29799031.12 | D130: =D25+D60+D95 -> 0 | E130: 0 | F130: 0 | G130: 0 | H130: 0 | I130: 10431352.01 | J130: 10431352.01 | K130: 40230383.13 | L130: 33654626.64 | M130: 59604298.56
A131: Housing | C131: 77801448.58 | D131: =D26+D61+D96 -> 0 | E131: 0 | F131: 0 | G131: 0 | H131: 0 | I131: 5387322.66 | J131: 5387322.66 | K131: 83188771.24 | L131: 5747742.205 | M131: 18000000
A132: Other Assets | C132: 107600479.7 | D132: =D27+D62+D97 -> 0 | E132: 0 | F132: 0 | G132: 0 | H132: 0 | I132: 15818674.67 | J132: 15818674.67 | K132: 123419154.4 | L132: 39402368.84 | M132: 77604298.56
A133: Biological or Cultivated Assets | C133: 0 | D133: =D28+D63+D98 -> 0 | E133: 0 | F133: 0 | G133: 0 | H133: 0 | I133: 0 | J133: 0 | K133: 0 | L133: 0 | M133: 0
A134: Servitudes | C134: 25000000 | D134: =D29+D64+D99 -> 0 | E134: 0 | F134: 0 | G134: 0 | H134: 0 | I134: 650000 | J134: 650000 | K134: 25650000 | L134: 26125000 | M134: 26677875
A135: Licences and Rights | C135: 900000 | D135: =D30+D65+D100 -> 0 | E135: 0 | F135: 0 | G135: 0 | H135: 0 | I135: -900000 | J135: -900000 | K135: 0 | L135: 832000 | M135: 865280
A136: Intangible Assets | C136: 25900000 | D136: =D31+D66+D101 -> 0 | E136: 0 | F136: 0 | G136: 0 | H136: 0 | I136: -250000 | J136: -250000 | K136: 25650000 | L136: 26957000 | M136: 27543155
A137: Computer Equipment | C137: 0 | D137: =D32+D67+D102 -> 0 | E137: 0 | F137: 0 | G137: 0 | H137: 0 | I137: 0 | J137: 0 | K137: 0 | L137: 0 | M137: 0
A138: Furniture and Office Equipment | C138: 77515559.01 | D138: =D33+D68+D103 -> 0 | E138: 0 | F138: 0 | G138: 0 | H138: 0 | I138: -46666606.01 | J138: -46666606.01 | K138: 30848953 | L138: 52844478.57 | M138: 73832985.95
A139: Machinery and Equipment | C139: 44223050 | D139: =D34+D69+D104 -> 0 | E139: 0 | F139: 0 | G139: 0 | H139: 0 | I139: 27548381 | J139: 27548381 | K139: 71771431 | L139: 7060000 | M139: 5025000
A140: Transport Assets | C140: 18800000 | D140: =D35+D70+D105 -> 0 | E140: 0 | F140: 0 | G140: 0 | H140: 0 | I140: -1200000 | J140: -1200000 | K140: 17600000 | L140: 14600000 | M140: 15032750
A141: Land | C141: 0 | D141: =D36+D71+D106 -> 0 | E141: 0 | F141: 0 | G141: 0 | H141: 0 | I141: 0 | J141: 0 | K141: 0 | L141: 0 | M141: 0
A142: Zoo's, Marine and Non-biological Animals | C142: 0 | D142: =D37+D72+D107 -> 0 | E142: 0 | F142: 0 | G142: 0 | H142: 0 | I142: 0 | J142: 0 | K142: 0 | L142: 0 | M142: 0
A143: Mature | C143: 0 | D143: 0 | E143: 0 | F143: 0 | G143: 0 | H143: 0 | I143: 0 | J143: 0 | K143: 0 | L143: 0 | M143: 0
A144: Immature | C144: 0 | D144: 0 | E144: 0 | F144: 0 | G144: 0 | H144: 0 | I144: 0 | J144: 0 | K144: 0 | L144: 0 | M144: 0
A145: Living Resources | C145: =+C40+C75+C110 -> 0 | D145: =+D40+D75+D110 -> 0 | E145: 0 | F145: 0 | G145: 0 | H145: 0 | I145: 0 | J145: 0 | K145: 0 | L145: 0 | M145: 0
A146: TOTAL CAPITAL EXPENDITURE to be adjusted | B146: 4 | C146: =C7+C42+C77 -> 826763940.4 | D146: =D7+D42+D77 -> 0 | E146: 0 | F146: 0 | G146: 0 | H146: 0 | I146: 67484854.97 | J146: 67484854.97 | K146: 894248795.4 | L146: 510806937.8 | M146: 594857880
A148: ASSET REGISTER SUMMARY - PPE (WDV) | B148: 5 | C148: =C158+C161+C162+C165+C168+C169+SUM(C172:C179) -> 7632814749 | D148: =D158+D161+D162+D165+D168+D169+SUM(D172:D179) -> 0 | E148: 0 | F148: 0 | G148: 0 | H148: 0 | I148: 0 | J148: 0 | K148: 7632814749 | L148: 7983924227 | M148: 8343200817
A149: =+A8 -> Roads Infrastructure | C149: 1854587624 | J149: =SUM(E149:I149) -> 0 | K149: =IF(D149=0,C149+J149,D149+J149) -> 1854587624 | L149: 1939898655 | M149: 2027194094
A150: Storm water Infrastructure | C150: 629812396.3 | J150: 0 | K150: =IF(D150=0,C150+J150,D150+J150) -> 629812396.3 | L150: 658783766.5 | M150: 688429036
A151: Electrical Infrastructure | C151: 1119675694 | J151: 0 | K151: =IF(D151=0,C151+J151,D151+J151) -> 1119675694 | L151: 1171180776 | M151: 1223883911
A152: Water Supply Infrastructure | C152: 530371733.5 | J152: 0 | K152: =IF(D152=0,C152+J152,D152+J152) -> 530371733.5 | L152: 554768833.3 | M152: 579733430.8
A153: Sanitation Infrastructure | C153: 490732423 | J153: 0 | K153: =IF(D153=0,C153+J153,D153+J153) -> 490732423 | L153: 513306114.4 | M153: 536404889.6
A154: Solid Waste Infrastructure | C154: 30651115.82 | J154: 0 | K154: 30651115.82 | L154: 32061067.15 | M154: 33503815.17
A155: Rail Infrastructure | C155: 709640.32 | J155: 0 | K155: 709640.32 | L155: 742283.7747 | M155: 775686.5446
A156: Coastal Infrastructure | C156: 0 | J156: 0 | K156: 0 | L156: 0 | M156: 0
A157: Information and Communication Infrastructure | C157: 0 | J157: 0 | K157: 0
A158: Infrastructure | C158: =SUM(C149:C157) -> 4656540627 | D158: 0 | E158: 0 | F158: 0 | G158: 0 | H158: 0 | I158: 0 | J158: 0 | K158: 4656540627 | L158: =SUM(L149:L157) -> 4870741496 | M158: =SUM(M149:M157) -> 5089924864
A161: =+A20 -> Community Assets | C161: 307151274 | J161: =SUM(E161:I161) -> 0 | K161: =IF(D161=0,C161+J161,D161+J161) -> 307151274 | L161: 321280232.6 | M161: 335737843.1
A162: =+A21 -> Heritage Assets | C162: 291269523.1 | J162: =SUM(E162:I162) -> 0 | K162: 291269523.1 | L162: 304667921.2 | M162: 318377977.7
L163: 0 | M163: 0
L164: 0 | M164: 0
A165: =+A24 -> Investment properties | C165: 980293495 | J165: =SUM(E165:I165) -> 0 | K165: =IF(D165=0,C165+J165,D165+J165) -> 980293495 | L165: 1025386996 | M165: 1071529411
L166: 0 | M166: 0
L167: 0 | M167: 0
A168: =+A27 -> Other Assets | C168: 266038697.2 | J168: =SUM(E168:I168) -> 0 | K168: =IF(D168=0,C168+J168,D168+J168) -> 266038697.2 | L168: 278276477.3 | M168: 290798918.7
A169: =+A28 -> Biological or Cultivated Assets | C169: 80958443.4 | J169: =SUM(E169:I169) -> 0 | K169: =IF(D169=0,C169+J169,D169+J169) -> 80958443.4 | L169: 84682531.8 | M169: 88493245.73
C170: 0 | L170: 0 | M170: 0
C171: 0 | L171: 0 | M171: 0
A172: =+A31 -> Intangible Assets | C172: 25666052.42 | J172: =SUM(E172:I172) -> 0 | K172: =IF(D172=0,C172+J172,D172+J172) -> 25666052.42 | L172: 26846690.83 | M172: 28054791.92
A173: Computer Equipment | C173: 49259381.9 | J173: =SUM(E173:I173) -> 0 | K173: =IF(D173=0,C173+J173,D173+J173) -> 49259381.9 | L173: 51525313.47 | M173: 53843952.57
A174: Furniture and Office Equipment | C174: 19530367.5 | J174: 0 | K174: 19530367.5 | L174: 20428764.41 | M174: 21348058.8
A175: Machinery and Equipment | C175: 90737563.5 | J175: 0 | K175: 90737563.5 | L175: 94911491.42 | M175: 99182508.53
A176: Transport Assets | C176: 110196977.8 | J176: 0 | K176: 110196977.8 | L176: 115266038.8 | M176: 120453010.5
A177: Land | C177: 755172345.5 | J177: 0 | K177: 755172345.5 | L177: 789910273.4 | M177: 825456235.7
A178: Zoo's, Marine and Non-biological Animals | J178: 0 | K178: 0
A179: Living Resources
A180: TOTAL ASSET REGISTER SUMMARY - PPE (WDV) | B180: 5 | C180: =C158+C161+C162+C165+C168+C169+SUM(C172:C179) -> 7632814749 | D180: =D158+D161+D162+D165+D168+D169+SUM(D172:D179) -> 0 | E180: 0 | F180: 0 | G180: 0 | H180: 0 | I180: 0 | J180: 0 | K180: 7632814749 | L180: 7983924227 | M180: 8343200817
A182: EXPENDITURE OTHER ITEMS
A183: Depreciation & asset impairment | C183: =SB18d!C177 -> 363040744.5 | D183: =SB18d!D177 -> 0 | E183: =SB18d!E177 -> 0 | F183: =SB18d!F177 -> 0 | G183: =SB18d!G177 -> 0 | H183: =SB18d!H177 -> 0 | I183: =SB18d!I177 -> 0 | J183: =SB18d!J177 -> 0 | K183: =SB18d!K177 -> 363040744.5 | L183: 915364649 | M183: 956977289.8
A184: Repairs and Maintenance by asset class | B184: 3 | C184: =C194+C197+C198+C201+C204+C205+SUM(C208:C214)+C217 -> 521496383.6 | D184: =D194+D197+D198+D201+D204+D205+SUM(D208:D214)+D217 -> 0 | E184: 0 | F184: 0 | G184: 0 | H184: 0 | I184: -116229645 | J184: -116229645 | K184: 405266738.6 | L184: 349782306.6 | M184: 345694135.9
A185: =+A8 -> Roads Infrastructure | C185: =SB18c!C9 -> 0 | D185: =SB18c!D9 -> 0 | E185: =SB18c!E9 -> 0 | F185: =SB18c!F9 -> 0 | G185: =SB18c!G9 -> 0 | H185: =SB18c!H9 -> 0 | I185: =SB18c!I9 -> 0 | J185: =SB18c!J9 -> 0 | K185: =SB18c!K9 -> 0 | L185: 565582342.4 | M185: 611283153.9
A186: Storm water Infrastructure | C186: =SB18c!C14 -> 0 | D186: =SB18c!D14 -> 0 | E186: =SB18c!E14 -> 0 | F186: =SB18c!F14 -> 0 | G186: =SB18c!G14 -> 0 | H186: =SB18c!H14 -> 0 | I186: =SB18c!I14 -> 0 | J186: =SB18c!J14 -> 0 | K186: =SB18c!K14 -> 0 | L186: 0 | M186: 0
A187: Electrical Infrastructure | C187: =SB18c!C18 -> 154375000 | D187: =SB18c!D18 -> 0 | E187: =SB18c!E18 -> 0 | F187: =SB18c!F18 -> 0 | G187: =SB18c!G18 -> 0 | H187: =SB18c!H18 -> 0 | I187: =SB18c!I18 -> -21150000 | J187: =SB18c!J18 -> -21150000 | K187: =SB18c!K18 -> 133225000 | L187: 0 | M187: 0
A188: Water Supply Infrastructure | C188: =SB18c!C28 -> 13600000 | D188: =SB18c!D28 -> 0 | E188: =SB18c!E28 -> 0 | F188: =SB18c!F28 -> 0 | G188: =SB18c!G28 -> 0 | H188: =SB18c!H28 -> 0 | I188: =SB18c!I28 -> -3400000 | J188: =SB18c!J28 -> -3400000 | K188: =SB18c!K28 -> 10200000 | L188: 166751100 | M188: 185036603
A189: Sanitation Infrastructure | C189: =SB18c!C39 -> 0 | D189: =SB18c!D39 -> 0 | E189: =SB18c!E39 -> 0 | F189: =SB18c!F39 -> 0 | G189: =SB18c!G39 -> 0 | H189: =SB18c!H39 -> 0 | I189: =SB18c!I39 -> 0 | J189: =SB18c!J39 -> 0 | K189: =SB18c!K39 -> 0 | L189: 10900000 | M189: 11090000
A190: Solid Waste Infrastructure | C190: =SB18c!C46 -> 0 | D190: =SB18c!D46 -> 0 | E190: =SB18c!E46 -> 0 | F190: =SB18c!F46 -> 0 | G190: =SB18c!G46 -> 0 | H190: =SB18c!H46 -> 0 | I190: =SB18c!I46 -> 0 | J190: =SB18c!J46 -> 0 | K190: =SB18c!K46 -> 0 | L190: 0 | M190: 0
A191: Rail Infrastructure | C191: =SB18c!C54 -> 0 | D191: =SB18c!D54 -> 0 | E191: =SB18c!E54 -> 0 | F191: =SB18c!F54 -> 0 | G191: =SB18c!G54 -> 0 | H191: =SB18c!H54 -> 0 | I191: =SB18c!I54 -> 0 | J191: =SB18c!J54 -> 0 | K191: =SB18c!K54 -> 0 | L191: 0 | M191: 0
A192: Coastal Infrastructure | C192: =SB18c!C64 -> 0 | D192: =SB18c!D64 -> 0 | E192: =SB18c!E64 -> 0 | F192: =SB18c!F64 -> 0 | G192: =SB18c!G64 -> 0 | H192: =SB18c!H64 -> 0 | I192: =SB18c!I64 -> 0 | J192: =SB18c!J64 -> 0 | K192: =SB18c!K64 -> 0 | L192: 0 | M192: 0
A193: Information and Communication Infrastructure | C193: =SB18c!C70 -> 0 | D193: =SB18c!D70 -> 0 | E193: =SB18c!E70 -> 0 | F193: =SB18c!F70 -> 0 | G193: =SB18c!G70 -> 0 | H193: =SB18c!H70 -> 0 | I193: =SB18c!I70 -> 0 | J193: =SB18c!J70 -> 0 | K193: =SB18c!K70 -> 0 | L193: 0 | M193: 0
A194: Infrastructure | C194: =SUM(C185:C193) -> 167975000 | D194: =SUM(D185:D193) -> 0 | E194: 0 | F194: 0 | G194: 0 | H194: 0 | I194: -24550000 | J194: -24550000 | K194: 143425000 | L194: 0 | M194: 0
A195: Community Facilities | C195: =SB18c!C77 -> 12750 | D195: =SB18c!D77 -> 0 | E195: =SB18c!E77 -> 0 | F195: =SB18c!F77 -> 0 | G195: =SB18c!G77 -> 0 | H195: =SB18c!H77 -> 0 | I195: =SB18c!I77 -> 0 | J195: =SB18c!J77 -> 0 | K195: =SB18c!K77 -> 12750 | L195: 177651100 | M195: 196126603
A196: Sport and Recreation Facilities | C196: =SB18c!C100 -> 0 | D196: =SB18c!D100 -> 0 | E196: =SB18c!E100 -> 0 | F196: =SB18c!F100 -> 0 | G196: =SB18c!G100 -> 0 | H196: =SB18c!H100 -> 0 | I196: =SB18c!I100 -> 0 | J196: =SB18c!J100 -> 0 | K196: =SB18c!K100 -> 0 | L196: 15600 | M196: 16380
A197: Community Assets | C197: =SUM(C195:C196) -> 12750 | D197: =SUM(D195:D196) -> 0 | E197: 0 | F197: 0 | G197: 0 | H197: 0 | I197: 0 | J197: 0 | K197: 12750 | L197: 0 | M197: 0
A198: Heritage Assets | C198: =SB18c!C105 -> 0 | D198: =SB18c!D105 -> 0 | E198: =SB18c!E105 -> 0 | F198: =SB18c!F105 -> 0 | G198: =SB18c!G105 -> 0 | H198: =SB18c!H105 -> 0 | I198: =SB18c!I105 -> 0 | J198: =SB18c!J105 -> 0 | K198: =SB18c!K105 -> 0 | L198: 15600 | M198: 16380
A199: Revenue Generating | C199: =SB18c!C113 -> 0 | D199: =SB18c!D113 -> 0 | E199: =SB18c!E113 -> 0 | F199: =SB18c!F113 -> 0 | G199: =SB18c!G113 -> 0 | H199: =SB18c!H113 -> 0 | I199: =SB18c!I113 -> 0 | J199: =SB18c!J113 -> 0 | K199: =SB18c!K113 -> 0 | L199: 0 | M199: 0
A200: Non-revenue Generating | C200: =SB18c!C116 -> 0 | D200: =SB18c!D116 -> 0 | E200: =SB18c!E116 -> 0 | F200: =SB18c!F116 -> 0 | G200: =SB18c!G116 -> 0 | H200: =SB18c!H116 -> 0 | I200: =SB18c!I116 -> 0 | J200: =SB18c!J116 -> 0 | K200: =SB18c!K116 -> 0 | L200: 0 | M200: 0
A201: Investment properties | C201: =SUM(C199:C200) -> 0 | D201: =SUM(D199:D200) -> 0 | E201: 0 | F201: 0 | G201: 0 | H201: 0 | I201: 0 | J201: 0 | K201: 0 | L201: 0 | M201: 0
A202: Operational Buildings | C202: =SB18c!C121 -> 180942659.5 | D202: =SB18c!D121 -> 0 | E202: =SB18c!E121 -> 0 | F202: =SB18c!F121 -> 0 | G202: =SB18c!G121 -> 0 | H202: =SB18c!H121 -> 0 | I202: =SB18c!I121 -> -48732221 | J202: =SB18c!J121 -> -48732221 | K202: =SB18c!K121 -> 132210438.5 | L202: 0 | M202: 0
A203: Housing | C203: =SB18c!C133 -> 0 | D203: =SB18c!D133 -> 0 | E203: =SB18c!E133 -> 0 | F203: =SB18c!F133 -> 0 | G203: =SB18c!G133 -> 0 | H203: =SB18c!H133 -> 0 | I203: =SB18c!I133 -> 0 | J203: =SB18c!J133 -> 0 | K203: =SB18c!K133 -> 0 | L203: 201024360.6 | M203: 215096763.9
A204: Other Assets | C204: =SUM(C202:C203) -> 180942659.5 | D204: =SUM(D202:D203) -> 0 | E204: 0 | F204: 0 | G204: 0 | H204: 0 | I204: -48732221 | J204: -48732221 | K204: 132210438.5 | L204: 0 | M204: 0
A205: Biological or Cultivated Assets | C205: =SB18c!C138 -> 0 | D205: =SB18c!D138 -> 0 | E205: =SB18c!E138 -> 0 | F205: =SB18c!F138 -> 0 | G205: =SB18c!G138 -> 0 | H205: =SB18c!H138 -> 0 | I205: =SB18c!I138 -> 0 | J205: =SB18c!J138 -> 0 | K205: =SB18c!K138 -> 0 | L205: 201024360.6 | M205: 215096763.9
A206: Servitudes | C206: =SB18c!C142 -> 0 | D206: =SB18c!D142 -> 0 | E206: =SB18c!E142 -> 0 | F206: =SB18c!F142 -> 0 | G206: =SB18c!G142 -> 0 | H206: =SB18c!H142 -> 0 | I206: =SB18c!I142 -> 0 | J206: =SB18c!J142 -> 0 | K206: =SB18c!K142 -> 0 | L206: 0 | M206: 0
A207: Licences and Rights | C207: =SB18c!C143 -> 0 | D207: =SB18c!D143 -> 0 | E207: =SB18c!E143 -> 0 | F207: =SB18c!F143 -> 0 | G207: =SB18c!G143 -> 0 | H207: =SB18c!H143 -> 0 | I207: =SB18c!I143 -> 0 | J207: =SB18c!J143 -> 0 | K207: =SB18c!K143 -> 0 | L207: 0 | M207: 0
... 32 more rows

Sheet B10-SerDel
A1: =muni&" - "&_ADJ10&" - "&Date -> Choose name from list - Table B10 Basic service delivery measurement - 28.02.2025
A2: =desc -> Description | B2: =head27 -> Ref | C2: =Head2 -> Budget Year 2024/25 | L2: =Head10 -> Budget Year +1 2025/26 | M2: =Head11 -> Budget Year +2 2026/27
C3: =Head6 -> Original Budget | D3: =Head54 -> Prior Adjusted | E3: =Head51 -> Accum. Funds | F3: =Head52 -> Multi-year capital | G3: =Head53 -> Unfore. Unavoid. | H3: =Head55 -> Nat. or Prov. Govt | I3: =Head50 -> Other Adjusts. | J3: =Head56 -> Total Adjusts. | K3: =Head7 -> Adjusted Budget | L3: =Head7 -> Adjusted Budget | M3: =Head7 -> Adjusted Budget
D4: 7 | E4: 8 | F4: 9 | G4: 10 | H4: 11 | I4: 12 | J4: 13 | K4: 14
C5: A | D5: A1 | E5: B | F5: C | G5: D | H5: E | I5: F | J5: G | K5: H
A6: Household service targets | B6: 1
A7: Water:
A8: Piped water inside dwelling | C8: 84782.196 | J8: =SUM(E8:I8) -> 0 | K8: =IF(D8=0,C8+J8,D8+J8) -> 84782.196 | L8: 84782.196 | M8: 84782.196
A9: Piped water inside yard (but not in dwelling) | C9: 67480.5196 | J9: 0 | K9: 67480.5196 | L9: 67480.5196 | M9: 67480.5196
A10: Using public tap (at least min.service level) | B10: 2 | C10: 6654.3984 | J10: 0 | K10: 6654.3984 | L10: 6654.3984 | M10: 6654.3984
A11: Other water supply (at least min.service level) | C11: 3196.1088 | J11: 0 | K11: 3196.1088 | L11: 3196.1088 | M11: 3196.1088
A12: Minimum Service Level and Above sub-total | C12: 162113.2228 | D12: =SUM(D8:D11) -> 0 | E12: 0 | F12: 0 | G12: 0 | H12: 0 | I12: 0 | J12: 0 | K12: 162113.2228 | L12: 162113.2228 | M12: 162113.2228
A13: Using public tap (< min.service level) | B13: 3 | C13: 6654.3984 | J13: 0 | K13: 6654.3984 | L13: 6654.3984 | M13: 6654.3984
A14: Other water supply (< min.service level) | B14: 3,4 | C14: 1850.696 | J14: 0 | K14: 1850.696 | L14: 1850.696 | M14: 1850.696
A15: No water supply | C15: 0 | J15: 0 | K15: 0 | L15: 0 | M15: 0
A16: Below Minimum Servic Level sub-total | C16: 8505.0944 | D16: =SUM(D13:D15) -> 0 | E16: 0 | F16: 0 | G16: 0 | H16: 0 | I16: 0 | J16: 0 | K16: 8505.0944 | L16: 8505.0944 | M16: 8505.0944
A17: Total number of households | B17: 5 | C17: 170618.3172 | D17: =D12+D16 -> 0 | E17: 0 | F17: 0 | G17: 0 | H17: 0 | I17: 0 | J17: 0 | K17: 170618.3172 | L17: 170618.3172 | M17: 170618.3172
A18: Sanitation/sewerage:
A19: Flush toilet (connected to sewerage) | C19: 91589.0196 | J19: =SUM(E19:I19) -> 0 | K19: =IF(D19=0,C19+J19,D19+J19) -> 91589.0196 | L19: 91589.0196 | M19: 91589.0196
A20: Flush toilet (with septic tank) | C20: 8655.0876 | J20: 0 | K20: 8655.0876 | L20: 8655.0876 | M20: 8655.0876
A21: Chemical toilet | C21: 7361.8704 | J21: 0 | K21: 7361.8704 | L21: 7361.8704 | M21: 7361.8704
A22: Pit toilet (ventilated) | C22: 61827.8508 | J22: 0 | K22: 61827.8508 | L22: 61827.8508 | M22: 61827.8508
A23: Other toilet provisions (> min.service level) | C23: 0 | J23: 0 | K23: 0 | L23: 0 | M23: 0
A24: =$A$12 -> Minimum Service Level and Above sub-total | C24: 169433.8284 | D24: =SUM(D19:D23) -> 0 | E24: 0 | F24: 0 | G24: 0 | H24: 0 | I24: 0 | J24: 0 | K24: 169433.8284 | L24: 169433.8284 | M24: 169433.8284
A25: Bucket toilet | C25: 0 | J25: 0 | K25: 0 | L25: 0 | M25: 0
A26: Other toilet provisions (< min.service level) | C26: 1184.4888 | J26: 0 | K26: 1184.4888 | L26: 1184.4888 | M26: 1184.4888
A27: No toilet provisions | C27: 0 | J27: 0 | K27: 0 | L27: 0 | M27: 0
A28: =$A$16 -> Below Minimum Servic Level sub-total | C28: 1184.4888 | D28: =SUM(D25:D27) -> 0 | E28: 0 | F28: 0 | G28: 0 | H28: 0 | I28: 0 | J28: 0 | K28: 1184.4888 | L28: 1184.4888 | M28: 1184.4888
A29: =$A$17 -> Total number of households | B29: =$B$17 -> 5 | C29: 170618.3172 | D29: =D24+D28 -> 0 | E29: 0 | F29: 0 | G29: 0 | H29: 0 | I29: 0 | J29: 0 | K29: 170618.3172 | L29: 170618.3172 | M29: 170618.3172
A30: Energy:
A31: Electricity (at least min. service level) | C31: 135271.4032 | J31: =SUM(E31:I31) -> 0 | K31: =IF(D31=0,C31+J31,D31+J31) -> 135271.4032 | L31: 135271.4032 | M31: 135271.4032
A32: Electricity - prepaid (> min.service level) | C32: 27346.914 | J32: 0 | K32: 27346.914 | L32: 27346.914 | M32: 27346.914
A33: =$A$12 -> Minimum Service Level and Above sub-total | C33: 162618.3172 | D33: =SUM(D31:D32) -> 0 | E33: 0 | F33: 0 | G33: 0 | H33: 0 | I33: 0 | J33: 0 | K33: 162618.3172 | L33: 162618.3172 | M33: 162618.3172
A34: Electricity (< min.service level) | C34: 0 | J34: 0 | K34: 0 | L34: 0 | M34: 0
A35: Electricity - prepaid (< min. service level) | C35: 0 | J35: 0 | K35: 0 | L35: 0 | M35: 0
A36: Other energy sources | C36: 8000 | J36: 0 | K36: 8000 | L36: 8000 | M36: 8000
A37: =$A$16 -> Below Minimum Servic Level sub-total | C37: 8000 | D37: =SUM(D34:D36) -> 0 | E37: 0 | F37: 0 | G37: 0 | H37: 0 | I37: 0 | J37: 0 | K37: 8000 | L37: 8000 | M37: 8000
A38: =$A$17 -> Total number of households | B38: =$B$17 -> 5 | C38: 170618.3172 | D38: =D33+D37 -> 0 | E38: 0 | F38: 0 | G38: 0 | H38: 0 | I38: 0 | J38: 0 | K38: 170618.3172 | L38: 170618.3172 | M38: 170618.3172
A39: Refuse:
A40: Removed at least once a week (min.service) | C40: 129848 | J40: =SUM(E40:I40) -> 0 | K40: =IF(D40=0,C40+J40,D40+J40) -> 129848 | L40: 129848 | M40: 129848
A41: =$A$12 -> Minimum Service Level and Above sub-total | C41: 129848 | D41: =SUM(D40) -> 0 | E41: 0 | F41: 0 | G41: 0 | H41: 0 | I41: 0 | J41: =SUM(E41:I41) -> 0 | K41: 129848 | L41: 129848 | M41: 129848
A42: Removed less frequently than once a week | C42: 40770.3172 | J42: 0 | K42: 40770.3172 | L42: 40770.3172 | M42: 40770.3172
A43: Using communal refuse dump | C43: 0 | J43: 0 | K43: 0 | L43: 0 | M43: 0
A44: Using own refuse dump | C44: 0 | J44: 0 | K44: 0 | L44: 0 | M44: 0
A45: Other rubbish disposal | C45: 0 | J45: 0 | K45: 0 | L45: 0 | M45: 0
A46: No rubbish disposal | C46: 0 | J46: 0 | K46: 0 | L46: 0 | M46: 0
A47: =$A$16 -> Below Minimum Servic Level sub-total | C47: 40770.3172 | D47: =SUM(D42:D46) -> 0 | E47: 0 | F47: 0 | G47: 0 | H47: 0 | I47: 0 | J47: 0 | K47: 40770.3172 | L47: 40770.3172 | M47: 40770.3172
A48: =$A$17 -> Total number of households | B48: =$B$17 -> 5 | C48: 170618.3172 | D48: =D41+D47 -> 0 | E48: 0 | F48: 0 | G48: 0 | H48: 0 | I48: 0 | J48: =J40+J47 -> 0 | K48: =K40+K47 -> 170618.3172 | L48: 170618.3172 | M48: 170618.3172
A50: Households receiving Free Basic Service | B50: 15
A51: Water (6 kilolitres per household per month) | C51: ='SB5'!E263 -> 0 | D51: ='SB5'!F263 -> 0 | E51: ='SB5'!G263 -> 0 | F51: ='SB5'!H263 -> 0 | G51: ='SB5'!I263 -> 0 | H51: ='SB5'!J263 -> 0 | I51: ='SB5'!K263 -> 0 | J51: =SUM(E51:I51) -> 0 | K51: =IF(D51=0,C51+J51,D51+J51) -> 0 | L51: ='SB5'!N263 -> 0 | M51: ='SB5'!O263 -> 0
A52: Sanitation (free minimum level service) | C52: ='SB5'!E275 -> 0 | D52: ='SB5'!F275 -> 0 | E52: ='SB5'!G275 -> 0 | F52: ='SB5'!H275 -> 0 | G52: ='SB5'!I275 -> 0 | H52: ='SB5'!J275 -> 0 | I52: ='SB5'!K275 -> 0 | J52: =SUM(E52:I52) -> 0 | K52: =IF(D52=0,C52+J52,D52+J52) -> 0 | L52: ='SB5'!N275 -> 0 | M52: ='SB5'!O275 -> 0
A53: Electricity/other energy (50kwh per household per month) | C53: ='SB5'!E251 -> 0 | D53: ='SB5'!F251 -> 0 | E53: ='SB5'!G251 -> 0 | F53: ='SB5'!H251 -> 0 | G53: ='SB5'!I251 -> 0 | H53: ='SB5'!J251 -> 0 | I53: ='SB5'!K251 -> 0 | J53: =SUM(E53:I53) -> 0 | K53: =IF(D53=0,C53+J53,D53+J53) -> 0 | L53: ='SB5'!N251 -> 0 | M53: ='SB5'!O251 -> 0
A54: Refuse (removed at least once a week) | C54: ='SB5'!E287 -> 0 | D54: ='SB5'!F287 -> 0 | E54: ='SB5'!G287 -> 0 | F54: ='SB5'!H287 -> 0 | G54: ='SB5'!I287 -> 0 | H54: ='SB5'!J287 -> 0 | I54: ='SB5'!K287 -> 0 | J54: ='SB5'!L287 -> 0 | K54: ='SB5'!M287 -> 0 | L54: ='SB5'!N287 -> 0 | M54: ='SB5'!O287 -> 0
A55: Informal Settlements
A56: Cost of Free Basic Services provided (R'000) | B56: 16
A57: Water (6 kilolitres per indigent household per month) | C57: ='SB1'!C23 -> 0 | D57: ='SB1'!D23 -> 0 | E57: ='SB1'!E23 -> 0 | F57: ='SB1'!F23 -> 0 | G57: ='SB1'!G23 -> 0 | H57: ='SB1'!H23 -> 0 | I57: ='SB1'!I23 -> 0 | J57: =SUM(E57:I57) -> 0 | K57: =IF(D57=0,C57+J57,D57+J57) -> 0 | L57: ='SB1'!L23 -> 0 | M57: ='SB1'!M23 -> 0
A58: Sanitation (free sanitation service to indigent households) | C58: ='SB1'!C29 -> 0 | D58: ='SB1'!D29 -> 0 | E58: ='SB1'!E29 -> 0 | F58: ='SB1'!F29 -> 0 | G58: ='SB1'!G29 -> 0 | H58: ='SB1'!H29 -> 0 | I58: ='SB1'!I29 -> 0 | J58: =SUM(E58:I58) -> 0 | K58: =IF(D58=0,C58+J58,D58+J58) -> 0 | L58: ='SB1'!L29 -> 0 | M58: ='SB1'!M29 -> 0
A59: Electricity/other energy (50kwh per indigent household per month) | C59: ='SB1'!C17 -> 0 | D59: ='SB1'!D17 -> 0 | E59: ='SB1'!E17 -> 0 | F59: ='SB1'!F17 -> 0 | G59: ='SB1'!G17 -> 0 | H59: ='SB1'!H17 -> 0 | I59: ='SB1'!I17 -> 0 | J59: =SUM(E59:I59) -> 0 | K59: =IF(D59=0,C59+J59,D59+J59) -> 0 | L59: ='SB1'!L17 -> 0 | M59: ='SB1'!M17 -> 0
A60: Refuse (removed once a week for indigent households) | C60: ='SB1'!C36 -> 0 | D60: ='SB1'!D36 -> 0 | E60: ='SB1'!E36 -> 0 | F60: ='SB1'!F36 -> 0 | G60: ='SB1'!G36 -> 0 | H60: ='SB1'!H36 -> 0 | I60: ='SB1'!I36 -> 0 | J60: =SUM(E60:I60) -> 0 | K60: =IF(D60=0,C60+J60,D60+J60) -> 0 | L60: ='SB1'!L36 -> 0 | M60: ='SB1'!M36 -> 0
A61: Cost of Free Basic Services provided - Informal Formal Settlements (R'000) | C61: ='SB5'!E260+'SB5'!E272+'SB5'!E284+'SB5'!E296 -> 0 | D61: ='SB5'!F260+'SB5'!F272+'SB5'!F284+'SB5'!F296 -> 0 | E61: ='SB5'!G260+'SB5'!G272+'SB5'!G284+'SB5'!G296 -> 0 | F61: ='SB5'!H260+'SB5'!H272+'SB5'!H284+'SB5'!H296 -> 0 | G61: ='SB5'!I260+'SB5'!I272+'SB5'!I284+'SB5'!I296 -> 0 | H61: ='SB5'!J260+'SB5'!J272+'SB5'!J284+'SB5'!J296 -> 0 | I61: ='SB5'!K260+'SB5'!K272+'SB5'!K284+'SB5'!K296 -> 0 | J61: =SUM(E61:I61) -> 0 | K61: =IF(D61=0,C61+J61,D61+J61) -> 0 | L61: ='SB5'!N260+'SB5'!N272+'SB5'!N284+'SB5'!N296 -> 0 | M61: ='SB5'!O260+'SB5'!O272+'SB5'!O284+'SB5'!O296 -> 0
A62: Total cost of FBS provided | C62: =SUM(C57:C61) -> 0 | D62: =SUM(D57:D61) -> 0 | E62: 0 | F62: 0 | G62: 0 | H62: 0 | I62: 0 | J62: 0 | K62: 0 | L62: 0 | M62: 0
A64: Highest level of free service provided
A65: Property rates (R'000 value threshold) | C65: 120000 | J65: =SUM(E65:I65) -> 0 | K65: =IF(D65=0,C65+J65,D65+J65) -> 120000 | L65: 120000 | M65: 120000
A66: Water (kilolitres per household per month) | C66: 6 | J66: 0 | K66: 6 | L66: 6 | M66: 6
A67: Sanitation (kilolitres per household per month) | C67: 0 | J67: 0 | K67: 0 | L67: 0 | M67: 0
A68: Sanitation (Rand per household per month) | C68: 162.551212 | J68: 0 | K68: 162.551212 | L68: 162.551212 | M68: 162.551212
A69: Electricity (kw per household per month) | C69: 70 | J69: 0 | K69: 70 | L69: 70 | M69: 70
A70: Refuse (average litres per week) | C70: 200 | J70: 0 | K70: 200 | L70: 200 | M70: 200
A71: Revenue cost of free services provided (R'000) | B71: 17
A72: Property rates (tariff adjustment) ( impermissable values per section 17 of MPRA) | J72: =SUM(E72:I72) -> 0 | K72: =IF(D72=0,C72+J72,D72+J72) -> 0
A73: Property rates exemptions, reductions and rebates and impermissable values in excess of section 17 of MPRA) | C73: ='SB1'!C10 -> 120843620.6 | D73: ='SB1'!D10 -> 0 | E73: ='SB1'!E10 -> 0 | F73: ='SB1'!F10 -> 0 | G73: ='SB1'!G10 -> 0 | H73: ='SB1'!H10 -> 0 | I73: ='SB1'!I10 -> 0 | J73: 0 | K73: 120843620.6 | L73: ='SB1'!L10 -> 126402427.1 | M73: ='SB1'!M10 -> 132090536.4
A74: Water (in excess of 6 kilolitres per indigent household per month) | C74: ='SB1'!C22 -> 249303079 | D74: ='SB1'!D22 -> 0 | E74: ='SB1'!E22 -> 0 | F74: ='SB1'!F22 -> 0 | G74: ='SB1'!G22 -> 0 | H74: ='SB1'!H22 -> 0 | I74: ='SB1'!I22 -> 0 | J74: 0 | K74: 249303079 | L74: ='SB1'!L22 -> 260771020.6 | M74: ='SB1'!M22 -> 272505716.6
A75: Sanitation (in excess of free sanitation service to indigent households) | C75: ='SB1'!C28 -> 0 | D75: ='SB1'!D28 -> 0 | E75: ='SB1'!E28 -> 0 | F75: ='SB1'!F28 -> 0 | G75: ='SB1'!G28 -> 0 | H75: ='SB1'!H28 -> 0 | I75: ='SB1'!I28 -> 0 | J75: 0 | K75: 0 | L75: ='SB1'!L28 -> 0 | M75: ='SB1'!M28 -> 0
A76: Electricity/other energy (in excess of 50 kwh per indigent household per month) | C76: ='SB1'!C16 -> 5465088.088 | D76: ='SB1'!D16 -> 0 | E76: ='SB1'!E16 -> 0 | F76: ='SB1'!F16 -> 0 | G76: ='SB1'!G16 -> 0 | H76: ='SB1'!H16 -> 0 | I76: ='SB1'!I16 -> 0 | J76: 0 | K76: 5465088.088 | L76: ='SB1'!L16 -> 5716482.14 | M76: ='SB1'!M16 -> 6802613.747
A77: Refuse (in excess of one removal a week for indigent households) | C77: ='SB1'!C35 -> 0 | D77: ='SB1'!D35 -> 0 | E77: ='SB1'!E35 -> 0 | F77: ='SB1'!F35 -> 0 | G77: ='SB1'!G35 -> 0 | H77: ='SB1'!H35 -> 0 | I77: ='SB1'!I35 -> 0 | J77: 0 | K77: 0 | L77: ='SB1'!L35 -> 0 | M77: ='SB1'!M35 -> 0
A78: Municipal Housing - rental rebates | J78: 0 | K78: 0
A79: Housing - top structure subsidies | B79: 6 | J79: 0 | K79: 0
A80: Other | J80: 0 | K80: 0
A81: Total revenue cost of subsidised services provided | C81: =SUM(C72:C80) -> 375611787.7 | D81: =SUM(D72:D80) -> 0 | E81: 0 | F81: 0 | G81: 0 | H81: 0 | I81: 0 | J81: 0 | K81: 375611787.7 | L81: 392889929.9 | M81: 411398866.7
A82: =head27a -> References
A83: 1. Include services provided by another entity; e.g. Eskom
A84: 2. Stand distance > 200m from dwelling
A85: 3. Stand distance <= 200m from dwelling
A86: 4. Borehole, spring, rain-water tank etc.
A87: 5. Must agree to total number of households in municipal area
A88: 6. Include value of subsidy provided by municipality above provincial subsidy level
A89: 7. Only complete if a previous adjusted budget has been approved in the same financial year. Reflect most recent adjusted budget.
A90: 8. Additional cash-backed accumulated funds/unspent funds (MFMA section 18(1)(b) and section 28(2)(e)) identified after the Original Budget approved and after annual financial statements audited (note: only where underspending could not reasonably have been foreseen)
A91: 9. Increases of funds approved under MFMA section 31
A92: 10. Adjustments approved in accordance with MFMA section 29
A93: 11. Adjustments to transfers from National or Provincial Government
A94: 12. Adjusts. = 'Other' Adjustments proposed to be approved; including revenue under-collection (MFMA section 28(2)(a)); additional revenue appropriation on existing programmes (section 28(2))(b); projected savings (section 28(2)(d)); error correction (section 28(2)(f))
A95: 13. G = B + C + D + E + F
A96: 14. Adjusted Budget H = (A or A1) + G
A97: 15. Show number of households receiving at least these levels of services completely free
A98: 16. Must reflect the cost to the municipality of providing the Free Basic Service
A99: 17.Reflect the cost of free or subsidised services in excess to the National policy that are not funded from the Free Basic Services component of the Equitable Share

Sheet SB1
A1: =muni&" - "&ADJB1&" - "&Date -> Choose name from list - Supporting Table SB1 Supporting detail to 'Budgeted Financial Performance' - 28.02.2025
A2: =desc -> Description | B2: =head27 -> Ref | C2: =Head2 -> Budget Year 2024/25 | L2: =Head10 -> Budget Year +1 2025/26 | M2: =Head11 -> Budget Year +2 2026/27
C3: =Head6 -> Original Budget | D3: =Head54 -> Prior Adjusted | E3: =Head51 -> Accum. Funds | F3: =Head52 -> Multi-year capital | G3: =Head53 -> Unfore. Unavoid. | H3: =Head55 -> Nat. or Prov. Govt | I3: =Head50 -> Other Adjusts. | J3: =Head56 -> Total Adjusts. | K3: =Head7 -> Adjusted Budget | L3: =Head7 -> Adjusted Budget | M3: =Head7 -> Adjusted Budget
D4: 6 | E4: 7 | F4: 8 | G4: 9 | H4: 10 | I4: 11 | J4: 12 | K4: 13
A5: R thousands | C5: A | D5: A1 | E5: B | F5: C | G5: D | H5: E | I5: F | J5: G | K5: H
A6: REVENUE ITEMS
A7: Non-exchange revenue by source
A8: Property rates
A9: Total Property Rates | C9: 1770196141 | I9: -58.6400001 | J9: =SUM(E9:I9) -> -58.6400001 | K9: =IF(D9=0,C9+J9,D9+J9) -> 1770196083 | L9: 1851625164 | M9: 1934948296
A10: Less Revenue Foregone (exemptions, reductions and rebates and impermissable values in excess of section 17 of MPRA) | C10: 120843620.6 | J10: =SUM(E10:I10) -> 0 | K10: =IF(D10=0,C10+J10,D10+J10) -> 120843620.6 | L10: 126402427.1 | M10: 132090536.4
A11: Net Property Rates | C11: =C9-C10 -> 1649352521 | D11: =D9-D10 -> 0 | E11: 0 | F11: 0 | G11: 0 | H11: 0 | I11: -58.6400001 | J11: -58.6400001 | K11: 1649352462 | L11: 1725222737 | M11: 1802857760
A13: Exchange revenue service charges
A14: Service charges - Electricity
A15: Total Service charges - Electricity | C15: 4303290153 | I15: -73467095.13 | J15: =SUM(E15:I15) -> -73467095.13 | K15: =IF(D15=0,C15+J15,D15+J15) -> 4229823058 | L15: 5120915283 | M15: 6093889186
A16: Less Revenue Foregone (in excess of 50 kwh per indigent household per month) | C16: 5465088.088 | J16: =SUM(E16:I16) -> 0 | K16: =IF(D16=0,C16+J16,D16+J16) -> 5465088.088 | L16: 5716482.14 | M16: 6802613.747
A17: Less Cost of Free Basis Services (50 kwh per indigent household per month) | C17: ='SB5'!E250 -> 0 | D17: ='SB5'!F250 -> 0 | E17: ='SB5'!G250 -> 0 | F17: ='SB5'!H250 -> 0 | G17: ='SB5'!I250 -> 0 | H17: ='SB5'!J250 -> 0 | I17: ='SB5'!K250 -> 0 | J17: =SUM(E17:I17) -> 0 | K17: =IF(D17=0,C17+J17,D17+J17) -> 0 | L17: ='SB5'!N250 -> 0 | M17: ='SB5'!O250 -> 0
A18: Net Service charges - Electricity | C18: =C15-C16-C17 -> 4297825065 | D18: =D15-D16-D17 -> 0 | E18: 0 | F18: 0 | G18: 0 | H18: 0 | I18: -73467095.13 | J18: -73467095.13 | K18: 4224357970 | L18: 5115198800 | M18: 6087086572
A20: Service charges - Water
A21: Total Service charges - water | C21: 1259063161 | J21: =SUM(E21:I21) -> 0 | K21: =IF(D21=0,C21+J21,D21+J21) -> 1259063161 | L21: 1316980066 | M21: 1376244169
A22: Less Revenue Foregone (in excess of 6 kilolitres per indigent household per month) | C22: 249303079 | J22: =SUM(E22:I22) -> 0 | K22: =IF(D22=0,C22+J22,D22+J22) -> 249303079 | L22: 260771020.6 | M22: 272505716.6
A23: Less Cost of Free Basis Services (6 kilolitres per indigent household per month) | C23: ='SB5'!E262 -> 0 | D23: ='SB5'!F262 -> 0 | E23: ='SB5'!G262 -> 0 | F23: ='SB5'!H262 -> 0 | G23: ='SB5'!I262 -> 0 | H23: ='SB5'!J262 -> 0 | I23: ='SB5'!K262 -> 0 | J23: =SUM(E23:I23) -> 0 | K23: =IF(D23=0,C23+J23,D23+J23) -> 0 | L23: ='SB5'!N262 -> 0 | M23: ='SB5'!O262 -> 0
A24: Net Service charges - Water | C24: =C21-C22-C23 -> 1009760082 | D24: =D21-D22-D23 -> 0 | E24: 0 | F24: 0 | G24: 0 | H24: 0 | I24: 0 | J24: =J21-J22-J23 -> 0 | K24: 1009760082 | L24: 1056209046 | M24: 1103738453
A26: Service charges - Waste Water Management
A27: Total Service charges - Waste Water Management | C27: 220724860.4 | J27: =SUM(E27:I27) -> 0 | K27: =IF(D27=0,C27+J27,D27+J27) -> 220724860.4 | L27: 230878204 | M27: 241267723.2
A28: Less Revenue Foregone (in excess of free sanitation service to indigent households) | J28: =SUM(E28:I28) -> 0 | K28: =IF(D28=0,C28+J28,D28+J28) -> 0
A29: Less Cost of Free Basis Services (free sanitation service to indigent households) | C29: ='SB5'!E274 -> 0 | D29: ='SB5'!F274 -> 0 | E29: ='SB5'!G274 -> 0 | F29: ='SB5'!H274 -> 0 | G29: ='SB5'!I274 -> 0 | H29: ='SB5'!J274 -> 0 | I29: ='SB5'!K274 -> 0 | J29: =SUM(E29:I29) -> 0 | K29: =IF(D29=0,C29+J29,D29+J29) -> 0 | L29: ='SB5'!N274 -> 0 | M29: ='SB5'!O274 -> 0
A30: Net Service charges - Waste Water Management | C30: =C27-C28-C29 -> 220724860.4 | D30: =D27-D28-D29 -> 0 | E30: 0 | F30: 0 | G30: 0 | H30: 0 | I30: 0 | J30: 0 | K30: 220724860.4 | L30: 230878204 | M30: 241267723.2
C31: .
A32: Service charges - Waste Management
A33: Total refuse removal revenue | C33: 155390776.9 | J33: =SUM(E33:I33) -> 0 | K33: =IF(D33=0,C33+J33,D33+J33) -> 155390776.9 | L33: 162538752.7 | M33: 169852996.5
A34: Total landfill revenue | J34: =SUM(E34:I34) -> 0 | K34: =IF(D34=0,C34+J34,D34+J34) -> 0
A35: Less Revenue Foregone (in excess of one removal a week to indigent households) | J35: =SUM(E35:I35) -> 0 | K35: =IF(D35=0,C35+J35,D35+J35) -> 0
A36: Less Cost of Free Basis Services (removed once a week to indigent households) | C36: ='SB5'!E286 -> 0 | D36: ='SB5'!F286 -> 0 | E36: ='SB5'!G286 -> 0 | F36: ='SB5'!H286 -> 0 | G36: ='SB5'!I286 -> 0 | H36: ='SB5'!J286 -> 0 | I36: ='SB5'!K286 -> 0 | J36: =SUM(E36:I36) -> 0 | K36: =IF(D36=0,C36+J36,D36+J36) -> 0 | L36: ='SB5'!N286 -> 0 | M36: ='SB5'!O286 -> 0
A37: Service charges - Waste Management | C37: =SUM(C33:C34)-SUM(C35:C36) -> 155390776.9 | D37: =SUM(D33:D34)-SUM(D35:D36) -> 0 | E37: 0 | F37: 0 | G37: 0 | H37: 0 | I37: 0 | J37: 0 | K37: 155390776.9 | L37: 162538752.7 | M37: 169852996.5
A42: EXPENDITURE ITEMS
A43: Employee related costs
A44: Basic Salaries and Wages | C44: 1402080135 | I44: -45175187.63 | J44: =SUM(E44:I44) -> -45175187.63 | K44: =IF(D44=0,C44+J44,D44+J44) -> 1356904948 | L44: 1466939452 | M44: 1534133607
A45: Pension and UIF Contributions | C45: 145503790 | J45: 0 | K45: 145503790 | L45: 152181358 | M45: 159029519.1
A46: Medical Aid Contributions | C46: 123253174.2 | J46: 0 | K46: 123253174.2 | L46: 128922820.3 | M46: 134724347.2
A47: Overtime | C47: 107181183.4 | J47: 0 | K47: 107181183.4 | L47: 112111517.9 | M47: 117156536.2
A48: Performance Bonus | J48: 0 | K48: 0
A49: Motor Vehicle Allowance | C49: 45260386.49 | J49: =SUM(E49:I49) -> 0 | K49: =IF(D49=0,C49+J49,D49+J49) -> 45260386.49 | L49: 47342364.27 | M49: 49472770.66
A50: Cellphone Allowance | C50: 6479040.639 | J50: =SUM(E50:I50) -> 0 | K50: =IF(D50=0,C50+J50,D50+J50) -> 6479040.639 | L50: 6777076.509 | M50: 7082044.952
A51: Housing Allowances | C51: 7522647.644 | J51: =SUM(E51:I51) -> 0 | K51: =IF(D51=0,C51+J51,D51+J51) -> 7522647.644 | L51: 7868689.436 | M51: 8222780.46
A52: Other benefits and allowances | C52: 8423209.652 | J52: 0 | K52: 8423209.652 | L52: 8810677.296 | M52: 9207157.774
A53: Payments in lieu of leave | C53: 0 | J53: 0 | K53: 0 | L53: 0 | M53: 0
A54: Long service awards | C54: 14834667.21 | J54: 0 | K54: 14834667.21 | L54: 15517061.91 | M54: 16215329.69
A55: Post-retirement benefit obligations | B55: 4 | J55: =SUM(E55:I55) -> 0 | K55: =IF(D55=0,C55+J55,D55+J55) -> 0 | L55: 0 | M55: 0
A56: Entertainment | J56: =SUM(E56:I56) -> 0 | K56: =IF(D56=0,C56+J56,D56+J56) -> 0
A57: Scarcity | J57: =SUM(E57:I57) -> 0 | K57: =IF(D57=0,C57+J57,D57+J57) -> 0
A58: Acting and post related allowance | J58: =SUM(E58:I58) -> 0 | K58: =IF(D58=0,C58+J58,D58+J58) -> 0
A59: In kind benefits | J59: =SUM(E59:I59) -> 0 | K59: =IF(D59=0,C59+J59,D59+J59) -> 0
A60: sub-total | C60: =SUM(C44:C59) -> 1860538235 | D60: 0 | E60: 0 | F60: 0 | G60: 0 | H60: 0 | I60: -45175187.63 | J60: =SUM(J44:J59) -> -45175187.63 | K60: =SUM(K44:K59) -> 1815363047 | L60: =SUM(L44:L59) -> 1946471018 | M60: 2035244093
A61: Less: Employees costs capitalised to PPE | J61: =SUM(E61:I61) -> 0 | K61: =IF(D61=0,C61+J61,D61+J61) -> 0
A62: ="Total "&A43 -> Total Employee related costs | B62: 1 | C62: =C60-C61 -> 1860538235 | D62: =D60-D61 -> 0 | E62: 0 | F62: 0 | G62: 0 | H62: 0 | I62: -45175187.63 | J62: =SUM(J60:J61) -> -45175187.63 | K62: =SUM(K60:K61) -> 1815363047 | L62: =L60-L61 -> 1946471018 | M62: =M60-M61 -> 2035244093
A73: Depreciation and amortisation
A74: Depreciation of Property, Plant & Equipment | C74: 362178747.5 | J74: =SUM(E74:I74) -> 0 | K74: =IF(D74=0,C74+J74,D74+J74) -> 362178747.5 | L74: 349782306.6 | M74: 345694135.9
A75: Lease amortisation | J75: =SUM(E75:I75) -> 0 | K75: =IF(D75=0,C75+J75,D75+J75) -> 0
A76: Capital asset impairment | J76: =SUM(E76:I76) -> 0 | K76: =IF(D76=0,C76+J76,D76+J76) -> 0
A78: ="Total "&LEFT(A73,35) -> Total Depreciation and amortisation | B78: 1 | C78: =SUM(C74:C76) -> 362178747.5 | D78: =SUM(D74:D76) -> 0 | E78: 0 | F78: 0 | G78: 0 | H78: 0 | I78: 0 | J78: 0 | K78: 362178747.5 | L78: 349782306.6 | M78: 345694135.9
A80: Bulk purchases
A81: Electricity Bulk Purchases | C81: 3145118900 | J81: =SUM(E81:I81) -> 0 | K81: =IF(D81=0,C81+J81,D81+J81) -> 3145118900 | L81: 3638902567 | M81: 4210210270
A82: Water Bulk Purchases | J82: =SUM(E82:I82) -> 0 | K82: =IF(D82=0,C82+J82,D82+J82) -> 0
A83: Total bulk purchases | B83: 1 | C83: =C81 -> 3145118900 | D83: =D81 -> 0 | E83: 0 | F83: 0 | G83: 0 | H83: 0 | I83: 0 | J83: 0 | K83: 3145118900 | L83: 3638902567 | M83: 4210210270
A85: Transfers and grants
A86: Cash transfers and grants | C86: 69670130.46 | J86: =SUM(E86:I86) -> 0 | K86: =IF(D86=0,C86+J86,D86+J86) -> 69670130.46 | L86: 72874955.54 | M86: 76154327.64
A87: Non-cash transfers and grants | J87: =SUM(E87:I87) -> 0 | K87: =IF(D87=0,C87+J87,D87+J87) -> 0
A88: Total transfers and grants | C88: =SUM(C86:C87) -> 69670130.46 | D88: 0 | E88: 0 | F88: 0 | G88: 0 | H88: 0 | I88: 0 | J88: =SUM(J86:J87) -> 0 | K88: =SUM(K86:K87) -> 69670130.46 | L88: =SUM(L86:L87) -> 72874955.54 | M88: =SUM(M86:M87) -> 76154327.64
A90: Contracted services
A91: Outsourced Services | C91: 1024663415 | I91: -48692351.68 | J91: =SUM(E91:I91) -> -48692351.68 | K91: =IF(D91=0,C91+J91,D91+J91) -> 975971063.1 | L91: 1103978058 | M91: 1178097106
A92: Consultants and Professional Services | J92: =SUM(E92:I92) -> 0 | K92: =IF(D92=0,C92+J92,D92+J92) -> 0
A93: Contractors | J93: =SUM(E93:I93) -> 0 | K93: =IF(D93=0,C93+J93,D93+J93) -> 0
A94: Total contracted services | C94: =SUM(C91:C93) -> 1024663415 | D94: 0 | E94: 0 | F94: 0 | G94: 0 | H94: 0 | I94: -48692351.68 | J94: -48692351.68 | K94: 975971063.1 | L94: 1103978058 | M94: 1178097106
A96: Operational Costs
A97: Collection costs | J97: =SUM(E97:I97) -> 0 | K97: =IF(D97=0,C97+J97,D97+J97) -> 0
A98: Contributions to 'other' provisions | J98: =SUM(E98:I98) -> 0 | K98: =IF(D98=0,C98+J98,D98+J98) -> 0
A100: Audit fees | J100: =SUM(E100:I100) -> 0 | K100: =IF(D100=0,C100+J100,D100+J100) -> 0
A103: Other Operational Costs | C103: 194308180 | J103: =SUM(E103:I103) -> 0 | K103: =IF(D103=0,C103+J103,D103+J103) -> 194308180 | L103: 228319336 | M103: 244548283
A124: Total Other Operational Costs | B124: 1 | C124: =+C97+C98+C100+C103 -> 194308180 | D124: =+D97+D98+D100+D103 -> 0 | E124: 0 | F124: 0 | G124: 0 | H124: 0 | I124: 0 | J124: 0 | K124: 194308180 | L124: 228319336 | M124: 244548283
A126: Repairs and Maintenance by Expenditure Item | B126: 14
A127: Employee related costs | J127: =SUM(E127:I127) -> 0 | K127: =IF(D127=0,C127+J127,D127+J127) -> 0
A128: Inventory Consumed (Project Maintenance) | C128: 418704300.5 | I128: -121229645 | J128: =SUM(E128:I128) -> -121229645 | K128: =IF(D128=0,C128+J128,D128+J128) -> 297474655.5 | L128: 462123167.3 | M128: 497824110.3
A129: Contracted Services | C129: 93128924.56 | J129: =SUM(E129:I129) -> 0 | K129: =IF(D129=0,C129+J129,D129+J129) -> 93128924.56 | L129: 90025342.02 | M129: 100134852.2
A130: Other Expenditure | C130: 14663158.6 | J130: =SUM(E130:I130) -> 0 | K130: =IF(D130=0,C130+J130,D130+J130) -> 14663158.6 | L130: 13433833.06 | M130: 13324191.37
A131: Total Repairs and Maintenance Expenditure | B131: 15 | C131: =SUM(C127:C130) -> 526496383.6 | D131: =SUM(D127:D130) -> 0 | E131: 0 | F131: 0 | G131: 0 | H131: 0 | I131: -121229645 | J131: -121229645 | K131: 405266738.6 | L131: =SUM(L127:L130) -> 565582342.4 | M131: 611283153.9
A133: Inventory Consumed
A134: Inventory Consumed - Water | C134: =-'SB2'!C38 -> 892266059.7 | D134: =-'SB2'!D38 -> 0 | E134: =-'SB2'!E38 -> 0 | F134: =-'SB2'!F38 -> 0 | G134: =-'SB2'!G38 -> 0 | H134: =-'SB2'!H38 -> 0 | I134: =-'SB2'!I38 -> 0 | J134: =SUM(E134:I134) -> 0 | K134: =IF(D134=0,C134+J134,D134+J134) -> 892266059.7 | L134: =-'SB2'!L38 -> 941340693 | M134: =-'SB2'!M38 -> 1002998508
A135: Inventory Consumed - Other | C135: =-'SB2'!C67-'SB2'!C76-'SB2'!C83-'SB2'!C91-'SB2'!C99 -> 101143154.7 | D135: =-'SB2'!D67-'SB2'!D76-'SB2'!D83-'SB2'!D91-'SB2'!D99 -> 0 | E135: =-'SB2'!E67-'SB2'!E76-'SB2'!E83-'SB2'!E91-'SB2'!E99 -> 0 | F135: =-'SB2'!F67-'SB2'!F76-'SB2'!F83-'SB2'!F91-'SB2'!F99 -> 0 | G135: =-'SB2'!G67-'SB2'!G76-'SB2'!G83-'SB2'!G91-'SB2'!G99 -> 0 | H135: =-'SB2'!H67-'SB2'!H76-'SB2'!H83-'SB2'!H91-'SB2'!H99 -> 0 | I135: =-'SB2'!I67-'SB2'!I76-'SB2'!I83-'SB2'!I91-'SB2'!I99 -> -30287035.99 | J135: =SUM(E135:I135) -> -30287035.99 | K135: =IF(D135=0,C135+J135,D135+J135) -> 70856118.67 | L135: =-'SB2'!L67-'SB2'!L76-'SB2'!L83-'SB2'!L91-'SB2'!L99 -> 74753205.2 | M135: =-'SB2'!M67-'SB2'!M76-'SB2'!M83-'SB2'!M91-'SB2'!M99 -> 79612163.54
A136: Total Inventory Consumed & Other Material | C136: =SUM(C134:C135) -> 993409214.4 | D136: =SUM(D134:D135) -> 0 | E136: 0 | F136: 0 | G136: 0 | H136: 0 | I136: -30287035.99 | J136: -30287035.99 | K136: 963122178.4 | L136: 1016093898 | M136: 1082610672
A138: =head27a -> References
A139: 1. Must reconcile with 'Budgeted Financial Performance (Revenue and Expenditure)
A140: 2. Must reconcile to supporting documentation on staff salaries
A142: 4. Expenditure to meet any unfunded obligations
A143: 5. Special consideration may have to be given to including 'goodwill arising' or 'joint venture' budgets where circumstances require this (include separately under relevant notes)
A144: 6. Only complete if a previous adjusted budget has been approved in the same financial year. Reflect most recent adjusted budget.
A145: 7. Additional cash-backed accumulated funds/unspent funds (section 18(1)(b) and section 28(2)(e) MFMA) identified after Original Budget approved and after annual financial statements audited (note: only where underspending could not reasonably be have for
A146: 8. Increases of funds approved under section 31 MFMA
A147: 9. Adjustments approved in accordance with section 29 MFMA
A148: 10. Adjustments to funding allocations from National or Provincial Government
A149: 11. Adjusts. = 'Other' Adjustments proposed to be approved; including revenue under-collection (MFMA section 28(2)(a)); additional revenue appropriation on existing programmes (section 28(2))(b); projected savings (section 28(2)(d)); error correction (sec
A150: 12. G = B + C + D + E + F
A151: 13. Adjusted Budget H = (A or A1) + G
A152: 14. Repairs and Maintenance is not a GRAP item. However to facilitate transparency, municipalities must provide a breakdown of the amounts included in the relevant GRAP items that will be spent on Repairs and Maintenance.
A153: 15. Must reconcile with Repairs and Maintenance by Asset Class (Total Repairs and Maintenance) on Table SA34c.

Sheet SB2
A1: =muni&" - "&ADJB2&" - "&Date -> Choose name from list - Supporting Table SB2 Supporting detail to 'Financial Position Budget' - 28.02.2025
A2: =desc -> Description | B2: =head27 -> Ref | C2: =Head2 -> Budget Year 2024/25 | L2: =Head10 -> Budget Year +1 2025/26 | M2: =Head11 -> Budget Year +2 2026/27
C3: =Head6 -> Original Budget | D3: =Head54 -> Prior Adjusted | E3: =Head51 -> Accum. Funds | F3: =Head52 -> Multi-year capital | G3: =Head53 -> Unfore. Unavoid. | H3: =Head55 -> Nat. or Prov. Govt | I3: =Head50 -> Other Adjusts. | J3: =Head56 -> Total Adjusts. | K3: =Head7 -> Adjusted Budget | L3: =Head7 -> Adjusted Budget | M3: =Head7 -> Adjusted Budget
D4: 4 | E4: 5 | F4: 6 | G4: 7 | H4: 8 | I4: 9 | J4: 10 | K4: 11
A5: R thousands | C5: A | D5: A1 | E5: B | F5: C | G5: D | H5: E | I5: F | J5: G | K5: H
A6: ASSETS
A7: Trade and other receivables from exchange transactions
A8: Electricity | C8: 1130408852 | J8: =SUM(E8:I8) -> 0 | K8: =IF(D8=0,C8+J8,D8+J8) -> 1130408852
A9: Water | C9: 3318666502 | J9: 0 | K9: 3318666502
A10: Waste | C10: 273644009.6 | J10: 0 | K10: 273644009.6
A11: Waste Water | C11: 508491828.3 | J11: 0 | K11: 508491828.3
A12: Other trade receivables from exchange transactions | C12: 527354922.6 | J12: 0 | K12: 527354922.6
A13: Gross: Trade and other receivables from exchange transactions | C13: =SUM(C8:C12) -> 5758566115 | D13: =SUM(D8:D12) -> 0 | E13: 0 | F13: 0 | G13: 0 | H13: 0 | I13: 0 | J13: 0 | K13: 5758566115 | L13: 0 | M13: 0
A14: Less: Impairment for debt | B14: 1 | C14: =SUM(C15:C19) -> -3109304155 | D14: =SUM(D15:D19) -> 0 | E14: 0 | F14: 0 | G14: 0 | H14: 0 | I14: 0 | J14: 0 | K14: -3109304155 | L14: 0 | M14: 0
A15: Impairment for Electricity | C15: -274587733.9 | J15: =SUM(E15:I15) -> 0 | K15: =IF(D15=0,C15+J15,D15+J15) -> -274587733.9
A16: Impairment for Water | C16: -2156948844 | J16: 0 | K16: -2156948844
A17: Impairment for Waste | C17: -165309420 | J17: 0 | K17: -165309420
A18: Impairment for Waste Water | C18: -291081412.4 | J18: 0 | K18: -291081412.4
A19: Impairment for other trade receivalbes from exchange transactions | C19: -221376745.2 | J19: 0 | K19: -221376745.2
A20: Total net Trade and other receivables from Exchange Transactions | C20: =+C13+C14 -> 2649261959 | D20: =+D13+D14 -> 0 | E20: 0 | F20: 0 | G20: 0 | H20: 0 | I20: 0 | J20: 0 | K20: 2649261959 | L20: 0 | M20: 0
A22: Receivables from non-exchange transactions
A23: Property rates | C23: 1558113907 | J23: =SUM(E23:I23) -> 0 | K23: =IF(D23=0,C23+J23,D23+J23) -> 1558113907
A24: Less: Impairment of Property rates | C24: -748655553.4 | J24: 0 | K24: -748655553.4
A25: Net Property rates | C25: =+C23+C24 -> 809458353.4 | D25: =+D23+D24 -> 0 | E25: 0 | F25: 0 | G25: 0 | H25: 0 | I25: 0 | J25: 0 | K25: 809458353.4 | L25: 0 | M25: 0
A26: Other receivables from non-exchange transactions | C26: 131757738.2 | J26: =SUM(E26:I26) -> 0 | K26: =IF(D26=0,C26+J26,D26+J26) -> 131757738.2
A27: Impairment for other receivalbes from non-exchange transactions | C27: -130205978.7 | J27: 0 | K27: -130205978.7
A28: Net other receivables from non-exchange transactions | C28: =+C26+C27 -> 1551759.44 | D28: =+D26+D27 -> 0 | E28: 0 | F28: 0 | G28: 0 | H28: 0 | I28: 0 | J28: 0 | K28: 1551759.44 | L28: 0 | M28: 0
A29: Total net Receivables from non-exchange transactions | C29: =+C25+C28 -> 811010112.8 | D29: =+D25+D28 -> 0 | E29: 0 | F29: 0 | G29: 0 | H29: 0 | I29: 0 | J29: 0 | K29: 811010112.8 | L29: 0 | M29: 0
A31: Inventory
A32: Water
A33: Opening Balance | C33: -2126147857 | J33: =SUM(E33:I33) -> 0 | K33: =IF(D33=0,C33+J33,D33+J33) -> -2126147857 | L33: =K62 -> -3018413917 | M33: =L62 -> -3959754610
A34: System Input Volume | C34: =SUM(C35:C37) -> 0 | D34: =SUM(D35:D37) -> 0 | E34: =SUM(E35:E37) -> 0 | F34: 0 | G34: 0 | H34: 0 | I34: 0 | J34: 0 | K34: 0 | L34: 0 | M34: 0
A35: Water Treatment Works | J35: =SUM(E35:I35) -> 0 | K35: =IF(D35=0,C35+J35,D35+J35) -> 0 | L35: =C35*1.055 -> 0 | M35: =L35*1.0655 -> 0
A36: Bulk Purchases | J36: =SUM(E36:I36) -> 0 | K36: =IF(D36=0,C36+J36,D36+J36) -> 0 | L36: =C36*1.055 -> 0 | M36: =L36*1.0655 -> 0
A37: Natural Sources | J37: =SUM(E37:I37) -> 0 | K37: =IF(D37=0,C37+J37,D37+J37) -> 0 | L37: =C37*1.055 -> 0 | M37: =L37*1.0655 -> 0
A38: Authorised Consumption | B38: 12 | C38: =C39+C48 -> -892266059.7 | D38: =D39+D48 -> 0 | E38: =E39+E48 -> 0 | F38: 0 | G38: 0 | H38: 0 | I38: 0 | J38: 0 | K38: -892266059.7 | L38: -941340693 | M38: -1002998508
A39: Billed Authorised Consumption | C39: =C40+C44 -> -892266059.7 | D39: =D40+D44 -> 0 | E39: =E40+E44 -> 0 | F39: 0 | G39: 0 | H39: 0 | I39: 0 | J39: 0 | K39: -892266059.7 | L39: -941340693 | M39: -1002998508
A40: Billed Metered Consumption | C40: =SUM(C41:C43) -> -892266059.7 | D40: =SUM(D41:D43) -> 0 | E40: =SUM(E41:E43) -> 0 | F40: 0 | G40: 0 | H40: 0 | I40: 0 | J40: 0 | K40: -892266059.7 | L40: -941340693 | M40: -1002998508
A41: Free Basic Water | C41: -892266059.7 | I41: , | J41: =SUM(E41:I41) -> 0 | K41: =IF(D41=0,C41+J41,D41+J41) -> -892266059.7 | L41: =C41*1.055 -> -941340693 | M41: =L41*1.0655 -> -1002998508
A42: Subsidised Water | J42: =SUM(E42:I42) -> 0 | K42: =IF(D42=0,C42+J42,D42+J42) -> 0 | L42: =C42*1.055 -> 0 | M42: =L42*1.0655 -> 0
A43: Revenue Water | J43: =SUM(E43:I43) -> 0 | K43: =IF(D43=0,C43+J43,D43+J43) -> 0 | L43: =C43*1.055 -> 0 | M43: =L43*1.0655 -> 0
A44: Billed Unmetered Consumption | C44: =SUM(C45:C47) -> 0 | D44: =SUM(D45:D47) -> 0 | E44: =SUM(E45:E47) -> 0 | F44: 0 | G44: 0 | H44: 0 | I44: 0 | J44: 0 | K44: 0 | L44: 0 | M44: 0
A45: Free Basic Water | J45: =SUM(E45:I45) -> 0 | K45: =IF(D45=0,C45+J45,D45+J45) -> 0 | L45: =C45*1.055 -> 0 | M45: =L45*1.0655 -> 0
A46: Subsidised Water | J46: =SUM(E46:I46) -> 0 | K46: =IF(D46=0,C46+J46,D46+J46) -> 0 | L46: =C46*1.055 -> 0 | M46: =L46*1.0655 -> 0
A47: Revenue Water | J47: =SUM(E47:I47) -> 0 | K47: =IF(D47=0,C47+J47,D47+J47) -> 0 | L47: =C47*1.055 -> 0 | M47: =L47*1.0655 -> 0
A48: UnBilled Authorised Consumption | C48: =SUM(C49:C50) -> 0 | D48: =SUM(D49:D50) -> 0 | E48: =SUM(E49:E50) -> 0 | F48: 0 | G48: 0 | H48: 0 | I48: 0 | J48: 0 | K48: 0 | L48: 0 | M48: 0
A49: Unbilled Metered Consumption | J49: =SUM(E49:I49) -> 0 | K49: =IF(D49=0,C49+J49,D49+J49) -> 0 | L49: =C49*1.055 -> 0 | M49: =L49*1.0655 -> 0
A50: Unbilled Unmetered Consumption | J50: =SUM(E50:I50) -> 0 | K50: =IF(D50=0,C50+J50,D50+J50) -> 0 | L50: =C50*1.055 -> 0 | M50: =L50*1.0655 -> 0
A51: Water Losses | C51: =C52+C55 -> 0 | D51: =D52+D55 -> 0 | E51: =E52+E55 -> 0 | F51: 0 | G51: 0 | H51: 0 | I51: 0 | J51: 0 | K51: 0 | L51: 0 | M51: 0
A52: Apparent losses | C52: =SUM(C53:C54) -> 0 | D52: =SUM(D53:D54) -> 0 | E52: =SUM(E53:E54) -> 0 | F52: 0 | G52: 0 | H52: 0 | I52: 0 | J52: 0 | K52: 0 | L52: 0 | M52: 0
A53: Unauthorised Consumption | J53: =SUM(E53:I53) -> 0 | K53: =IF(D53=0,C53+J53,D53+J53) -> 0 | L53: =C53*1.055 -> 0 | M53: =L53*1.0655 -> 0
A54: Customer Meter Inaccuracies | J54: =SUM(E54:I54) -> 0 | K54: =IF(D54=0,C54+J54,D54+J54) -> 0 | L54: =C54*1.055 -> 0 | M54: =L54*1.0655 -> 0
A55: Real losses | C55: =SUM(C56:C60) -> 0 | D55: =SUM(D56:D60) -> 0 | E55: =SUM(E56:E60) -> 0 | F55: 0 | G55: 0 | H55: 0 | I55: 0 | J55: 0 | K55: 0 | L55: 0 | M55: 0
A56: Leakage on Transmission and Distribution Mains | J56: =SUM(E56:I56) -> 0 | K56: =IF(D56=0,C56+J56,D56+J56) -> 0 | L56: =C56*1.055 -> 0 | M56: =L56*1.0655 -> 0
A57: Leakage and Overflows at Storage Tanks/Reservoirs | J57: =SUM(E57:I57) -> 0 | K57: =IF(D57=0,C57+J57,D57+J57) -> 0 | L57: =C57*1.055 -> 0 | M57: =L57*1.0655 -> 0
A58: Leakage on Service Connections up to the point of Customer Meter | J58: =SUM(E58:I58) -> 0 | K58: =IF(D58=0,C58+J58,D58+J58) -> 0 | L58: =C58*1.055 -> 0 | M58: =L58*1.0655 -> 0
A59: Data Transfer and Management Errors | J59: =SUM(E59:I59) -> 0 | K59: =IF(D59=0,C59+J59,D59+J59) -> 0 | L59: =C59*1.055 -> 0 | M59: =L59*1.0655 -> 0
A60: Unavoidable Annual Real Losses | J60: =SUM(E60:I60) -> 0 | K60: =IF(D60=0,C60+J60,D60+J60) -> 0 | L60: =C60*1.055 -> 0 | M60: =L60*1.0655 -> 0
A61: Non-revenue Water | C61: =C51+C48 -> 0 | D61: =D51+D48 -> 0 | E61: =E51+E48 -> 0 | F61: 0 | G61: 0 | H61: 0 | I61: 0 | J61: 0 | K61: 0 | L61: 0 | M61: 0
A62: Closing Balance Water | C62: =C33+C34+C38+C51 -> -3018413917 | D62: =D33+D34+D38+D51 -> 0 | E62: =E33+E34+E38+E51 -> 0 | F62: 0 | G62: 0 | H62: 0 | I62: 0 | J62: 0 | K62: -3018413917 | L62: -3959754610 | M62: -4962753118
A64: Agricultural
A65: Opening Balance | J65: =SUM(E65:I65) -> 0 | K65: =IF(D65=0,C65+J65,D65+J65) -> 0 | L65: =K70 -> 0 | M65: =L70 -> 0
A66: Acquisitions | J66: =SUM(E66:I66) -> 0 | K66: =IF(D66=0,C66+J66,D66+J66) -> 0 | L66: =K66*1.05 -> 0 | M66: =L66*1.06 -> 0
A67: Issues | B67: 13 | J67: =SUM(E67:I67) -> 0 | K67: =IF(D67=0,C67+J67,D67+J67) -> 0 | L67: =K67*1.05 -> 0 | M67: =L67*1.06 -> 0
A68: Adjustments | B68: 14 | J68: =SUM(E68:I68) -> 0 | K68: =IF(D68=0,C68+J68,D68+J68) -> 0 | L68: =K68*1.05 -> 0 | M68: 0
A69: Write-offs | B69: 15 | J69: =SUM(E69:I69) -> 0 | K69: =IF(D69=0,C69+J69,D69+J69) -> 0 | L69: =K69*1.05 -> 0 | M69: 0
A70: Closing balance - Agricultural | C70: =SUM(C65:C69) -> 0 | D70: 0 | E70: 0 | F70: 0 | G70: 0 | H70: 0 | I70: 0 | J70: 0 | K70: 0 | L70: 0 | M70: 0
A72: Consumables
A73: Standard Rated
A74: Opening Balance | C74: -381137521 | J74: =SUM(E74:I74) -> 0 | K74: =IF(D74=0,C74+J74,D74+J74) -> -381137521 | L74: =K79 -> -381137521 | M74: =L79 -> -381137521
A75: Acquisitions | J75: =SUM(E75:I75) -> 0 | K75: =IF(D75=0,C75+J75,D75+J75) -> 0
A76: Issues | B76: 13 | J76: =SUM(E76:I76) -> 0 | K76: =IF(D76=0,C76+J76,D76+J76) -> 0
A77: Adjustments | B77: 14 | J77: =SUM(E77:I77) -> 0 | K77: =IF(D77=0,C77+J77,D77+J77) -> 0
A78: Write-offs | B78: 15 | J78: =SUM(E78:I78) -> 0 | K78: =IF(D78=0,C78+J78,D78+J78) -> 0
